Workbook

Sheet User Guide
C1: EZbuck Design Sheet Directions | I1: Rev.2.1
A3: The spreadsheet was design to help quickly implement the AOZ101X,AOZ102X,AOZ121X EZbuck controllers in a DC/DC converter using a buck converter.
A6: The spreadsheet requires macros to be enabled to operate correctly.
A7: The design tool will generate a recommended design that includes the loop compensation parameters and the calculated efficiency.The recommended values in the design may not be practical, yet the operation of the converter can be altered by using the closest parameter.
A9: Input converter parameters: | D9: Select buck regulator IC: | F9: Pick the IC you want to design with.
D10: Input voltage: | F10: Which is converter input voltage.
D11: Output voltage: | F11: Which is converter output voltage.
D12: Maximum output current: | F12: Which is converter maximum output current.
D13: Maximum output voltage ripple%: | F13: Which is the output voltage ripple ratio.
D14: Ambient temperature: | F14: Which is the converter ambient temperature.
A16: To use the design tool, enter data in the cells with the yellow text, the calculated values are in the cells with blue text. Red font indicate illegal input or potential design problems.

Sheet EZBuck design calculator
A2: 7
A7: EZBuck Design Spreadsheet | G7: Rev. 2.1
A8: Yellow cell | B8: is the input parameters
A9: Blue cell | B9: is the calculated parameters
B10: is the cell with comment | J10: Step1: Buck regulator IC selection
J11: 4
A12: Typical application schematic
J13: Step2: Define the system specification
J14: Enter Application Parameters
J15: Input Voltage: | N15: 12 | O15: V
J16: Output Voltage: | N16: 3.3 | O16: V
J17: Maximum Output Current: | N17: 2 | O17: A
J18: Maximum Output Voltage Ripple%: | N18: 1 | O18: %
J19: Ambient Temperature | N19: 25 | O19: ℃
J21: Step3: Power stage component selection
J22: Inductor Selection (L)
J23: Recommended L: | N23: =((N15-N16)*(N16/N15)/('Sheet1 select'!B3*1000*'Sheet1 select'!B42*0.35))*1000000 -> 6.835714286 | O23: µH
J24: Recommended ISATURATE: | N24: ='Sheet1 select'!B11 -> 2.5 | O24: A
J25: Enter The Chosen Inductor Value: | N25: 4.7 | O25: µH
J26: Enter The DCR of Chosen Inductor: | N26: 40 | O26: mΩ
A28: Calculated Efficiency vs Load Current | J28: Capacitor Selection (CIN and CO)
J29: Minimum Recommended Input Capacitance: | N29: 22 | O29: µF
J30: Minimum Input Capacitor RMS current rating: | N30: =SQRT((N16/N15)*(1-N16/N15))*N17 -> 0.893028555 | O30: Arms
J31: Minimum Recommended Output Capacitance: | N31: =1000000*(N16*(1-N16/N15)/(N25*'Sheet1 select'!B3))/(8*'Sheet1 select'!B3*N18*N16*0.01) -> 7.712765957 | O31: µF
J32: Maximum Output Capacitor ESR: | N32: =((N16*N18/100)/((N15-N16)*(N16/N15)/(N25*0.000001*'Sheet1 select'!B3*1000)))*1000 -> 32.4137931 | O32: mΩ
J33: Enter the chosen Output Capacitor Value: | N33: 44 | O33: µF
J34: Enter the chosen Output Capacitor ESR: | N34: 3 | O34: mΩ
J36: Output Voltage Characteristics
J37: Estimated Output Voltage Ripple: | N37: =(((N15-N16)*(N16/N15)/(N25*0.000001*'Sheet1 select'!B3*1000))*((N34*0.001+1/(8*'Sheet1 select'!B3*1000*N33*0.000001))))*1000 -> 8.838829787 | O37: mV
J39: Step4: Control component selection
J40: Feedback Resistors Selection(RFB1, RFB2)
J41: Enter a Value for RFB2: | N41: 10 | O41: kΩ
J42: Recommended Value for RFB1: | N42: =N41*(N16/0.8-1) -> 31.25 | O42: kΩ
J45: Compensation Component Selection (RC, CC1, CC2)
J46: Enter Desired Crossover Frequency: | N46: 30 | O46: kHz
A47: Calculated Bode Plot | J47: Recommended Value for CC1: | N47: =(('Sheet1 select'!B6/1000000)*'Bode Plot Calculations'!E3*'Bode Plot Calculations'!E4*'Bode Plot Calculations'!B3/(SQRT(((1-(('EZBuck design calculator'!N46*1000)/('Sheet1 select'!B3*1000/2))^2)^2)+((1/'Bode Plot Calculations'!K6)*(('EZBuck design calculator'!N46*1000)/('Sheet1 select'!B3*1000/2)))^2)*2*PI()*'EZBuck design calculator'!N46*1000))*1000000000 -> 1.966862868 | O47: nF
J48: Recommended Value for RC: | N48: =(1/(2*PI()*'Bode Plot Calculations'!H4*N47*0.000000001))*0.001 -> 21.05681702 | O48: kΩ
J49: Recommended Value for CC2: | N49: =IF((1/(2*PI()*'EZBuck design calculator'!N33*0.000001*'EZBuck design calculator'!N34*0.001))<3*'EZBuck design calculator'!N46*1000,('EZBuck design calculator'!N33*0.000001*'EZBuck design calculator'!N34*0.001/('EZBuck design calculator'!N48*1000))*(1000000000000)-10,0) -> 0 | O49: pF
J50: Enter The Chosen Value for CC1: | N50: 1 | O50: nF
J51: Enter The Chosen Value for RC: | N51: 20 | O51: kΩ
J52: Enter The Chosen Value for CC2: | N52: 0 | O52: pF
J54: Loop Characteristics
J55: Expected Crossover Frequency: | N55: ='Bode Plot Calculations'!N4 -> 29.344 | O55: kHz
J56: Expected Phase Margin: | N56: ='Bode Plot Calculations'!N5 -> 59.92843462 | O56: °
J58: Step5: Thermal Performance
J59: Thermal Characteristics
J60: Internal Power Dissipation: | N60: ='Efficiency calculations'!T302 -> 0.7044026118 | O60: W
J61: Junction Temperature: | N61: =N19+'Sheet1 select'!B34*'Efficiency calculations'!T302 -> 86.28302723 | O61: ℃
J63: For datasheets,evaluation note,please visit: www.aosmd.com
F78: ='Sheet1 select'!B3 -> 500
F79: ='Sheet1 select'!$B$42 -> 2
F80: ='Sheet1 select'!$B$43 -> 16
F81: ='Sheet1 select'!$B$3 -> 500

Sheet Sheet3 (hidden)

Sheet Sheet2 (hidden)
A1: 4
A2: ='Sheet1 select'!B30 -> 3

Sheet Sheet1 select (hidden)
A1: Controller / Driver:
A2: 4 | B2: =INDEX(ControllerList,A2,1) -> AOZ1016
A3: Switching frequency (KHz) | B3: =VLOOKUP(B$2,CData,MATCH(A3,CColHead,0),0) -> 500
A4: Se peak voltage (V) | B4: 0.4
A5: Current sense amplifier gain | B5: 1.82
A6: Error amplifier transconductance(Gm)(uA/V) | B6: 160
A7: Error amplifier output impedance(Rm) (MΩ) | B7: 1.5
A8: High-Side Pull-up (Turn on) Resistance(Ω) | B8: 7.4
A9: High-Side Pull-down (Turn off) Resistance(Ω) | B9: 7.4
A10: High-Side drive voltage (V) | B10: 12
A11: Current Limit (A) | B11: 2.5
A12: Dead Time L-H (ns) | B12: 0
A13: Dead Time H-L (ns) | B13: 0
A14: Low-Side Pull-up (Turn on) Resistance(Ω) | B14: 0
A15: Low-Side Pull-down (Turn off) Resistance(Ω) | B15: 0
A16: High-Side Rdson@12V 25C (mΩ) | B16: 97
A17: Low-Side Rdson@12V 25C (mΩ) | B17: 0
A18: Reference voltage (V) | B18: 0.8
A19: High-Side Gate threshold voltage (V) | B19: 1.9
A20: Low-Side Gate threshold voltage (V) | B20: =VLOOKUP(B$2,CData,MATCH(A20,CColHead,0),0) -> 0
A21: High-Side transconductance(Gfs)(s) | B21: =VLOOKUP(B$2,CData,MATCH(A21,CColHead,0),0) -> 3.8
A22: Low-Side transconductance(Gfs)(s) | B22: =VLOOKUP(B$2,CData,MATCH(A22,CColHead,0),0) -> 0
A23: High-Side Vsp(V) | B23: =VLOOKUP(B$2,CData,MATCH(A23,CColHead,0),0) -> 2.426315789
A24: Low-Side Vsp(V) | B24: =VLOOKUP(B$2,CData,MATCH(A24,CColHead,0),0) -> 0
A25: High-Side Rdson as function of temp&Vin(Ω) | B25: 0.05079189966
A26: Low-Side Rdson as function of temp&Vin(Ω) | B26: 0
A27: High-Side Rgate (Ω) | B27: =VLOOKUP(B$2,CData,MATCH(A27,CColHead,0),0) -> 12
A28: Low-Side Rgate (Ω) | B28: =VLOOKUP(B$2,CData,MATCH(A28,CColHead,0),0) -> 0
A29: Controller Quiescent Current (mA) | B29: 2
A30: Theta J-A | B30: 3
A31: High-Side Tatal gate charge Qg (nc) | B31: =VLOOKUP(B$2,CData,MATCH(A31,CColHead,0),0) -> 6.8
A32: High-Side Gate source charge Qgs (nc) | B32: 1.6
A33: High-Side Gate drain charge Qgd (nc) | B33: 0.95
A34: θja (℃/w) | B34: 87
A35: Low-Side Tatal gate charge Qg (nc) | B35: 0
A36: Low-Side Gate source charge Qgs (nc) | B36: 0
A37: Low-Side Gate drain charge Qgd (nc) | B37: =VLOOKUP(B$2,CData,MATCH(A37,CColHead,0),0) -> 0
A38: High-Side Die temperature (℃) | B38: 44.29784142
A39: Low-Side Die temperature (℃) | B39: 0
A40: Factor | B40: 1
A41: Schottky diode voltage droop (V) | B41: 0.33
A42: Maxim output current (A) | B42: 2
A43: Maxim input voltage (V) | B43: 16

Sheet Efficiency calculations (hidden)
A2: Iripple= | B2: =(('EZBuck design calculator'!N15-'EZBuck design calculator'!N16)*'Efficiency calculations'!B4)/('EZBuck design calculator'!N25*0.000001*'Sheet1 select'!B3*1000) -> 1.018085106 | C2: A | E2: Load step | F2: Load Current | G2: Inductor DCR Loss | H2: High Side MOSFET Rds(on) Loss | I2: Schottky diode loss | J2: Low Side MOSFET Rds(on) Loss | K2: HS MOSFET tr+tf Loss | L2: Deadtime Loss | M2: Output Cap ESR Loss | N2: Controller Loss | O2: High Side Gate Charge Loss | P2: Low Side Gate Charge Loss | Q2: LS MOSFET tr+tf loss | R2: Total Loss | S2: η | T2: Icloss
A3: Cout(rms)= | B3: =B2/SQRT(12) -> 0.2938958551 | C3: A | E3: 1 | F3: =$B$13*E3/300 -> 0.006666666667 | G3: =F3*F3*$B$15*0.001*2 -> 3.555555556e-06 | H3: =F3*F3*('Sheet1 select'!$B$25)*$B$4 -> 6.207898847e-07 | I3: =F3*(1-$B$4)*'Sheet1 select'!$B$41 -> 0.001595 | J3: =F3*F3*('Sheet1 select'!$B$26)*(1-$B$4) -> 0 | K3: =0.0000005*$B$11*F3*$B$9*((('Sheet1 select'!$B$33+0.5*'Sheet1 select'!$B$32)/(('Sheet1 select'!$B$10-'Sheet1 select'!$B$23)/('Sheet1 select'!$B$27+'Sheet1 select'!$B$8)))+(('Sheet1 select'!$B$33+0.5*'Sheet1 select'!$B$32)/(('Sheet1 select'!$B$23)/('Sheet1 select'!$B$27+'Sheet1 select'!$B$9)))) -> 0.0003507717406 | L3: =(F3*$B$29)*(('Sheet1 select'!$B$12+'Sheet1 select'!$B$13)*(0.000000001))*$B$9*1000 -> 0 | M3: =($B$3^2)*$B$17*0.001 -> 0.000259124321 | N3: =$B$11*'Sheet1 select'!$B$29*0.001 -> 0.024 | O3: ='Sheet1 select'!$B$10*'Sheet1 select'!$B$31*$B$9*1000*0.000000001 -> 0.0408 | P3: ='Sheet1 select'!$B$35*$B$11*$B$9*1000*0.000000001 -> 0 | Q3: =IF('Sheet1 select'!$B$17=0,0,(0.00000006*0.7+0.00000003*(0.7+F3*1.1*'Sheet1 select'!$B$26))*F3*$B$9*1000) -> 0 | R3: =SUM(G3:P3)+Q3 -> 0.06700907241 | S3: =($B$12*F3)/($B$12*F3+R3) -> 0.2471658159 | T3: =H3+K3+O3+N3+'Sheet1 select'!$B$40*I3+J3+P3 -> 0.06674639253
A4: D= | B4: ='EZBuck design calculator'!N16/'EZBuck design calculator'!N15 -> 0.275 | E4: 2 | F4: =$B$13*E4/300 -> 0.01333333333 | G4: =F4*F4*$B$15*0.001*2 -> 1.422222222e-05 | H4: =F4*F4*('Sheet1 select'!$B$25)*$B$4 -> 2.483159539e-06 | I4: =F4*(1-$B$4)*'Sheet1 select'!$B$41 -> 0.00319 | J4: =F4*F4*('Sheet1 select'!$B$26)*(1-$B$4) -> 0 | K4: =0.0000005*$B$11*F4*$B$9*((('Sheet1 select'!$B$33+0.5*'Sheet1 select'!$B$32)/(('Sheet1 select'!$B$10-'Sheet1 select'!$B$23)/('Sheet1 select'!$B$27+'Sheet1 select'!$B$8)))+(('Sheet1 select'!$B$33+0.5*'Sheet1 select'!$B$32)/(('Sheet1 select'!$B$23)/('Sheet1 select'!$B$27+'Sheet1 select'!$B$9)))) -> 0.0007015434811 | L4: =(F4*$B$29)*(('Sheet1 select'!$B$12+'Sheet1 select'!$B$13)*(0.000000001))*$B$9*1000 -> 0 | M4: =($B$3^2)*$B$17*0.001 -> 0.000259124321 | N4: =$B$11*'Sheet1 select'!$B$29*0.001 -> 0.024 | O4: ='Sheet1 select'!$B$10*'Sheet1 select'!$B$31*$B$9*1000*0.000000001 -> 0.0408 | P4: ='Sheet1 select'!$B$35*$B$11*$B$9*1000*0.000000001 -> 0 | Q4: =IF('Sheet1 select'!$B$17=0,0,(0.00000006*0.7+0.00000003*(0.7+F4*1.1*'Sheet1 select'!$B$26))*F4*$B$9*1000) -> 0 | R4: 0.06896737318 | S4: =($B$12*F4)/($B$12*F4+R4) -> 0.3894929904 | T4: =H4+K4+O4+N4+'Sheet1 select'!$B$40*I4+J4+P4 -> 0.06869402664
E5: 3 | F5: 0.02 | G5: 3.2e-05 | H5: =F5*F5*('Sheet1 select'!$B$25)*$B$4 -> 5.587108963e-06 | I5: =F5*(1-$B$4)*'Sheet1 select'!$B$41 -> 0.004785 | J5: =F5*F5*('Sheet1 select'!$B$26)*(1-$B$4) -> 0 | K5: =0.0000005*$B$11*F5*$B$9*((('Sheet1 select'!$B$33+0.5*'Sheet1 select'!$B$32)/(('Sheet1 select'!$B$10-'Sheet1 select'!$B$23)/('Sheet1 select'!$B$27+'Sheet1 select'!$B$8)))+(('Sheet1 select'!$B$33+0.5*'Sheet1 select'!$B$32)/(('Sheet1 select'!$B$23)/('Sheet1 select'!$B$27+'Sheet1 select'!$B$9)))) -> 0.001052315222 | L5: =(F5*$B$29)*(('Sheet1 select'!$B$12+'Sheet1 select'!$B$13)*(0.000000001))*$B$9*1000 -> 0 | M5: 0.000259124321 | N5: =$B$11*'Sheet1 select'!$B$29*0.001 -> 0.024 | O5: ='Sheet1 select'!$B$10*'Sheet1 select'!$B$31*$B$9*1000*0.000000001 -> 0.0408 | P5: ='Sheet1 select'!$B$35*$B$11*$B$9*1000*0.000000001 -> 0 | Q5: =IF('Sheet1 select'!$B$17=0,0,(0.00000006*0.7+0.00000003*(0.7+F5*1.1*'Sheet1 select'!$B$26))*F5*$B$9*1000) -> 0 | R5: 0.07093402665 | S5: 0.4819839277 | T5: =H5+K5+O5+N5+'Sheet1 select'!$B$40*I5+J5+P5 -> 0.07064290233
E6: 4 | F6: 0.02666666667 | G6: 5.688888889e-05 | H6: =F6*F6*('Sheet1 select'!$B$25)*$B$4 -> 9.932638156e-06 | I6: =F6*(1-$B$4)*'Sheet1 select'!$B$41 -> 0.00638 | J6: =F6*F6*('Sheet1 select'!$B$26)*(1-$B$4) -> 0 | K6: =0.0000005*$B$11*F6*$B$9*((('Sheet1 select'!$B$33+0.5*'Sheet1 select'!$B$32)/(('Sheet1 select'!$B$10-'Sheet1 select'!$B$23)/('Sheet1 select'!$B$27+'Sheet1 select'!$B$8)))+(('Sheet1 select'!$B$33+0.5*'Sheet1 select'!$B$32)/(('Sheet1 select'!$B$23)/('Sheet1 select'!$B$27+'Sheet1 select'!$B$9)))) -> 0.001403086962 | L6: =(F6*$B$29)*(('Sheet1 select'!$B$12+'Sheet1 select'!$B$13)*(0.000000001))*$B$9*1000 -> 0 | M6: 0.000259124321 | N6: =$B$11*'Sheet1 select'!$B$29*0.001 -> 0.024 | O6: ='Sheet1 select'!$B$10*'Sheet1 select'!$B$31*$B$9*1000*0.000000001 -> 0.0408 | P6: ='Sheet1 select'!$B$35*$B$11*$B$9*1000*0.000000001 -> 0 | Q6: =IF('Sheet1 select'!$B$17=0,0,(0.00000006*0.7+0.00000003*(0.7+F6*1.1*'Sheet1 select'!$B$26))*F6*$B$9*1000) -> 0 | R6: 0.07290903281 | S6: 0.5468928528 | T6: =H6+K6+O6+N6+'Sheet1 select'!$B$40*I6+J6+P6 -> 0.0725930196
A7: Parameters | E7: 5 | F7: 0.03333333333 | G7: 8.888888889e-05 | H7: =F7*F7*('Sheet1 select'!$B$25)*$B$4 -> 1.551974712e-05 | I7: =F7*(1-$B$4)*'Sheet1 select'!$B$41 -> 0.007975 | J7: =F7*F7*('Sheet1 select'!$B$26)*(1-$B$4) -> 0 | K7: =0.0000005*$B$11*F7*$B$9*((('Sheet1 select'!$B$33+0.5*'Sheet1 select'!$B$32)/(('Sheet1 select'!$B$10-'Sheet1 select'!$B$23)/('Sheet1 select'!$B$27+'Sheet1 select'!$B$8)))+(('Sheet1 select'!$B$33+0.5*'Sheet1 select'!$B$32)/(('Sheet1 select'!$B$23)/('Sheet1 select'!$B$27+'Sheet1 select'!$B$9)))) -> 0.001753858703 | L7: =(F7*$B$29)*(('Sheet1 select'!$B$12+'Sheet1 select'!$B$13)*(0.000000001))*$B$9*1000 -> 0 | M7: 0.000259124321 | N7: =$B$11*'Sheet1 select'!$B$29*0.001 -> 0.024 | O7: ='Sheet1 select'!$B$10*'Sheet1 select'!$B$31*$B$9*1000*0.000000001 -> 0.0408 | P7: ='Sheet1 select'!$B$35*$B$11*$B$9*1000*0.000000001 -> 0 | Q7: =IF('Sheet1 select'!$B$17=0,0,(0.00000006*0.7+0.00000003*(0.7+F7*1.1*'Sheet1 select'!$B$26))*F7*$B$9*1000) -> 0 | R7: 0.07489239166 | S7: 0.5949406518 | T7: =H7+K7+O7+N7+'Sheet1 select'!$B$40*I7+J7+P7 -> 0.07454437845
E8: 6 | F8: 0.04 | G8: 0.000128 | H8: =F8*F8*('Sheet1 select'!$B$25)*$B$4 -> 2.234843585e-05 | I8: =F8*(1-$B$4)*'Sheet1 select'!$B$41 -> 0.00957 | J8: =F8*F8*('Sheet1 select'!$B$26)*(1-$B$4) -> 0 | K8: =0.0000005*$B$11*F8*$B$9*((('Sheet1 select'!$B$33+0.5*'Sheet1 select'!$B$32)/(('Sheet1 select'!$B$10-'Sheet1 select'!$B$23)/('Sheet1 select'!$B$27+'Sheet1 select'!$B$8)))+(('Sheet1 select'!$B$33+0.5*'Sheet1 select'!$B$32)/(('Sheet1 select'!$B$23)/('Sheet1 select'!$B$27+'Sheet1 select'!$B$9)))) -> 0.002104630443 | L8: =(F8*$B$29)*(('Sheet1 select'!$B$12+'Sheet1 select'!$B$13)*(0.000000001))*$B$9*1000 -> 0 | M8: 0.000259124321 | N8: =$B$11*'Sheet1 select'!$B$29*0.001 -> 0.024 | O8: ='Sheet1 select'!$B$10*'Sheet1 select'!$B$31*$B$9*1000*0.000000001 -> 0.0408 | P8: ='Sheet1 select'!$B$35*$B$11*$B$9*1000*0.000000001 -> 0 | Q8: =IF('Sheet1 select'!$B$17=0,0,(0.00000006*0.7+0.00000003*(0.7+F8*1.1*'Sheet1 select'!$B$26))*F8*$B$9*1000) -> 0 | R8: 0.0768841032 | S8: 0.6319293713 | T8: =H8+K8+O8+N8+'Sheet1 select'!$B$40*I8+J8+P8 -> 0.07649697888
A9: fsw= | B9: ='Sheet1 select'!B3 -> 500 | C9: kHz | E9: 7 | F9: 0.04666666667 | G9: 0.0001742222222 | H9: =F9*F9*('Sheet1 select'!$B$25)*$B$4 -> 3.041870435e-05 | I9: =F9*(1-$B$4)*'Sheet1 select'!$B$41 -> 0.011165 | J9: =F9*F9*('Sheet1 select'!$B$26)*(1-$B$4) -> 0 | K9: =0.0000005*$B$11*F9*$B$9*((('Sheet1 select'!$B$33+0.5*'Sheet1 select'!$B$32)/(('Sheet1 select'!$B$10-'Sheet1 select'!$B$23)/('Sheet1 select'!$B$27+'Sheet1 select'!$B$8)))+(('Sheet1 select'!$B$33+0.5*'Sheet1 select'!$B$32)/(('Sheet1 select'!$B$23)/('Sheet1 select'!$B$27+'Sheet1 select'!$B$9)))) -> 0.002455402184 | L9: =(F9*$B$29)*(('Sheet1 select'!$B$12+'Sheet1 select'!$B$13)*(0.000000001))*$B$9*1000 -> 0 | M9: 0.000259124321 | N9: =$B$11*'Sheet1 select'!$B$29*0.001 -> 0.024 | O9: ='Sheet1 select'!$B$10*'Sheet1 select'!$B$31*$B$9*1000*0.000000001 -> 0.0408 | P9: ='Sheet1 select'!$B$35*$B$11*$B$9*1000*0.000000001 -> 0 | Q9: =IF('Sheet1 select'!$B$17=0,0,(0.00000006*0.7+0.00000003*(0.7+F9*1.1*'Sheet1 select'!$B$26))*F9*$B$9*1000) -> 0 | R9: 0.07888416743 | S9: 0.6612729483 | T9: =H9+K9+O9+N9+'Sheet1 select'!$B$40*I9+J9+P9 -> 0.07845082089
E10: 8 | F10: 0.05333333333 | G10: 0.0002275555556 | H10: =F10*F10*('Sheet1 select'!$B$25)*$B$4 -> 3.973055262e-05 | I10: =F10*(1-$B$4)*'Sheet1 select'!$B$41 -> 0.01276 | J10: =F10*F10*('Sheet1 select'!$B$26)*(1-$B$4) -> 0 | K10: =0.0000005*$B$11*F10*$B$9*((('Sheet1 select'!$B$33+0.5*'Sheet1 select'!$B$32)/(('Sheet1 select'!$B$10-'Sheet1 select'!$B$23)/('Sheet1 select'!$B$27+'Sheet1 select'!$B$8)))+(('Sheet1 select'!$B$33+0.5*'Sheet1 select'!$B$32)/(('Sheet1 select'!$B$23)/('Sheet1 select'!$B$27+'Sheet1 select'!$B$9)))) -> 0.002806173925 | L10: =(F10*$B$29)*(('Sheet1 select'!$B$12+'Sheet1 select'!$B$13)*(0.000000001))*$B$9*1000 -> 0 | M10: 0.000259124321 | N10: =$B$11*'Sheet1 select'!$B$29*0.001 -> 0.024 | O10: ='Sheet1 select'!$B$10*'Sheet1 select'!$B$31*$B$9*1000*0.000000001 -> 0.0408 | P10: ='Sheet1 select'!$B$35*$B$11*$B$9*1000*0.000000001 -> 0 | Q10: =IF('Sheet1 select'!$B$17=0,0,(0.00000006*0.7+0.00000003*(0.7+F10*1.1*'Sheet1 select'!$B$26))*F10*$B$9*1000) -> 0 | R10: 0.08089258435 | S10: 0.6851112516 | T10: =H10+K10+O10+N10+'Sheet1 select'!$B$40*I10+J10+P10 -> 0.08040590448
A11: Vin= | B11: ='EZBuck design calculator'!N15 -> 12 | C11: V | E11: 9 | F11: 0.06 | G11: 0.000288 | H11: =F11*F11*('Sheet1 select'!$B$25)*$B$4 -> 5.028398066e-05 | I11: =F11*(1-$B$4)*'Sheet1 select'!$B$41 -> 0.014355 | J11: =F11*F11*('Sheet1 select'!$B$26)*(1-$B$4) -> 0 | K11: =0.0000005*$B$11*F11*$B$9*((('Sheet1 select'!$B$33+0.5*'Sheet1 select'!$B$32)/(('Sheet1 select'!$B$10-'Sheet1 select'!$B$23)/('Sheet1 select'!$B$27+'Sheet1 select'!$B$8)))+(('Sheet1 select'!$B$33+0.5*'Sheet1 select'!$B$32)/(('Sheet1 select'!$B$23)/('Sheet1 select'!$B$27+'Sheet1 select'!$B$9)))) -> 0.003156945665 | L11: =(F11*$B$29)*(('Sheet1 select'!$B$12+'Sheet1 select'!$B$13)*(0.000000001))*$B$9*1000 -> 0 | M11: 0.000259124321 | N11: =$B$11*'Sheet1 select'!$B$29*0.001 -> 0.024 | O11: ='Sheet1 select'!$B$10*'Sheet1 select'!$B$31*$B$9*1000*0.000000001 -> 0.0408 | P11: ='Sheet1 select'!$B$35*$B$11*$B$9*1000*0.000000001 -> 0 | Q11: =IF('Sheet1 select'!$B$17=0,0,(0.00000006*0.7+0.00000003*(0.7+F11*1.1*'Sheet1 select'!$B$26))*F11*$B$9*1000) -> 0 | R11: 0.08290935397 | S11: 0.7048537089 | T11: =H11+K11+O11+N11+'Sheet1 select'!$B$40*I11+J11+P11 -> 0.08236222965
A12: Vout= | B12: ='EZBuck design calculator'!N16 -> 3.3 | C12: V | E12: 10 | F12: 0.06666666667 | G12: 0.0003555555556 | H12: =F12*F12*('Sheet1 select'!$B$25)*$B$4 -> 6.207898847e-05 | I12: =F12*(1-$B$4)*'Sheet1 select'!$B$41 -> 0.01595 | J12: =F12*F12*('Sheet1 select'!$B$26)*(1-$B$4) -> 0 | K12: =0.0000005*$B$11*F12*$B$9*((('Sheet1 select'!$B$33+0.5*'Sheet1 select'!$B$32)/(('Sheet1 select'!$B$10-'Sheet1 select'!$B$23)/('Sheet1 select'!$B$27+'Sheet1 select'!$B$8)))+(('Sheet1 select'!$B$33+0.5*'Sheet1 select'!$B$32)/(('Sheet1 select'!$B$23)/('Sheet1 select'!$B$27+'Sheet1 select'!$B$9)))) -> 0.003507717406 | L12: =(F12*$B$29)*(('Sheet1 select'!$B$12+'Sheet1 select'!$B$13)*(0.000000001))*$B$9*1000 -> 0 | M12: 0.000259124321 | N12: =$B$11*'Sheet1 select'!$B$29*0.001 -> 0.024 | O12: ='Sheet1 select'!$B$10*'Sheet1 select'!$B$31*$B$9*1000*0.000000001 -> 0.0408 | P12: ='Sheet1 select'!$B$35*$B$11*$B$9*1000*0.000000001 -> 0 | Q12: =IF('Sheet1 select'!$B$17=0,0,(0.00000006*0.7+0.00000003*(0.7+F12*1.1*'Sheet1 select'!$B$26))*F12*$B$9*1000) -> 0 | R12: 0.08493447627 | S12: 0.7214664694 | T12: =H12+K12+O12+N12+'Sheet1 select'!$B$40*I12+J12+P12 -> 0.08431979639
A13: Iout(max)= | B13: ='EZBuck design calculator'!N17 -> 2 | C13: A | E13: 11 | F13: 0.07333333333 | G13: 0.0004302222222 | H13: =F13*F13*('Sheet1 select'!$B$25)*$B$4 -> 7.511557605e-05 | I13: =F13*(1-$B$4)*'Sheet1 select'!$B$41 -> 0.017545 | J13: =F13*F13*('Sheet1 select'!$B$26)*(1-$B$4) -> 0 | K13: =0.0000005*$B$11*F13*$B$9*((('Sheet1 select'!$B$33+0.5*'Sheet1 select'!$B$32)/(('Sheet1 select'!$B$10-'Sheet1 select'!$B$23)/('Sheet1 select'!$B$27+'Sheet1 select'!$B$8)))+(('Sheet1 select'!$B$33+0.5*'Sheet1 select'!$B$32)/(('Sheet1 select'!$B$23)/('Sheet1 select'!$B$27+'Sheet1 select'!$B$9)))) -> 0.003858489146 | L13: =(F13*$B$29)*(('Sheet1 select'!$B$12+'Sheet1 select'!$B$13)*(0.000000001))*$B$9*1000 -> 0 | M13: 0.000259124321 | N13: =$B$11*'Sheet1 select'!$B$29*0.001 -> 0.024 | O13: ='Sheet1 select'!$B$10*'Sheet1 select'!$B$31*$B$9*1000*0.000000001 -> 0.0408 | P13: ='Sheet1 select'!$B$35*$B$11*$B$9*1000*0.000000001 -> 0 | Q13: =IF('Sheet1 select'!$B$17=0,0,(0.00000006*0.7+0.00000003*(0.7+F13*1.1*'Sheet1 select'!$B$26))*F13*$B$9*1000) -> 0 | R13: 0.08696795127 | S13: 0.73563397 | T13: =H13+K13+O13+N13+'Sheet1 select'!$B$40*I13+J13+P13 -> 0.08627860472
A14: L= | B14: ='EZBuck design calculator'!N25 -> 4.7 | C14: uH | E14: 12 | F14: 0.08 | G14: 0.000512 | H14: =F14*F14*('Sheet1 select'!$B$25)*$B$4 -> 8.93937434e-05 | I14: =F14*(1-$B$4)*'Sheet1 select'!$B$41 -> 0.01914 | J14: =F14*F14*('Sheet1 select'!$B$26)*(1-$B$4) -> 0 | K14: =0.0000005*$B$11*F14*$B$9*((('Sheet1 select'!$B$33+0.5*'Sheet1 select'!$B$32)/(('Sheet1 select'!$B$10-'Sheet1 select'!$B$23)/('Sheet1 select'!$B$27+'Sheet1 select'!$B$8)))+(('Sheet1 select'!$B$33+0.5*'Sheet1 select'!$B$32)/(('Sheet1 select'!$B$23)/('Sheet1 select'!$B$27+'Sheet1 select'!$B$9)))) -> 0.004209260887 | L14: =(F14*$B$29)*(('Sheet1 select'!$B$12+'Sheet1 select'!$B$13)*(0.000000001))*$B$9*1000 -> 0 | M14: 0.000259124321 | N14: =$B$11*'Sheet1 select'!$B$29*0.001 -> 0.024 | O14: ='Sheet1 select'!$B$10*'Sheet1 select'!$B$31*$B$9*1000*0.000000001 -> 0.0408 | P14: ='Sheet1 select'!$B$35*$B$11*$B$9*1000*0.000000001 -> 0 | Q14: =IF('Sheet1 select'!$B$17=0,0,(0.00000006*0.7+0.00000003*(0.7+F14*1.1*'Sheet1 select'!$B$26))*F14*$B$9*1000) -> 0 | R14: 0.08900977895 | S14: 0.7478546367 | T14: =H14+K14+O14+N14+'Sheet1 select'!$B$40*I14+J14+P14 -> 0.08823865463
A15: L(DCR)= | B15: ='EZBuck design calculator'!N26 -> 40 | C15: mΩ | E15: 13 | F15: 0.08666666667 | G15: 0.0006008888889 | H15: =F15*F15*('Sheet1 select'!$B$25)*$B$4 -> 0.0001049134905 | I15: =F15*(1-$B$4)*'Sheet1 select'!$B$41 -> 0.020735 | J15: =F15*F15*('Sheet1 select'!$B$26)*(1-$B$4) -> 0 | K15: =0.0000005*$B$11*F15*$B$9*((('Sheet1 select'!$B$33+0.5*'Sheet1 select'!$B$32)/(('Sheet1 select'!$B$10-'Sheet1 select'!$B$23)/('Sheet1 select'!$B$27+'Sheet1 select'!$B$8)))+(('Sheet1 select'!$B$33+0.5*'Sheet1 select'!$B$32)/(('Sheet1 select'!$B$23)/('Sheet1 select'!$B$27+'Sheet1 select'!$B$9)))) -> 0.004560032627 | L15: =(F15*$B$29)*(('Sheet1 select'!$B$12+'Sheet1 select'!$B$13)*(0.000000001))*$B$9*1000 -> 0 | M15: 0.000259124321 | N15: =$B$11*'Sheet1 select'!$B$29*0.001 -> 0.024 | O15: ='Sheet1 select'!$B$10*'Sheet1 select'!$B$31*$B$9*1000*0.000000001 -> 0.0408 | P15: ='Sheet1 select'!$B$35*$B$11*$B$9*1000*0.000000001 -> 0 | Q15: =IF('Sheet1 select'!$B$17=0,0,(0.00000006*0.7+0.00000003*(0.7+F15*1.1*'Sheet1 select'!$B$26))*F15*$B$9*1000) -> 0 | R15: 0.09105995933 | S15: 0.7585000553 | T15: =H15+K15+O15+N15+'Sheet1 select'!$B$40*I15+J15+P15 -> 0.09019994612
A16: Cout= | B16: ='EZBuck design calculator'!N33 -> 44 | C16: uF | E16: 14 | F16: 0.09333333333 | G16: 0.0006968888889 | H16: =F16*F16*('Sheet1 select'!$B$25)*$B$4 -> 0.0001216748174 | I16: =F16*(1-$B$4)*'Sheet1 select'!$B$41 -> 0.02233 | J16: =F16*F16*('Sheet1 select'!$B$26)*(1-$B$4) -> 0 | K16: =0.0000005*$B$11*F16*$B$9*((('Sheet1 select'!$B$33+0.5*'Sheet1 select'!$B$32)/(('Sheet1 select'!$B$10-'Sheet1 select'!$B$23)/('Sheet1 select'!$B$27+'Sheet1 select'!$B$8)))+(('Sheet1 select'!$B$33+0.5*'Sheet1 select'!$B$32)/(('Sheet1 select'!$B$23)/('Sheet1 select'!$B$27+'Sheet1 select'!$B$9)))) -> 0.004910804368 | L16: =(F16*$B$29)*(('Sheet1 select'!$B$12+'Sheet1 select'!$B$13)*(0.000000001))*$B$9*1000 -> 0 | M16: 0.000259124321 | N16: =$B$11*'Sheet1 select'!$B$29*0.001 -> 0.024 | O16: ='Sheet1 select'!$B$10*'Sheet1 select'!$B$31*$B$9*1000*0.000000001 -> 0.0408 | P16: ='Sheet1 select'!$B$35*$B$11*$B$9*1000*0.000000001 -> 0 | Q16: =IF('Sheet1 select'!$B$17=0,0,(0.00000006*0.7+0.00000003*(0.7+F16*1.1*'Sheet1 select'!$B$26))*F16*$B$9*1000) -> 0 | R16: 0.0931184924 | S16: 0.7678529059 | T16: =H16+K16+O16+N16+'Sheet1 select'!$B$40*I16+J16+P16 -> 0.09216247919
A17: Cout(ESR)= | B17: ='EZBuck design calculator'!N34 -> 3 | C17: mΩ | E17: 15 | F17: 0.1 | G17: 0.0008 | H17: =F17*F17*('Sheet1 select'!$B$25)*$B$4 -> 0.0001396777241 | I17: =F17*(1-$B$4)*'Sheet1 select'!$B$41 -> 0.023925 | J17: =F17*F17*('Sheet1 select'!$B$26)*(1-$B$4) -> 0 | K17: =0.0000005*$B$11*F17*$B$9*((('Sheet1 select'!$B$33+0.5*'Sheet1 select'!$B$32)/(('Sheet1 select'!$B$10-'Sheet1 select'!$B$23)/('Sheet1 select'!$B$27+'Sheet1 select'!$B$8)))+(('Sheet1 select'!$B$33+0.5*'Sheet1 select'!$B$32)/(('Sheet1 select'!$B$23)/('Sheet1 select'!$B$27+'Sheet1 select'!$B$9)))) -> 0.005261576109 | L17: =(F17*$B$29)*(('Sheet1 select'!$B$12+'Sheet1 select'!$B$13)*(0.000000001))*$B$9*1000 -> 0 | M17: 0.000259124321 | N17: =$B$11*'Sheet1 select'!$B$29*0.001 -> 0.024 | O17: ='Sheet1 select'!$B$10*'Sheet1 select'!$B$31*$B$9*1000*0.000000001 -> 0.0408 | P17: ='Sheet1 select'!$B$35*$B$11*$B$9*1000*0.000000001 -> 0 | Q17: =IF('Sheet1 select'!$B$17=0,0,(0.00000006*0.7+0.00000003*(0.7+F17*1.1*'Sheet1 select'!$B$26))*F17*$B$9*1000) -> 0 | R17: 0.09518537815 | S17: 0.7761320519 | T17: =H17+K17+O17+N17+'Sheet1 select'!$B$40*I17+J17+P17 -> 0.09412625383
E18: 16 | F18: 0.1066666667 | G18: 0.0009102222222 | H18: =F18*F18*('Sheet1 select'!$B$25)*$B$4 -> 0.0001589222105 | I18: =F18*(1-$B$4)*'Sheet1 select'!$B$41 -> 0.02552 | J18: =F18*F18*('Sheet1 select'!$B$26)*(1-$B$4) -> 0 | K18: =0.0000005*$B$11*F18*$B$9*((('Sheet1 select'!$B$33+0.5*'Sheet1 select'!$B$32)/(('Sheet1 select'!$B$10-'Sheet1 select'!$B$23)/('Sheet1 select'!$B$27+'Sheet1 select'!$B$8)))+(('Sheet1 select'!$B$33+0.5*'Sheet1 select'!$B$32)/(('Sheet1 select'!$B$23)/('Sheet1 select'!$B$27+'Sheet1 select'!$B$9)))) -> 0.005612347849 | L18: =(F18*$B$29)*(('Sheet1 select'!$B$12+'Sheet1 select'!$B$13)*(0.000000001))*$B$9*1000 -> 0 | M18: 0.000259124321 | N18: =$B$11*'Sheet1 select'!$B$29*0.001 -> 0.024 | O18: ='Sheet1 select'!$B$10*'Sheet1 select'!$B$31*$B$9*1000*0.000000001 -> 0.0408 | P18: ='Sheet1 select'!$B$35*$B$11*$B$9*1000*0.000000001 -> 0 | Q18: =IF('Sheet1 select'!$B$17=0,0,(0.00000006*0.7+0.00000003*(0.7+F18*1.1*'Sheet1 select'!$B$26))*F18*$B$9*1000) -> 0 | R18: 0.0972606166 | S18: 0.7835095866 | T18: =H18+K18+O18+N18+'Sheet1 select'!$B$40*I18+J18+P18 -> 0.09609127006
E19: 17 | F19: 0.1133333333 | G19: 0.001027555556 | H19: =F19*F19*('Sheet1 select'!$B$25)*$B$4 -> 0.0001794082767 | I19: =F19*(1-$B$4)*'Sheet1 select'!$B$41 -> 0.027115 | J19: =F19*F19*('Sheet1 select'!$B$26)*(1-$B$4) -> 0 | K19: =0.0000005*$B$11*F19*$B$9*((('Sheet1 select'!$B$33+0.5*'Sheet1 select'!$B$32)/(('Sheet1 select'!$B$10-'Sheet1 select'!$B$23)/('Sheet1 select'!$B$27+'Sheet1 select'!$B$8)))+(('Sheet1 select'!$B$33+0.5*'Sheet1 select'!$B$32)/(('Sheet1 select'!$B$23)/('Sheet1 select'!$B$27+'Sheet1 select'!$B$9)))) -> 0.00596311959 | L19: =(F19*$B$29)*(('Sheet1 select'!$B$12+'Sheet1 select'!$B$13)*(0.000000001))*$B$9*1000 -> 0 | M19: 0.000259124321 | N19: =$B$11*'Sheet1 select'!$B$29*0.001 -> 0.024 | O19: ='Sheet1 select'!$B$10*'Sheet1 select'!$B$31*$B$9*1000*0.000000001 -> 0.0408 | P19: ='Sheet1 select'!$B$35*$B$11*$B$9*1000*0.000000001 -> 0 | Q19: =IF('Sheet1 select'!$B$17=0,0,(0.00000006*0.7+0.00000003*(0.7+F19*1.1*'Sheet1 select'!$B$26))*F19*$B$9*1000) -> 0 | R19: 0.09934420774 | S19: 0.7901226927 | T19: =H19+K19+O19+N19+'Sheet1 select'!$B$40*I19+J19+P19 -> 0.09805752787
E20: 18 | F20: 0.12 | G20: 0.001152 | H20: =F20*F20*('Sheet1 select'!$B$25)*$B$4 -> 0.0002011359227 | I20: =F20*(1-$B$4)*'Sheet1 select'!$B$41 -> 0.02871 | J20: =F20*F20*('Sheet1 select'!$B$26)*(1-$B$4) -> 0 | K20: =0.0000005*$B$11*F20*$B$9*((('Sheet1 select'!$B$33+0.5*'Sheet1 select'!$B$32)/(('Sheet1 select'!$B$10-'Sheet1 select'!$B$23)/('Sheet1 select'!$B$27+'Sheet1 select'!$B$8)))+(('Sheet1 select'!$B$33+0.5*'Sheet1 select'!$B$32)/(('Sheet1 select'!$B$23)/('Sheet1 select'!$B$27+'Sheet1 select'!$B$9)))) -> 0.00631389133 | L20: =(F20*$B$29)*(('Sheet1 select'!$B$12+'Sheet1 select'!$B$13)*(0.000000001))*$B$9*1000 -> 0 | M20: 0.000259124321 | N20: =$B$11*'Sheet1 select'!$B$29*0.001 -> 0.024 | O20: ='Sheet1 select'!$B$10*'Sheet1 select'!$B$31*$B$9*1000*0.000000001 -> 0.0408 | P20: ='Sheet1 select'!$B$35*$B$11*$B$9*1000*0.000000001 -> 0 | Q20: =IF('Sheet1 select'!$B$17=0,0,(0.00000006*0.7+0.00000003*(0.7+F20*1.1*'Sheet1 select'!$B$26))*F20*$B$9*1000) -> 0 | R20: 0.1014361516 | S20: 0.7960820675 | T20: =H20+K20+O20+N20+'Sheet1 select'!$B$40*I20+J20+P20 -> 0.1000250273
E21: 19 | F21: 0.1266666667 | G21: 0.001283555556 | H21: =F21*F21*('Sheet1 select'!$B$25)*$B$4 -> 0.0002241051484 | I21: =F21*(1-$B$4)*'Sheet1 select'!$B$41 -> 0.030305 | J21: =F21*F21*('Sheet1 select'!$B$26)*(1-$B$4) -> 0 | K21: =0.0000005*$B$11*F21*$B$9*((('Sheet1 select'!$B$33+0.5*'Sheet1 select'!$B$32)/(('Sheet1 select'!$B$10-'Sheet1 select'!$B$23)/('Sheet1 select'!$B$27+'Sheet1 select'!$B$8)))+(('Sheet1 select'!$B$33+0.5*'Sheet1 select'!$B$32)/(('Sheet1 select'!$B$23)/('Sheet1 select'!$B$27+'Sheet1 select'!$B$9)))) -> 0.006664663071 | L21: =(F21*$B$29)*(('Sheet1 select'!$B$12+'Sheet1 select'!$B$13)*(0.000000001))*$B$9*1000 -> 0 | M21: 0.000259124321 | N21: =$B$11*'Sheet1 select'!$B$29*0.001 -> 0.024 | O21: ='Sheet1 select'!$B$10*'Sheet1 select'!$B$31*$B$9*1000*0.000000001 -> 0.0408 | P21: ='Sheet1 select'!$B$35*$B$11*$B$9*1000*0.000000001 -> 0 | Q21: =IF('Sheet1 select'!$B$17=0,0,(0.00000006*0.7+0.00000003*(0.7+F21*1.1*'Sheet1 select'!$B$26))*F21*$B$9*1000) -> 0 | R21: 0.1035364481 | S21: 0.8014780204 | T21: =H21+K21+O21+N21+'Sheet1 select'!$B$40*I21+J21+P21 -> 0.1019937682
E22: 20 | F22: 0.1333333333 | G22: 0.001422222222 | H22: =F22*F22*('Sheet1 select'!$B$25)*$B$4 -> 0.0002483159539 | I22: =F22*(1-$B$4)*'Sheet1 select'!$B$41 -> 0.0319 | J22: =F22*F22*('Sheet1 select'!$B$26)*(1-$B$4) -> 0 | K22: =0.0000005*$B$11*F22*$B$9*((('Sheet1 select'!$B$33+0.5*'Sheet1 select'!$B$32)/(('Sheet1 select'!$B$10-'Sheet1 select'!$B$23)/('Sheet1 select'!$B$27+'Sheet1 select'!$B$8)))+(('Sheet1 select'!$B$33+0.5*'Sheet1 select'!$B$32)/(('Sheet1 select'!$B$23)/('Sheet1 select'!$B$27+'Sheet1 select'!$B$9)))) -> 0.007015434811 | L22: =(F22*$B$29)*(('Sheet1 select'!$B$12+'Sheet1 select'!$B$13)*(0.000000001))*$B$9*1000 -> 0 | M22: 0.000259124321 | N22: =$B$11*'Sheet1 select'!$B$29*0.001 -> 0.024 | O22: ='Sheet1 select'!$B$10*'Sheet1 select'!$B$31*$B$9*1000*0.000000001 -> 0.0408 | P22: ='Sheet1 select'!$B$35*$B$11*$B$9*1000*0.000000001 -> 0 | Q22: =IF('Sheet1 select'!$B$17=0,0,(0.00000006*0.7+0.00000003*(0.7+F22*1.1*'Sheet1 select'!$B$26))*F22*$B$9*1000) -> 0 | R22: 0.1056450973 | S22: 0.8063849601 | T22: =H22+K22+O22+N22+'Sheet1 select'!$B$40*I22+J22+P22 -> 0.1039637508
E23: 21 | F23: 0.14 | G23: 0.001568 | H23: =F23*F23*('Sheet1 select'!$B$25)*$B$4 -> 0.0002737683392 | I23: =F23*(1-$B$4)*'Sheet1 select'!$B$41 -> 0.033495 | J23: =F23*F23*('Sheet1 select'!$B$26)*(1-$B$4) -> 0 | K23: =0.0000005*$B$11*F23*$B$9*((('Sheet1 select'!$B$33+0.5*'Sheet1 select'!$B$32)/(('Sheet1 select'!$B$10-'Sheet1 select'!$B$23)/('Sheet1 select'!$B$27+'Sheet1 select'!$B$8)))+(('Sheet1 select'!$B$33+0.5*'Sheet1 select'!$B$32)/(('Sheet1 select'!$B$23)/('Sheet1 select'!$B$27+'Sheet1 select'!$B$9)))) -> 0.007366206552 | L23: =(F23*$B$29)*(('Sheet1 select'!$B$12+'Sheet1 select'!$B$13)*(0.000000001))*$B$9*1000 -> 0 | M23: 0.000259124321 | N23: =$B$11*'Sheet1 select'!$B$29*0.001 -> 0.024 | O23: ='Sheet1 select'!$B$10*'Sheet1 select'!$B$31*$B$9*1000*0.000000001 -> 0.0408 | P23: ='Sheet1 select'!$B$35*$B$11*$B$9*1000*0.000000001 -> 0 | Q23: =IF('Sheet1 select'!$B$17=0,0,(0.00000006*0.7+0.00000003*(0.7+F23*1.1*'Sheet1 select'!$B$26))*F23*$B$9*1000) -> 0 | R23: 0.1077620992 | S23: 0.8108647462 | T23: =H23+K23+O23+N23+'Sheet1 select'!$B$40*I23+J23+P23 -> 0.1059349749
E24: 22 | F24: 0.1466666667 | G24: 0.001720888889 | H24: =F24*F24*('Sheet1 select'!$B$25)*$B$4 -> 0.0003004623042 | I24: =F24*(1-$B$4)*'Sheet1 select'!$B$41 -> 0.03509 | J24: =F24*F24*('Sheet1 select'!$B$26)*(1-$B$4) -> 0 | K24: =0.0000005*$B$11*F24*$B$9*((('Sheet1 select'!$B$33+0.5*'Sheet1 select'!$B$32)/(('Sheet1 select'!$B$10-'Sheet1 select'!$B$23)/('Sheet1 select'!$B$27+'Sheet1 select'!$B$8)))+(('Sheet1 select'!$B$33+0.5*'Sheet1 select'!$B$32)/(('Sheet1 select'!$B$23)/('Sheet1 select'!$B$27+'Sheet1 select'!$B$9)))) -> 0.007716978293 | L24: =(F24*$B$29)*(('Sheet1 select'!$B$12+'Sheet1 select'!$B$13)*(0.000000001))*$B$9*1000 -> 0 | M24: 0.000259124321 | N24: =$B$11*'Sheet1 select'!$B$29*0.001 -> 0.024 | O24: ='Sheet1 select'!$B$10*'Sheet1 select'!$B$31*$B$9*1000*0.000000001 -> 0.0408 | P24: ='Sheet1 select'!$B$35*$B$11*$B$9*1000*0.000000001 -> 0 | Q24: =IF('Sheet1 select'!$B$17=0,0,(0.00000006*0.7+0.00000003*(0.7+F24*1.1*'Sheet1 select'!$B$26))*F24*$B$9*1000) -> 0 | R24: 0.1098874538 | S24: 0.8149692284 | T24: =H24+K24+O24+N24+'Sheet1 select'!$B$40*I24+J24+P24 -> 0.1079074406
E25: 23 | F25: 0.1533333333 | G25: 0.001880888889 | H25: =F25*F25*('Sheet1 select'!$B$25)*$B$4 -> 0.000328397849 | I25: =F25*(1-$B$4)*'Sheet1 select'!$B$41 -> 0.036685 | J25: =F25*F25*('Sheet1 select'!$B$26)*(1-$B$4) -> 0 | K25: =0.0000005*$B$11*F25*$B$9*((('Sheet1 select'!$B$33+0.5*'Sheet1 select'!$B$32)/(('Sheet1 select'!$B$10-'Sheet1 select'!$B$23)/('Sheet1 select'!$B$27+'Sheet1 select'!$B$8)))+(('Sheet1 select'!$B$33+0.5*'Sheet1 select'!$B$32)/(('Sheet1 select'!$B$23)/('Sheet1 select'!$B$27+'Sheet1 select'!$B$9)))) -> 0.008067750033 | L25: =(F25*$B$29)*(('Sheet1 select'!$B$12+'Sheet1 select'!$B$13)*(0.000000001))*$B$9*1000 -> 0 | M25: 0.000259124321 | N25: =$B$11*'Sheet1 select'!$B$29*0.001 -> 0.024 | O25: ='Sheet1 select'!$B$10*'Sheet1 select'!$B$31*$B$9*1000*0.000000001 -> 0.0408 | P25: ='Sheet1 select'!$B$35*$B$11*$B$9*1000*0.000000001 -> 0 | Q25: =IF('Sheet1 select'!$B$17=0,0,(0.00000006*0.7+0.00000003*(0.7+F25*1.1*'Sheet1 select'!$B$26))*F25*$B$9*1000) -> 0 | R25: 0.1120211611 | S25: 0.8187421918 | T25: =H25+K25+O25+N25+'Sheet1 select'!$B$40*I25+J25+P25 -> 0.1098811479
E26: 24 | F26: 0.16 | G26: 0.002048 | H26: =F26*F26*('Sheet1 select'!$B$25)*$B$4 -> 0.0003575749736 | I26: =F26*(1-$B$4)*'Sheet1 select'!$B$41 -> 0.03828 | J26: =F26*F26*('Sheet1 select'!$B$26)*(1-$B$4) -> 0 | K26: =0.0000005*$B$11*F26*$B$9*((('Sheet1 select'!$B$33+0.5*'Sheet1 select'!$B$32)/(('Sheet1 select'!$B$10-'Sheet1 select'!$B$23)/('Sheet1 select'!$B$27+'Sheet1 select'!$B$8)))+(('Sheet1 select'!$B$33+0.5*'Sheet1 select'!$B$32)/(('Sheet1 select'!$B$23)/('Sheet1 select'!$B$27+'Sheet1 select'!$B$9)))) -> 0.008418521774 | L26: =(F26*$B$29)*(('Sheet1 select'!$B$12+'Sheet1 select'!$B$13)*(0.000000001))*$B$9*1000 -> 0 | M26: 0.000259124321 | N26: =$B$11*'Sheet1 select'!$B$29*0.001 -> 0.024 | O26: ='Sheet1 select'!$B$10*'Sheet1 select'!$B$31*$B$9*1000*0.000000001 -> 0.0408 | P26: ='Sheet1 select'!$B$35*$B$11*$B$9*1000*0.000000001 -> 0 | Q26: =IF('Sheet1 select'!$B$17=0,0,(0.00000006*0.7+0.00000003*(0.7+F26*1.1*'Sheet1 select'!$B$26))*F26*$B$9*1000) -> 0 | R26: 0.1141632211 | S26: 0.8222208664 | T26: =H26+K26+O26+N26+'Sheet1 select'!$B$40*I26+J26+P26 -> 0.1118560967
E27: 25 | F27: 0.1666666667 | G27: 0.002222222222 | H27: =F27*F27*('Sheet1 select'!$B$25)*$B$4 -> 0.000387993678 | I27: =F27*(1-$B$4)*'Sheet1 select'!$B$41 -> 0.039875 | J27: =F27*F27*('Sheet1 select'!$B$26)*(1-$B$4) -> 0 | K27: =0.0000005*$B$11*F27*$B$9*((('Sheet1 select'!$B$33+0.5*'Sheet1 select'!$B$32)/(('Sheet1 select'!$B$10-'Sheet1 select'!$B$23)/('Sheet1 select'!$B$27+'Sheet1 select'!$B$8)))+(('Sheet1 select'!$B$33+0.5*'Sheet1 select'!$B$32)/(('Sheet1 select'!$B$23)/('Sheet1 select'!$B$27+'Sheet1 select'!$B$9)))) -> 0.008769293514 | L27: =(F27*$B$29)*(('Sheet1 select'!$B$12+'Sheet1 select'!$B$13)*(0.000000001))*$B$9*1000 -> 0 | M27: 0.000259124321 | N27: =$B$11*'Sheet1 select'!$B$29*0.001 -> 0.024 | O27: ='Sheet1 select'!$B$10*'Sheet1 select'!$B$31*$B$9*1000*0.000000001 -> 0.0408 | P27: ='Sheet1 select'!$B$35*$B$11*$B$9*1000*0.000000001 -> 0 | Q27: =IF('Sheet1 select'!$B$17=0,0,(0.00000006*0.7+0.00000003*(0.7+F27*1.1*'Sheet1 select'!$B$26))*F27*$B$9*1000) -> 0 | R27: 0.1163136337 | S27: 0.8254371097 | T27: =H27+K27+O27+N27+'Sheet1 select'!$B$40*I27+J27+P27 -> 0.1138322872
E28: 26 | F28: 0.1733333333 | G28: 0.002403555556 | H28: =F28*F28*('Sheet1 select'!$B$25)*$B$4 -> 0.0004196539621 | I28: =F28*(1-$B$4)*'Sheet1 select'!$B$41 -> 0.04147 | J28: =F28*F28*('Sheet1 select'!$B$26)*(1-$B$4) -> 0 | K28: =0.0000005*$B$11*F28*$B$9*((('Sheet1 select'!$B$33+0.5*'Sheet1 select'!$B$32)/(('Sheet1 select'!$B$10-'Sheet1 select'!$B$23)/('Sheet1 select'!$B$27+'Sheet1 select'!$B$8)))+(('Sheet1 select'!$B$33+0.5*'Sheet1 select'!$B$32)/(('Sheet1 select'!$B$23)/('Sheet1 select'!$B$27+'Sheet1 select'!$B$9)))) -> 0.009120065255 | L28: =(F28*$B$29)*(('Sheet1 select'!$B$12+'Sheet1 select'!$B$13)*(0.000000001))*$B$9*1000 -> 0 | M28: 0.000259124321 | N28: =$B$11*'Sheet1 select'!$B$29*0.001 -> 0.024 | O28: ='Sheet1 select'!$B$10*'Sheet1 select'!$B$31*$B$9*1000*0.000000001 -> 0.0408 | P28: ='Sheet1 select'!$B$35*$B$11*$B$9*1000*0.000000001 -> 0 | Q28: =IF('Sheet1 select'!$B$17=0,0,(0.00000006*0.7+0.00000003*(0.7+F28*1.1*'Sheet1 select'!$B$26))*F28*$B$9*1000) -> 0 | R28: 0.1184723991 | S28: 0.8284183419 | T28: =H28+K28+O28+N28+'Sheet1 select'!$B$40*I28+J28+P28 -> 0.1158097192
A29: Vd= | B29: 0.69 | C29: V | E29: 27 | F29: 0.18 | G29: 0.002592 | H29: =F29*F29*('Sheet1 select'!$B$25)*$B$4 -> 0.000452555826 | I29: =F29*(1-$B$4)*'Sheet1 select'!$B$41 -> 0.043065 | J29: =F29*F29*('Sheet1 select'!$B$26)*(1-$B$4) -> 0 | K29: =0.0000005*$B$11*F29*$B$9*((('Sheet1 select'!$B$33+0.5*'Sheet1 select'!$B$32)/(('Sheet1 select'!$B$10-'Sheet1 select'!$B$23)/('Sheet1 select'!$B$27+'Sheet1 select'!$B$8)))+(('Sheet1 select'!$B$33+0.5*'Sheet1 select'!$B$32)/(('Sheet1 select'!$B$23)/('Sheet1 select'!$B$27+'Sheet1 select'!$B$9)))) -> 0.009470836995 | L29: =(F29*$B$29)*(('Sheet1 select'!$B$12+'Sheet1 select'!$B$13)*(0.000000001))*$B$9*1000 -> 0 | M29: 0.000259124321 | N29: =$B$11*'Sheet1 select'!$B$29*0.001 -> 0.024 | O29: ='Sheet1 select'!$B$10*'Sheet1 select'!$B$31*$B$9*1000*0.000000001 -> 0.0408 | P29: ='Sheet1 select'!$B$35*$B$11*$B$9*1000*0.000000001 -> 0 | Q29: =IF('Sheet1 select'!$B$17=0,0,(0.00000006*0.7+0.00000003*(0.7+F29*1.1*'Sheet1 select'!$B$26))*F29*$B$9*1000) -> 0 | R29: 0.1206395171 | S29: 0.8311882925 | T29: =H29+K29+O29+N29+'Sheet1 select'!$B$40*I29+J29+P29 -> 0.1177883928
E30: 28 | F30: 0.1866666667 | G30: 0.002787555556 | H30: =F30*F30*('Sheet1 select'!$B$25)*$B$4 -> 0.0004866992696 | I30: =F30*(1-$B$4)*'Sheet1 select'!$B$41 -> 0.04466 | J30: =F30*F30*('Sheet1 select'!$B$26)*(1-$B$4) -> 0 | K30: =0.0000005*$B$11*F30*$B$9*((('Sheet1 select'!$B$33+0.5*'Sheet1 select'!$B$32)/(('Sheet1 select'!$B$10-'Sheet1 select'!$B$23)/('Sheet1 select'!$B$27+'Sheet1 select'!$B$8)))+(('Sheet1 select'!$B$33+0.5*'Sheet1 select'!$B$32)/(('Sheet1 select'!$B$23)/('Sheet1 select'!$B$27+'Sheet1 select'!$B$9)))) -> 0.009821608736 | L30: =(F30*$B$29)*(('Sheet1 select'!$B$12+'Sheet1 select'!$B$13)*(0.000000001))*$B$9*1000 -> 0 | M30: 0.000259124321 | N30: =$B$11*'Sheet1 select'!$B$29*0.001 -> 0.024 | O30: ='Sheet1 select'!$B$10*'Sheet1 select'!$B$31*$B$9*1000*0.000000001 -> 0.0408 | P30: ='Sheet1 select'!$B$35*$B$11*$B$9*1000*0.000000001 -> 0 | Q30: =IF('Sheet1 select'!$B$17=0,0,(0.00000006*0.7+0.00000003*(0.7+F30*1.1*'Sheet1 select'!$B$26))*F30*$B$9*1000) -> 0 | R30: 0.1228149879 | S30: 0.833767601 | T30: =H30+K30+O30+N30+'Sheet1 select'!$B$40*I30+J30+P30 -> 0.119768308
E31: 29 | F31: 0.1933333333 | G31: 0.002990222222 | H31: =F31*F31*('Sheet1 select'!$B$25)*$B$4 -> 0.0005220842931 | I31: =F31*(1-$B$4)*'Sheet1 select'!$B$41 -> 0.046255 | J31: =F31*F31*('Sheet1 select'!$B$26)*(1-$B$4) -> 0 | K31: =0.0000005*$B$11*F31*$B$9*((('Sheet1 select'!$B$33+0.5*'Sheet1 select'!$B$32)/(('Sheet1 select'!$B$10-'Sheet1 select'!$B$23)/('Sheet1 select'!$B$27+'Sheet1 select'!$B$8)))+(('Sheet1 select'!$B$33+0.5*'Sheet1 select'!$B$32)/(('Sheet1 select'!$B$23)/('Sheet1 select'!$B$27+'Sheet1 select'!$B$9)))) -> 0.01017238048 | L31: =(F31*$B$29)*(('Sheet1 select'!$B$12+'Sheet1 select'!$B$13)*(0.000000001))*$B$9*1000 -> 0 | M31: 0.000259124321 | N31: =$B$11*'Sheet1 select'!$B$29*0.001 -> 0.024 | O31: ='Sheet1 select'!$B$10*'Sheet1 select'!$B$31*$B$9*1000*0.000000001 -> 0.0408 | P31: ='Sheet1 select'!$B$35*$B$11*$B$9*1000*0.000000001 -> 0 | Q31: =IF('Sheet1 select'!$B$17=0,0,(0.00000006*0.7+0.00000003*(0.7+F31*1.1*'Sheet1 select'!$B$26))*F31*$B$9*1000) -> 0 | R31: 0.1249988113 | S31: 0.836174304 | T31: =H31+K31+O31+N31+'Sheet1 select'!$B$40*I31+J31+P31 -> 0.1217494648
E32: 30 | F32: 0.2 | G32: 0.0032 | H32: =F32*F32*('Sheet1 select'!$B$25)*$B$4 -> 0.0005587108963 | I32: =F32*(1-$B$4)*'Sheet1 select'!$B$41 -> 0.04785 | J32: =F32*F32*('Sheet1 select'!$B$26)*(1-$B$4) -> 0 | K32: =0.0000005*$B$11*F32*$B$9*((('Sheet1 select'!$B$33+0.5*'Sheet1 select'!$B$32)/(('Sheet1 select'!$B$10-'Sheet1 select'!$B$23)/('Sheet1 select'!$B$27+'Sheet1 select'!$B$8)))+(('Sheet1 select'!$B$33+0.5*'Sheet1 select'!$B$32)/(('Sheet1 select'!$B$23)/('Sheet1 select'!$B$27+'Sheet1 select'!$B$9)))) -> 0.01052315222 | L32: =(F32*$B$29)*(('Sheet1 select'!$B$12+'Sheet1 select'!$B$13)*(0.000000001))*$B$9*1000 -> 0 | M32: 0.000259124321 | N32: =$B$11*'Sheet1 select'!$B$29*0.001 -> 0.024 | O32: ='Sheet1 select'!$B$10*'Sheet1 select'!$B$31*$B$9*1000*0.000000001 -> 0.0408 | P32: ='Sheet1 select'!$B$35*$B$11*$B$9*1000*0.000000001 -> 0 | Q32: =IF('Sheet1 select'!$B$17=0,0,(0.00000006*0.7+0.00000003*(0.7+F32*1.1*'Sheet1 select'!$B$26))*F32*$B$9*1000) -> 0 | R32: 0.1271909874 | S32: 0.8384242332 | T32: =H32+K32+O32+N32+'Sheet1 select'!$B$40*I32+J32+P32 -> 0.1237318631
E33: 31 | F33: 0.2066666667 | G33: 0.003416888889 | H33: =F33*F33*('Sheet1 select'!$B$25)*$B$4 -> 0.0005965790792 | I33: =F33*(1-$B$4)*'Sheet1 select'!$B$41 -> 0.049445 | J33: =F33*F33*('Sheet1 select'!$B$26)*(1-$B$4) -> 0 | K33: =0.0000005*$B$11*F33*$B$9*((('Sheet1 select'!$B$33+0.5*'Sheet1 select'!$B$32)/(('Sheet1 select'!$B$10-'Sheet1 select'!$B$23)/('Sheet1 select'!$B$27+'Sheet1 select'!$B$8)))+(('Sheet1 select'!$B$33+0.5*'Sheet1 select'!$B$32)/(('Sheet1 select'!$B$23)/('Sheet1 select'!$B$27+'Sheet1 select'!$B$9)))) -> 0.01087392396 | L33: =(F33*$B$29)*(('Sheet1 select'!$B$12+'Sheet1 select'!$B$13)*(0.000000001))*$B$9*1000 -> 0 | M33: 0.000259124321 | N33: =$B$11*'Sheet1 select'!$B$29*0.001 -> 0.024 | O33: ='Sheet1 select'!$B$10*'Sheet1 select'!$B$31*$B$9*1000*0.000000001 -> 0.0408 | P33: ='Sheet1 select'!$B$35*$B$11*$B$9*1000*0.000000001 -> 0 | Q33: =IF('Sheet1 select'!$B$17=0,0,(0.00000006*0.7+0.00000003*(0.7+F33*1.1*'Sheet1 select'!$B$26))*F33*$B$9*1000) -> 0 | R33: 0.1293915162 | S33: 0.840531342 | T33: =H33+K33+O33+N33+'Sheet1 select'!$B$40*I33+J33+P33 -> 0.125715503
E34: 32 | F34: 0.2133333333 | G34: 0.003640888889 | H34: =F34*F34*('Sheet1 select'!$B$25)*$B$4 -> 0.000635688842 | I34: =F34*(1-$B$4)*'Sheet1 select'!$B$41 -> 0.05104 | J34: =F34*F34*('Sheet1 select'!$B$26)*(1-$B$4) -> 0 | K34: =0.0000005*$B$11*F34*$B$9*((('Sheet1 select'!$B$33+0.5*'Sheet1 select'!$B$32)/(('Sheet1 select'!$B$10-'Sheet1 select'!$B$23)/('Sheet1 select'!$B$27+'Sheet1 select'!$B$8)))+(('Sheet1 select'!$B$33+0.5*'Sheet1 select'!$B$32)/(('Sheet1 select'!$B$23)/('Sheet1 select'!$B$27+'Sheet1 select'!$B$9)))) -> 0.0112246957 | L34: =(F34*$B$29)*(('Sheet1 select'!$B$12+'Sheet1 select'!$B$13)*(0.000000001))*$B$9*1000 -> 0 | M34: 0.000259124321 | N34: =$B$11*'Sheet1 select'!$B$29*0.001 -> 0.024 | O34: ='Sheet1 select'!$B$10*'Sheet1 select'!$B$31*$B$9*1000*0.000000001 -> 0.0408 | P34: ='Sheet1 select'!$B$35*$B$11*$B$9*1000*0.000000001 -> 0 | Q34: =IF('Sheet1 select'!$B$17=0,0,(0.00000006*0.7+0.00000003*(0.7+F34*1.1*'Sheet1 select'!$B$26))*F34*$B$9*1000) -> 0 | R34: 0.1316003978 | S34: 0.8425079762 | T34: =H34+K34+O34+N34+'Sheet1 select'!$B$40*I34+J34+P34 -> 0.1277003845
E35: 33 | F35: 0.22 | G35: 0.003872 | H35: =F35*F35*('Sheet1 select'!$B$25)*$B$4 -> 0.0006760401845 | I35: =F35*(1-$B$4)*'Sheet1 select'!$B$41 -> 0.052635 | J35: =F35*F35*('Sheet1 select'!$B$26)*(1-$B$4) -> 0 | K35: =0.0000005*$B$11*F35*$B$9*((('Sheet1 select'!$B$33+0.5*'Sheet1 select'!$B$32)/(('Sheet1 select'!$B$10-'Sheet1 select'!$B$23)/('Sheet1 select'!$B$27+'Sheet1 select'!$B$8)))+(('Sheet1 select'!$B$33+0.5*'Sheet1 select'!$B$32)/(('Sheet1 select'!$B$23)/('Sheet1 select'!$B$27+'Sheet1 select'!$B$9)))) -> 0.01157546744 | L35: =(F35*$B$29)*(('Sheet1 select'!$B$12+'Sheet1 select'!$B$13)*(0.000000001))*$B$9*1000 -> 0 | M35: 0.000259124321 | N35: =$B$11*'Sheet1 select'!$B$29*0.001 -> 0.024 | O35: ='Sheet1 select'!$B$10*'Sheet1 select'!$B$31*$B$9*1000*0.000000001 -> 0.0408 | P35: ='Sheet1 select'!$B$35*$B$11*$B$9*1000*0.000000001 -> 0 | Q35: =IF('Sheet1 select'!$B$17=0,0,(0.00000006*0.7+0.00000003*(0.7+F35*1.1*'Sheet1 select'!$B$26))*F35*$B$9*1000) -> 0 | R35: 0.1338176319 | S35: 0.8443650991 | T35: =H35+K35+O35+N35+'Sheet1 select'!$B$40*I35+J35+P35 -> 0.1296865076
E36: 34 | F36: 0.2266666667 | G36: 0.004110222222 | H36: =F36*F36*('Sheet1 select'!$B$25)*$B$4 -> 0.0007176331068 | I36: =F36*(1-$B$4)*'Sheet1 select'!$B$41 -> 0.05423 | J36: =F36*F36*('Sheet1 select'!$B$26)*(1-$B$4) -> 0 | K36: =0.0000005*$B$11*F36*$B$9*((('Sheet1 select'!$B$33+0.5*'Sheet1 select'!$B$32)/(('Sheet1 select'!$B$10-'Sheet1 select'!$B$23)/('Sheet1 select'!$B$27+'Sheet1 select'!$B$8)))+(('Sheet1 select'!$B$33+0.5*'Sheet1 select'!$B$32)/(('Sheet1 select'!$B$23)/('Sheet1 select'!$B$27+'Sheet1 select'!$B$9)))) -> 0.01192623918 | L36: =(F36*$B$29)*(('Sheet1 select'!$B$12+'Sheet1 select'!$B$13)*(0.000000001))*$B$9*1000 -> 0 | M36: 0.000259124321 | N36: =$B$11*'Sheet1 select'!$B$29*0.001 -> 0.024 | O36: ='Sheet1 select'!$B$10*'Sheet1 select'!$B$31*$B$9*1000*0.000000001 -> 0.0408 | P36: ='Sheet1 select'!$B$35*$B$11*$B$9*1000*0.000000001 -> 0 | Q36: =IF('Sheet1 select'!$B$17=0,0,(0.00000006*0.7+0.00000003*(0.7+F36*1.1*'Sheet1 select'!$B$26))*F36*$B$9*1000) -> 0 | R36: 0.1360432188 | S36: 0.8461124796 | T36: =H36+K36+O36+N36+'Sheet1 select'!$B$40*I36+J36+P36 -> 0.1316738723
E37: 35 | F37: 0.2333333333 | G37: 0.004355555556 | H37: =F37*F37*('Sheet1 select'!$B$25)*$B$4 -> 0.0007604676088 | I37: =F37*(1-$B$4)*'Sheet1 select'!$B$41 -> 0.055825 | J37: =F37*F37*('Sheet1 select'!$B$26)*(1-$B$4) -> 0 | K37: =0.0000005*$B$11*F37*$B$9*((('Sheet1 select'!$B$33+0.5*'Sheet1 select'!$B$32)/(('Sheet1 select'!$B$10-'Sheet1 select'!$B$23)/('Sheet1 select'!$B$27+'Sheet1 select'!$B$8)))+(('Sheet1 select'!$B$33+0.5*'Sheet1 select'!$B$32)/(('Sheet1 select'!$B$23)/('Sheet1 select'!$B$27+'Sheet1 select'!$B$9)))) -> 0.01227701092 | L37: =(F37*$B$29)*(('Sheet1 select'!$B$12+'Sheet1 select'!$B$13)*(0.000000001))*$B$9*1000 -> 0 | M37: 0.000259124321 | N37: =$B$11*'Sheet1 select'!$B$29*0.001 -> 0.024 | O37: ='Sheet1 select'!$B$10*'Sheet1 select'!$B$31*$B$9*1000*0.000000001 -> 0.0408 | P37: ='Sheet1 select'!$B$35*$B$11*$B$9*1000*0.000000001 -> 0 | Q37: =IF('Sheet1 select'!$B$17=0,0,(0.00000006*0.7+0.00000003*(0.7+F37*1.1*'Sheet1 select'!$B$26))*F37*$B$9*1000) -> 0 | R37: 0.1382771584 | S37: 0.8477588508 | T37: =H37+K37+O37+N37+'Sheet1 select'!$B$40*I37+J37+P37 -> 0.1336624785
E38: 36 | F38: 0.24 | G38: 0.004608 | H38: =F38*F38*('Sheet1 select'!$B$25)*$B$4 -> 0.0008045436906 | I38: =F38*(1-$B$4)*'Sheet1 select'!$B$41 -> 0.05742 | J38: =F38*F38*('Sheet1 select'!$B$26)*(1-$B$4) -> 0 | K38: =0.0000005*$B$11*F38*$B$9*((('Sheet1 select'!$B$33+0.5*'Sheet1 select'!$B$32)/(('Sheet1 select'!$B$10-'Sheet1 select'!$B$23)/('Sheet1 select'!$B$27+'Sheet1 select'!$B$8)))+(('Sheet1 select'!$B$33+0.5*'Sheet1 select'!$B$32)/(('Sheet1 select'!$B$23)/('Sheet1 select'!$B$27+'Sheet1 select'!$B$9)))) -> 0.01262778266 | L38: =(F38*$B$29)*(('Sheet1 select'!$B$12+'Sheet1 select'!$B$13)*(0.000000001))*$B$9*1000 -> 0 | M38: 0.000259124321 | N38: =$B$11*'Sheet1 select'!$B$29*0.001 -> 0.024 | O38: ='Sheet1 select'!$B$10*'Sheet1 select'!$B$31*$B$9*1000*0.000000001 -> 0.0408 | P38: ='Sheet1 select'!$B$35*$B$11*$B$9*1000*0.000000001 -> 0 | Q38: =IF('Sheet1 select'!$B$17=0,0,(0.00000006*0.7+0.00000003*(0.7+F38*1.1*'Sheet1 select'!$B$26))*F38*$B$9*1000) -> 0 | R38: 0.1405194507 | S38: 0.8493120432 | T38: =H38+K38+O38+N38+'Sheet1 select'!$B$40*I38+J38+P38 -> 0.1356523264
E39: 37 | F39: 0.2466666667 | G39: 0.004867555556 | H39: =F39*F39*('Sheet1 select'!$B$25)*$B$4 -> 0.0008498613522 | I39: =F39*(1-$B$4)*'Sheet1 select'!$B$41 -> 0.059015 | J39: =F39*F39*('Sheet1 select'!$B$26)*(1-$B$4) -> 0 | K39: =0.0000005*$B$11*F39*$B$9*((('Sheet1 select'!$B$33+0.5*'Sheet1 select'!$B$32)/(('Sheet1 select'!$B$10-'Sheet1 select'!$B$23)/('Sheet1 select'!$B$27+'Sheet1 select'!$B$8)))+(('Sheet1 select'!$B$33+0.5*'Sheet1 select'!$B$32)/(('Sheet1 select'!$B$23)/('Sheet1 select'!$B$27+'Sheet1 select'!$B$9)))) -> 0.0129785544 | L39: =(F39*$B$29)*(('Sheet1 select'!$B$12+'Sheet1 select'!$B$13)*(0.000000001))*$B$9*1000 -> 0 | M39: 0.000259124321 | N39: =$B$11*'Sheet1 select'!$B$29*0.001 -> 0.024 | O39: ='Sheet1 select'!$B$10*'Sheet1 select'!$B$31*$B$9*1000*0.000000001 -> 0.0408 | P39: ='Sheet1 select'!$B$35*$B$11*$B$9*1000*0.000000001 -> 0 | Q39: =IF('Sheet1 select'!$B$17=0,0,(0.00000006*0.7+0.00000003*(0.7+F39*1.1*'Sheet1 select'!$B$26))*F39*$B$9*1000) -> 0 | R39: 0.1427700956 | S39: 0.8507790991 | T39: =H39+K39+O39+N39+'Sheet1 select'!$B$40*I39+J39+P39 -> 0.1376434158
E40: 38 | F40: 0.2533333333 | G40: 0.005134222222 | H40: =F40*F40*('Sheet1 select'!$B$25)*$B$4 -> 0.0008964205936 | I40: =F40*(1-$B$4)*'Sheet1 select'!$B$41 -> 0.06061 | J40: =F40*F40*('Sheet1 select'!$B$26)*(1-$B$4) -> 0 | K40: =0.0000005*$B$11*F40*$B$9*((('Sheet1 select'!$B$33+0.5*'Sheet1 select'!$B$32)/(('Sheet1 select'!$B$10-'Sheet1 select'!$B$23)/('Sheet1 select'!$B$27+'Sheet1 select'!$B$8)))+(('Sheet1 select'!$B$33+0.5*'Sheet1 select'!$B$32)/(('Sheet1 select'!$B$23)/('Sheet1 select'!$B$27+'Sheet1 select'!$B$9)))) -> 0.01332932614 | L40: =(F40*$B$29)*(('Sheet1 select'!$B$12+'Sheet1 select'!$B$13)*(0.000000001))*$B$9*1000 -> 0 | M40: 0.000259124321 | N40: =$B$11*'Sheet1 select'!$B$29*0.001 -> 0.024 | O40: ='Sheet1 select'!$B$10*'Sheet1 select'!$B$31*$B$9*1000*0.000000001 -> 0.0408 | P40: ='Sheet1 select'!$B$35*$B$11*$B$9*1000*0.000000001 -> 0 | Q40: =IF('Sheet1 select'!$B$17=0,0,(0.00000006*0.7+0.00000003*(0.7+F40*1.1*'Sheet1 select'!$B$26))*F40*$B$9*1000) -> 0 | R40: 0.1450290933 | S40: 0.8521663687 | T40: =H40+K40+O40+N40+'Sheet1 select'!$B$40*I40+J40+P40 -> 0.1396357467
E41: 39 | F41: 0.26 | G41: 0.005408 | H41: =F41*F41*('Sheet1 select'!$B$25)*$B$4 -> 0.0009442214147 | I41: =F41*(1-$B$4)*'Sheet1 select'!$B$41 -> 0.062205 | J41: =F41*F41*('Sheet1 select'!$B$26)*(1-$B$4) -> 0 | K41: =0.0000005*$B$11*F41*$B$9*((('Sheet1 select'!$B$33+0.5*'Sheet1 select'!$B$32)/(('Sheet1 select'!$B$10-'Sheet1 select'!$B$23)/('Sheet1 select'!$B$27+'Sheet1 select'!$B$8)))+(('Sheet1 select'!$B$33+0.5*'Sheet1 select'!$B$32)/(('Sheet1 select'!$B$23)/('Sheet1 select'!$B$27+'Sheet1 select'!$B$9)))) -> 0.01368009788 | L41: =(F41*$B$29)*(('Sheet1 select'!$B$12+'Sheet1 select'!$B$13)*(0.000000001))*$B$9*1000 -> 0 | M41: 0.000259124321 | N41: =$B$11*'Sheet1 select'!$B$29*0.001 -> 0.024 | O41: ='Sheet1 select'!$B$10*'Sheet1 select'!$B$31*$B$9*1000*0.000000001 -> 0.0408 | P41: ='Sheet1 select'!$B$35*$B$11*$B$9*1000*0.000000001 -> 0 | Q41: =IF('Sheet1 select'!$B$17=0,0,(0.00000006*0.7+0.00000003*(0.7+F41*1.1*'Sheet1 select'!$B$26))*F41*$B$9*1000) -> 0 | R41: 0.1472964436 | S41: 0.8534795935 | T41: =H41+K41+O41+N41+'Sheet1 select'!$B$40*I41+J41+P41 -> 0.1416293193
E42: 40 | F42: 0.2666666667 | G42: 0.005688888889 | H42: =F42*F42*('Sheet1 select'!$B$25)*$B$4 -> 0.0009932638156 | I42: =F42*(1-$B$4)*'Sheet1 select'!$B$41 -> 0.0638 | J42: =F42*F42*('Sheet1 select'!$B$26)*(1-$B$4) -> 0 | K42: =0.0000005*$B$11*F42*$B$9*((('Sheet1 select'!$B$33+0.5*'Sheet1 select'!$B$32)/(('Sheet1 select'!$B$10-'Sheet1 select'!$B$23)/('Sheet1 select'!$B$27+'Sheet1 select'!$B$8)))+(('Sheet1 select'!$B$33+0.5*'Sheet1 select'!$B$32)/(('Sheet1 select'!$B$23)/('Sheet1 select'!$B$27+'Sheet1 select'!$B$9)))) -> 0.01403086962 | L42: =(F42*$B$29)*(('Sheet1 select'!$B$12+'Sheet1 select'!$B$13)*(0.000000001))*$B$9*1000 -> 0 | M42: 0.000259124321 | N42: =$B$11*'Sheet1 select'!$B$29*0.001 -> 0.024 | O42: ='Sheet1 select'!$B$10*'Sheet1 select'!$B$31*$B$9*1000*0.000000001 -> 0.0408 | P42: ='Sheet1 select'!$B$35*$B$11*$B$9*1000*0.000000001 -> 0 | Q42: =IF('Sheet1 select'!$B$17=0,0,(0.00000006*0.7+0.00000003*(0.7+F42*1.1*'Sheet1 select'!$B$26))*F42*$B$9*1000) -> 0 | R42: 0.1495721466 | S42: 0.8547239772 | T42: =H42+K42+O42+N42+'Sheet1 select'!$B$40*I42+J42+P42 -> 0.1436241334
E43: 41 | F43: 0.2733333333 | G43: 0.005976888889 | H43: =F43*F43*('Sheet1 select'!$B$25)*$B$4 -> 0.001043547796 | I43: =F43*(1-$B$4)*'Sheet1 select'!$B$41 -> 0.065395 | J43: =F43*F43*('Sheet1 select'!$B$26)*(1-$B$4) -> 0 | K43: =0.0000005*$B$11*F43*$B$9*((('Sheet1 select'!$B$33+0.5*'Sheet1 select'!$B$32)/(('Sheet1 select'!$B$10-'Sheet1 select'!$B$23)/('Sheet1 select'!$B$27+'Sheet1 select'!$B$8)))+(('Sheet1 select'!$B$33+0.5*'Sheet1 select'!$B$32)/(('Sheet1 select'!$B$23)/('Sheet1 select'!$B$27+'Sheet1 select'!$B$9)))) -> 0.01438164136 | L43: =(F43*$B$29)*(('Sheet1 select'!$B$12+'Sheet1 select'!$B$13)*(0.000000001))*$B$9*1000 -> 0 | M43: 0.000259124321 | N43: =$B$11*'Sheet1 select'!$B$29*0.001 -> 0.024 | O43: ='Sheet1 select'!$B$10*'Sheet1 select'!$B$31*$B$9*1000*0.000000001 -> 0.0408 | P43: ='Sheet1 select'!$B$35*$B$11*$B$9*1000*0.000000001 -> 0 | Q43: =IF('Sheet1 select'!$B$17=0,0,(0.00000006*0.7+0.00000003*(0.7+F43*1.1*'Sheet1 select'!$B$26))*F43*$B$9*1000) -> 0 | R43: 0.1518562024 | S43: 0.8559042476 | T43: =H43+K43+O43+N43+'Sheet1 select'!$B$40*I43+J43+P43 -> 0.1456201892
E44: 42 | F44: 0.28 | G44: 0.006272 | H44: =F44*F44*('Sheet1 select'!$B$25)*$B$4 -> 0.001095073357 | I44: =F44*(1-$B$4)*'Sheet1 select'!$B$41 -> 0.06699 | J44: =F44*F44*('Sheet1 select'!$B$26)*(1-$B$4) -> 0 | K44: =0.0000005*$B$11*F44*$B$9*((('Sheet1 select'!$B$33+0.5*'Sheet1 select'!$B$32)/(('Sheet1 select'!$B$10-'Sheet1 select'!$B$23)/('Sheet1 select'!$B$27+'Sheet1 select'!$B$8)))+(('Sheet1 select'!$B$33+0.5*'Sheet1 select'!$B$32)/(('Sheet1 select'!$B$23)/('Sheet1 select'!$B$27+'Sheet1 select'!$B$9)))) -> 0.0147324131 | L44: =(F44*$B$29)*(('Sheet1 select'!$B$12+'Sheet1 select'!$B$13)*(0.000000001))*$B$9*1000 -> 0 | M44: 0.000259124321 | N44: =$B$11*'Sheet1 select'!$B$29*0.001 -> 0.024 | O44: ='Sheet1 select'!$B$10*'Sheet1 select'!$B$31*$B$9*1000*0.000000001 -> 0.0408 | P44: ='Sheet1 select'!$B$35*$B$11*$B$9*1000*0.000000001 -> 0 | Q44: =IF('Sheet1 select'!$B$17=0,0,(0.00000006*0.7+0.00000003*(0.7+F44*1.1*'Sheet1 select'!$B$26))*F44*$B$9*1000) -> 0 | R44: 0.1541486108 | S44: 0.8570247095 | T44: =H44+K44+O44+N44+'Sheet1 select'!$B$40*I44+J44+P44 -> 0.1476174865
E45: 43 | F45: 0.2866666667 | G45: 0.006574222222 | H45: =F45*F45*('Sheet1 select'!$B$25)*$B$4 -> 0.001147840497 | I45: =F45*(1-$B$4)*'Sheet1 select'!$B$41 -> 0.068585 | J45: =F45*F45*('Sheet1 select'!$B$26)*(1-$B$4) -> 0 | K45: =0.0000005*$B$11*F45*$B$9*((('Sheet1 select'!$B$33+0.5*'Sheet1 select'!$B$32)/(('Sheet1 select'!$B$10-'Sheet1 select'!$B$23)/('Sheet1 select'!$B$27+'Sheet1 select'!$B$8)))+(('Sheet1 select'!$B$33+0.5*'Sheet1 select'!$B$32)/(('Sheet1 select'!$B$23)/('Sheet1 select'!$B$27+'Sheet1 select'!$B$9)))) -> 0.01508318484 | L45: =(F45*$B$29)*(('Sheet1 select'!$B$12+'Sheet1 select'!$B$13)*(0.000000001))*$B$9*1000 -> 0 | M45: 0.000259124321 | N45: =$B$11*'Sheet1 select'!$B$29*0.001 -> 0.024 | O45: ='Sheet1 select'!$B$10*'Sheet1 select'!$B$31*$B$9*1000*0.000000001 -> 0.0408 | P45: ='Sheet1 select'!$B$35*$B$11*$B$9*1000*0.000000001 -> 0 | Q45: =IF('Sheet1 select'!$B$17=0,0,(0.00000006*0.7+0.00000003*(0.7+F45*1.1*'Sheet1 select'!$B$26))*F45*$B$9*1000) -> 0 | R45: 0.1564493719 | S45: 0.8580892911 | T45: =H45+K45+O45+N45+'Sheet1 select'!$B$40*I45+J45+P45 -> 0.1496160253
E46: 44 | F46: 0.2933333333 | G46: 0.006883555556 | H46: =F46*F46*('Sheet1 select'!$B$25)*$B$4 -> 0.001201849217 | I46: =F46*(1-$B$4)*'Sheet1 select'!$B$41 -> 0.07018 | J46: =F46*F46*('Sheet1 select'!$B$26)*(1-$B$4) -> 0 | K46: =0.0000005*$B$11*F46*$B$9*((('Sheet1 select'!$B$33+0.5*'Sheet1 select'!$B$32)/(('Sheet1 select'!$B$10-'Sheet1 select'!$B$23)/('Sheet1 select'!$B$27+'Sheet1 select'!$B$8)))+(('Sheet1 select'!$B$33+0.5*'Sheet1 select'!$B$32)/(('Sheet1 select'!$B$23)/('Sheet1 select'!$B$27+'Sheet1 select'!$B$9)))) -> 0.01543395659 | L46: =(F46*$B$29)*(('Sheet1 select'!$B$12+'Sheet1 select'!$B$13)*(0.000000001))*$B$9*1000 -> 0 | M46: 0.000259124321 | N46: =$B$11*'Sheet1 select'!$B$29*0.001 -> 0.024 | O46: ='Sheet1 select'!$B$10*'Sheet1 select'!$B$31*$B$9*1000*0.000000001 -> 0.0408 | P46: ='Sheet1 select'!$B$35*$B$11*$B$9*1000*0.000000001 -> 0 | Q46: =IF('Sheet1 select'!$B$17=0,0,(0.00000006*0.7+0.00000003*(0.7+F46*1.1*'Sheet1 select'!$B$26))*F46*$B$9*1000) -> 0 | R46: 0.1587584857 | S46: 0.8591015841 | T46: =H46+K46+O46+N46+'Sheet1 select'!$B$40*I46+J46+P46 -> 0.1516158058
E47: 45 | F47: 0.3 | G47: 0.0072 | H47: =F47*F47*('Sheet1 select'!$B$25)*$B$4 -> 0.001257099517 | I47: =F47*(1-$B$4)*'Sheet1 select'!$B$41 -> 0.071775 | J47: =F47*F47*('Sheet1 select'!$B$26)*(1-$B$4) -> 0 | K47: =0.0000005*$B$11*F47*$B$9*((('Sheet1 select'!$B$33+0.5*'Sheet1 select'!$B$32)/(('Sheet1 select'!$B$10-'Sheet1 select'!$B$23)/('Sheet1 select'!$B$27+'Sheet1 select'!$B$8)))+(('Sheet1 select'!$B$33+0.5*'Sheet1 select'!$B$32)/(('Sheet1 select'!$B$23)/('Sheet1 select'!$B$27+'Sheet1 select'!$B$9)))) -> 0.01578472833 | L47: =(F47*$B$29)*(('Sheet1 select'!$B$12+'Sheet1 select'!$B$13)*(0.000000001))*$B$9*1000 -> 0 | M47: 0.000259124321 | N47: =$B$11*'Sheet1 select'!$B$29*0.001 -> 0.024 | O47: ='Sheet1 select'!$B$10*'Sheet1 select'!$B$31*$B$9*1000*0.000000001 -> 0.0408 | P47: ='Sheet1 select'!$B$35*$B$11*$B$9*1000*0.000000001 -> 0 | Q47: =IF('Sheet1 select'!$B$17=0,0,(0.00000006*0.7+0.00000003*(0.7+F47*1.1*'Sheet1 select'!$B$26))*F47*$B$9*1000) -> 0 | R47: 0.1610759522 | S47: 0.8600648794 | T47: =H47+K47+O47+N47+'Sheet1 select'!$B$40*I47+J47+P47 -> 0.1536168278
E48: 46 | F48: 0.3066666667 | G48: 0.007523555556 | H48: =F48*F48*('Sheet1 select'!$B$25)*$B$4 -> 0.001313591396 | I48: =F48*(1-$B$4)*'Sheet1 select'!$B$41 -> 0.07337 | J48: =F48*F48*('Sheet1 select'!$B$26)*(1-$B$4) -> 0 | K48: =0.0000005*$B$11*F48*$B$9*((('Sheet1 select'!$B$33+0.5*'Sheet1 select'!$B$32)/(('Sheet1 select'!$B$10-'Sheet1 select'!$B$23)/('Sheet1 select'!$B$27+'Sheet1 select'!$B$8)))+(('Sheet1 select'!$B$33+0.5*'Sheet1 select'!$B$32)/(('Sheet1 select'!$B$23)/('Sheet1 select'!$B$27+'Sheet1 select'!$B$9)))) -> 0.01613550007 | L48: =(F48*$B$29)*(('Sheet1 select'!$B$12+'Sheet1 select'!$B$13)*(0.000000001))*$B$9*1000 -> 0 | M48: 0.000259124321 | N48: =$B$11*'Sheet1 select'!$B$29*0.001 -> 0.024 | O48: ='Sheet1 select'!$B$10*'Sheet1 select'!$B$31*$B$9*1000*0.000000001 -> 0.0408 | P48: ='Sheet1 select'!$B$35*$B$11*$B$9*1000*0.000000001 -> 0 | Q48: =IF('Sheet1 select'!$B$17=0,0,(0.00000006*0.7+0.00000003*(0.7+F48*1.1*'Sheet1 select'!$B$26))*F48*$B$9*1000) -> 0 | R48: 0.1634017713 | S48: 0.8609821975 | T48: =H48+K48+O48+N48+'Sheet1 select'!$B$40*I48+J48+P48 -> 0.1556190915
E49: 47 | F49: 0.3133333333 | G49: 0.007854222222 | H49: =F49*F49*('Sheet1 select'!$B$25)*$B$4 -> 0.001371324855 | I49: =F49*(1-$B$4)*'Sheet1 select'!$B$41 -> 0.074965 | J49: =F49*F49*('Sheet1 select'!$B$26)*(1-$B$4) -> 0 | K49: =0.0000005*$B$11*F49*$B$9*((('Sheet1 select'!$B$33+0.5*'Sheet1 select'!$B$32)/(('Sheet1 select'!$B$10-'Sheet1 select'!$B$23)/('Sheet1 select'!$B$27+'Sheet1 select'!$B$8)))+(('Sheet1 select'!$B$33+0.5*'Sheet1 select'!$B$32)/(('Sheet1 select'!$B$23)/('Sheet1 select'!$B$27+'Sheet1 select'!$B$9)))) -> 0.01648627181 | L49: =(F49*$B$29)*(('Sheet1 select'!$B$12+'Sheet1 select'!$B$13)*(0.000000001))*$B$9*1000 -> 0 | M49: 0.000259124321 | N49: =$B$11*'Sheet1 select'!$B$29*0.001 -> 0.024 | O49: ='Sheet1 select'!$B$10*'Sheet1 select'!$B$31*$B$9*1000*0.000000001 -> 0.0408 | P49: ='Sheet1 select'!$B$35*$B$11*$B$9*1000*0.000000001 -> 0 | Q49: =IF('Sheet1 select'!$B$17=0,0,(0.00000006*0.7+0.00000003*(0.7+F49*1.1*'Sheet1 select'!$B$26))*F49*$B$9*1000) -> 0 | R49: 0.1657359432 | S49: 0.8618563158 | T49: =H49+K49+O49+N49+'Sheet1 select'!$B$40*I49+J49+P49 -> 0.1576225967
E50: 48 | F50: 0.32 | G50: 0.008192 | H50: =F50*F50*('Sheet1 select'!$B$25)*$B$4 -> 0.001430299894 | I50: =F50*(1-$B$4)*'Sheet1 select'!$B$41 -> 0.07656 | J50: =F50*F50*('Sheet1 select'!$B$26)*(1-$B$4) -> 0 | K50: =0.0000005*$B$11*F50*$B$9*((('Sheet1 select'!$B$33+0.5*'Sheet1 select'!$B$32)/(('Sheet1 select'!$B$10-'Sheet1 select'!$B$23)/('Sheet1 select'!$B$27+'Sheet1 select'!$B$8)))+(('Sheet1 select'!$B$33+0.5*'Sheet1 select'!$B$32)/(('Sheet1 select'!$B$23)/('Sheet1 select'!$B$27+'Sheet1 select'!$B$9)))) -> 0.01683704355 | L50: =(F50*$B$29)*(('Sheet1 select'!$B$12+'Sheet1 select'!$B$13)*(0.000000001))*$B$9*1000 -> 0 | M50: 0.000259124321 | N50: =$B$11*'Sheet1 select'!$B$29*0.001 -> 0.024 | O50: ='Sheet1 select'!$B$10*'Sheet1 select'!$B$31*$B$9*1000*0.000000001 -> 0.0408 | P50: ='Sheet1 select'!$B$35*$B$11*$B$9*1000*0.000000001 -> 0 | Q50: =IF('Sheet1 select'!$B$17=0,0,(0.00000006*0.7+0.00000003*(0.7+F50*1.1*'Sheet1 select'!$B$26))*F50*$B$9*1000) -> 0 | R50: 0.1680784678 | S50: 0.862689793 | T50: =H50+K50+O50+N50+'Sheet1 select'!$B$40*I50+J50+P50 -> 0.1596273434
E51: 49 | F51: 0.3266666667 | G51: 0.008536888889 | H51: =F51*F51*('Sheet1 select'!$B$25)*$B$4 -> 0.001490516513 | I51: =F51*(1-$B$4)*'Sheet1 select'!$B$41 -> 0.078155 | J51: =F51*F51*('Sheet1 select'!$B$26)*(1-$B$4) -> 0 | K51: =0.0000005*$B$11*F51*$B$9*((('Sheet1 select'!$B$33+0.5*'Sheet1 select'!$B$32)/(('Sheet1 select'!$B$10-'Sheet1 select'!$B$23)/('Sheet1 select'!$B$27+'Sheet1 select'!$B$8)))+(('Sheet1 select'!$B$33+0.5*'Sheet1 select'!$B$32)/(('Sheet1 select'!$B$23)/('Sheet1 select'!$B$27+'Sheet1 select'!$B$9)))) -> 0.01718781529 | L51: =(F51*$B$29)*(('Sheet1 select'!$B$12+'Sheet1 select'!$B$13)*(0.000000001))*$B$9*1000 -> 0 | M51: 0.000259124321 | N51: =$B$11*'Sheet1 select'!$B$29*0.001 -> 0.024 | O51: ='Sheet1 select'!$B$10*'Sheet1 select'!$B$31*$B$9*1000*0.000000001 -> 0.0408 | P51: ='Sheet1 select'!$B$35*$B$11*$B$9*1000*0.000000001 -> 0 | Q51: =IF('Sheet1 select'!$B$17=0,0,(0.00000006*0.7+0.00000003*(0.7+F51*1.1*'Sheet1 select'!$B$26))*F51*$B$9*1000) -> 0 | R51: 0.170429345 | S51: 0.8634849896 | T51: =H51+K51+O51+N51+'Sheet1 select'!$B$40*I51+J51+P51 -> 0.1616333318
E52: 50 | F52: 0.3333333333 | G52: 0.008888888889 | H52: =F52*F52*('Sheet1 select'!$B$25)*$B$4 -> 0.001551974712 | I52: =F52*(1-$B$4)*'Sheet1 select'!$B$41 -> 0.07975 | J52: =F52*F52*('Sheet1 select'!$B$26)*(1-$B$4) -> 0 | K52: =0.0000005*$B$11*F52*$B$9*((('Sheet1 select'!$B$33+0.5*'Sheet1 select'!$B$32)/(('Sheet1 select'!$B$10-'Sheet1 select'!$B$23)/('Sheet1 select'!$B$27+'Sheet1 select'!$B$8)))+(('Sheet1 select'!$B$33+0.5*'Sheet1 select'!$B$32)/(('Sheet1 select'!$B$23)/('Sheet1 select'!$B$27+'Sheet1 select'!$B$9)))) -> 0.01753858703 | L52: =(F52*$B$29)*(('Sheet1 select'!$B$12+'Sheet1 select'!$B$13)*(0.000000001))*$B$9*1000 -> 0 | M52: 0.000259124321 | N52: =$B$11*'Sheet1 select'!$B$29*0.001 -> 0.024 | O52: ='Sheet1 select'!$B$10*'Sheet1 select'!$B$31*$B$9*1000*0.000000001 -> 0.0408 | P52: ='Sheet1 select'!$B$35*$B$11*$B$9*1000*0.000000001 -> 0 | Q52: =IF('Sheet1 select'!$B$17=0,0,(0.00000006*0.7+0.00000003*(0.7+F52*1.1*'Sheet1 select'!$B$26))*F52*$B$9*1000) -> 0 | R52: 0.172788575 | S52: 0.8642440871 | T52: =H52+K52+O52+N52+'Sheet1 select'!$B$40*I52+J52+P52 -> 0.1636405617
E53: 51 | F53: 0.34 | G53: 0.009248 | H53: =F53*F53*('Sheet1 select'!$B$25)*$B$4 -> 0.00161467449 | I53: =F53*(1-$B$4)*'Sheet1 select'!$B$41 -> 0.081345 | J53: =F53*F53*('Sheet1 select'!$B$26)*(1-$B$4) -> 0 | K53: =0.0000005*$B$11*F53*$B$9*((('Sheet1 select'!$B$33+0.5*'Sheet1 select'!$B$32)/(('Sheet1 select'!$B$10-'Sheet1 select'!$B$23)/('Sheet1 select'!$B$27+'Sheet1 select'!$B$8)))+(('Sheet1 select'!$B$33+0.5*'Sheet1 select'!$B$32)/(('Sheet1 select'!$B$23)/('Sheet1 select'!$B$27+'Sheet1 select'!$B$9)))) -> 0.01788935877 | L53: =(F53*$B$29)*(('Sheet1 select'!$B$12+'Sheet1 select'!$B$13)*(0.000000001))*$B$9*1000 -> 0 | M53: 0.000259124321 | N53: =$B$11*'Sheet1 select'!$B$29*0.001 -> 0.024 | O53: ='Sheet1 select'!$B$10*'Sheet1 select'!$B$31*$B$9*1000*0.000000001 -> 0.0408 | P53: ='Sheet1 select'!$B$35*$B$11*$B$9*1000*0.000000001 -> 0 | Q53: =IF('Sheet1 select'!$B$17=0,0,(0.00000006*0.7+0.00000003*(0.7+F53*1.1*'Sheet1 select'!$B$26))*F53*$B$9*1000) -> 0 | R53: 0.1751561576 | S53: 0.8649691045 | T53: =H53+K53+O53+N53+'Sheet1 select'!$B$40*I53+J53+P53 -> 0.1656490333
E54: 52 | F54: 0.3466666667 | G54: 0.009614222222 | H54: =F54*F54*('Sheet1 select'!$B$25)*$B$4 -> 0.001678615848 | I54: =F54*(1-$B$4)*'Sheet1 select'!$B$41 -> 0.08294 | J54: =F54*F54*('Sheet1 select'!$B$26)*(1-$B$4) -> 0 | K54: =0.0000005*$B$11*F54*$B$9*((('Sheet1 select'!$B$33+0.5*'Sheet1 select'!$B$32)/(('Sheet1 select'!$B$10-'Sheet1 select'!$B$23)/('Sheet1 select'!$B$27+'Sheet1 select'!$B$8)))+(('Sheet1 select'!$B$33+0.5*'Sheet1 select'!$B$32)/(('Sheet1 select'!$B$23)/('Sheet1 select'!$B$27+'Sheet1 select'!$B$9)))) -> 0.01824013051 | L54: =(F54*$B$29)*(('Sheet1 select'!$B$12+'Sheet1 select'!$B$13)*(0.000000001))*$B$9*1000 -> 0 | M54: 0.000259124321 | N54: =$B$11*'Sheet1 select'!$B$29*0.001 -> 0.024 | O54: ='Sheet1 select'!$B$10*'Sheet1 select'!$B$31*$B$9*1000*0.000000001 -> 0.0408 | P54: ='Sheet1 select'!$B$35*$B$11*$B$9*1000*0.000000001 -> 0 | Q54: =IF('Sheet1 select'!$B$17=0,0,(0.00000006*0.7+0.00000003*(0.7+F54*1.1*'Sheet1 select'!$B$26))*F54*$B$9*1000) -> 0 | R54: 0.1775320929 | S54: 0.8656619133 | T54: =H54+K54+O54+N54+'Sheet1 select'!$B$40*I54+J54+P54 -> 0.1676587464
E55: 53 | F55: 0.3533333333 | G55: 0.009987555556 | H55: =F55*F55*('Sheet1 select'!$B$25)*$B$4 -> 0.001743798786 | I55: =F55*(1-$B$4)*'Sheet1 select'!$B$41 -> 0.084535 | J55: =F55*F55*('Sheet1 select'!$B$26)*(1-$B$4) -> 0 | K55: =0.0000005*$B$11*F55*$B$9*((('Sheet1 select'!$B$33+0.5*'Sheet1 select'!$B$32)/(('Sheet1 select'!$B$10-'Sheet1 select'!$B$23)/('Sheet1 select'!$B$27+'Sheet1 select'!$B$8)))+(('Sheet1 select'!$B$33+0.5*'Sheet1 select'!$B$32)/(('Sheet1 select'!$B$23)/('Sheet1 select'!$B$27+'Sheet1 select'!$B$9)))) -> 0.01859090225 | L55: =(F55*$B$29)*(('Sheet1 select'!$B$12+'Sheet1 select'!$B$13)*(0.000000001))*$B$9*1000 -> 0 | M55: 0.000259124321 | N55: =$B$11*'Sheet1 select'!$B$29*0.001 -> 0.024 | O55: ='Sheet1 select'!$B$10*'Sheet1 select'!$B$31*$B$9*1000*0.000000001 -> 0.0408 | P55: ='Sheet1 select'!$B$35*$B$11*$B$9*1000*0.000000001 -> 0 | Q55: =IF('Sheet1 select'!$B$17=0,0,(0.00000006*0.7+0.00000003*(0.7+F55*1.1*'Sheet1 select'!$B$26))*F55*$B$9*1000) -> 0 | R55: 0.1799163809 | S55: 0.8663242506 | T55: =H55+K55+O55+N55+'Sheet1 select'!$B$40*I55+J55+P55 -> 0.169669701
E56: 54 | F56: 0.36 | G56: 0.010368 | H56: =F56*F56*('Sheet1 select'!$B$25)*$B$4 -> 0.001810223304 | I56: =F56*(1-$B$4)*'Sheet1 select'!$B$41 -> 0.08613 | J56: =F56*F56*('Sheet1 select'!$B$26)*(1-$B$4) -> 0 | K56: =0.0000005*$B$11*F56*$B$9*((('Sheet1 select'!$B$33+0.5*'Sheet1 select'!$B$32)/(('Sheet1 select'!$B$10-'Sheet1 select'!$B$23)/('Sheet1 select'!$B$27+'Sheet1 select'!$B$8)))+(('Sheet1 select'!$B$33+0.5*'Sheet1 select'!$B$32)/(('Sheet1 select'!$B$23)/('Sheet1 select'!$B$27+'Sheet1 select'!$B$9)))) -> 0.01894167399 | L56: =(F56*$B$29)*(('Sheet1 select'!$B$12+'Sheet1 select'!$B$13)*(0.000000001))*$B$9*1000 -> 0 | M56: 0.000259124321 | N56: =$B$11*'Sheet1 select'!$B$29*0.001 -> 0.024 | O56: ='Sheet1 select'!$B$10*'Sheet1 select'!$B$31*$B$9*1000*0.000000001 -> 0.0408 | P56: ='Sheet1 select'!$B$35*$B$11*$B$9*1000*0.000000001 -> 0 | Q56: =IF('Sheet1 select'!$B$17=0,0,(0.00000006*0.7+0.00000003*(0.7+F56*1.1*'Sheet1 select'!$B$26))*F56*$B$9*1000) -> 0 | R56: 0.1823090216 | S56: 0.8669577309 | T56: =H56+K56+O56+N56+'Sheet1 select'!$B$40*I56+J56+P56 -> 0.1716818973
E57: 55 | F57: 0.3666666667 | G57: 0.01075555556 | H57: =F57*F57*('Sheet1 select'!$B$25)*$B$4 -> 0.001877889401 | I57: =F57*(1-$B$4)*'Sheet1 select'!$B$41 -> 0.087725 | J57: =F57*F57*('Sheet1 select'!$B$26)*(1-$B$4) -> 0 | K57: =0.0000005*$B$11*F57*$B$9*((('Sheet1 select'!$B$33+0.5*'Sheet1 select'!$B$32)/(('Sheet1 select'!$B$10-'Sheet1 select'!$B$23)/('Sheet1 select'!$B$27+'Sheet1 select'!$B$8)))+(('Sheet1 select'!$B$33+0.5*'Sheet1 select'!$B$32)/(('Sheet1 select'!$B$23)/('Sheet1 select'!$B$27+'Sheet1 select'!$B$9)))) -> 0.01929244573 | L57: =(F57*$B$29)*(('Sheet1 select'!$B$12+'Sheet1 select'!$B$13)*(0.000000001))*$B$9*1000 -> 0 | M57: 0.000259124321 | N57: =$B$11*'Sheet1 select'!$B$29*0.001 -> 0.024 | O57: ='Sheet1 select'!$B$10*'Sheet1 select'!$B$31*$B$9*1000*0.000000001 -> 0.0408 | P57: ='Sheet1 select'!$B$35*$B$11*$B$9*1000*0.000000001 -> 0 | Q57: =IF('Sheet1 select'!$B$17=0,0,(0.00000006*0.7+0.00000003*(0.7+F57*1.1*'Sheet1 select'!$B$26))*F57*$B$9*1000) -> 0 | R57: 0.184710015 | S57: 0.867563857 | T57: =H57+K57+O57+N57+'Sheet1 select'!$B$40*I57+J57+P57 -> 0.1736953351
E58: 56 | F58: 0.3733333333 | G58: 0.01115022222 | H58: =F58*F58*('Sheet1 select'!$B$25)*$B$4 -> 0.001946797079 | I58: =F58*(1-$B$4)*'Sheet1 select'!$B$41 -> 0.08932 | J58: =F58*F58*('Sheet1 select'!$B$26)*(1-$B$4) -> 0 | K58: =0.0000005*$B$11*F58*$B$9*((('Sheet1 select'!$B$33+0.5*'Sheet1 select'!$B$32)/(('Sheet1 select'!$B$10-'Sheet1 select'!$B$23)/('Sheet1 select'!$B$27+'Sheet1 select'!$B$8)))+(('Sheet1 select'!$B$33+0.5*'Sheet1 select'!$B$32)/(('Sheet1 select'!$B$23)/('Sheet1 select'!$B$27+'Sheet1 select'!$B$9)))) -> 0.01964321747 | L58: =(F58*$B$29)*(('Sheet1 select'!$B$12+'Sheet1 select'!$B$13)*(0.000000001))*$B$9*1000 -> 0 | M58: 0.000259124321 | N58: =$B$11*'Sheet1 select'!$B$29*0.001 -> 0.024 | O58: ='Sheet1 select'!$B$10*'Sheet1 select'!$B$31*$B$9*1000*0.000000001 -> 0.0408 | P58: ='Sheet1 select'!$B$35*$B$11*$B$9*1000*0.000000001 -> 0 | Q58: =IF('Sheet1 select'!$B$17=0,0,(0.00000006*0.7+0.00000003*(0.7+F58*1.1*'Sheet1 select'!$B$26))*F58*$B$9*1000) -> 0 | R58: 0.1871193611 | S58: 0.8681440292 | T58: =H58+K58+O58+N58+'Sheet1 select'!$B$40*I58+J58+P58 -> 0.1757100146
E59: 57 | F59: 0.38 | G59: 0.011552 | H59: =F59*F59*('Sheet1 select'!$B$25)*$B$4 -> 0.002016946336 | I59: =F59*(1-$B$4)*'Sheet1 select'!$B$41 -> 0.090915 | J59: =F59*F59*('Sheet1 select'!$B$26)*(1-$B$4) -> 0 | K59: =0.0000005*$B$11*F59*$B$9*((('Sheet1 select'!$B$33+0.5*'Sheet1 select'!$B$32)/(('Sheet1 select'!$B$10-'Sheet1 select'!$B$23)/('Sheet1 select'!$B$27+'Sheet1 select'!$B$8)))+(('Sheet1 select'!$B$33+0.5*'Sheet1 select'!$B$32)/(('Sheet1 select'!$B$23)/('Sheet1 select'!$B$27+'Sheet1 select'!$B$9)))) -> 0.01999398921 | L59: =(F59*$B$29)*(('Sheet1 select'!$B$12+'Sheet1 select'!$B$13)*(0.000000001))*$B$9*1000 -> 0 | M59: 0.000259124321 | N59: =$B$11*'Sheet1 select'!$B$29*0.001 -> 0.024 | O59: ='Sheet1 select'!$B$10*'Sheet1 select'!$B$31*$B$9*1000*0.000000001 -> 0.0408 | P59: ='Sheet1 select'!$B$35*$B$11*$B$9*1000*0.000000001 -> 0 | Q59: =IF('Sheet1 select'!$B$17=0,0,(0.00000006*0.7+0.00000003*(0.7+F59*1.1*'Sheet1 select'!$B$26))*F59*$B$9*1000) -> 0 | R59: 0.1895370599 | S59: 0.8686995539 | T59: =H59+K59+O59+N59+'Sheet1 select'!$B$40*I59+J59+P59 -> 0.1777259355
E60: 58 | F60: 0.3866666667 | G60: 0.01196088889 | H60: =F60*F60*('Sheet1 select'!$B$25)*$B$4 -> 0.002088337172 | I60: =F60*(1-$B$4)*'Sheet1 select'!$B$41 -> 0.09251 | J60: =F60*F60*('Sheet1 select'!$B$26)*(1-$B$4) -> 0 | K60: =0.0000005*$B$11*F60*$B$9*((('Sheet1 select'!$B$33+0.5*'Sheet1 select'!$B$32)/(('Sheet1 select'!$B$10-'Sheet1 select'!$B$23)/('Sheet1 select'!$B$27+'Sheet1 select'!$B$8)))+(('Sheet1 select'!$B$33+0.5*'Sheet1 select'!$B$32)/(('Sheet1 select'!$B$23)/('Sheet1 select'!$B$27+'Sheet1 select'!$B$9)))) -> 0.02034476095 | L60: =(F60*$B$29)*(('Sheet1 select'!$B$12+'Sheet1 select'!$B$13)*(0.000000001))*$B$9*1000 -> 0 | M60: 0.000259124321 | N60: =$B$11*'Sheet1 select'!$B$29*0.001 -> 0.024 | O60: ='Sheet1 select'!$B$10*'Sheet1 select'!$B$31*$B$9*1000*0.000000001 -> 0.0408 | P60: ='Sheet1 select'!$B$35*$B$11*$B$9*1000*0.000000001 -> 0 | Q60: =IF('Sheet1 select'!$B$17=0,0,(0.00000006*0.7+0.00000003*(0.7+F60*1.1*'Sheet1 select'!$B$26))*F60*$B$9*1000) -> 0 | R60: 0.1919631113 | S60: 0.8692316518 | T60: =H60+K60+O60+N60+'Sheet1 select'!$B$40*I60+J60+P60 -> 0.1797430981
E61: 59 | F61: 0.3933333333 | G61: 0.01237688889 | H61: =F61*F61*('Sheet1 select'!$B$25)*$B$4 -> 0.002160969589 | I61: =F61*(1-$B$4)*'Sheet1 select'!$B$41 -> 0.094105 | J61: =F61*F61*('Sheet1 select'!$B$26)*(1-$B$4) -> 0 | K61: =0.0000005*$B$11*F61*$B$9*((('Sheet1 select'!$B$33+0.5*'Sheet1 select'!$B$32)/(('Sheet1 select'!$B$10-'Sheet1 select'!$B$23)/('Sheet1 select'!$B$27+'Sheet1 select'!$B$8)))+(('Sheet1 select'!$B$33+0.5*'Sheet1 select'!$B$32)/(('Sheet1 select'!$B$23)/('Sheet1 select'!$B$27+'Sheet1 select'!$B$9)))) -> 0.02069553269 | L61: =(F61*$B$29)*(('Sheet1 select'!$B$12+'Sheet1 select'!$B$13)*(0.000000001))*$B$9*1000 -> 0 | M61: 0.000259124321 | N61: =$B$11*'Sheet1 select'!$B$29*0.001 -> 0.024 | O61: ='Sheet1 select'!$B$10*'Sheet1 select'!$B$31*$B$9*1000*0.000000001 -> 0.0408 | P61: ='Sheet1 select'!$B$35*$B$11*$B$9*1000*0.000000001 -> 0 | Q61: =IF('Sheet1 select'!$B$17=0,0,(0.00000006*0.7+0.00000003*(0.7+F61*1.1*'Sheet1 select'!$B$26))*F61*$B$9*1000) -> 0 | R61: 0.1943975155 | S61: 0.869741464 | T61: =H61+K61+O61+N61+'Sheet1 select'!$B$40*I61+J61+P61 -> 0.1817615023
E62: 60 | F62: 0.4 | G62: 0.0128 | H62: =F62*F62*('Sheet1 select'!$B$25)*$B$4 -> 0.002234843585 | I62: =F62*(1-$B$4)*'Sheet1 select'!$B$41 -> 0.0957 | J62: =F62*F62*('Sheet1 select'!$B$26)*(1-$B$4) -> 0 | K62: =0.0000005*$B$11*F62*$B$9*((('Sheet1 select'!$B$33+0.5*'Sheet1 select'!$B$32)/(('Sheet1 select'!$B$10-'Sheet1 select'!$B$23)/('Sheet1 select'!$B$27+'Sheet1 select'!$B$8)))+(('Sheet1 select'!$B$33+0.5*'Sheet1 select'!$B$32)/(('Sheet1 select'!$B$23)/('Sheet1 select'!$B$27+'Sheet1 select'!$B$9)))) -> 0.02104630443 | L62: =(F62*$B$29)*(('Sheet1 select'!$B$12+'Sheet1 select'!$B$13)*(0.000000001))*$B$9*1000 -> 0 | M62: 0.000259124321 | N62: =$B$11*'Sheet1 select'!$B$29*0.001 -> 0.024 | O62: ='Sheet1 select'!$B$10*'Sheet1 select'!$B$31*$B$9*1000*0.000000001 -> 0.0408 | P62: ='Sheet1 select'!$B$35*$B$11*$B$9*1000*0.000000001 -> 0 | Q62: =IF('Sheet1 select'!$B$17=0,0,(0.00000006*0.7+0.00000003*(0.7+F62*1.1*'Sheet1 select'!$B$26))*F62*$B$9*1000) -> 0 | R62: 0.1968402723 | S62: 0.8702300592 | T62: =H62+K62+O62+N62+'Sheet1 select'!$B$40*I62+J62+P62 -> 0.183781148
E63: 61 | F63: 0.4066666667 | G63: 0.01323022222 | H63: =F63*F63*('Sheet1 select'!$B$25)*$B$4 -> 0.002309959161 | I63: =F63*(1-$B$4)*'Sheet1 select'!$B$41 -> 0.097295 | J63: =F63*F63*('Sheet1 select'!$B$26)*(1-$B$4) -> 0 | K63: =0.0000005*$B$11*F63*$B$9*((('Sheet1 select'!$B$33+0.5*'Sheet1 select'!$B$32)/(('Sheet1 select'!$B$10-'Sheet1 select'!$B$23)/('Sheet1 select'!$B$27+'Sheet1 select'!$B$8)))+(('Sheet1 select'!$B$33+0.5*'Sheet1 select'!$B$32)/(('Sheet1 select'!$B$23)/('Sheet1 select'!$B$27+'Sheet1 select'!$B$9)))) -> 0.02139707617 | L63: =(F63*$B$29)*(('Sheet1 select'!$B$12+'Sheet1 select'!$B$13)*(0.000000001))*$B$9*1000 -> 0 | M63: 0.000259124321 | N63: =$B$11*'Sheet1 select'!$B$29*0.001 -> 0.024 | O63: ='Sheet1 select'!$B$10*'Sheet1 select'!$B$31*$B$9*1000*0.000000001 -> 0.0408 | P63: ='Sheet1 select'!$B$35*$B$11*$B$9*1000*0.000000001 -> 0 | Q63: =IF('Sheet1 select'!$B$17=0,0,(0.00000006*0.7+0.00000003*(0.7+F63*1.1*'Sheet1 select'!$B$26))*F63*$B$9*1000) -> 0 | R63: 0.1992913819 | S63: 0.8706984388 | T63: =H63+K63+O63+N63+'Sheet1 select'!$B$40*I63+J63+P63 -> 0.1858020353
E64: 62 | F64: 0.4133333333 | G64: 0.01366755556 | H64: =F64*F64*('Sheet1 select'!$B$25)*$B$4 -> 0.002386316317 | I64: =F64*(1-$B$4)*'Sheet1 select'!$B$41 -> 0.09889 | J64: =F64*F64*('Sheet1 select'!$B$26)*(1-$B$4) -> 0 | K64: =0.0000005*$B$11*F64*$B$9*((('Sheet1 select'!$B$33+0.5*'Sheet1 select'!$B$32)/(('Sheet1 select'!$B$10-'Sheet1 select'!$B$23)/('Sheet1 select'!$B$27+'Sheet1 select'!$B$8)))+(('Sheet1 select'!$B$33+0.5*'Sheet1 select'!$B$32)/(('Sheet1 select'!$B$23)/('Sheet1 select'!$B$27+'Sheet1 select'!$B$9)))) -> 0.02174784792 | L64: =(F64*$B$29)*(('Sheet1 select'!$B$12+'Sheet1 select'!$B$13)*(0.000000001))*$B$9*1000 -> 0 | M64: 0.000259124321 | N64: =$B$11*'Sheet1 select'!$B$29*0.001 -> 0.024 | O64: ='Sheet1 select'!$B$10*'Sheet1 select'!$B$31*$B$9*1000*0.000000001 -> 0.0408 | P64: ='Sheet1 select'!$B$35*$B$11*$B$9*1000*0.000000001 -> 0 | Q64: =IF('Sheet1 select'!$B$17=0,0,(0.00000006*0.7+0.00000003*(0.7+F64*1.1*'Sheet1 select'!$B$26))*F64*$B$9*1000) -> 0 | R64: 0.2017508441 | S64: 0.8711475425 | T64: =H64+K64+O64+N64+'Sheet1 select'!$B$40*I64+J64+P64 -> 0.1878241642
E65: 63 | F65: 0.42 | G65: 0.014112 | H65: =F65*F65*('Sheet1 select'!$B$25)*$B$4 -> 0.002463915053 | I65: =F65*(1-$B$4)*'Sheet1 select'!$B$41 -> 0.100485 | J65: =F65*F65*('Sheet1 select'!$B$26)*(1-$B$4) -> 0 | K65: =0.0000005*$B$11*F65*$B$9*((('Sheet1 select'!$B$33+0.5*'Sheet1 select'!$B$32)/(('Sheet1 select'!$B$10-'Sheet1 select'!$B$23)/('Sheet1 select'!$B$27+'Sheet1 select'!$B$8)))+(('Sheet1 select'!$B$33+0.5*'Sheet1 select'!$B$32)/(('Sheet1 select'!$B$23)/('Sheet1 select'!$B$27+'Sheet1 select'!$B$9)))) -> 0.02209861966 | L65: =(F65*$B$29)*(('Sheet1 select'!$B$12+'Sheet1 select'!$B$13)*(0.000000001))*$B$9*1000 -> 0 | M65: 0.000259124321 | N65: =$B$11*'Sheet1 select'!$B$29*0.001 -> 0.024 | O65: ='Sheet1 select'!$B$10*'Sheet1 select'!$B$31*$B$9*1000*0.000000001 -> 0.0408 | P65: ='Sheet1 select'!$B$35*$B$11*$B$9*1000*0.000000001 -> 0 | Q65: =IF('Sheet1 select'!$B$17=0,0,(0.00000006*0.7+0.00000003*(0.7+F65*1.1*'Sheet1 select'!$B$26))*F65*$B$9*1000) -> 0 | R65: 0.204218659 | S65: 0.8715782525 | T65: =H65+K65+O65+N65+'Sheet1 select'!$B$40*I65+J65+P65 -> 0.1898475347
E66: 64 | F66: 0.4266666667 | G66: 0.01456355556 | H66: =F66*F66*('Sheet1 select'!$B$25)*$B$4 -> 0.002542755368 | I66: =F66*(1-$B$4)*'Sheet1 select'!$B$41 -> 0.10208 | J66: =F66*F66*('Sheet1 select'!$B$26)*(1-$B$4) -> 0 | K66: =0.0000005*$B$11*F66*$B$9*((('Sheet1 select'!$B$33+0.5*'Sheet1 select'!$B$32)/(('Sheet1 select'!$B$10-'Sheet1 select'!$B$23)/('Sheet1 select'!$B$27+'Sheet1 select'!$B$8)))+(('Sheet1 select'!$B$33+0.5*'Sheet1 select'!$B$32)/(('Sheet1 select'!$B$23)/('Sheet1 select'!$B$27+'Sheet1 select'!$B$9)))) -> 0.0224493914 | L66: =(F66*$B$29)*(('Sheet1 select'!$B$12+'Sheet1 select'!$B$13)*(0.000000001))*$B$9*1000 -> 0 | M66: 0.000259124321 | N66: =$B$11*'Sheet1 select'!$B$29*0.001 -> 0.024 | O66: ='Sheet1 select'!$B$10*'Sheet1 select'!$B$31*$B$9*1000*0.000000001 -> 0.0408 | P66: ='Sheet1 select'!$B$35*$B$11*$B$9*1000*0.000000001 -> 0 | Q66: =IF('Sheet1 select'!$B$17=0,0,(0.00000006*0.7+0.00000003*(0.7+F66*1.1*'Sheet1 select'!$B$26))*F66*$B$9*1000) -> 0 | R66: 0.2066948266 | S66: 0.8719913985 | T66: =H66+K66+O66+N66+'Sheet1 select'!$B$40*I66+J66+P66 -> 0.1918721468
E67: 65 | F67: 0.4333333333 | G67: 0.01502222222 | H67: =F67*F67*('Sheet1 select'!$B$25)*$B$4 -> 0.002622837263 | I67: =F67*(1-$B$4)*'Sheet1 select'!$B$41 -> 0.103675 | J67: =F67*F67*('Sheet1 select'!$B$26)*(1-$B$4) -> 0 | K67: =0.0000005*$B$11*F67*$B$9*((('Sheet1 select'!$B$33+0.5*'Sheet1 select'!$B$32)/(('Sheet1 select'!$B$10-'Sheet1 select'!$B$23)/('Sheet1 select'!$B$27+'Sheet1 select'!$B$8)))+(('Sheet1 select'!$B$33+0.5*'Sheet1 select'!$B$32)/(('Sheet1 select'!$B$23)/('Sheet1 select'!$B$27+'Sheet1 select'!$B$9)))) -> 0.02280016314 | L67: =(F67*$B$29)*(('Sheet1 select'!$B$12+'Sheet1 select'!$B$13)*(0.000000001))*$B$9*1000 -> 0 | M67: 0.000259124321 | N67: =$B$11*'Sheet1 select'!$B$29*0.001 -> 0.024 | O67: ='Sheet1 select'!$B$10*'Sheet1 select'!$B$31*$B$9*1000*0.000000001 -> 0.0408 | P67: ='Sheet1 select'!$B$35*$B$11*$B$9*1000*0.000000001 -> 0 | Q67: =IF('Sheet1 select'!$B$17=0,0,(0.00000006*0.7+0.00000003*(0.7+F67*1.1*'Sheet1 select'!$B$26))*F67*$B$9*1000) -> 0 | R67: =SUM(G67:P67)+Q67 -> 0.2091793469 | S67: 0.8723877608 | T67: =H67+K67+O67+N67+'Sheet1 select'!$B$40*I67+J67+P67 -> 0.1938980004
E68: 66 | F68: =$B$13*E68/300 -> 0.44 | G68: =F68*F68*$B$15*0.001*2 -> 0.015488 | H68: =F68*F68*('Sheet1 select'!$B$25)*$B$4 -> 0.002704160738 | I68: =F68*(1-$B$4)*'Sheet1 select'!$B$41 -> 0.10527 | J68: =F68*F68*('Sheet1 select'!$B$26)*(1-$B$4) -> 0 | K68: =0.0000005*$B$11*F68*$B$9*((('Sheet1 select'!$B$33+0.5*'Sheet1 select'!$B$32)/(('Sheet1 select'!$B$10-'Sheet1 select'!$B$23)/('Sheet1 select'!$B$27+'Sheet1 select'!$B$8)))+(('Sheet1 select'!$B$33+0.5*'Sheet1 select'!$B$32)/(('Sheet1 select'!$B$23)/('Sheet1 select'!$B$27+'Sheet1 select'!$B$9)))) -> 0.02315093488 | L68: =(F68*$B$29)*(('Sheet1 select'!$B$12+'Sheet1 select'!$B$13)*(0.000000001))*$B$9*1000 -> 0 | M68: =($B$3^2)*$B$17*0.001 -> 0.000259124321 | N68: =$B$11*'Sheet1 select'!$B$29*0.001 -> 0.024 | O68: ='Sheet1 select'!$B$10*'Sheet1 select'!$B$31*$B$9*1000*0.000000001 -> 0.0408 | P68: ='Sheet1 select'!$B$35*$B$11*$B$9*1000*0.000000001 -> 0 | Q68: =IF('Sheet1 select'!$B$17=0,0,(0.00000006*0.7+0.00000003*(0.7+F68*1.1*'Sheet1 select'!$B$26))*F68*$B$9*1000) -> 0 | R68: 0.2116722199 | S68: =($B$12*F68)/($B$12*F68+R68) -> 0.8727680745 | T68: =H68+K68+O68+N68+'Sheet1 select'!$B$40*I68+J68+P68 -> 0.1959250956
E69: 67 | F69: 0.4466666667 | G69: 0.01596088889 | H69: =F69*F69*('Sheet1 select'!$B$25)*$B$4 -> 0.002786725793 | I69: =F69*(1-$B$4)*'Sheet1 select'!$B$41 -> 0.106865 | J69: =F69*F69*('Sheet1 select'!$B$26)*(1-$B$4) -> 0 | K69: =0.0000005*$B$11*F69*$B$9*((('Sheet1 select'!$B$33+0.5*'Sheet1 select'!$B$32)/(('Sheet1 select'!$B$10-'Sheet1 select'!$B$23)/('Sheet1 select'!$B$27+'Sheet1 select'!$B$8)))+(('Sheet1 select'!$B$33+0.5*'Sheet1 select'!$B$32)/(('Sheet1 select'!$B$23)/('Sheet1 select'!$B$27+'Sheet1 select'!$B$9)))) -> 0.02350170662 | L69: =(F69*$B$29)*(('Sheet1 select'!$B$12+'Sheet1 select'!$B$13)*(0.000000001))*$B$9*1000 -> 0 | M69: 0.000259124321 | N69: =$B$11*'Sheet1 select'!$B$29*0.001 -> 0.024 | O69: ='Sheet1 select'!$B$10*'Sheet1 select'!$B$31*$B$9*1000*0.000000001 -> 0.0408 | P69: ='Sheet1 select'!$B$35*$B$11*$B$9*1000*0.000000001 -> 0 | Q69: =IF('Sheet1 select'!$B$17=0,0,(0.00000006*0.7+0.00000003*(0.7+F69*1.1*'Sheet1 select'!$B$26))*F69*$B$9*1000) -> 0 | R69: 0.2141734456 | S69: 0.8731330325 | T69: =H69+K69+O69+N69+'Sheet1 select'!$B$40*I69+J69+P69 -> 0.1979534324
E70: 68 | F70: 0.4533333333 | G70: 0.01644088889 | H70: =F70*F70*('Sheet1 select'!$B$25)*$B$4 -> 0.002870532427 | I70: =F70*(1-$B$4)*'Sheet1 select'!$B$41 -> 0.10846 | J70: =F70*F70*('Sheet1 select'!$B$26)*(1-$B$4) -> 0 | K70: =0.0000005*$B$11*F70*$B$9*((('Sheet1 select'!$B$33+0.5*'Sheet1 select'!$B$32)/(('Sheet1 select'!$B$10-'Sheet1 select'!$B$23)/('Sheet1 select'!$B$27+'Sheet1 select'!$B$8)))+(('Sheet1 select'!$B$33+0.5*'Sheet1 select'!$B$32)/(('Sheet1 select'!$B$23)/('Sheet1 select'!$B$27+'Sheet1 select'!$B$9)))) -> 0.02385247836 | L70: =(F70*$B$29)*(('Sheet1 select'!$B$12+'Sheet1 select'!$B$13)*(0.000000001))*$B$9*1000 -> 0 | M70: 0.000259124321 | N70: =$B$11*'Sheet1 select'!$B$29*0.001 -> 0.024 | O70: ='Sheet1 select'!$B$10*'Sheet1 select'!$B$31*$B$9*1000*0.000000001 -> 0.0408 | P70: ='Sheet1 select'!$B$35*$B$11*$B$9*1000*0.000000001 -> 0 | Q70: =IF('Sheet1 select'!$B$17=0,0,(0.00000006*0.7+0.00000003*(0.7+F70*1.1*'Sheet1 select'!$B$26))*F70*$B$9*1000) -> 0 | R70: 0.216683024 | S70: 0.8734832885 | T70: =H70+K70+O70+N70+'Sheet1 select'!$B$40*I70+J70+P70 -> 0.1999830108
E71: 69 | F71: 0.46 | G71: 0.016928 | H71: =F71*F71*('Sheet1 select'!$B$25)*$B$4 -> 0.002955580641 | I71: =F71*(1-$B$4)*'Sheet1 select'!$B$41 -> 0.110055 | J71: =F71*F71*('Sheet1 select'!$B$26)*(1-$B$4) -> 0 | K71: =0.0000005*$B$11*F71*$B$9*((('Sheet1 select'!$B$33+0.5*'Sheet1 select'!$B$32)/(('Sheet1 select'!$B$10-'Sheet1 select'!$B$23)/('Sheet1 select'!$B$27+'Sheet1 select'!$B$8)))+(('Sheet1 select'!$B$33+0.5*'Sheet1 select'!$B$32)/(('Sheet1 select'!$B$23)/('Sheet1 select'!$B$27+'Sheet1 select'!$B$9)))) -> 0.0242032501 | L71: =(F71*$B$29)*(('Sheet1 select'!$B$12+'Sheet1 select'!$B$13)*(0.000000001))*$B$9*1000 -> 0 | M71: 0.000259124321 | N71: =$B$11*'Sheet1 select'!$B$29*0.001 -> 0.024 | O71: ='Sheet1 select'!$B$10*'Sheet1 select'!$B$31*$B$9*1000*0.000000001 -> 0.0408 | P71: ='Sheet1 select'!$B$35*$B$11*$B$9*1000*0.000000001 -> 0 | Q71: =IF('Sheet1 select'!$B$17=0,0,(0.00000006*0.7+0.00000003*(0.7+F71*1.1*'Sheet1 select'!$B$26))*F71*$B$9*1000) -> 0 | R71: 0.2192009551 | S71: 0.8738194597 | T71: =H71+K71+O71+N71+'Sheet1 select'!$B$40*I71+J71+P71 -> 0.2020138307
E72: 70 | F72: 0.4666666667 | G72: 0.01742222222 | H72: =F72*F72*('Sheet1 select'!$B$25)*$B$4 -> 0.003041870435 | I72: =F72*(1-$B$4)*'Sheet1 select'!$B$41 -> 0.11165 | J72: =F72*F72*('Sheet1 select'!$B$26)*(1-$B$4) -> 0 | K72: =0.0000005*$B$11*F72*$B$9*((('Sheet1 select'!$B$33+0.5*'Sheet1 select'!$B$32)/(('Sheet1 select'!$B$10-'Sheet1 select'!$B$23)/('Sheet1 select'!$B$27+'Sheet1 select'!$B$8)))+(('Sheet1 select'!$B$33+0.5*'Sheet1 select'!$B$32)/(('Sheet1 select'!$B$23)/('Sheet1 select'!$B$27+'Sheet1 select'!$B$9)))) -> 0.02455402184 | L72: =(F72*$B$29)*(('Sheet1 select'!$B$12+'Sheet1 select'!$B$13)*(0.000000001))*$B$9*1000 -> 0 | M72: 0.000259124321 | N72: =$B$11*'Sheet1 select'!$B$29*0.001 -> 0.024 | O72: ='Sheet1 select'!$B$10*'Sheet1 select'!$B$31*$B$9*1000*0.000000001 -> 0.0408 | P72: ='Sheet1 select'!$B$35*$B$11*$B$9*1000*0.000000001 -> 0 | Q72: =IF('Sheet1 select'!$B$17=0,0,(0.00000006*0.7+0.00000003*(0.7+F72*1.1*'Sheet1 select'!$B$26))*F72*$B$9*1000) -> 0 | R72: 0.2217272388 | S72: 0.8741421294 | T72: =H72+K72+O72+N72+'Sheet1 select'!$B$40*I72+J72+P72 -> 0.2040458923
E73: 71 | F73: 0.4733333333 | G73: 0.01792355556 | H73: =F73*F73*('Sheet1 select'!$B$25)*$B$4 -> 0.003129401809 | I73: =F73*(1-$B$4)*'Sheet1 select'!$B$41 -> 0.113245 | J73: =F73*F73*('Sheet1 select'!$B$26)*(1-$B$4) -> 0 | K73: =0.0000005*$B$11*F73*$B$9*((('Sheet1 select'!$B$33+0.5*'Sheet1 select'!$B$32)/(('Sheet1 select'!$B$10-'Sheet1 select'!$B$23)/('Sheet1 select'!$B$27+'Sheet1 select'!$B$8)))+(('Sheet1 select'!$B$33+0.5*'Sheet1 select'!$B$32)/(('Sheet1 select'!$B$23)/('Sheet1 select'!$B$27+'Sheet1 select'!$B$9)))) -> 0.02490479358 | L73: =(F73*$B$29)*(('Sheet1 select'!$B$12+'Sheet1 select'!$B$13)*(0.000000001))*$B$9*1000 -> 0 | M73: 0.000259124321 | N73: =$B$11*'Sheet1 select'!$B$29*0.001 -> 0.024 | O73: ='Sheet1 select'!$B$10*'Sheet1 select'!$B$31*$B$9*1000*0.000000001 -> 0.0408 | P73: ='Sheet1 select'!$B$35*$B$11*$B$9*1000*0.000000001 -> 0 | Q73: =IF('Sheet1 select'!$B$17=0,0,(0.00000006*0.7+0.00000003*(0.7+F73*1.1*'Sheet1 select'!$B$26))*F73*$B$9*1000) -> 0 | R73: 0.2242618753 | S73: 0.8744518492 | T73: =H73+K73+O73+N73+'Sheet1 select'!$B$40*I73+J73+P73 -> 0.2060791954
E74: 72 | F74: 0.48 | G74: 0.018432 | H74: =F74*F74*('Sheet1 select'!$B$25)*$B$4 -> 0.003218174763 | I74: =F74*(1-$B$4)*'Sheet1 select'!$B$41 -> 0.11484 | J74: =F74*F74*('Sheet1 select'!$B$26)*(1-$B$4) -> 0 | K74: =0.0000005*$B$11*F74*$B$9*((('Sheet1 select'!$B$33+0.5*'Sheet1 select'!$B$32)/(('Sheet1 select'!$B$10-'Sheet1 select'!$B$23)/('Sheet1 select'!$B$27+'Sheet1 select'!$B$8)))+(('Sheet1 select'!$B$33+0.5*'Sheet1 select'!$B$32)/(('Sheet1 select'!$B$23)/('Sheet1 select'!$B$27+'Sheet1 select'!$B$9)))) -> 0.02525556532 | L74: =(F74*$B$29)*(('Sheet1 select'!$B$12+'Sheet1 select'!$B$13)*(0.000000001))*$B$9*1000 -> 0 | M74: 0.000259124321 | N74: =$B$11*'Sheet1 select'!$B$29*0.001 -> 0.024 | O74: ='Sheet1 select'!$B$10*'Sheet1 select'!$B$31*$B$9*1000*0.000000001 -> 0.0408 | P74: ='Sheet1 select'!$B$35*$B$11*$B$9*1000*0.000000001 -> 0 | Q74: =IF('Sheet1 select'!$B$17=0,0,(0.00000006*0.7+0.00000003*(0.7+F74*1.1*'Sheet1 select'!$B$26))*F74*$B$9*1000) -> 0 | R74: 0.2268048644 | S74: 0.8747491412 | T74: =H74+K74+O74+N74+'Sheet1 select'!$B$40*I74+J74+P74 -> 0.2081137401
E75: 73 | F75: 0.4866666667 | G75: 0.01894755556 | H75: =F75*F75*('Sheet1 select'!$B$25)*$B$4 -> 0.003308189296 | I75: =F75*(1-$B$4)*'Sheet1 select'!$B$41 -> 0.116435 | J75: =F75*F75*('Sheet1 select'!$B$26)*(1-$B$4) -> 0 | K75: =0.0000005*$B$11*F75*$B$9*((('Sheet1 select'!$B$33+0.5*'Sheet1 select'!$B$32)/(('Sheet1 select'!$B$10-'Sheet1 select'!$B$23)/('Sheet1 select'!$B$27+'Sheet1 select'!$B$8)))+(('Sheet1 select'!$B$33+0.5*'Sheet1 select'!$B$32)/(('Sheet1 select'!$B$23)/('Sheet1 select'!$B$27+'Sheet1 select'!$B$9)))) -> 0.02560633706 | L75: =(F75*$B$29)*(('Sheet1 select'!$B$12+'Sheet1 select'!$B$13)*(0.000000001))*$B$9*1000 -> 0 | M75: 0.000259124321 | N75: =$B$11*'Sheet1 select'!$B$29*0.001 -> 0.024 | O75: ='Sheet1 select'!$B$10*'Sheet1 select'!$B$31*$B$9*1000*0.000000001 -> 0.0408 | P75: ='Sheet1 select'!$B$35*$B$11*$B$9*1000*0.000000001 -> 0 | Q75: =IF('Sheet1 select'!$B$17=0,0,(0.00000006*0.7+0.00000003*(0.7+F75*1.1*'Sheet1 select'!$B$26))*F75*$B$9*1000) -> 0 | R75: 0.2293562062 | S75: 0.8750344999 | T75: =H75+K75+O75+N75+'Sheet1 select'!$B$40*I75+J75+P75 -> 0.2101495264
E76: 74 | F76: 0.4933333333 | G76: 0.01947022222 | H76: =F76*F76*('Sheet1 select'!$B$25)*$B$4 -> 0.003399445409 | I76: =F76*(1-$B$4)*'Sheet1 select'!$B$41 -> 0.11803 | J76: =F76*F76*('Sheet1 select'!$B$26)*(1-$B$4) -> 0 | K76: =0.0000005*$B$11*F76*$B$9*((('Sheet1 select'!$B$33+0.5*'Sheet1 select'!$B$32)/(('Sheet1 select'!$B$10-'Sheet1 select'!$B$23)/('Sheet1 select'!$B$27+'Sheet1 select'!$B$8)))+(('Sheet1 select'!$B$33+0.5*'Sheet1 select'!$B$32)/(('Sheet1 select'!$B$23)/('Sheet1 select'!$B$27+'Sheet1 select'!$B$9)))) -> 0.0259571088 | L76: =(F76*$B$29)*(('Sheet1 select'!$B$12+'Sheet1 select'!$B$13)*(0.000000001))*$B$9*1000 -> 0 | M76: 0.000259124321 | N76: =$B$11*'Sheet1 select'!$B$29*0.001 -> 0.024 | O76: ='Sheet1 select'!$B$10*'Sheet1 select'!$B$31*$B$9*1000*0.000000001 -> 0.0408 | P76: ='Sheet1 select'!$B$35*$B$11*$B$9*1000*0.000000001 -> 0 | Q76: =IF('Sheet1 select'!$B$17=0,0,(0.00000006*0.7+0.00000003*(0.7+F76*1.1*'Sheet1 select'!$B$26))*F76*$B$9*1000) -> 0 | R76: 0.2319159008 | S76: 0.875308394 | T76: =H76+K76+O76+N76+'Sheet1 select'!$B$40*I76+J76+P76 -> 0.2121865542
E77: 75 | F77: 0.5 | G77: 0.02 | H77: =F77*F77*('Sheet1 select'!$B$25)*$B$4 -> 0.003491943102 | I77: =F77*(1-$B$4)*'Sheet1 select'!$B$41 -> 0.119625 | J77: =F77*F77*('Sheet1 select'!$B$26)*(1-$B$4) -> 0 | K77: =0.0000005*$B$11*F77*$B$9*((('Sheet1 select'!$B$33+0.5*'Sheet1 select'!$B$32)/(('Sheet1 select'!$B$10-'Sheet1 select'!$B$23)/('Sheet1 select'!$B$27+'Sheet1 select'!$B$8)))+(('Sheet1 select'!$B$33+0.5*'Sheet1 select'!$B$32)/(('Sheet1 select'!$B$23)/('Sheet1 select'!$B$27+'Sheet1 select'!$B$9)))) -> 0.02630788054 | L77: =(F77*$B$29)*(('Sheet1 select'!$B$12+'Sheet1 select'!$B$13)*(0.000000001))*$B$9*1000 -> 0 | M77: 0.000259124321 | N77: =$B$11*'Sheet1 select'!$B$29*0.001 -> 0.024 | O77: ='Sheet1 select'!$B$10*'Sheet1 select'!$B$31*$B$9*1000*0.000000001 -> 0.0408 | P77: ='Sheet1 select'!$B$35*$B$11*$B$9*1000*0.000000001 -> 0 | Q77: =IF('Sheet1 select'!$B$17=0,0,(0.00000006*0.7+0.00000003*(0.7+F77*1.1*'Sheet1 select'!$B$26))*F77*$B$9*1000) -> 0 | R77: 0.234483948 | S77: 0.8755712681 | T77: =H77+K77+O77+N77+'Sheet1 select'!$B$40*I77+J77+P77 -> 0.2142248236
E78: 76 | F78: 0.5066666667 | G78: 0.02053688889 | H78: =F78*F78*('Sheet1 select'!$B$25)*$B$4 -> 0.003585682374 | I78: =F78*(1-$B$4)*'Sheet1 select'!$B$41 -> 0.12122 | J78: =F78*F78*('Sheet1 select'!$B$26)*(1-$B$4) -> 0 | K78: =0.0000005*$B$11*F78*$B$9*((('Sheet1 select'!$B$33+0.5*'Sheet1 select'!$B$32)/(('Sheet1 select'!$B$10-'Sheet1 select'!$B$23)/('Sheet1 select'!$B$27+'Sheet1 select'!$B$8)))+(('Sheet1 select'!$B$33+0.5*'Sheet1 select'!$B$32)/(('Sheet1 select'!$B$23)/('Sheet1 select'!$B$27+'Sheet1 select'!$B$9)))) -> 0.02665865228 | L78: =(F78*$B$29)*(('Sheet1 select'!$B$12+'Sheet1 select'!$B$13)*(0.000000001))*$B$9*1000 -> 0 | M78: 0.000259124321 | N78: =$B$11*'Sheet1 select'!$B$29*0.001 -> 0.024 | O78: ='Sheet1 select'!$B$10*'Sheet1 select'!$B$31*$B$9*1000*0.000000001 -> 0.0408 | P78: ='Sheet1 select'!$B$35*$B$11*$B$9*1000*0.000000001 -> 0 | Q78: =IF('Sheet1 select'!$B$17=0,0,(0.00000006*0.7+0.00000003*(0.7+F78*1.1*'Sheet1 select'!$B$26))*F78*$B$9*1000) -> 0 | R78: 0.2370603479 | S78: 0.8758235442 | T78: =H78+K78+O78+N78+'Sheet1 select'!$B$40*I78+J78+P78 -> 0.2162643347
E79: 77 | F79: 0.5133333333 | G79: 0.02108088889 | H79: =F79*F79*('Sheet1 select'!$B$25)*$B$4 -> 0.003680663227 | I79: =F79*(1-$B$4)*'Sheet1 select'!$B$41 -> 0.122815 | J79: =F79*F79*('Sheet1 select'!$B$26)*(1-$B$4) -> 0 | K79: =0.0000005*$B$11*F79*$B$9*((('Sheet1 select'!$B$33+0.5*'Sheet1 select'!$B$32)/(('Sheet1 select'!$B$10-'Sheet1 select'!$B$23)/('Sheet1 select'!$B$27+'Sheet1 select'!$B$8)))+(('Sheet1 select'!$B$33+0.5*'Sheet1 select'!$B$32)/(('Sheet1 select'!$B$23)/('Sheet1 select'!$B$27+'Sheet1 select'!$B$9)))) -> 0.02700942402 | L79: =(F79*$B$29)*(('Sheet1 select'!$B$12+'Sheet1 select'!$B$13)*(0.000000001))*$B$9*1000 -> 0 | M79: 0.000259124321 | N79: =$B$11*'Sheet1 select'!$B$29*0.001 -> 0.024 | O79: ='Sheet1 select'!$B$10*'Sheet1 select'!$B$31*$B$9*1000*0.000000001 -> 0.0408 | P79: ='Sheet1 select'!$B$35*$B$11*$B$9*1000*0.000000001 -> 0 | Q79: =IF('Sheet1 select'!$B$17=0,0,(0.00000006*0.7+0.00000003*(0.7+F79*1.1*'Sheet1 select'!$B$26))*F79*$B$9*1000) -> 0 | R79: 0.2396451005 | S79: 0.8760656232 | T79: =H79+K79+O79+N79+'Sheet1 select'!$B$40*I79+J79+P79 -> 0.2183050873
E80: 78 | F80: 0.52 | G80: 0.021632 | H80: =F80*F80*('Sheet1 select'!$B$25)*$B$4 -> 0.003776885659 | I80: =F80*(1-$B$4)*'Sheet1 select'!$B$41 -> 0.12441 | J80: =F80*F80*('Sheet1 select'!$B$26)*(1-$B$4) -> 0 | K80: =0.0000005*$B$11*F80*$B$9*((('Sheet1 select'!$B$33+0.5*'Sheet1 select'!$B$32)/(('Sheet1 select'!$B$10-'Sheet1 select'!$B$23)/('Sheet1 select'!$B$27+'Sheet1 select'!$B$8)))+(('Sheet1 select'!$B$33+0.5*'Sheet1 select'!$B$32)/(('Sheet1 select'!$B$23)/('Sheet1 select'!$B$27+'Sheet1 select'!$B$9)))) -> 0.02736019576 | L80: =(F80*$B$29)*(('Sheet1 select'!$B$12+'Sheet1 select'!$B$13)*(0.000000001))*$B$9*1000 -> 0 | M80: 0.000259124321 | N80: =$B$11*'Sheet1 select'!$B$29*0.001 -> 0.024 | O80: ='Sheet1 select'!$B$10*'Sheet1 select'!$B$31*$B$9*1000*0.000000001 -> 0.0408 | P80: ='Sheet1 select'!$B$35*$B$11*$B$9*1000*0.000000001 -> 0 | Q80: =IF('Sheet1 select'!$B$17=0,0,(0.00000006*0.7+0.00000003*(0.7+F80*1.1*'Sheet1 select'!$B$26))*F80*$B$9*1000) -> 0 | R80: 0.2422382057 | S80: 0.876297886 | T80: =H80+K80+O80+N80+'Sheet1 select'!$B$40*I80+J80+P80 -> 0.2203470814
E81: 79 | F81: 0.5266666667 | G81: 0.02219022222 | H81: =F81*F81*('Sheet1 select'!$B$25)*$B$4 -> 0.003874349671 | I81: =F81*(1-$B$4)*'Sheet1 select'!$B$41 -> 0.126005 | J81: =F81*F81*('Sheet1 select'!$B$26)*(1-$B$4) -> 0 | K81: =0.0000005*$B$11*F81*$B$9*((('Sheet1 select'!$B$33+0.5*'Sheet1 select'!$B$32)/(('Sheet1 select'!$B$10-'Sheet1 select'!$B$23)/('Sheet1 select'!$B$27+'Sheet1 select'!$B$8)))+(('Sheet1 select'!$B$33+0.5*'Sheet1 select'!$B$32)/(('Sheet1 select'!$B$23)/('Sheet1 select'!$B$27+'Sheet1 select'!$B$9)))) -> 0.0277109675 | L81: =(F81*$B$29)*(('Sheet1 select'!$B$12+'Sheet1 select'!$B$13)*(0.000000001))*$B$9*1000 -> 0 | M81: 0.000259124321 | N81: =$B$11*'Sheet1 select'!$B$29*0.001 -> 0.024 | O81: ='Sheet1 select'!$B$10*'Sheet1 select'!$B$31*$B$9*1000*0.000000001 -> 0.0408 | P81: ='Sheet1 select'!$B$35*$B$11*$B$9*1000*0.000000001 -> 0 | Q81: =IF('Sheet1 select'!$B$17=0,0,(0.00000006*0.7+0.00000003*(0.7+F81*1.1*'Sheet1 select'!$B$26))*F81*$B$9*1000) -> 0 | R81: 0.2448396637 | S81: 0.8765206949 | T81: =H81+K81+O81+N81+'Sheet1 select'!$B$40*I81+J81+P81 -> 0.2223903172
E82: 80 | F82: 0.5333333333 | G82: 0.02275555556 | H82: =F82*F82*('Sheet1 select'!$B$25)*$B$4 -> 0.003973055262 | I82: =F82*(1-$B$4)*'Sheet1 select'!$B$41 -> 0.1276 | J82: =F82*F82*('Sheet1 select'!$B$26)*(1-$B$4) -> 0 | K82: =0.0000005*$B$11*F82*$B$9*((('Sheet1 select'!$B$33+0.5*'Sheet1 select'!$B$32)/(('Sheet1 select'!$B$10-'Sheet1 select'!$B$23)/('Sheet1 select'!$B$27+'Sheet1 select'!$B$8)))+(('Sheet1 select'!$B$33+0.5*'Sheet1 select'!$B$32)/(('Sheet1 select'!$B$23)/('Sheet1 select'!$B$27+'Sheet1 select'!$B$9)))) -> 0.02806173925 | L82: =(F82*$B$29)*(('Sheet1 select'!$B$12+'Sheet1 select'!$B$13)*(0.000000001))*$B$9*1000 -> 0 | M82: 0.000259124321 | N82: =$B$11*'Sheet1 select'!$B$29*0.001 -> 0.024 | O82: ='Sheet1 select'!$B$10*'Sheet1 select'!$B$31*$B$9*1000*0.000000001 -> 0.0408 | P82: ='Sheet1 select'!$B$35*$B$11*$B$9*1000*0.000000001 -> 0 | Q82: =IF('Sheet1 select'!$B$17=0,0,(0.00000006*0.7+0.00000003*(0.7+F82*1.1*'Sheet1 select'!$B$26))*F82*$B$9*1000) -> 0 | R82: 0.2474494744 | S82: 0.8767343948 | T82: =H82+K82+O82+N82+'Sheet1 select'!$B$40*I82+J82+P82 -> 0.2244347945
E83: 81 | F83: 0.54 | G83: 0.023328 | H83: =F83*F83*('Sheet1 select'!$B$25)*$B$4 -> 0.004073002434 | I83: =F83*(1-$B$4)*'Sheet1 select'!$B$41 -> 0.129195 | J83: =F83*F83*('Sheet1 select'!$B$26)*(1-$B$4) -> 0 | K83: =0.0000005*$B$11*F83*$B$9*((('Sheet1 select'!$B$33+0.5*'Sheet1 select'!$B$32)/(('Sheet1 select'!$B$10-'Sheet1 select'!$B$23)/('Sheet1 select'!$B$27+'Sheet1 select'!$B$8)))+(('Sheet1 select'!$B$33+0.5*'Sheet1 select'!$B$32)/(('Sheet1 select'!$B$23)/('Sheet1 select'!$B$27+'Sheet1 select'!$B$9)))) -> 0.02841251099 | L83: =(F83*$B$29)*(('Sheet1 select'!$B$12+'Sheet1 select'!$B$13)*(0.000000001))*$B$9*1000 -> 0 | M83: 0.000259124321 | N83: =$B$11*'Sheet1 select'!$B$29*0.001 -> 0.024 | O83: ='Sheet1 select'!$B$10*'Sheet1 select'!$B$31*$B$9*1000*0.000000001 -> 0.0408 | P83: ='Sheet1 select'!$B$35*$B$11*$B$9*1000*0.000000001 -> 0 | Q83: =IF('Sheet1 select'!$B$17=0,0,(0.00000006*0.7+0.00000003*(0.7+F83*1.1*'Sheet1 select'!$B$26))*F83*$B$9*1000) -> 0 | R83: 0.2500676377 | S83: 0.8769393139 | T83: =H83+K83+O83+N83+'Sheet1 select'!$B$40*I83+J83+P83 -> 0.2264805134
E84: 82 | F84: 0.5466666667 | G84: 0.02390755556 | H84: =F84*F84*('Sheet1 select'!$B$25)*$B$4 -> 0.004174191185 | I84: =F84*(1-$B$4)*'Sheet1 select'!$B$41 -> 0.13079 | J84: =F84*F84*('Sheet1 select'!$B$26)*(1-$B$4) -> 0 | K84: =0.0000005*$B$11*F84*$B$9*((('Sheet1 select'!$B$33+0.5*'Sheet1 select'!$B$32)/(('Sheet1 select'!$B$10-'Sheet1 select'!$B$23)/('Sheet1 select'!$B$27+'Sheet1 select'!$B$8)))+(('Sheet1 select'!$B$33+0.5*'Sheet1 select'!$B$32)/(('Sheet1 select'!$B$23)/('Sheet1 select'!$B$27+'Sheet1 select'!$B$9)))) -> 0.02876328273 | L84: =(F84*$B$29)*(('Sheet1 select'!$B$12+'Sheet1 select'!$B$13)*(0.000000001))*$B$9*1000 -> 0 | M84: 0.000259124321 | N84: =$B$11*'Sheet1 select'!$B$29*0.001 -> 0.024 | O84: ='Sheet1 select'!$B$10*'Sheet1 select'!$B$31*$B$9*1000*0.000000001 -> 0.0408 | P84: ='Sheet1 select'!$B$35*$B$11*$B$9*1000*0.000000001 -> 0 | Q84: =IF('Sheet1 select'!$B$17=0,0,(0.00000006*0.7+0.00000003*(0.7+F84*1.1*'Sheet1 select'!$B$26))*F84*$B$9*1000) -> 0 | R84: 0.2526941538 | S84: 0.877135765 | T84: =H84+K84+O84+N84+'Sheet1 select'!$B$40*I84+J84+P84 -> 0.2285274739
E85: 83 | F85: 0.5533333333 | G85: 0.02449422222 | H85: =F85*F85*('Sheet1 select'!$B$25)*$B$4 -> 0.004276621516 | I85: =F85*(1-$B$4)*'Sheet1 select'!$B$41 -> 0.132385 | J85: =F85*F85*('Sheet1 select'!$B$26)*(1-$B$4) -> 0 | K85: =0.0000005*$B$11*F85*$B$9*((('Sheet1 select'!$B$33+0.5*'Sheet1 select'!$B$32)/(('Sheet1 select'!$B$10-'Sheet1 select'!$B$23)/('Sheet1 select'!$B$27+'Sheet1 select'!$B$8)))+(('Sheet1 select'!$B$33+0.5*'Sheet1 select'!$B$32)/(('Sheet1 select'!$B$23)/('Sheet1 select'!$B$27+'Sheet1 select'!$B$9)))) -> 0.02911405447 | L85: =(F85*$B$29)*(('Sheet1 select'!$B$12+'Sheet1 select'!$B$13)*(0.000000001))*$B$9*1000 -> 0 | M85: 0.000259124321 | N85: =$B$11*'Sheet1 select'!$B$29*0.001 -> 0.024 | O85: ='Sheet1 select'!$B$10*'Sheet1 select'!$B$31*$B$9*1000*0.000000001 -> 0.0408 | P85: ='Sheet1 select'!$B$35*$B$11*$B$9*1000*0.000000001 -> 0 | Q85: =IF('Sheet1 select'!$B$17=0,0,(0.00000006*0.7+0.00000003*(0.7+F85*1.1*'Sheet1 select'!$B$26))*F85*$B$9*1000) -> 0 | R85: 0.2553290225 | S85: 0.8773240464 | T85: =H85+K85+O85+N85+'Sheet1 select'!$B$40*I85+J85+P85 -> 0.230575676
E86: 84 | F86: 0.56 | G86: 0.025088 | H86: =F86*F86*('Sheet1 select'!$B$25)*$B$4 -> 0.004380293427 | I86: =F86*(1-$B$4)*'Sheet1 select'!$B$41 -> 0.13398 | J86: =F86*F86*('Sheet1 select'!$B$26)*(1-$B$4) -> 0 | K86: =0.0000005*$B$11*F86*$B$9*((('Sheet1 select'!$B$33+0.5*'Sheet1 select'!$B$32)/(('Sheet1 select'!$B$10-'Sheet1 select'!$B$23)/('Sheet1 select'!$B$27+'Sheet1 select'!$B$8)))+(('Sheet1 select'!$B$33+0.5*'Sheet1 select'!$B$32)/(('Sheet1 select'!$B$23)/('Sheet1 select'!$B$27+'Sheet1 select'!$B$9)))) -> 0.02946482621 | L86: =(F86*$B$29)*(('Sheet1 select'!$B$12+'Sheet1 select'!$B$13)*(0.000000001))*$B$9*1000 -> 0 | M86: 0.000259124321 | N86: =$B$11*'Sheet1 select'!$B$29*0.001 -> 0.024 | O86: ='Sheet1 select'!$B$10*'Sheet1 select'!$B$31*$B$9*1000*0.000000001 -> 0.0408 | P86: ='Sheet1 select'!$B$35*$B$11*$B$9*1000*0.000000001 -> 0 | Q86: =IF('Sheet1 select'!$B$17=0,0,(0.00000006*0.7+0.00000003*(0.7+F86*1.1*'Sheet1 select'!$B$26))*F86*$B$9*1000) -> 0 | R86: 0.257972244 | S86: 0.8775044426 | T86: =H86+K86+O86+N86+'Sheet1 select'!$B$40*I86+J86+P86 -> 0.2326251196
E87: 85 | F87: 0.5666666667 | G87: 0.02568888889 | H87: =F87*F87*('Sheet1 select'!$B$25)*$B$4 -> 0.004485206917 | I87: =F87*(1-$B$4)*'Sheet1 select'!$B$41 -> 0.135575 | J87: =F87*F87*('Sheet1 select'!$B$26)*(1-$B$4) -> 0 | K87: =0.0000005*$B$11*F87*$B$9*((('Sheet1 select'!$B$33+0.5*'Sheet1 select'!$B$32)/(('Sheet1 select'!$B$10-'Sheet1 select'!$B$23)/('Sheet1 select'!$B$27+'Sheet1 select'!$B$8)))+(('Sheet1 select'!$B$33+0.5*'Sheet1 select'!$B$32)/(('Sheet1 select'!$B$23)/('Sheet1 select'!$B$27+'Sheet1 select'!$B$9)))) -> 0.02981559795 | L87: =(F87*$B$29)*(('Sheet1 select'!$B$12+'Sheet1 select'!$B$13)*(0.000000001))*$B$9*1000 -> 0 | M87: 0.000259124321 | N87: =$B$11*'Sheet1 select'!$B$29*0.001 -> 0.024 | O87: ='Sheet1 select'!$B$10*'Sheet1 select'!$B$31*$B$9*1000*0.000000001 -> 0.0408 | P87: ='Sheet1 select'!$B$35*$B$11*$B$9*1000*0.000000001 -> 0 | Q87: =IF('Sheet1 select'!$B$17=0,0,(0.00000006*0.7+0.00000003*(0.7+F87*1.1*'Sheet1 select'!$B$26))*F87*$B$9*1000) -> 0 | R87: 0.2606238181 | S87: 0.8776772249 | T87: =H87+K87+O87+N87+'Sheet1 select'!$B$40*I87+J87+P87 -> 0.2346758049
E88: 86 | F88: 0.5733333333 | G88: 0.02629688889 | H88: =F88*F88*('Sheet1 select'!$B$25)*$B$4 -> 0.004591361988 | I88: =F88*(1-$B$4)*'Sheet1 select'!$B$41 -> 0.13717 | J88: =F88*F88*('Sheet1 select'!$B$26)*(1-$B$4) -> 0 | K88: =0.0000005*$B$11*F88*$B$9*((('Sheet1 select'!$B$33+0.5*'Sheet1 select'!$B$32)/(('Sheet1 select'!$B$10-'Sheet1 select'!$B$23)/('Sheet1 select'!$B$27+'Sheet1 select'!$B$8)))+(('Sheet1 select'!$B$33+0.5*'Sheet1 select'!$B$32)/(('Sheet1 select'!$B$23)/('Sheet1 select'!$B$27+'Sheet1 select'!$B$9)))) -> 0.03016636969 | L88: =(F88*$B$29)*(('Sheet1 select'!$B$12+'Sheet1 select'!$B$13)*(0.000000001))*$B$9*1000 -> 0 | M88: 0.000259124321 | N88: =$B$11*'Sheet1 select'!$B$29*0.001 -> 0.024 | O88: ='Sheet1 select'!$B$10*'Sheet1 select'!$B$31*$B$9*1000*0.000000001 -> 0.0408 | P88: ='Sheet1 select'!$B$35*$B$11*$B$9*1000*0.000000001 -> 0 | Q88: =IF('Sheet1 select'!$B$17=0,0,(0.00000006*0.7+0.00000003*(0.7+F88*1.1*'Sheet1 select'!$B$26))*F88*$B$9*1000) -> 0 | R88: 0.2632837449 | S88: 0.8778426527 | T88: =H88+K88+O88+N88+'Sheet1 select'!$B$40*I88+J88+P88 -> 0.2367277317
E89: 87 | F89: 0.58 | G89: 0.026912 | H89: =F89*F89*('Sheet1 select'!$B$25)*$B$4 -> 0.004698758638 | I89: =F89*(1-$B$4)*'Sheet1 select'!$B$41 -> 0.138765 | J89: =F89*F89*('Sheet1 select'!$B$26)*(1-$B$4) -> 0 | K89: =0.0000005*$B$11*F89*$B$9*((('Sheet1 select'!$B$33+0.5*'Sheet1 select'!$B$32)/(('Sheet1 select'!$B$10-'Sheet1 select'!$B$23)/('Sheet1 select'!$B$27+'Sheet1 select'!$B$8)))+(('Sheet1 select'!$B$33+0.5*'Sheet1 select'!$B$32)/(('Sheet1 select'!$B$23)/('Sheet1 select'!$B$27+'Sheet1 select'!$B$9)))) -> 0.03051714143 | L89: =(F89*$B$29)*(('Sheet1 select'!$B$12+'Sheet1 select'!$B$13)*(0.000000001))*$B$9*1000 -> 0 | M89: 0.000259124321 | N89: =$B$11*'Sheet1 select'!$B$29*0.001 -> 0.024 | O89: ='Sheet1 select'!$B$10*'Sheet1 select'!$B$31*$B$9*1000*0.000000001 -> 0.0408 | P89: ='Sheet1 select'!$B$35*$B$11*$B$9*1000*0.000000001 -> 0 | Q89: =IF('Sheet1 select'!$B$17=0,0,(0.00000006*0.7+0.00000003*(0.7+F89*1.1*'Sheet1 select'!$B$26))*F89*$B$9*1000) -> 0 | R89: 0.2659520244 | S89: 0.8780009737 | T89: =H89+K89+O89+N89+'Sheet1 select'!$B$40*I89+J89+P89 -> 0.2387809001
E90: 88 | F90: 0.5866666667 | G90: 0.02753422222 | H90: =F90*F90*('Sheet1 select'!$B$25)*$B$4 -> 0.004807396868 | I90: =F90*(1-$B$4)*'Sheet1 select'!$B$41 -> 0.14036 | J90: =F90*F90*('Sheet1 select'!$B$26)*(1-$B$4) -> 0 | K90: =0.0000005*$B$11*F90*$B$9*((('Sheet1 select'!$B$33+0.5*'Sheet1 select'!$B$32)/(('Sheet1 select'!$B$10-'Sheet1 select'!$B$23)/('Sheet1 select'!$B$27+'Sheet1 select'!$B$8)))+(('Sheet1 select'!$B$33+0.5*'Sheet1 select'!$B$32)/(('Sheet1 select'!$B$23)/('Sheet1 select'!$B$27+'Sheet1 select'!$B$9)))) -> 0.03086791317 | L90: =(F90*$B$29)*(('Sheet1 select'!$B$12+'Sheet1 select'!$B$13)*(0.000000001))*$B$9*1000 -> 0 | M90: 0.000259124321 | N90: =$B$11*'Sheet1 select'!$B$29*0.001 -> 0.024 | O90: ='Sheet1 select'!$B$10*'Sheet1 select'!$B$31*$B$9*1000*0.000000001 -> 0.0408 | P90: ='Sheet1 select'!$B$35*$B$11*$B$9*1000*0.000000001 -> 0 | Q90: =IF('Sheet1 select'!$B$17=0,0,(0.00000006*0.7+0.00000003*(0.7+F90*1.1*'Sheet1 select'!$B$26))*F90*$B$9*1000) -> 0 | R90: 0.2686286566 | S90: 0.8781524245 | T90: =H90+K90+O90+N90+'Sheet1 select'!$B$40*I90+J90+P90 -> 0.24083531
E91: 89 | F91: 0.5933333333 | G91: 0.02816355556 | H91: =F91*F91*('Sheet1 select'!$B$25)*$B$4 -> 0.004917276677 | I91: =F91*(1-$B$4)*'Sheet1 select'!$B$41 -> 0.141955 | J91: =F91*F91*('Sheet1 select'!$B$26)*(1-$B$4) -> 0 | K91: =0.0000005*$B$11*F91*$B$9*((('Sheet1 select'!$B$33+0.5*'Sheet1 select'!$B$32)/(('Sheet1 select'!$B$10-'Sheet1 select'!$B$23)/('Sheet1 select'!$B$27+'Sheet1 select'!$B$8)))+(('Sheet1 select'!$B$33+0.5*'Sheet1 select'!$B$32)/(('Sheet1 select'!$B$23)/('Sheet1 select'!$B$27+'Sheet1 select'!$B$9)))) -> 0.03121868491 | L91: =(F91*$B$29)*(('Sheet1 select'!$B$12+'Sheet1 select'!$B$13)*(0.000000001))*$B$9*1000 -> 0 | M91: 0.000259124321 | N91: =$B$11*'Sheet1 select'!$B$29*0.001 -> 0.024 | O91: ='Sheet1 select'!$B$10*'Sheet1 select'!$B$31*$B$9*1000*0.000000001 -> 0.0408 | P91: ='Sheet1 select'!$B$35*$B$11*$B$9*1000*0.000000001 -> 0 | Q91: =IF('Sheet1 select'!$B$17=0,0,(0.00000006*0.7+0.00000003*(0.7+F91*1.1*'Sheet1 select'!$B$26))*F91*$B$9*1000) -> 0 | R91: 0.2713136415 | S91: 0.8782972317 | T91: =H91+K91+O91+N91+'Sheet1 select'!$B$40*I91+J91+P91 -> 0.2428909616
E92: 90 | F92: 0.6 | G92: 0.0288 | H92: =F92*F92*('Sheet1 select'!$B$25)*$B$4 -> 0.005028398066 | I92: =F92*(1-$B$4)*'Sheet1 select'!$B$41 -> 0.14355 | J92: =F92*F92*('Sheet1 select'!$B$26)*(1-$B$4) -> 0 | K92: =0.0000005*$B$11*F92*$B$9*((('Sheet1 select'!$B$33+0.5*'Sheet1 select'!$B$32)/(('Sheet1 select'!$B$10-'Sheet1 select'!$B$23)/('Sheet1 select'!$B$27+'Sheet1 select'!$B$8)))+(('Sheet1 select'!$B$33+0.5*'Sheet1 select'!$B$32)/(('Sheet1 select'!$B$23)/('Sheet1 select'!$B$27+'Sheet1 select'!$B$9)))) -> 0.03156945665 | L92: =(F92*$B$29)*(('Sheet1 select'!$B$12+'Sheet1 select'!$B$13)*(0.000000001))*$B$9*1000 -> 0 | M92: 0.000259124321 | N92: =$B$11*'Sheet1 select'!$B$29*0.001 -> 0.024 | O92: ='Sheet1 select'!$B$10*'Sheet1 select'!$B$31*$B$9*1000*0.000000001 -> 0.0408 | P92: ='Sheet1 select'!$B$35*$B$11*$B$9*1000*0.000000001 -> 0 | Q92: =IF('Sheet1 select'!$B$17=0,0,(0.00000006*0.7+0.00000003*(0.7+F92*1.1*'Sheet1 select'!$B$26))*F92*$B$9*1000) -> 0 | R92: 0.274006979 | S92: 0.878435612 | T92: =H92+K92+O92+N92+'Sheet1 select'!$B$40*I92+J92+P92 -> 0.2449478547
E93: 91 | F93: 0.6066666667 | G93: 0.02944355556 | H93: =F93*F93*('Sheet1 select'!$B$25)*$B$4 -> 0.005140761036 | I93: =F93*(1-$B$4)*'Sheet1 select'!$B$41 -> 0.145145 | J93: =F93*F93*('Sheet1 select'!$B$26)*(1-$B$4) -> 0 | K93: =0.0000005*$B$11*F93*$B$9*((('Sheet1 select'!$B$33+0.5*'Sheet1 select'!$B$32)/(('Sheet1 select'!$B$10-'Sheet1 select'!$B$23)/('Sheet1 select'!$B$27+'Sheet1 select'!$B$8)))+(('Sheet1 select'!$B$33+0.5*'Sheet1 select'!$B$32)/(('Sheet1 select'!$B$23)/('Sheet1 select'!$B$27+'Sheet1 select'!$B$9)))) -> 0.03192022839 | L93: =(F93*$B$29)*(('Sheet1 select'!$B$12+'Sheet1 select'!$B$13)*(0.000000001))*$B$9*1000 -> 0 | M93: 0.000259124321 | N93: =$B$11*'Sheet1 select'!$B$29*0.001 -> 0.024 | O93: ='Sheet1 select'!$B$10*'Sheet1 select'!$B$31*$B$9*1000*0.000000001 -> 0.0408 | P93: ='Sheet1 select'!$B$35*$B$11*$B$9*1000*0.000000001 -> 0 | Q93: =IF('Sheet1 select'!$B$17=0,0,(0.00000006*0.7+0.00000003*(0.7+F93*1.1*'Sheet1 select'!$B$26))*F93*$B$9*1000) -> 0 | R93: 0.2767086693 | S93: 0.8785677726 | T93: =H93+K93+O93+N93+'Sheet1 select'!$B$40*I93+J93+P93 -> 0.2470059894
E94: 92 | F94: 0.6133333333 | G94: 0.03009422222 | H94: =F94*F94*('Sheet1 select'!$B$25)*$B$4 -> 0.005254365585 | I94: =F94*(1-$B$4)*'Sheet1 select'!$B$41 -> 0.14674 | J94: =F94*F94*('Sheet1 select'!$B$26)*(1-$B$4) -> 0 | K94: =0.0000005*$B$11*F94*$B$9*((('Sheet1 select'!$B$33+0.5*'Sheet1 select'!$B$32)/(('Sheet1 select'!$B$10-'Sheet1 select'!$B$23)/('Sheet1 select'!$B$27+'Sheet1 select'!$B$8)))+(('Sheet1 select'!$B$33+0.5*'Sheet1 select'!$B$32)/(('Sheet1 select'!$B$23)/('Sheet1 select'!$B$27+'Sheet1 select'!$B$9)))) -> 0.03227100013 | L94: =(F94*$B$29)*(('Sheet1 select'!$B$12+'Sheet1 select'!$B$13)*(0.000000001))*$B$9*1000 -> 0 | M94: 0.000259124321 | N94: =$B$11*'Sheet1 select'!$B$29*0.001 -> 0.024 | O94: ='Sheet1 select'!$B$10*'Sheet1 select'!$B$31*$B$9*1000*0.000000001 -> 0.0408 | P94: ='Sheet1 select'!$B$35*$B$11*$B$9*1000*0.000000001 -> 0 | Q94: =IF('Sheet1 select'!$B$17=0,0,(0.00000006*0.7+0.00000003*(0.7+F94*1.1*'Sheet1 select'!$B$26))*F94*$B$9*1000) -> 0 | R94: 0.2794187123 | S94: 0.8786939123 | T94: =H94+K94+O94+N94+'Sheet1 select'!$B$40*I94+J94+P94 -> 0.2490653657
E95: 93 | F95: 0.62 | G95: 0.030752 | H95: =F95*F95*('Sheet1 select'!$B$25)*$B$4 -> 0.005369211713 | I95: =F95*(1-$B$4)*'Sheet1 select'!$B$41 -> 0.148335 | J95: =F95*F95*('Sheet1 select'!$B$26)*(1-$B$4) -> 0 | K95: =0.0000005*$B$11*F95*$B$9*((('Sheet1 select'!$B$33+0.5*'Sheet1 select'!$B$32)/(('Sheet1 select'!$B$10-'Sheet1 select'!$B$23)/('Sheet1 select'!$B$27+'Sheet1 select'!$B$8)))+(('Sheet1 select'!$B$33+0.5*'Sheet1 select'!$B$32)/(('Sheet1 select'!$B$23)/('Sheet1 select'!$B$27+'Sheet1 select'!$B$9)))) -> 0.03262177187 | L95: =(F95*$B$29)*(('Sheet1 select'!$B$12+'Sheet1 select'!$B$13)*(0.000000001))*$B$9*1000 -> 0 | M95: 0.000259124321 | N95: =$B$11*'Sheet1 select'!$B$29*0.001 -> 0.024 | O95: ='Sheet1 select'!$B$10*'Sheet1 select'!$B$31*$B$9*1000*0.000000001 -> 0.0408 | P95: ='Sheet1 select'!$B$35*$B$11*$B$9*1000*0.000000001 -> 0 | Q95: =IF('Sheet1 select'!$B$17=0,0,(0.00000006*0.7+0.00000003*(0.7+F95*1.1*'Sheet1 select'!$B$26))*F95*$B$9*1000) -> 0 | R95: 0.2821371079 | S95: 0.8788142215 | T95: =H95+K95+O95+N95+'Sheet1 select'!$B$40*I95+J95+P95 -> 0.2511259836
E96: 94 | F96: 0.6266666667 | G96: 0.03141688889 | H96: =F96*F96*('Sheet1 select'!$B$25)*$B$4 -> 0.005485299422 | I96: =F96*(1-$B$4)*'Sheet1 select'!$B$41 -> 0.14993 | J96: =F96*F96*('Sheet1 select'!$B$26)*(1-$B$4) -> 0 | K96: =0.0000005*$B$11*F96*$B$9*((('Sheet1 select'!$B$33+0.5*'Sheet1 select'!$B$32)/(('Sheet1 select'!$B$10-'Sheet1 select'!$B$23)/('Sheet1 select'!$B$27+'Sheet1 select'!$B$8)))+(('Sheet1 select'!$B$33+0.5*'Sheet1 select'!$B$32)/(('Sheet1 select'!$B$23)/('Sheet1 select'!$B$27+'Sheet1 select'!$B$9)))) -> 0.03297254361 | L96: =(F96*$B$29)*(('Sheet1 select'!$B$12+'Sheet1 select'!$B$13)*(0.000000001))*$B$9*1000 -> 0 | M96: 0.000259124321 | N96: =$B$11*'Sheet1 select'!$B$29*0.001 -> 0.024 | O96: ='Sheet1 select'!$B$10*'Sheet1 select'!$B$31*$B$9*1000*0.000000001 -> 0.0408 | P96: ='Sheet1 select'!$B$35*$B$11*$B$9*1000*0.000000001 -> 0 | Q96: =IF('Sheet1 select'!$B$17=0,0,(0.00000006*0.7+0.00000003*(0.7+F96*1.1*'Sheet1 select'!$B$26))*F96*$B$9*1000) -> 0 | R96: 0.2848638562 | S96: 0.8789288826 | T96: =H96+K96+O96+N96+'Sheet1 select'!$B$40*I96+J96+P96 -> 0.253187843
E97: 95 | F97: 0.6333333333 | G97: 0.03208888889 | H97: =F97*F97*('Sheet1 select'!$B$25)*$B$4 -> 0.00560262871 | I97: =F97*(1-$B$4)*'Sheet1 select'!$B$41 -> 0.151525 | J97: =F97*F97*('Sheet1 select'!$B$26)*(1-$B$4) -> 0 | K97: =0.0000005*$B$11*F97*$B$9*((('Sheet1 select'!$B$33+0.5*'Sheet1 select'!$B$32)/(('Sheet1 select'!$B$10-'Sheet1 select'!$B$23)/('Sheet1 select'!$B$27+'Sheet1 select'!$B$8)))+(('Sheet1 select'!$B$33+0.5*'Sheet1 select'!$B$32)/(('Sheet1 select'!$B$23)/('Sheet1 select'!$B$27+'Sheet1 select'!$B$9)))) -> 0.03332331535 | L97: =(F97*$B$29)*(('Sheet1 select'!$B$12+'Sheet1 select'!$B$13)*(0.000000001))*$B$9*1000 -> 0 | M97: 0.000259124321 | N97: =$B$11*'Sheet1 select'!$B$29*0.001 -> 0.024 | O97: ='Sheet1 select'!$B$10*'Sheet1 select'!$B$31*$B$9*1000*0.000000001 -> 0.0408 | P97: ='Sheet1 select'!$B$35*$B$11*$B$9*1000*0.000000001 -> 0 | Q97: =IF('Sheet1 select'!$B$17=0,0,(0.00000006*0.7+0.00000003*(0.7+F97*1.1*'Sheet1 select'!$B$26))*F97*$B$9*1000) -> 0 | R97: 0.2875989573 | S97: 0.8790380706 | T97: =H97+K97+O97+N97+'Sheet1 select'!$B$40*I97+J97+P97 -> 0.2552509441
E98: 96 | F98: 0.64 | G98: 0.032768 | H98: =F98*F98*('Sheet1 select'!$B$25)*$B$4 -> 0.005721199578 | I98: =F98*(1-$B$4)*'Sheet1 select'!$B$41 -> 0.15312 | J98: =F98*F98*('Sheet1 select'!$B$26)*(1-$B$4) -> 0 | K98: =0.0000005*$B$11*F98*$B$9*((('Sheet1 select'!$B$33+0.5*'Sheet1 select'!$B$32)/(('Sheet1 select'!$B$10-'Sheet1 select'!$B$23)/('Sheet1 select'!$B$27+'Sheet1 select'!$B$8)))+(('Sheet1 select'!$B$33+0.5*'Sheet1 select'!$B$32)/(('Sheet1 select'!$B$23)/('Sheet1 select'!$B$27+'Sheet1 select'!$B$9)))) -> 0.03367408709 | L98: =(F98*$B$29)*(('Sheet1 select'!$B$12+'Sheet1 select'!$B$13)*(0.000000001))*$B$9*1000 -> 0 | M98: 0.000259124321 | N98: =$B$11*'Sheet1 select'!$B$29*0.001 -> 0.024 | O98: ='Sheet1 select'!$B$10*'Sheet1 select'!$B$31*$B$9*1000*0.000000001 -> 0.0408 | P98: ='Sheet1 select'!$B$35*$B$11*$B$9*1000*0.000000001 -> 0 | Q98: =IF('Sheet1 select'!$B$17=0,0,(0.00000006*0.7+0.00000003*(0.7+F98*1.1*'Sheet1 select'!$B$26))*F98*$B$9*1000) -> 0 | R98: 0.290342411 | S98: 0.8791419534 | T98: =H98+K98+O98+N98+'Sheet1 select'!$B$40*I98+J98+P98 -> 0.2573152867
E99: 97 | F99: 0.6466666667 | G99: 0.03345422222 | H99: =F99*F99*('Sheet1 select'!$B$25)*$B$4 -> 0.005841012026 | I99: =F99*(1-$B$4)*'Sheet1 select'!$B$41 -> 0.154715 | J99: =F99*F99*('Sheet1 select'!$B$26)*(1-$B$4) -> 0 | K99: =0.0000005*$B$11*F99*$B$9*((('Sheet1 select'!$B$33+0.5*'Sheet1 select'!$B$32)/(('Sheet1 select'!$B$10-'Sheet1 select'!$B$23)/('Sheet1 select'!$B$27+'Sheet1 select'!$B$8)))+(('Sheet1 select'!$B$33+0.5*'Sheet1 select'!$B$32)/(('Sheet1 select'!$B$23)/('Sheet1 select'!$B$27+'Sheet1 select'!$B$9)))) -> 0.03402485884 | L99: =(F99*$B$29)*(('Sheet1 select'!$B$12+'Sheet1 select'!$B$13)*(0.000000001))*$B$9*1000 -> 0 | M99: 0.000259124321 | N99: =$B$11*'Sheet1 select'!$B$29*0.001 -> 0.024 | O99: ='Sheet1 select'!$B$10*'Sheet1 select'!$B$31*$B$9*1000*0.000000001 -> 0.0408 | P99: ='Sheet1 select'!$B$35*$B$11*$B$9*1000*0.000000001 -> 0 | Q99: =IF('Sheet1 select'!$B$17=0,0,(0.00000006*0.7+0.00000003*(0.7+F99*1.1*'Sheet1 select'!$B$26))*F99*$B$9*1000) -> 0 | R99: 0.2930942174 | S99: 0.8792406923 | T99: =H99+K99+O99+N99+'Sheet1 select'!$B$40*I99+J99+P99 -> 0.2593808709
E100: 98 | F100: 0.6533333333 | G100: 0.03414755556 | H100: =F100*F100*('Sheet1 select'!$B$25)*$B$4 -> 0.005962066053 | I100: =F100*(1-$B$4)*'Sheet1 select'!$B$41 -> 0.15631 | J100: =F100*F100*('Sheet1 select'!$B$26)*(1-$B$4) -> 0 | K100: =0.0000005*$B$11*F100*$B$9*((('Sheet1 select'!$B$33+0.5*'Sheet1 select'!$B$32)/(('Sheet1 select'!$B$10-'Sheet1 select'!$B$23)/('Sheet1 select'!$B$27+'Sheet1 select'!$B$8)))+(('Sheet1 select'!$B$33+0.5*'Sheet1 select'!$B$32)/(('Sheet1 select'!$B$23)/('Sheet1 select'!$B$27+'Sheet1 select'!$B$9)))) -> 0.03437563058 | L100: =(F100*$B$29)*(('Sheet1 select'!$B$12+'Sheet1 select'!$B$13)*(0.000000001))*$B$9*1000 -> 0 | M100: 0.000259124321 | N100: =$B$11*'Sheet1 select'!$B$29*0.001 -> 0.024 | O100: ='Sheet1 select'!$B$10*'Sheet1 select'!$B$31*$B$9*1000*0.000000001 -> 0.0408 | P100: ='Sheet1 select'!$B$35*$B$11*$B$9*1000*0.000000001 -> 0 | Q100: =IF('Sheet1 select'!$B$17=0,0,(0.00000006*0.7+0.00000003*(0.7+F100*1.1*'Sheet1 select'!$B$26))*F100*$B$9*1000) -> 0 | R100: 0.2958543765 | S100: 0.879334442 | T100: =H100+K100+O100+N100+'Sheet1 select'!$B$40*I100+J100+P100 -> 0.2614476966
E101: 99 | F101: 0.66 | G101: 0.034848 | H101: =F101*F101*('Sheet1 select'!$B$25)*$B$4 -> 0.00608436166 | I101: =F101*(1-$B$4)*'Sheet1 select'!$B$41 -> 0.157905 | J101: =F101*F101*('Sheet1 select'!$B$26)*(1-$B$4) -> 0 | K101: =0.0000005*$B$11*F101*$B$9*((('Sheet1 select'!$B$33+0.5*'Sheet1 select'!$B$32)/(('Sheet1 select'!$B$10-'Sheet1 select'!$B$23)/('Sheet1 select'!$B$27+'Sheet1 select'!$B$8)))+(('Sheet1 select'!$B$33+0.5*'Sheet1 select'!$B$32)/(('Sheet1 select'!$B$23)/('Sheet1 select'!$B$27+'Sheet1 select'!$B$9)))) -> 0.03472640232 | L101: =(F101*$B$29)*(('Sheet1 select'!$B$12+'Sheet1 select'!$B$13)*(0.000000001))*$B$9*1000 -> 0 | M101: 0.000259124321 | N101: =$B$11*'Sheet1 select'!$B$29*0.001 -> 0.024 | O101: ='Sheet1 select'!$B$10*'Sheet1 select'!$B$31*$B$9*1000*0.000000001 -> 0.0408 | P101: ='Sheet1 select'!$B$35*$B$11*$B$9*1000*0.000000001 -> 0 | Q101: =IF('Sheet1 select'!$B$17=0,0,(0.00000006*0.7+0.00000003*(0.7+F101*1.1*'Sheet1 select'!$B$26))*F101*$B$9*1000) -> 0 | R101: 0.2986228883 | S101: 0.8794233512 | T101: =H101+K101+O101+N101+'Sheet1 select'!$B$40*I101+J101+P101 -> 0.263515764
E102: 100 | F102: 0.6666666667 | G102: 0.03555555556 | H102: =F102*F102*('Sheet1 select'!$B$25)*$B$4 -> 0.006207898847 | I102: =F102*(1-$B$4)*'Sheet1 select'!$B$41 -> 0.1595 | J102: =F102*F102*('Sheet1 select'!$B$26)*(1-$B$4) -> 0 | K102: =0.0000005*$B$11*F102*$B$9*((('Sheet1 select'!$B$33+0.5*'Sheet1 select'!$B$32)/(('Sheet1 select'!$B$10-'Sheet1 select'!$B$23)/('Sheet1 select'!$B$27+'Sheet1 select'!$B$8)))+(('Sheet1 select'!$B$33+0.5*'Sheet1 select'!$B$32)/(('Sheet1 select'!$B$23)/('Sheet1 select'!$B$27+'Sheet1 select'!$B$9)))) -> 0.03507717406 | L102: =(F102*$B$29)*(('Sheet1 select'!$B$12+'Sheet1 select'!$B$13)*(0.000000001))*$B$9*1000 -> 0 | M102: 0.000259124321 | N102: =$B$11*'Sheet1 select'!$B$29*0.001 -> 0.024 | O102: ='Sheet1 select'!$B$10*'Sheet1 select'!$B$31*$B$9*1000*0.000000001 -> 0.0408 | P102: ='Sheet1 select'!$B$35*$B$11*$B$9*1000*0.000000001 -> 0 | Q102: =IF('Sheet1 select'!$B$17=0,0,(0.00000006*0.7+0.00000003*(0.7+F102*1.1*'Sheet1 select'!$B$26))*F102*$B$9*1000) -> 0 | R102: 0.3013997528 | S102: 0.8795075627 | T102: =H102+K102+O102+N102+'Sheet1 select'!$B$40*I102+J102+P102 -> 0.2655850729
E103: 101 | F103: 0.6733333333 | G103: 0.03627022222 | H103: =F103*F103*('Sheet1 select'!$B$25)*$B$4 -> 0.006332677614 | I103: =F103*(1-$B$4)*'Sheet1 select'!$B$41 -> 0.161095 | J103: =F103*F103*('Sheet1 select'!$B$26)*(1-$B$4) -> 0 | K103: =0.0000005*$B$11*F103*$B$9*((('Sheet1 select'!$B$33+0.5*'Sheet1 select'!$B$32)/(('Sheet1 select'!$B$10-'Sheet1 select'!$B$23)/('Sheet1 select'!$B$27+'Sheet1 select'!$B$8)))+(('Sheet1 select'!$B$33+0.5*'Sheet1 select'!$B$32)/(('Sheet1 select'!$B$23)/('Sheet1 select'!$B$27+'Sheet1 select'!$B$9)))) -> 0.0354279458 | L103: =(F103*$B$29)*(('Sheet1 select'!$B$12+'Sheet1 select'!$B$13)*(0.000000001))*$B$9*1000 -> 0 | M103: 0.000259124321 | N103: =$B$11*'Sheet1 select'!$B$29*0.001 -> 0.024 | O103: ='Sheet1 select'!$B$10*'Sheet1 select'!$B$31*$B$9*1000*0.000000001 -> 0.0408 | P103: ='Sheet1 select'!$B$35*$B$11*$B$9*1000*0.000000001 -> 0 | Q103: =IF('Sheet1 select'!$B$17=0,0,(0.00000006*0.7+0.00000003*(0.7+F103*1.1*'Sheet1 select'!$B$26))*F103*$B$9*1000) -> 0 | R103: 0.30418497 | S103: 0.8795872141 | T103: =H103+K103+O103+N103+'Sheet1 select'!$B$40*I103+J103+P103 -> 0.2676556234
E104: 102 | F104: 0.68 | G104: 0.036992 | H104: =F104*F104*('Sheet1 select'!$B$25)*$B$4 -> 0.006458697961 | I104: =F104*(1-$B$4)*'Sheet1 select'!$B$41 -> 0.16269 | J104: =F104*F104*('Sheet1 select'!$B$26)*(1-$B$4) -> 0 | K104: =0.0000005*$B$11*F104*$B$9*((('Sheet1 select'!$B$33+0.5*'Sheet1 select'!$B$32)/(('Sheet1 select'!$B$10-'Sheet1 select'!$B$23)/('Sheet1 select'!$B$27+'Sheet1 select'!$B$8)))+(('Sheet1 select'!$B$33+0.5*'Sheet1 select'!$B$32)/(('Sheet1 select'!$B$23)/('Sheet1 select'!$B$27+'Sheet1 select'!$B$9)))) -> 0.03577871754 | L104: =(F104*$B$29)*(('Sheet1 select'!$B$12+'Sheet1 select'!$B$13)*(0.000000001))*$B$9*1000 -> 0 | M104: 0.000259124321 | N104: =$B$11*'Sheet1 select'!$B$29*0.001 -> 0.024 | O104: ='Sheet1 select'!$B$10*'Sheet1 select'!$B$31*$B$9*1000*0.000000001 -> 0.0408 | P104: ='Sheet1 select'!$B$35*$B$11*$B$9*1000*0.000000001 -> 0 | Q104: =IF('Sheet1 select'!$B$17=0,0,(0.00000006*0.7+0.00000003*(0.7+F104*1.1*'Sheet1 select'!$B$26))*F104*$B$9*1000) -> 0 | R104: 0.3069785398 | S104: 0.8796624374 | T104: =H104+K104+O104+N104+'Sheet1 select'!$B$40*I104+J104+P104 -> 0.2697274155
E105: 103 | F105: 0.6866666667 | G105: 0.03772088889 | H105: =F105*F105*('Sheet1 select'!$B$25)*$B$4 -> 0.006585959887 | I105: =F105*(1-$B$4)*'Sheet1 select'!$B$41 -> 0.164285 | J105: =F105*F105*('Sheet1 select'!$B$26)*(1-$B$4) -> 0 | K105: =0.0000005*$B$11*F105*$B$9*((('Sheet1 select'!$B$33+0.5*'Sheet1 select'!$B$32)/(('Sheet1 select'!$B$10-'Sheet1 select'!$B$23)/('Sheet1 select'!$B$27+'Sheet1 select'!$B$8)))+(('Sheet1 select'!$B$33+0.5*'Sheet1 select'!$B$32)/(('Sheet1 select'!$B$23)/('Sheet1 select'!$B$27+'Sheet1 select'!$B$9)))) -> 0.03612948928 | L105: =(F105*$B$29)*(('Sheet1 select'!$B$12+'Sheet1 select'!$B$13)*(0.000000001))*$B$9*1000 -> 0 | M105: 0.000259124321 | N105: =$B$11*'Sheet1 select'!$B$29*0.001 -> 0.024 | O105: ='Sheet1 select'!$B$10*'Sheet1 select'!$B$31*$B$9*1000*0.000000001 -> 0.0408 | P105: ='Sheet1 select'!$B$35*$B$11*$B$9*1000*0.000000001 -> 0 | Q105: =IF('Sheet1 select'!$B$17=0,0,(0.00000006*0.7+0.00000003*(0.7+F105*1.1*'Sheet1 select'!$B$26))*F105*$B$9*1000) -> 0 | R105: 0.3097804624 | S105: 0.8797333597 | T105: =H105+K105+O105+N105+'Sheet1 select'!$B$40*I105+J105+P105 -> 0.2718004492
E106: 104 | F106: 0.6933333333 | G106: 0.03845688889 | H106: =F106*F106*('Sheet1 select'!$B$25)*$B$4 -> 0.006714463393 | I106: =F106*(1-$B$4)*'Sheet1 select'!$B$41 -> 0.16588 | J106: =F106*F106*('Sheet1 select'!$B$26)*(1-$B$4) -> 0 | K106: =0.0000005*$B$11*F106*$B$9*((('Sheet1 select'!$B$33+0.5*'Sheet1 select'!$B$32)/(('Sheet1 select'!$B$10-'Sheet1 select'!$B$23)/('Sheet1 select'!$B$27+'Sheet1 select'!$B$8)))+(('Sheet1 select'!$B$33+0.5*'Sheet1 select'!$B$32)/(('Sheet1 select'!$B$23)/('Sheet1 select'!$B$27+'Sheet1 select'!$B$9)))) -> 0.03648026102 | L106: =(F106*$B$29)*(('Sheet1 select'!$B$12+'Sheet1 select'!$B$13)*(0.000000001))*$B$9*1000 -> 0 | M106: 0.000259124321 | N106: =$B$11*'Sheet1 select'!$B$29*0.001 -> 0.024 | O106: ='Sheet1 select'!$B$10*'Sheet1 select'!$B$31*$B$9*1000*0.000000001 -> 0.0408 | P106: ='Sheet1 select'!$B$35*$B$11*$B$9*1000*0.000000001 -> 0 | Q106: =IF('Sheet1 select'!$B$17=0,0,(0.00000006*0.7+0.00000003*(0.7+F106*1.1*'Sheet1 select'!$B$26))*F106*$B$9*1000) -> 0 | R106: 0.3125907376 | S106: 0.8798001035 | T106: =H106+K106+O106+N106+'Sheet1 select'!$B$40*I106+J106+P106 -> 0.2738747244
E107: 105 | F107: 0.7 | G107: 0.0392 | H107: =F107*F107*('Sheet1 select'!$B$25)*$B$4 -> 0.006844208479 | I107: =F107*(1-$B$4)*'Sheet1 select'!$B$41 -> 0.167475 | J107: =F107*F107*('Sheet1 select'!$B$26)*(1-$B$4) -> 0 | K107: =0.0000005*$B$11*F107*$B$9*((('Sheet1 select'!$B$33+0.5*'Sheet1 select'!$B$32)/(('Sheet1 select'!$B$10-'Sheet1 select'!$B$23)/('Sheet1 select'!$B$27+'Sheet1 select'!$B$8)))+(('Sheet1 select'!$B$33+0.5*'Sheet1 select'!$B$32)/(('Sheet1 select'!$B$23)/('Sheet1 select'!$B$27+'Sheet1 select'!$B$9)))) -> 0.03683103276 | L107: =(F107*$B$29)*(('Sheet1 select'!$B$12+'Sheet1 select'!$B$13)*(0.000000001))*$B$9*1000 -> 0 | M107: 0.000259124321 | N107: =$B$11*'Sheet1 select'!$B$29*0.001 -> 0.024 | O107: ='Sheet1 select'!$B$10*'Sheet1 select'!$B$31*$B$9*1000*0.000000001 -> 0.0408 | P107: ='Sheet1 select'!$B$35*$B$11*$B$9*1000*0.000000001 -> 0 | Q107: =IF('Sheet1 select'!$B$17=0,0,(0.00000006*0.7+0.00000003*(0.7+F107*1.1*'Sheet1 select'!$B$26))*F107*$B$9*1000) -> 0 | R107: 0.3154093656 | S107: 0.8798627865 | T107: =H107+K107+O107+N107+'Sheet1 select'!$B$40*I107+J107+P107 -> 0.2759502412
E108: 106 | F108: 0.7066666667 | G108: 0.03995022222 | H108: =F108*F108*('Sheet1 select'!$B$25)*$B$4 -> 0.006975195145 | I108: =F108*(1-$B$4)*'Sheet1 select'!$B$41 -> 0.16907 | J108: =F108*F108*('Sheet1 select'!$B$26)*(1-$B$4) -> 0 | K108: =0.0000005*$B$11*F108*$B$9*((('Sheet1 select'!$B$33+0.5*'Sheet1 select'!$B$32)/(('Sheet1 select'!$B$10-'Sheet1 select'!$B$23)/('Sheet1 select'!$B$27+'Sheet1 select'!$B$8)))+(('Sheet1 select'!$B$33+0.5*'Sheet1 select'!$B$32)/(('Sheet1 select'!$B$23)/('Sheet1 select'!$B$27+'Sheet1 select'!$B$9)))) -> 0.0371818045 | L108: =(F108*$B$29)*(('Sheet1 select'!$B$12+'Sheet1 select'!$B$13)*(0.000000001))*$B$9*1000 -> 0 | M108: 0.000259124321 | N108: =$B$11*'Sheet1 select'!$B$29*0.001 -> 0.024 | O108: ='Sheet1 select'!$B$10*'Sheet1 select'!$B$31*$B$9*1000*0.000000001 -> 0.0408 | P108: ='Sheet1 select'!$B$35*$B$11*$B$9*1000*0.000000001 -> 0 | Q108: =IF('Sheet1 select'!$B$17=0,0,(0.00000006*0.7+0.00000003*(0.7+F108*1.1*'Sheet1 select'!$B$26))*F108*$B$9*1000) -> 0 | R108: 0.3182363462 | S108: 0.8799215222 | T108: =H108+K108+O108+N108+'Sheet1 select'!$B$40*I108+J108+P108 -> 0.2780269996
E109: 107 | F109: 0.7133333333 | G109: 0.04070755556 | H109: =F109*F109*('Sheet1 select'!$B$25)*$B$4 -> 0.00710742339 | I109: =F109*(1-$B$4)*'Sheet1 select'!$B$41 -> 0.170665 | J109: =F109*F109*('Sheet1 select'!$B$26)*(1-$B$4) -> 0 | K109: =0.0000005*$B$11*F109*$B$9*((('Sheet1 select'!$B$33+0.5*'Sheet1 select'!$B$32)/(('Sheet1 select'!$B$10-'Sheet1 select'!$B$23)/('Sheet1 select'!$B$27+'Sheet1 select'!$B$8)))+(('Sheet1 select'!$B$33+0.5*'Sheet1 select'!$B$32)/(('Sheet1 select'!$B$23)/('Sheet1 select'!$B$27+'Sheet1 select'!$B$9)))) -> 0.03753257624 | L109: =(F109*$B$29)*(('Sheet1 select'!$B$12+'Sheet1 select'!$B$13)*(0.000000001))*$B$9*1000 -> 0 | M109: 0.000259124321 | N109: =$B$11*'Sheet1 select'!$B$29*0.001 -> 0.024 | O109: ='Sheet1 select'!$B$10*'Sheet1 select'!$B$31*$B$9*1000*0.000000001 -> 0.0408 | P109: ='Sheet1 select'!$B$35*$B$11*$B$9*1000*0.000000001 -> 0 | Q109: =IF('Sheet1 select'!$B$17=0,0,(0.00000006*0.7+0.00000003*(0.7+F109*1.1*'Sheet1 select'!$B$26))*F109*$B$9*1000) -> 0 | R109: 0.3210716795 | S109: 0.8799764201 | T109: =H109+K109+O109+N109+'Sheet1 select'!$B$40*I109+J109+P109 -> 0.2801049996
E110: 108 | F110: 0.72 | G110: 0.041472 | H110: =F110*F110*('Sheet1 select'!$B$25)*$B$4 -> 0.007240893216 | I110: =F110*(1-$B$4)*'Sheet1 select'!$B$41 -> 0.17226 | J110: =F110*F110*('Sheet1 select'!$B$26)*(1-$B$4) -> 0 | K110: =0.0000005*$B$11*F110*$B$9*((('Sheet1 select'!$B$33+0.5*'Sheet1 select'!$B$32)/(('Sheet1 select'!$B$10-'Sheet1 select'!$B$23)/('Sheet1 select'!$B$27+'Sheet1 select'!$B$8)))+(('Sheet1 select'!$B$33+0.5*'Sheet1 select'!$B$32)/(('Sheet1 select'!$B$23)/('Sheet1 select'!$B$27+'Sheet1 select'!$B$9)))) -> 0.03788334798 | L110: =(F110*$B$29)*(('Sheet1 select'!$B$12+'Sheet1 select'!$B$13)*(0.000000001))*$B$9*1000 -> 0 | M110: 0.000259124321 | N110: =$B$11*'Sheet1 select'!$B$29*0.001 -> 0.024 | O110: ='Sheet1 select'!$B$10*'Sheet1 select'!$B$31*$B$9*1000*0.000000001 -> 0.0408 | P110: ='Sheet1 select'!$B$35*$B$11*$B$9*1000*0.000000001 -> 0 | Q110: =IF('Sheet1 select'!$B$17=0,0,(0.00000006*0.7+0.00000003*(0.7+F110*1.1*'Sheet1 select'!$B$26))*F110*$B$9*1000) -> 0 | R110: 0.3239153655 | S110: 0.8800275854 | T110: =H110+K110+O110+N110+'Sheet1 select'!$B$40*I110+J110+P110 -> 0.2821842412
E111: 109 | F111: 0.7266666667 | G111: 0.04224355556 | H111: =F111*F111*('Sheet1 select'!$B$25)*$B$4 -> 0.007375604621 | I111: =F111*(1-$B$4)*'Sheet1 select'!$B$41 -> 0.173855 | J111: =F111*F111*('Sheet1 select'!$B$26)*(1-$B$4) -> 0 | K111: =0.0000005*$B$11*F111*$B$9*((('Sheet1 select'!$B$33+0.5*'Sheet1 select'!$B$32)/(('Sheet1 select'!$B$10-'Sheet1 select'!$B$23)/('Sheet1 select'!$B$27+'Sheet1 select'!$B$8)))+(('Sheet1 select'!$B$33+0.5*'Sheet1 select'!$B$32)/(('Sheet1 select'!$B$23)/('Sheet1 select'!$B$27+'Sheet1 select'!$B$9)))) -> 0.03823411972 | L111: =(F111*$B$29)*(('Sheet1 select'!$B$12+'Sheet1 select'!$B$13)*(0.000000001))*$B$9*1000 -> 0 | M111: 0.000259124321 | N111: =$B$11*'Sheet1 select'!$B$29*0.001 -> 0.024 | O111: ='Sheet1 select'!$B$10*'Sheet1 select'!$B$31*$B$9*1000*0.000000001 -> 0.0408 | P111: ='Sheet1 select'!$B$35*$B$11*$B$9*1000*0.000000001 -> 0 | Q111: =IF('Sheet1 select'!$B$17=0,0,(0.00000006*0.7+0.00000003*(0.7+F111*1.1*'Sheet1 select'!$B$26))*F111*$B$9*1000) -> 0 | R111: 0.3267674042 | S111: 0.8800751199 | T111: =H111+K111+O111+N111+'Sheet1 select'!$B$40*I111+J111+P111 -> 0.2842647243
E112: 110 | F112: 0.7333333333 | G112: 0.04302222222 | H112: =F112*F112*('Sheet1 select'!$B$25)*$B$4 -> 0.007511557605 | I112: =F112*(1-$B$4)*'Sheet1 select'!$B$41 -> 0.17545 | J112: =F112*F112*('Sheet1 select'!$B$26)*(1-$B$4) -> 0 | K112: =0.0000005*$B$11*F112*$B$9*((('Sheet1 select'!$B$33+0.5*'Sheet1 select'!$B$32)/(('Sheet1 select'!$B$10-'Sheet1 select'!$B$23)/('Sheet1 select'!$B$27+'Sheet1 select'!$B$8)))+(('Sheet1 select'!$B$33+0.5*'Sheet1 select'!$B$32)/(('Sheet1 select'!$B$23)/('Sheet1 select'!$B$27+'Sheet1 select'!$B$9)))) -> 0.03858489146 | L112: =(F112*$B$29)*(('Sheet1 select'!$B$12+'Sheet1 select'!$B$13)*(0.000000001))*$B$9*1000 -> 0 | M112: 0.000259124321 | N112: =$B$11*'Sheet1 select'!$B$29*0.001 -> 0.024 | O112: ='Sheet1 select'!$B$10*'Sheet1 select'!$B$31*$B$9*1000*0.000000001 -> 0.0408 | P112: ='Sheet1 select'!$B$35*$B$11*$B$9*1000*0.000000001 -> 0 | Q112: =IF('Sheet1 select'!$B$17=0,0,(0.00000006*0.7+0.00000003*(0.7+F112*1.1*'Sheet1 select'!$B$26))*F112*$B$9*1000) -> 0 | R112: 0.3296277956 | S112: 0.8801191215 | T112: =H112+K112+O112+N112+'Sheet1 select'!$B$40*I112+J112+P112 -> 0.2863464491
E113: 111 | F113: 0.74 | G113: 0.043808 | H113: =F113*F113*('Sheet1 select'!$B$25)*$B$4 -> 0.00764875217 | I113: =F113*(1-$B$4)*'Sheet1 select'!$B$41 -> 0.177045 | J113: =F113*F113*('Sheet1 select'!$B$26)*(1-$B$4) -> 0 | K113: =0.0000005*$B$11*F113*$B$9*((('Sheet1 select'!$B$33+0.5*'Sheet1 select'!$B$32)/(('Sheet1 select'!$B$10-'Sheet1 select'!$B$23)/('Sheet1 select'!$B$27+'Sheet1 select'!$B$8)))+(('Sheet1 select'!$B$33+0.5*'Sheet1 select'!$B$32)/(('Sheet1 select'!$B$23)/('Sheet1 select'!$B$27+'Sheet1 select'!$B$9)))) -> 0.0389356632 | L113: =(F113*$B$29)*(('Sheet1 select'!$B$12+'Sheet1 select'!$B$13)*(0.000000001))*$B$9*1000 -> 0 | M113: 0.000259124321 | N113: =$B$11*'Sheet1 select'!$B$29*0.001 -> 0.024 | O113: ='Sheet1 select'!$B$10*'Sheet1 select'!$B$31*$B$9*1000*0.000000001 -> 0.0408 | P113: ='Sheet1 select'!$B$35*$B$11*$B$9*1000*0.000000001 -> 0 | Q113: =IF('Sheet1 select'!$B$17=0,0,(0.00000006*0.7+0.00000003*(0.7+F113*1.1*'Sheet1 select'!$B$26))*F113*$B$9*1000) -> 0 | R113: 0.3324965397 | S113: 0.8801596849 | T113: =H113+K113+O113+N113+'Sheet1 select'!$B$40*I113+J113+P113 -> 0.2884294154
E114: 112 | F114: 0.7466666667 | G114: 0.04460088889 | H114: =F114*F114*('Sheet1 select'!$B$25)*$B$4 -> 0.007787188314 | I114: =F114*(1-$B$4)*'Sheet1 select'!$B$41 -> 0.17864 | J114: =F114*F114*('Sheet1 select'!$B$26)*(1-$B$4) -> 0 | K114: =0.0000005*$B$11*F114*$B$9*((('Sheet1 select'!$B$33+0.5*'Sheet1 select'!$B$32)/(('Sheet1 select'!$B$10-'Sheet1 select'!$B$23)/('Sheet1 select'!$B$27+'Sheet1 select'!$B$8)))+(('Sheet1 select'!$B$33+0.5*'Sheet1 select'!$B$32)/(('Sheet1 select'!$B$23)/('Sheet1 select'!$B$27+'Sheet1 select'!$B$9)))) -> 0.03928643494 | L114: =(F114*$B$29)*(('Sheet1 select'!$B$12+'Sheet1 select'!$B$13)*(0.000000001))*$B$9*1000 -> 0 | M114: 0.000259124321 | N114: =$B$11*'Sheet1 select'!$B$29*0.001 -> 0.024 | O114: ='Sheet1 select'!$B$10*'Sheet1 select'!$B$31*$B$9*1000*0.000000001 -> 0.0408 | P114: ='Sheet1 select'!$B$35*$B$11*$B$9*1000*0.000000001 -> 0 | Q114: =IF('Sheet1 select'!$B$17=0,0,(0.00000006*0.7+0.00000003*(0.7+F114*1.1*'Sheet1 select'!$B$26))*F114*$B$9*1000) -> 0 | R114: 0.3353736365 | S114: 0.8801969012 | T114: =H114+K114+O114+N114+'Sheet1 select'!$B$40*I114+J114+P114 -> 0.2905136233
E115: 113 | F115: 0.7533333333 | G115: 0.04540088889 | H115: =F115*F115*('Sheet1 select'!$B$25)*$B$4 -> 0.007926866038 | I115: =F115*(1-$B$4)*'Sheet1 select'!$B$41 -> 0.180235 | J115: =F115*F115*('Sheet1 select'!$B$26)*(1-$B$4) -> 0 | K115: =0.0000005*$B$11*F115*$B$9*((('Sheet1 select'!$B$33+0.5*'Sheet1 select'!$B$32)/(('Sheet1 select'!$B$10-'Sheet1 select'!$B$23)/('Sheet1 select'!$B$27+'Sheet1 select'!$B$8)))+(('Sheet1 select'!$B$33+0.5*'Sheet1 select'!$B$32)/(('Sheet1 select'!$B$23)/('Sheet1 select'!$B$27+'Sheet1 select'!$B$9)))) -> 0.03963720668 | L115: =(F115*$B$29)*(('Sheet1 select'!$B$12+'Sheet1 select'!$B$13)*(0.000000001))*$B$9*1000 -> 0 | M115: 0.000259124321 | N115: =$B$11*'Sheet1 select'!$B$29*0.001 -> 0.024 | O115: ='Sheet1 select'!$B$10*'Sheet1 select'!$B$31*$B$9*1000*0.000000001 -> 0.0408 | P115: ='Sheet1 select'!$B$35*$B$11*$B$9*1000*0.000000001 -> 0 | Q115: =IF('Sheet1 select'!$B$17=0,0,(0.00000006*0.7+0.00000003*(0.7+F115*1.1*'Sheet1 select'!$B$26))*F115*$B$9*1000) -> 0 | R115: 0.3382590859 | S115: 0.8802308586 | T115: =H115+K115+O115+N115+'Sheet1 select'!$B$40*I115+J115+P115 -> 0.2925990727
E116: 114 | F116: 0.76 | G116: 0.046208 | H116: =F116*F116*('Sheet1 select'!$B$25)*$B$4 -> 0.008067785342 | I116: =F116*(1-$B$4)*'Sheet1 select'!$B$41 -> 0.18183 | J116: =F116*F116*('Sheet1 select'!$B$26)*(1-$B$4) -> 0 | K116: =0.0000005*$B$11*F116*$B$9*((('Sheet1 select'!$B$33+0.5*'Sheet1 select'!$B$32)/(('Sheet1 select'!$B$10-'Sheet1 select'!$B$23)/('Sheet1 select'!$B$27+'Sheet1 select'!$B$8)))+(('Sheet1 select'!$B$33+0.5*'Sheet1 select'!$B$32)/(('Sheet1 select'!$B$23)/('Sheet1 select'!$B$27+'Sheet1 select'!$B$9)))) -> 0.03998797842 | L116: =(F116*$B$29)*(('Sheet1 select'!$B$12+'Sheet1 select'!$B$13)*(0.000000001))*$B$9*1000 -> 0 | M116: 0.000259124321 | N116: =$B$11*'Sheet1 select'!$B$29*0.001 -> 0.024 | O116: ='Sheet1 select'!$B$10*'Sheet1 select'!$B$31*$B$9*1000*0.000000001 -> 0.0408 | P116: ='Sheet1 select'!$B$35*$B$11*$B$9*1000*0.000000001 -> 0 | Q116: =IF('Sheet1 select'!$B$17=0,0,(0.00000006*0.7+0.00000003*(0.7+F116*1.1*'Sheet1 select'!$B$26))*F116*$B$9*1000) -> 0 | R116: 0.3411528881 | S116: 0.8802616421 | T116: =H116+K116+O116+N116+'Sheet1 select'!$B$40*I116+J116+P116 -> 0.2946857638
E117: 115 | F117: 0.7666666667 | G117: 0.04702222222 | H117: =F117*F117*('Sheet1 select'!$B$25)*$B$4 -> 0.008209946226 | I117: =F117*(1-$B$4)*'Sheet1 select'!$B$41 -> 0.183425 | J117: =F117*F117*('Sheet1 select'!$B$26)*(1-$B$4) -> 0 | K117: =0.0000005*$B$11*F117*$B$9*((('Sheet1 select'!$B$33+0.5*'Sheet1 select'!$B$32)/(('Sheet1 select'!$B$10-'Sheet1 select'!$B$23)/('Sheet1 select'!$B$27+'Sheet1 select'!$B$8)))+(('Sheet1 select'!$B$33+0.5*'Sheet1 select'!$B$32)/(('Sheet1 select'!$B$23)/('Sheet1 select'!$B$27+'Sheet1 select'!$B$9)))) -> 0.04033875017 | L117: =(F117*$B$29)*(('Sheet1 select'!$B$12+'Sheet1 select'!$B$13)*(0.000000001))*$B$9*1000 -> 0 | M117: 0.000259124321 | N117: =$B$11*'Sheet1 select'!$B$29*0.001 -> 0.024 | O117: ='Sheet1 select'!$B$10*'Sheet1 select'!$B$31*$B$9*1000*0.000000001 -> 0.0408 | P117: ='Sheet1 select'!$B$35*$B$11*$B$9*1000*0.000000001 -> 0 | Q117: =IF('Sheet1 select'!$B$17=0,0,(0.00000006*0.7+0.00000003*(0.7+F117*1.1*'Sheet1 select'!$B$26))*F117*$B$9*1000) -> 0 | R117: 0.3440550429 | S117: 0.8802893341 | T117: =H117+K117+O117+N117+'Sheet1 select'!$B$40*I117+J117+P117 -> 0.2967736964
E118: 116 | F118: 0.7733333333 | G118: 0.04784355556 | H118: =F118*F118*('Sheet1 select'!$B$25)*$B$4 -> 0.008353348689 | I118: =F118*(1-$B$4)*'Sheet1 select'!$B$41 -> 0.18502 | J118: =F118*F118*('Sheet1 select'!$B$26)*(1-$B$4) -> 0 | K118: =0.0000005*$B$11*F118*$B$9*((('Sheet1 select'!$B$33+0.5*'Sheet1 select'!$B$32)/(('Sheet1 select'!$B$10-'Sheet1 select'!$B$23)/('Sheet1 select'!$B$27+'Sheet1 select'!$B$8)))+(('Sheet1 select'!$B$33+0.5*'Sheet1 select'!$B$32)/(('Sheet1 select'!$B$23)/('Sheet1 select'!$B$27+'Sheet1 select'!$B$9)))) -> 0.04068952191 | L118: =(F118*$B$29)*(('Sheet1 select'!$B$12+'Sheet1 select'!$B$13)*(0.000000001))*$B$9*1000 -> 0 | M118: 0.000259124321 | N118: =$B$11*'Sheet1 select'!$B$29*0.001 -> 0.024 | O118: ='Sheet1 select'!$B$10*'Sheet1 select'!$B$31*$B$9*1000*0.000000001 -> 0.0408 | P118: ='Sheet1 select'!$B$35*$B$11*$B$9*1000*0.000000001 -> 0 | Q118: =IF('Sheet1 select'!$B$17=0,0,(0.00000006*0.7+0.00000003*(0.7+F118*1.1*'Sheet1 select'!$B$26))*F118*$B$9*1000) -> 0 | R118: 0.3469655505 | S118: 0.8803140139 | T118: =H118+K118+O118+N118+'Sheet1 select'!$B$40*I118+J118+P118 -> 0.2988628706
E119: 117 | F119: 0.78 | G119: 0.048672 | H119: =F119*F119*('Sheet1 select'!$B$25)*$B$4 -> 0.008497992732 | I119: =F119*(1-$B$4)*'Sheet1 select'!$B$41 -> 0.186615 | J119: =F119*F119*('Sheet1 select'!$B$26)*(1-$B$4) -> 0 | K119: =0.0000005*$B$11*F119*$B$9*((('Sheet1 select'!$B$33+0.5*'Sheet1 select'!$B$32)/(('Sheet1 select'!$B$10-'Sheet1 select'!$B$23)/('Sheet1 select'!$B$27+'Sheet1 select'!$B$8)))+(('Sheet1 select'!$B$33+0.5*'Sheet1 select'!$B$32)/(('Sheet1 select'!$B$23)/('Sheet1 select'!$B$27+'Sheet1 select'!$B$9)))) -> 0.04104029365 | L119: =(F119*$B$29)*(('Sheet1 select'!$B$12+'Sheet1 select'!$B$13)*(0.000000001))*$B$9*1000 -> 0 | M119: 0.000259124321 | N119: =$B$11*'Sheet1 select'!$B$29*0.001 -> 0.024 | O119: ='Sheet1 select'!$B$10*'Sheet1 select'!$B$31*$B$9*1000*0.000000001 -> 0.0408 | P119: ='Sheet1 select'!$B$35*$B$11*$B$9*1000*0.000000001 -> 0 | Q119: =IF('Sheet1 select'!$B$17=0,0,(0.00000006*0.7+0.00000003*(0.7+F119*1.1*'Sheet1 select'!$B$26))*F119*$B$9*1000) -> 0 | R119: 0.3498844107 | S119: 0.8803357583 | T119: =H119+K119+O119+N119+'Sheet1 select'!$B$40*I119+J119+P119 -> 0.3009532864
E120: 118 | F120: 0.7866666667 | G120: 0.04950755556 | H120: =F120*F120*('Sheet1 select'!$B$25)*$B$4 -> 0.008643878355 | I120: =F120*(1-$B$4)*'Sheet1 select'!$B$41 -> 0.18821 | J120: =F120*F120*('Sheet1 select'!$B$26)*(1-$B$4) -> 0 | K120: =0.0000005*$B$11*F120*$B$9*((('Sheet1 select'!$B$33+0.5*'Sheet1 select'!$B$32)/(('Sheet1 select'!$B$10-'Sheet1 select'!$B$23)/('Sheet1 select'!$B$27+'Sheet1 select'!$B$8)))+(('Sheet1 select'!$B$33+0.5*'Sheet1 select'!$B$32)/(('Sheet1 select'!$B$23)/('Sheet1 select'!$B$27+'Sheet1 select'!$B$9)))) -> 0.04139106539 | L120: =(F120*$B$29)*(('Sheet1 select'!$B$12+'Sheet1 select'!$B$13)*(0.000000001))*$B$9*1000 -> 0 | M120: 0.000259124321 | N120: =$B$11*'Sheet1 select'!$B$29*0.001 -> 0.024 | O120: ='Sheet1 select'!$B$10*'Sheet1 select'!$B$31*$B$9*1000*0.000000001 -> 0.0408 | P120: ='Sheet1 select'!$B$35*$B$11*$B$9*1000*0.000000001 -> 0 | Q120: =IF('Sheet1 select'!$B$17=0,0,(0.00000006*0.7+0.00000003*(0.7+F120*1.1*'Sheet1 select'!$B$26))*F120*$B$9*1000) -> 0 | R120: 0.3528116236 | S120: 0.8803546416 | T120: =H120+K120+O120+N120+'Sheet1 select'!$B$40*I120+J120+P120 -> 0.3030449437
E121: 119 | F121: 0.7933333333 | G121: 0.05035022222 | H121: =F121*F121*('Sheet1 select'!$B$25)*$B$4 -> 0.008791005558 | I121: =F121*(1-$B$4)*'Sheet1 select'!$B$41 -> 0.189805 | J121: =F121*F121*('Sheet1 select'!$B$26)*(1-$B$4) -> 0 | K121: =0.0000005*$B$11*F121*$B$9*((('Sheet1 select'!$B$33+0.5*'Sheet1 select'!$B$32)/(('Sheet1 select'!$B$10-'Sheet1 select'!$B$23)/('Sheet1 select'!$B$27+'Sheet1 select'!$B$8)))+(('Sheet1 select'!$B$33+0.5*'Sheet1 select'!$B$32)/(('Sheet1 select'!$B$23)/('Sheet1 select'!$B$27+'Sheet1 select'!$B$9)))) -> 0.04174183713 | L121: =(F121*$B$29)*(('Sheet1 select'!$B$12+'Sheet1 select'!$B$13)*(0.000000001))*$B$9*1000 -> 0 | M121: 0.000259124321 | N121: =$B$11*'Sheet1 select'!$B$29*0.001 -> 0.024 | O121: ='Sheet1 select'!$B$10*'Sheet1 select'!$B$31*$B$9*1000*0.000000001 -> 0.0408 | P121: ='Sheet1 select'!$B$35*$B$11*$B$9*1000*0.000000001 -> 0 | Q121: =IF('Sheet1 select'!$B$17=0,0,(0.00000006*0.7+0.00000003*(0.7+F121*1.1*'Sheet1 select'!$B$26))*F121*$B$9*1000) -> 0 | R121: 0.3557471892 | S121: 0.8803707354 | T121: =H121+K121+O121+N121+'Sheet1 select'!$B$40*I121+J121+P121 -> 0.3051378427
E122: 120 | F122: 0.8 | G122: 0.0512 | H122: =F122*F122*('Sheet1 select'!$B$25)*$B$4 -> 0.00893937434 | I122: =F122*(1-$B$4)*'Sheet1 select'!$B$41 -> 0.1914 | J122: =F122*F122*('Sheet1 select'!$B$26)*(1-$B$4) -> 0 | K122: =0.0000005*$B$11*F122*$B$9*((('Sheet1 select'!$B$33+0.5*'Sheet1 select'!$B$32)/(('Sheet1 select'!$B$10-'Sheet1 select'!$B$23)/('Sheet1 select'!$B$27+'Sheet1 select'!$B$8)))+(('Sheet1 select'!$B$33+0.5*'Sheet1 select'!$B$32)/(('Sheet1 select'!$B$23)/('Sheet1 select'!$B$27+'Sheet1 select'!$B$9)))) -> 0.04209260887 | L122: =(F122*$B$29)*(('Sheet1 select'!$B$12+'Sheet1 select'!$B$13)*(0.000000001))*$B$9*1000 -> 0 | M122: 0.000259124321 | N122: =$B$11*'Sheet1 select'!$B$29*0.001 -> 0.024 | O122: ='Sheet1 select'!$B$10*'Sheet1 select'!$B$31*$B$9*1000*0.000000001 -> 0.0408 | P122: ='Sheet1 select'!$B$35*$B$11*$B$9*1000*0.000000001 -> 0 | Q122: =IF('Sheet1 select'!$B$17=0,0,(0.00000006*0.7+0.00000003*(0.7+F122*1.1*'Sheet1 select'!$B$26))*F122*$B$9*1000) -> 0 | R122: 0.3586911075 | S122: 0.8803841094 | T122: =H122+K122+O122+N122+'Sheet1 select'!$B$40*I122+J122+P122 -> 0.3072319832
E123: 121 | F123: 0.8066666667 | G123: 0.05205688889 | H123: =F123*F123*('Sheet1 select'!$B$25)*$B$4 -> 0.009088984703 | I123: =F123*(1-$B$4)*'Sheet1 select'!$B$41 -> 0.192995 | J123: =F123*F123*('Sheet1 select'!$B$26)*(1-$B$4) -> 0 | K123: =0.0000005*$B$11*F123*$B$9*((('Sheet1 select'!$B$33+0.5*'Sheet1 select'!$B$32)/(('Sheet1 select'!$B$10-'Sheet1 select'!$B$23)/('Sheet1 select'!$B$27+'Sheet1 select'!$B$8)))+(('Sheet1 select'!$B$33+0.5*'Sheet1 select'!$B$32)/(('Sheet1 select'!$B$23)/('Sheet1 select'!$B$27+'Sheet1 select'!$B$9)))) -> 0.04244338061 | L123: =(F123*$B$29)*(('Sheet1 select'!$B$12+'Sheet1 select'!$B$13)*(0.000000001))*$B$9*1000 -> 0 | M123: 0.000259124321 | N123: =$B$11*'Sheet1 select'!$B$29*0.001 -> 0.024 | O123: ='Sheet1 select'!$B$10*'Sheet1 select'!$B$31*$B$9*1000*0.000000001 -> 0.0408 | P123: ='Sheet1 select'!$B$35*$B$11*$B$9*1000*0.000000001 -> 0 | Q123: =IF('Sheet1 select'!$B$17=0,0,(0.00000006*0.7+0.00000003*(0.7+F123*1.1*'Sheet1 select'!$B$26))*F123*$B$9*1000) -> 0 | R123: 0.3616433785 | S123: 0.8803948306 | T123: =H123+K123+O123+N123+'Sheet1 select'!$B$40*I123+J123+P123 -> 0.3093273653
E124: 122 | F124: 0.8133333333 | G124: 0.05292088889 | H124: =F124*F124*('Sheet1 select'!$B$25)*$B$4 -> 0.009239836645 | I124: =F124*(1-$B$4)*'Sheet1 select'!$B$41 -> 0.19459 | J124: =F124*F124*('Sheet1 select'!$B$26)*(1-$B$4) -> 0 | K124: =0.0000005*$B$11*F124*$B$9*((('Sheet1 select'!$B$33+0.5*'Sheet1 select'!$B$32)/(('Sheet1 select'!$B$10-'Sheet1 select'!$B$23)/('Sheet1 select'!$B$27+'Sheet1 select'!$B$8)))+(('Sheet1 select'!$B$33+0.5*'Sheet1 select'!$B$32)/(('Sheet1 select'!$B$23)/('Sheet1 select'!$B$27+'Sheet1 select'!$B$9)))) -> 0.04279415235 | L124: =(F124*$B$29)*(('Sheet1 select'!$B$12+'Sheet1 select'!$B$13)*(0.000000001))*$B$9*1000 -> 0 | M124: 0.000259124321 | N124: =$B$11*'Sheet1 select'!$B$29*0.001 -> 0.024 | O124: ='Sheet1 select'!$B$10*'Sheet1 select'!$B$31*$B$9*1000*0.000000001 -> 0.0408 | P124: ='Sheet1 select'!$B$35*$B$11*$B$9*1000*0.000000001 -> 0 | Q124: =IF('Sheet1 select'!$B$17=0,0,(0.00000006*0.7+0.00000003*(0.7+F124*1.1*'Sheet1 select'!$B$26))*F124*$B$9*1000) -> 0 | R124: 0.3646040022 | S124: 0.8804029641 | T124: =H124+K124+O124+N124+'Sheet1 select'!$B$40*I124+J124+P124 -> 0.311423989
E125: 123 | F125: 0.82 | G125: 0.053792 | H125: =F125*F125*('Sheet1 select'!$B$25)*$B$4 -> 0.009391930166 | I125: =F125*(1-$B$4)*'Sheet1 select'!$B$41 -> 0.196185 | J125: =F125*F125*('Sheet1 select'!$B$26)*(1-$B$4) -> 0 | K125: =0.0000005*$B$11*F125*$B$9*((('Sheet1 select'!$B$33+0.5*'Sheet1 select'!$B$32)/(('Sheet1 select'!$B$10-'Sheet1 select'!$B$23)/('Sheet1 select'!$B$27+'Sheet1 select'!$B$8)))+(('Sheet1 select'!$B$33+0.5*'Sheet1 select'!$B$32)/(('Sheet1 select'!$B$23)/('Sheet1 select'!$B$27+'Sheet1 select'!$B$9)))) -> 0.04314492409 | L125: =(F125*$B$29)*(('Sheet1 select'!$B$12+'Sheet1 select'!$B$13)*(0.000000001))*$B$9*1000 -> 0 | M125: 0.000259124321 | N125: =$B$11*'Sheet1 select'!$B$29*0.001 -> 0.024 | O125: ='Sheet1 select'!$B$10*'Sheet1 select'!$B$31*$B$9*1000*0.000000001 -> 0.0408 | P125: ='Sheet1 select'!$B$35*$B$11*$B$9*1000*0.000000001 -> 0 | Q125: =IF('Sheet1 select'!$B$17=0,0,(0.00000006*0.7+0.00000003*(0.7+F125*1.1*'Sheet1 select'!$B$26))*F125*$B$9*1000) -> 0 | R125: 0.3675729786 | S125: 0.880408573 | T125: =H125+K125+O125+N125+'Sheet1 select'!$B$40*I125+J125+P125 -> 0.3135218543
E126: 124 | F126: 0.8266666667 | G126: 0.05467022222 | H126: =F126*F126*('Sheet1 select'!$B$25)*$B$4 -> 0.009545265268 | I126: =F126*(1-$B$4)*'Sheet1 select'!$B$41 -> 0.19778 | J126: =F126*F126*('Sheet1 select'!$B$26)*(1-$B$4) -> 0 | K126: =0.0000005*$B$11*F126*$B$9*((('Sheet1 select'!$B$33+0.5*'Sheet1 select'!$B$32)/(('Sheet1 select'!$B$10-'Sheet1 select'!$B$23)/('Sheet1 select'!$B$27+'Sheet1 select'!$B$8)))+(('Sheet1 select'!$B$33+0.5*'Sheet1 select'!$B$32)/(('Sheet1 select'!$B$23)/('Sheet1 select'!$B$27+'Sheet1 select'!$B$9)))) -> 0.04349569583 | L126: =(F126*$B$29)*(('Sheet1 select'!$B$12+'Sheet1 select'!$B$13)*(0.000000001))*$B$9*1000 -> 0 | M126: 0.000259124321 | N126: =$B$11*'Sheet1 select'!$B$29*0.001 -> 0.024 | O126: ='Sheet1 select'!$B$10*'Sheet1 select'!$B$31*$B$9*1000*0.000000001 -> 0.0408 | P126: ='Sheet1 select'!$B$35*$B$11*$B$9*1000*0.000000001 -> 0 | Q126: =IF('Sheet1 select'!$B$17=0,0,(0.00000006*0.7+0.00000003*(0.7+F126*1.1*'Sheet1 select'!$B$26))*F126*$B$9*1000) -> 0 | R126: 0.3705503076 | S126: 0.8804117181 | T126: =H126+K126+O126+N126+'Sheet1 select'!$B$40*I126+J126+P126 -> 0.3156209611
E127: 125 | F127: 0.8333333333 | G127: 0.05555555556 | H127: =F127*F127*('Sheet1 select'!$B$25)*$B$4 -> 0.009699841949 | I127: =F127*(1-$B$4)*'Sheet1 select'!$B$41 -> 0.199375 | J127: =F127*F127*('Sheet1 select'!$B$26)*(1-$B$4) -> 0 | K127: =0.0000005*$B$11*F127*$B$9*((('Sheet1 select'!$B$33+0.5*'Sheet1 select'!$B$32)/(('Sheet1 select'!$B$10-'Sheet1 select'!$B$23)/('Sheet1 select'!$B$27+'Sheet1 select'!$B$8)))+(('Sheet1 select'!$B$33+0.5*'Sheet1 select'!$B$32)/(('Sheet1 select'!$B$23)/('Sheet1 select'!$B$27+'Sheet1 select'!$B$9)))) -> 0.04384646757 | L127: =(F127*$B$29)*(('Sheet1 select'!$B$12+'Sheet1 select'!$B$13)*(0.000000001))*$B$9*1000 -> 0 | M127: 0.000259124321 | N127: =$B$11*'Sheet1 select'!$B$29*0.001 -> 0.024 | O127: ='Sheet1 select'!$B$10*'Sheet1 select'!$B$31*$B$9*1000*0.000000001 -> 0.0408 | P127: ='Sheet1 select'!$B$35*$B$11*$B$9*1000*0.000000001 -> 0 | Q127: =IF('Sheet1 select'!$B$17=0,0,(0.00000006*0.7+0.00000003*(0.7+F127*1.1*'Sheet1 select'!$B$26))*F127*$B$9*1000) -> 0 | R127: 0.3735359894 | S127: 0.8804124586 | T127: =H127+K127+O127+N127+'Sheet1 select'!$B$40*I127+J127+P127 -> 0.3177213095
E128: 126 | F128: 0.84 | G128: 0.056448 | H128: =F128*F128*('Sheet1 select'!$B$25)*$B$4 -> 0.00985566021 | I128: =F128*(1-$B$4)*'Sheet1 select'!$B$41 -> 0.20097 | J128: =F128*F128*('Sheet1 select'!$B$26)*(1-$B$4) -> 0 | K128: =0.0000005*$B$11*F128*$B$9*((('Sheet1 select'!$B$33+0.5*'Sheet1 select'!$B$32)/(('Sheet1 select'!$B$10-'Sheet1 select'!$B$23)/('Sheet1 select'!$B$27+'Sheet1 select'!$B$8)))+(('Sheet1 select'!$B$33+0.5*'Sheet1 select'!$B$32)/(('Sheet1 select'!$B$23)/('Sheet1 select'!$B$27+'Sheet1 select'!$B$9)))) -> 0.04419723931 | L128: =(F128*$B$29)*(('Sheet1 select'!$B$12+'Sheet1 select'!$B$13)*(0.000000001))*$B$9*1000 -> 0 | M128: 0.000259124321 | N128: =$B$11*'Sheet1 select'!$B$29*0.001 -> 0.024 | O128: ='Sheet1 select'!$B$10*'Sheet1 select'!$B$31*$B$9*1000*0.000000001 -> 0.0408 | P128: ='Sheet1 select'!$B$35*$B$11*$B$9*1000*0.000000001 -> 0 | Q128: =IF('Sheet1 select'!$B$17=0,0,(0.00000006*0.7+0.00000003*(0.7+F128*1.1*'Sheet1 select'!$B$26))*F128*$B$9*1000) -> 0 | R128: 0.3765300238 | S128: 0.8804108517 | T128: =H128+K128+O128+N128+'Sheet1 select'!$B$40*I128+J128+P128 -> 0.3198228995
E129: 127 | F129: 0.8466666667 | G129: 0.05734755556 | H129: =F129*F129*('Sheet1 select'!$B$25)*$B$4 -> 0.01001272005 | I129: =F129*(1-$B$4)*'Sheet1 select'!$B$41 -> 0.202565 | J129: =F129*F129*('Sheet1 select'!$B$26)*(1-$B$4) -> 0 | K129: =0.0000005*$B$11*F129*$B$9*((('Sheet1 select'!$B$33+0.5*'Sheet1 select'!$B$32)/(('Sheet1 select'!$B$10-'Sheet1 select'!$B$23)/('Sheet1 select'!$B$27+'Sheet1 select'!$B$8)))+(('Sheet1 select'!$B$33+0.5*'Sheet1 select'!$B$32)/(('Sheet1 select'!$B$23)/('Sheet1 select'!$B$27+'Sheet1 select'!$B$9)))) -> 0.04454801105 | L129: =(F129*$B$29)*(('Sheet1 select'!$B$12+'Sheet1 select'!$B$13)*(0.000000001))*$B$9*1000 -> 0 | M129: 0.000259124321 | N129: =$B$11*'Sheet1 select'!$B$29*0.001 -> 0.024 | O129: ='Sheet1 select'!$B$10*'Sheet1 select'!$B$31*$B$9*1000*0.000000001 -> 0.0408 | P129: ='Sheet1 select'!$B$35*$B$11*$B$9*1000*0.000000001 -> 0 | Q129: =IF('Sheet1 select'!$B$17=0,0,(0.00000006*0.7+0.00000003*(0.7+F129*1.1*'Sheet1 select'!$B$26))*F129*$B$9*1000) -> 0 | R129: 0.379532411 | S129: 0.8804069529 | T129: =H129+K129+O129+N129+'Sheet1 select'!$B$40*I129+J129+P129 -> 0.3219257311
E130: 128 | F130: 0.8533333333 | G130: 0.05825422222 | H130: =F130*F130*('Sheet1 select'!$B$25)*$B$4 -> 0.01017102147 | I130: =F130*(1-$B$4)*'Sheet1 select'!$B$41 -> 0.20416 | J130: =F130*F130*('Sheet1 select'!$B$26)*(1-$B$4) -> 0 | K130: =0.0000005*$B$11*F130*$B$9*((('Sheet1 select'!$B$33+0.5*'Sheet1 select'!$B$32)/(('Sheet1 select'!$B$10-'Sheet1 select'!$B$23)/('Sheet1 select'!$B$27+'Sheet1 select'!$B$8)))+(('Sheet1 select'!$B$33+0.5*'Sheet1 select'!$B$32)/(('Sheet1 select'!$B$23)/('Sheet1 select'!$B$27+'Sheet1 select'!$B$9)))) -> 0.04489878279 | L130: =(F130*$B$29)*(('Sheet1 select'!$B$12+'Sheet1 select'!$B$13)*(0.000000001))*$B$9*1000 -> 0 | M130: 0.000259124321 | N130: =$B$11*'Sheet1 select'!$B$29*0.001 -> 0.024 | O130: ='Sheet1 select'!$B$10*'Sheet1 select'!$B$31*$B$9*1000*0.000000001 -> 0.0408 | P130: ='Sheet1 select'!$B$35*$B$11*$B$9*1000*0.000000001 -> 0 | Q130: =IF('Sheet1 select'!$B$17=0,0,(0.00000006*0.7+0.00000003*(0.7+F130*1.1*'Sheet1 select'!$B$26))*F130*$B$9*1000) -> 0 | R130: 0.3825431508 | S130: 0.880400816 | T130: =H130+K130+O130+N130+'Sheet1 select'!$B$40*I130+J130+P130 -> 0.3240298043
E131: 129 | F131: 0.86 | G131: 0.059168 | H131: =F131*F131*('Sheet1 select'!$B$25)*$B$4 -> 0.01033056447 | I131: =F131*(1-$B$4)*'Sheet1 select'!$B$41 -> 0.205755 | J131: =F131*F131*('Sheet1 select'!$B$26)*(1-$B$4) -> 0 | K131: =0.0000005*$B$11*F131*$B$9*((('Sheet1 select'!$B$33+0.5*'Sheet1 select'!$B$32)/(('Sheet1 select'!$B$10-'Sheet1 select'!$B$23)/('Sheet1 select'!$B$27+'Sheet1 select'!$B$8)))+(('Sheet1 select'!$B$33+0.5*'Sheet1 select'!$B$32)/(('Sheet1 select'!$B$23)/('Sheet1 select'!$B$27+'Sheet1 select'!$B$9)))) -> 0.04524955453 | L131: =(F131*$B$29)*(('Sheet1 select'!$B$12+'Sheet1 select'!$B$13)*(0.000000001))*$B$9*1000 -> 0 | M131: 0.000259124321 | N131: =$B$11*'Sheet1 select'!$B$29*0.001 -> 0.024 | O131: ='Sheet1 select'!$B$10*'Sheet1 select'!$B$31*$B$9*1000*0.000000001 -> 0.0408 | P131: ='Sheet1 select'!$B$35*$B$11*$B$9*1000*0.000000001 -> 0 | Q131: =IF('Sheet1 select'!$B$17=0,0,(0.00000006*0.7+0.00000003*(0.7+F131*1.1*'Sheet1 select'!$B$26))*F131*$B$9*1000) -> 0 | R131: =SUM(G131:P131)+Q131 -> 0.3855622433 | S131: 0.8803924931 | T131: =H131+K131+O131+N131+'Sheet1 select'!$B$40*I131+J131+P131 -> 0.326135119
E132: 130 | F132: =$B$13*E132/300 -> 0.8666666667 | G132: =F132*F132*$B$15*0.001*2 -> 0.06008888889 | H132: =F132*F132*('Sheet1 select'!$B$25)*$B$4 -> 0.01049134905 | I132: =F132*(1-$B$4)*'Sheet1 select'!$B$41 -> 0.20735 | J132: =F132*F132*('Sheet1 select'!$B$26)*(1-$B$4) -> 0 | K132: =0.0000005*$B$11*F132*$B$9*((('Sheet1 select'!$B$33+0.5*'Sheet1 select'!$B$32)/(('Sheet1 select'!$B$10-'Sheet1 select'!$B$23)/('Sheet1 select'!$B$27+'Sheet1 select'!$B$8)))+(('Sheet1 select'!$B$33+0.5*'Sheet1 select'!$B$32)/(('Sheet1 select'!$B$23)/('Sheet1 select'!$B$27+'Sheet1 select'!$B$9)))) -> 0.04560032627 | L132: =(F132*$B$29)*(('Sheet1 select'!$B$12+'Sheet1 select'!$B$13)*(0.000000001))*$B$9*1000 -> 0 | M132: =($B$3^2)*$B$17*0.001 -> 0.000259124321 | N132: =$B$11*'Sheet1 select'!$B$29*0.001 -> 0.024 | O132: ='Sheet1 select'!$B$10*'Sheet1 select'!$B$31*$B$9*1000*0.000000001 -> 0.0408 | P132: ='Sheet1 select'!$B$35*$B$11*$B$9*1000*0.000000001 -> 0 | Q132: =IF('Sheet1 select'!$B$17=0,0,(0.00000006*0.7+0.00000003*(0.7+F132*1.1*'Sheet1 select'!$B$26))*F132*$B$9*1000) -> 0 | R132: 0.3885896885 | S132: =($B$12*F132)/($B$12*F132+R132) -> 0.8803820347 | T132: =H132+K132+O132+N132+'Sheet1 select'!$B$40*I132+J132+P132 -> 0.3282416753
E133: 131 | F133: 0.8733333333 | G133: 0.06101688889 | H133: =F133*F133*('Sheet1 select'!$B$25)*$B$4 -> 0.01065337521 | I133: =F133*(1-$B$4)*'Sheet1 select'!$B$41 -> 0.208945 | J133: =F133*F133*('Sheet1 select'!$B$26)*(1-$B$4) -> 0 | K133: =0.0000005*$B$11*F133*$B$9*((('Sheet1 select'!$B$33+0.5*'Sheet1 select'!$B$32)/(('Sheet1 select'!$B$10-'Sheet1 select'!$B$23)/('Sheet1 select'!$B$27+'Sheet1 select'!$B$8)))+(('Sheet1 select'!$B$33+0.5*'Sheet1 select'!$B$32)/(('Sheet1 select'!$B$23)/('Sheet1 select'!$B$27+'Sheet1 select'!$B$9)))) -> 0.04595109801 | L133: =(F133*$B$29)*(('Sheet1 select'!$B$12+'Sheet1 select'!$B$13)*(0.000000001))*$B$9*1000 -> 0 | M133: 0.000259124321 | N133: =$B$11*'Sheet1 select'!$B$29*0.001 -> 0.024 | O133: ='Sheet1 select'!$B$10*'Sheet1 select'!$B$31*$B$9*1000*0.000000001 -> 0.0408 | P133: ='Sheet1 select'!$B$35*$B$11*$B$9*1000*0.000000001 -> 0 | Q133: =IF('Sheet1 select'!$B$17=0,0,(0.00000006*0.7+0.00000003*(0.7+F133*1.1*'Sheet1 select'!$B$26))*F133*$B$9*1000) -> 0 | R133: 0.3916254864 | S133: 0.88036949 | T133: =H133+K133+O133+N133+'Sheet1 select'!$B$40*I133+J133+P133 -> 0.3303494732
E134: 132 | F134: 0.88 | G134: 0.061952 | H134: =F134*F134*('Sheet1 select'!$B$25)*$B$4 -> 0.01081664295 | I134: =F134*(1-$B$4)*'Sheet1 select'!$B$41 -> 0.21054 | J134: =F134*F134*('Sheet1 select'!$B$26)*(1-$B$4) -> 0 | K134: =0.0000005*$B$11*F134*$B$9*((('Sheet1 select'!$B$33+0.5*'Sheet1 select'!$B$32)/(('Sheet1 select'!$B$10-'Sheet1 select'!$B$23)/('Sheet1 select'!$B$27+'Sheet1 select'!$B$8)))+(('Sheet1 select'!$B$33+0.5*'Sheet1 select'!$B$32)/(('Sheet1 select'!$B$23)/('Sheet1 select'!$B$27+'Sheet1 select'!$B$9)))) -> 0.04630186976 | L134: =(F134*$B$29)*(('Sheet1 select'!$B$12+'Sheet1 select'!$B$13)*(0.000000001))*$B$9*1000 -> 0 | M134: 0.000259124321 | N134: =$B$11*'Sheet1 select'!$B$29*0.001 -> 0.024 | O134: ='Sheet1 select'!$B$10*'Sheet1 select'!$B$31*$B$9*1000*0.000000001 -> 0.0408 | P134: ='Sheet1 select'!$B$35*$B$11*$B$9*1000*0.000000001 -> 0 | Q134: =IF('Sheet1 select'!$B$17=0,0,(0.00000006*0.7+0.00000003*(0.7+F134*1.1*'Sheet1 select'!$B$26))*F134*$B$9*1000) -> 0 | R134: 0.394669637 | S134: 0.8803549065 | T134: =H134+K134+O134+N134+'Sheet1 select'!$B$40*I134+J134+P134 -> 0.3324585127
E135: 133 | F135: 0.8866666667 | G135: 0.06289422222 | H135: =F135*F135*('Sheet1 select'!$B$25)*$B$4 -> 0.01098115227 | I135: =F135*(1-$B$4)*'Sheet1 select'!$B$41 -> 0.212135 | J135: =F135*F135*('Sheet1 select'!$B$26)*(1-$B$4) -> 0 | K135: =0.0000005*$B$11*F135*$B$9*((('Sheet1 select'!$B$33+0.5*'Sheet1 select'!$B$32)/(('Sheet1 select'!$B$10-'Sheet1 select'!$B$23)/('Sheet1 select'!$B$27+'Sheet1 select'!$B$8)))+(('Sheet1 select'!$B$33+0.5*'Sheet1 select'!$B$32)/(('Sheet1 select'!$B$23)/('Sheet1 select'!$B$27+'Sheet1 select'!$B$9)))) -> 0.0466526415 | L135: =(F135*$B$29)*(('Sheet1 select'!$B$12+'Sheet1 select'!$B$13)*(0.000000001))*$B$9*1000 -> 0 | M135: 0.000259124321 | N135: =$B$11*'Sheet1 select'!$B$29*0.001 -> 0.024 | O135: ='Sheet1 select'!$B$10*'Sheet1 select'!$B$31*$B$9*1000*0.000000001 -> 0.0408 | P135: ='Sheet1 select'!$B$35*$B$11*$B$9*1000*0.000000001 -> 0 | Q135: =IF('Sheet1 select'!$B$17=0,0,(0.00000006*0.7+0.00000003*(0.7+F135*1.1*'Sheet1 select'!$B$26))*F135*$B$9*1000) -> 0 | R135: 0.3977221403 | S135: 0.8803383305 | T135: =H135+K135+O135+N135+'Sheet1 select'!$B$40*I135+J135+P135 -> 0.3345687938
E136: 134 | F136: 0.8933333333 | G136: 0.06384355556 | H136: =F136*F136*('Sheet1 select'!$B$25)*$B$4 -> 0.01114690317 | I136: =F136*(1-$B$4)*'Sheet1 select'!$B$41 -> 0.21373 | J136: =F136*F136*('Sheet1 select'!$B$26)*(1-$B$4) -> 0 | K136: =0.0000005*$B$11*F136*$B$9*((('Sheet1 select'!$B$33+0.5*'Sheet1 select'!$B$32)/(('Sheet1 select'!$B$10-'Sheet1 select'!$B$23)/('Sheet1 select'!$B$27+'Sheet1 select'!$B$8)))+(('Sheet1 select'!$B$33+0.5*'Sheet1 select'!$B$32)/(('Sheet1 select'!$B$23)/('Sheet1 select'!$B$27+'Sheet1 select'!$B$9)))) -> 0.04700341324 | L136: =(F136*$B$29)*(('Sheet1 select'!$B$12+'Sheet1 select'!$B$13)*(0.000000001))*$B$9*1000 -> 0 | M136: 0.000259124321 | N136: =$B$11*'Sheet1 select'!$B$29*0.001 -> 0.024 | O136: ='Sheet1 select'!$B$10*'Sheet1 select'!$B$31*$B$9*1000*0.000000001 -> 0.0408 | P136: ='Sheet1 select'!$B$35*$B$11*$B$9*1000*0.000000001 -> 0 | Q136: =IF('Sheet1 select'!$B$17=0,0,(0.00000006*0.7+0.00000003*(0.7+F136*1.1*'Sheet1 select'!$B$26))*F136*$B$9*1000) -> 0 | R136: 0.4007829963 | S136: 0.8803198067 | T136: =H136+K136+O136+N136+'Sheet1 select'!$B$40*I136+J136+P136 -> 0.3366803164
E137: 135 | F137: 0.9 | G137: 0.0648 | H137: =F137*F137*('Sheet1 select'!$B$25)*$B$4 -> 0.01131389565 | I137: =F137*(1-$B$4)*'Sheet1 select'!$B$41 -> 0.215325 | J137: =F137*F137*('Sheet1 select'!$B$26)*(1-$B$4) -> 0 | K137: =0.0000005*$B$11*F137*$B$9*((('Sheet1 select'!$B$33+0.5*'Sheet1 select'!$B$32)/(('Sheet1 select'!$B$10-'Sheet1 select'!$B$23)/('Sheet1 select'!$B$27+'Sheet1 select'!$B$8)))+(('Sheet1 select'!$B$33+0.5*'Sheet1 select'!$B$32)/(('Sheet1 select'!$B$23)/('Sheet1 select'!$B$27+'Sheet1 select'!$B$9)))) -> 0.04735418498 | L137: =(F137*$B$29)*(('Sheet1 select'!$B$12+'Sheet1 select'!$B$13)*(0.000000001))*$B$9*1000 -> 0 | M137: 0.000259124321 | N137: =$B$11*'Sheet1 select'!$B$29*0.001 -> 0.024 | O137: ='Sheet1 select'!$B$10*'Sheet1 select'!$B$31*$B$9*1000*0.000000001 -> 0.0408 | P137: ='Sheet1 select'!$B$35*$B$11*$B$9*1000*0.000000001 -> 0 | Q137: =IF('Sheet1 select'!$B$17=0,0,(0.00000006*0.7+0.00000003*(0.7+F137*1.1*'Sheet1 select'!$B$26))*F137*$B$9*1000) -> 0 | R137: 0.4038522049 | S137: 0.8802993787 | T137: =H137+K137+O137+N137+'Sheet1 select'!$B$40*I137+J137+P137 -> 0.3387930806
E138: 136 | F138: 0.9066666667 | G138: 0.06576355556 | H138: =F138*F138*('Sheet1 select'!$B$25)*$B$4 -> 0.01148212971 | I138: =F138*(1-$B$4)*'Sheet1 select'!$B$41 -> 0.21692 | J138: =F138*F138*('Sheet1 select'!$B$26)*(1-$B$4) -> 0 | K138: =0.0000005*$B$11*F138*$B$9*((('Sheet1 select'!$B$33+0.5*'Sheet1 select'!$B$32)/(('Sheet1 select'!$B$10-'Sheet1 select'!$B$23)/('Sheet1 select'!$B$27+'Sheet1 select'!$B$8)))+(('Sheet1 select'!$B$33+0.5*'Sheet1 select'!$B$32)/(('Sheet1 select'!$B$23)/('Sheet1 select'!$B$27+'Sheet1 select'!$B$9)))) -> 0.04770495672 | L138: =(F138*$B$29)*(('Sheet1 select'!$B$12+'Sheet1 select'!$B$13)*(0.000000001))*$B$9*1000 -> 0 | M138: 0.000259124321 | N138: =$B$11*'Sheet1 select'!$B$29*0.001 -> 0.024 | O138: ='Sheet1 select'!$B$10*'Sheet1 select'!$B$31*$B$9*1000*0.000000001 -> 0.0408 | P138: ='Sheet1 select'!$B$35*$B$11*$B$9*1000*0.000000001 -> 0 | Q138: =IF('Sheet1 select'!$B$17=0,0,(0.00000006*0.7+0.00000003*(0.7+F138*1.1*'Sheet1 select'!$B$26))*F138*$B$9*1000) -> 0 | R138: 0.4069297663 | S138: 0.8802770889 | T138: =H138+K138+O138+N138+'Sheet1 select'!$B$40*I138+J138+P138 -> 0.3409070864
E139: 137 | F139: 0.9133333333 | G139: 0.06673422222 | H139: =F139*F139*('Sheet1 select'!$B$25)*$B$4 -> 0.01165160535 | I139: =F139*(1-$B$4)*'Sheet1 select'!$B$41 -> 0.218515 | J139: =F139*F139*('Sheet1 select'!$B$26)*(1-$B$4) -> 0 | K139: =0.0000005*$B$11*F139*$B$9*((('Sheet1 select'!$B$33+0.5*'Sheet1 select'!$B$32)/(('Sheet1 select'!$B$10-'Sheet1 select'!$B$23)/('Sheet1 select'!$B$27+'Sheet1 select'!$B$8)))+(('Sheet1 select'!$B$33+0.5*'Sheet1 select'!$B$32)/(('Sheet1 select'!$B$23)/('Sheet1 select'!$B$27+'Sheet1 select'!$B$9)))) -> 0.04805572846 | L139: =(F139*$B$29)*(('Sheet1 select'!$B$12+'Sheet1 select'!$B$13)*(0.000000001))*$B$9*1000 -> 0 | M139: 0.000259124321 | N139: =$B$11*'Sheet1 select'!$B$29*0.001 -> 0.024 | O139: ='Sheet1 select'!$B$10*'Sheet1 select'!$B$31*$B$9*1000*0.000000001 -> 0.0408 | P139: ='Sheet1 select'!$B$35*$B$11*$B$9*1000*0.000000001 -> 0 | Q139: =IF('Sheet1 select'!$B$17=0,0,(0.00000006*0.7+0.00000003*(0.7+F139*1.1*'Sheet1 select'!$B$26))*F139*$B$9*1000) -> 0 | R139: 0.4100156803 | S139: 0.8802529782 | T139: =H139+K139+O139+N139+'Sheet1 select'!$B$40*I139+J139+P139 -> 0.3430223338
E140: 138 | F140: 0.92 | G140: 0.067712 | H140: =F140*F140*('Sheet1 select'!$B$25)*$B$4 -> 0.01182232257 | I140: =F140*(1-$B$4)*'Sheet1 select'!$B$41 -> 0.22011 | J140: =F140*F140*('Sheet1 select'!$B$26)*(1-$B$4) -> 0 | K140: =0.0000005*$B$11*F140*$B$9*((('Sheet1 select'!$B$33+0.5*'Sheet1 select'!$B$32)/(('Sheet1 select'!$B$10-'Sheet1 select'!$B$23)/('Sheet1 select'!$B$27+'Sheet1 select'!$B$8)))+(('Sheet1 select'!$B$33+0.5*'Sheet1 select'!$B$32)/(('Sheet1 select'!$B$23)/('Sheet1 select'!$B$27+'Sheet1 select'!$B$9)))) -> 0.0484065002 | L140: =(F140*$B$29)*(('Sheet1 select'!$B$12+'Sheet1 select'!$B$13)*(0.000000001))*$B$9*1000 -> 0 | M140: 0.000259124321 | N140: =$B$11*'Sheet1 select'!$B$29*0.001 -> 0.024 | O140: ='Sheet1 select'!$B$10*'Sheet1 select'!$B$31*$B$9*1000*0.000000001 -> 0.0408 | P140: ='Sheet1 select'!$B$35*$B$11*$B$9*1000*0.000000001 -> 0 | Q140: =IF('Sheet1 select'!$B$17=0,0,(0.00000006*0.7+0.00000003*(0.7+F140*1.1*'Sheet1 select'!$B$26))*F140*$B$9*1000) -> 0 | R140: 0.4131099471 | S140: 0.8802270866 | T140: =H140+K140+O140+N140+'Sheet1 select'!$B$40*I140+J140+P140 -> 0.3451388228
E141: 139 | F141: 0.9266666667 | G141: 0.06869688889 | H141: =F141*F141*('Sheet1 select'!$B$25)*$B$4 -> 0.01199428136 | I141: =F141*(1-$B$4)*'Sheet1 select'!$B$41 -> 0.221705 | J141: =F141*F141*('Sheet1 select'!$B$26)*(1-$B$4) -> 0 | K141: =0.0000005*$B$11*F141*$B$9*((('Sheet1 select'!$B$33+0.5*'Sheet1 select'!$B$32)/(('Sheet1 select'!$B$10-'Sheet1 select'!$B$23)/('Sheet1 select'!$B$27+'Sheet1 select'!$B$8)))+(('Sheet1 select'!$B$33+0.5*'Sheet1 select'!$B$32)/(('Sheet1 select'!$B$23)/('Sheet1 select'!$B$27+'Sheet1 select'!$B$9)))) -> 0.04875727194 | L141: =(F141*$B$29)*(('Sheet1 select'!$B$12+'Sheet1 select'!$B$13)*(0.000000001))*$B$9*1000 -> 0 | M141: 0.000259124321 | N141: =$B$11*'Sheet1 select'!$B$29*0.001 -> 0.024 | O141: ='Sheet1 select'!$B$10*'Sheet1 select'!$B$31*$B$9*1000*0.000000001 -> 0.0408 | P141: ='Sheet1 select'!$B$35*$B$11*$B$9*1000*0.000000001 -> 0 | Q141: =IF('Sheet1 select'!$B$17=0,0,(0.00000006*0.7+0.00000003*(0.7+F141*1.1*'Sheet1 select'!$B$26))*F141*$B$9*1000) -> 0 | R141: 0.4162125665 | S141: 0.8801994528 | T141: =H141+K141+O141+N141+'Sheet1 select'!$B$40*I141+J141+P141 -> 0.3472565533
E142: 140 | F142: 0.9333333333 | G142: 0.06968888889 | H142: =F142*F142*('Sheet1 select'!$B$25)*$B$4 -> 0.01216748174 | I142: =F142*(1-$B$4)*'Sheet1 select'!$B$41 -> 0.2233 | J142: =F142*F142*('Sheet1 select'!$B$26)*(1-$B$4) -> 0 | K142: =0.0000005*$B$11*F142*$B$9*((('Sheet1 select'!$B$33+0.5*'Sheet1 select'!$B$32)/(('Sheet1 select'!$B$10-'Sheet1 select'!$B$23)/('Sheet1 select'!$B$27+'Sheet1 select'!$B$8)))+(('Sheet1 select'!$B$33+0.5*'Sheet1 select'!$B$32)/(('Sheet1 select'!$B$23)/('Sheet1 select'!$B$27+'Sheet1 select'!$B$9)))) -> 0.04910804368 | L142: =(F142*$B$29)*(('Sheet1 select'!$B$12+'Sheet1 select'!$B$13)*(0.000000001))*$B$9*1000 -> 0 | M142: 0.000259124321 | N142: =$B$11*'Sheet1 select'!$B$29*0.001 -> 0.024 | O142: ='Sheet1 select'!$B$10*'Sheet1 select'!$B$31*$B$9*1000*0.000000001 -> 0.0408 | P142: ='Sheet1 select'!$B$35*$B$11*$B$9*1000*0.000000001 -> 0 | Q142: =IF('Sheet1 select'!$B$17=0,0,(0.00000006*0.7+0.00000003*(0.7+F142*1.1*'Sheet1 select'!$B$26))*F142*$B$9*1000) -> 0 | R142: 0.4193235386 | S142: 0.8801701146 | T142: =H142+K142+O142+N142+'Sheet1 select'!$B$40*I142+J142+P142 -> 0.3493755254
E143: 141 | F143: 0.94 | G143: 0.070688 | H143: =F143*F143*('Sheet1 select'!$B$25)*$B$4 -> 0.0123419237 | I143: =F143*(1-$B$4)*'Sheet1 select'!$B$41 -> 0.224895 | J143: =F143*F143*('Sheet1 select'!$B$26)*(1-$B$4) -> 0 | K143: =0.0000005*$B$11*F143*$B$9*((('Sheet1 select'!$B$33+0.5*'Sheet1 select'!$B$32)/(('Sheet1 select'!$B$10-'Sheet1 select'!$B$23)/('Sheet1 select'!$B$27+'Sheet1 select'!$B$8)))+(('Sheet1 select'!$B$33+0.5*'Sheet1 select'!$B$32)/(('Sheet1 select'!$B$23)/('Sheet1 select'!$B$27+'Sheet1 select'!$B$9)))) -> 0.04945881542 | L143: =(F143*$B$29)*(('Sheet1 select'!$B$12+'Sheet1 select'!$B$13)*(0.000000001))*$B$9*1000 -> 0 | M143: 0.000259124321 | N143: =$B$11*'Sheet1 select'!$B$29*0.001 -> 0.024 | O143: ='Sheet1 select'!$B$10*'Sheet1 select'!$B$31*$B$9*1000*0.000000001 -> 0.0408 | P143: ='Sheet1 select'!$B$35*$B$11*$B$9*1000*0.000000001 -> 0 | Q143: =IF('Sheet1 select'!$B$17=0,0,(0.00000006*0.7+0.00000003*(0.7+F143*1.1*'Sheet1 select'!$B$26))*F143*$B$9*1000) -> 0 | R143: 0.4224428634 | S143: 0.8801391086 | T143: =H143+K143+O143+N143+'Sheet1 select'!$B$40*I143+J143+P143 -> 0.3514957391
E144: 142 | F144: 0.9466666667 | G144: 0.07169422222 | H144: =F144*F144*('Sheet1 select'!$B$25)*$B$4 -> 0.01251760724 | I144: =F144*(1-$B$4)*'Sheet1 select'!$B$41 -> 0.22649 | J144: =F144*F144*('Sheet1 select'!$B$26)*(1-$B$4) -> 0 | K144: =0.0000005*$B$11*F144*$B$9*((('Sheet1 select'!$B$33+0.5*'Sheet1 select'!$B$32)/(('Sheet1 select'!$B$10-'Sheet1 select'!$B$23)/('Sheet1 select'!$B$27+'Sheet1 select'!$B$8)))+(('Sheet1 select'!$B$33+0.5*'Sheet1 select'!$B$32)/(('Sheet1 select'!$B$23)/('Sheet1 select'!$B$27+'Sheet1 select'!$B$9)))) -> 0.04980958716 | L144: =(F144*$B$29)*(('Sheet1 select'!$B$12+'Sheet1 select'!$B$13)*(0.000000001))*$B$9*1000 -> 0 | M144: 0.000259124321 | N144: =$B$11*'Sheet1 select'!$B$29*0.001 -> 0.024 | O144: ='Sheet1 select'!$B$10*'Sheet1 select'!$B$31*$B$9*1000*0.000000001 -> 0.0408 | P144: ='Sheet1 select'!$B$35*$B$11*$B$9*1000*0.000000001 -> 0 | Q144: =IF('Sheet1 select'!$B$17=0,0,(0.00000006*0.7+0.00000003*(0.7+F144*1.1*'Sheet1 select'!$B$26))*F144*$B$9*1000) -> 0 | R144: 0.4255705409 | S144: 0.8801064703 | T144: =H144+K144+O144+N144+'Sheet1 select'!$B$40*I144+J144+P144 -> 0.3536171944
E145: 143 | F145: 0.9533333333 | G145: 0.07270755556 | H145: =F145*F145*('Sheet1 select'!$B$25)*$B$4 -> 0.01269453235 | I145: =F145*(1-$B$4)*'Sheet1 select'!$B$41 -> 0.228085 | J145: =F145*F145*('Sheet1 select'!$B$26)*(1-$B$4) -> 0 | K145: =0.0000005*$B$11*F145*$B$9*((('Sheet1 select'!$B$33+0.5*'Sheet1 select'!$B$32)/(('Sheet1 select'!$B$10-'Sheet1 select'!$B$23)/('Sheet1 select'!$B$27+'Sheet1 select'!$B$8)))+(('Sheet1 select'!$B$33+0.5*'Sheet1 select'!$B$32)/(('Sheet1 select'!$B$23)/('Sheet1 select'!$B$27+'Sheet1 select'!$B$9)))) -> 0.0501603589 | L145: =(F145*$B$29)*(('Sheet1 select'!$B$12+'Sheet1 select'!$B$13)*(0.000000001))*$B$9*1000 -> 0 | M145: 0.000259124321 | N145: =$B$11*'Sheet1 select'!$B$29*0.001 -> 0.024 | O145: ='Sheet1 select'!$B$10*'Sheet1 select'!$B$31*$B$9*1000*0.000000001 -> 0.0408 | P145: ='Sheet1 select'!$B$35*$B$11*$B$9*1000*0.000000001 -> 0 | Q145: =IF('Sheet1 select'!$B$17=0,0,(0.00000006*0.7+0.00000003*(0.7+F145*1.1*'Sheet1 select'!$B$26))*F145*$B$9*1000) -> 0 | R145: 0.4287065711 | S145: 0.8800722346 | T145: =H145+K145+O145+N145+'Sheet1 select'!$B$40*I145+J145+P145 -> 0.3557398913
E146: 144 | F146: 0.96 | G146: 0.073728 | H146: =F146*F146*('Sheet1 select'!$B$25)*$B$4 -> 0.01287269905 | I146: =F146*(1-$B$4)*'Sheet1 select'!$B$41 -> 0.22968 | J146: =F146*F146*('Sheet1 select'!$B$26)*(1-$B$4) -> 0 | K146: =0.0000005*$B$11*F146*$B$9*((('Sheet1 select'!$B$33+0.5*'Sheet1 select'!$B$32)/(('Sheet1 select'!$B$10-'Sheet1 select'!$B$23)/('Sheet1 select'!$B$27+'Sheet1 select'!$B$8)))+(('Sheet1 select'!$B$33+0.5*'Sheet1 select'!$B$32)/(('Sheet1 select'!$B$23)/('Sheet1 select'!$B$27+'Sheet1 select'!$B$9)))) -> 0.05051113064 | L146: =(F146*$B$29)*(('Sheet1 select'!$B$12+'Sheet1 select'!$B$13)*(0.000000001))*$B$9*1000 -> 0 | M146: 0.000259124321 | N146: =$B$11*'Sheet1 select'!$B$29*0.001 -> 0.024 | O146: ='Sheet1 select'!$B$10*'Sheet1 select'!$B$31*$B$9*1000*0.000000001 -> 0.0408 | P146: ='Sheet1 select'!$B$35*$B$11*$B$9*1000*0.000000001 -> 0 | Q146: =IF('Sheet1 select'!$B$17=0,0,(0.00000006*0.7+0.00000003*(0.7+F146*1.1*'Sheet1 select'!$B$26))*F146*$B$9*1000) -> 0 | R146: 0.431850954 | S146: 0.880036435 | T146: =H146+K146+O146+N146+'Sheet1 select'!$B$40*I146+J146+P146 -> 0.3578638297
E147: 145 | F147: 0.9666666667 | G147: 0.07475555556 | H147: =F147*F147*('Sheet1 select'!$B$25)*$B$4 -> 0.01305210733 | I147: =F147*(1-$B$4)*'Sheet1 select'!$B$41 -> 0.231275 | J147: =F147*F147*('Sheet1 select'!$B$26)*(1-$B$4) -> 0 | K147: =0.0000005*$B$11*F147*$B$9*((('Sheet1 select'!$B$33+0.5*'Sheet1 select'!$B$32)/(('Sheet1 select'!$B$10-'Sheet1 select'!$B$23)/('Sheet1 select'!$B$27+'Sheet1 select'!$B$8)))+(('Sheet1 select'!$B$33+0.5*'Sheet1 select'!$B$32)/(('Sheet1 select'!$B$23)/('Sheet1 select'!$B$27+'Sheet1 select'!$B$9)))) -> 0.05086190238 | L147: =(F147*$B$29)*(('Sheet1 select'!$B$12+'Sheet1 select'!$B$13)*(0.000000001))*$B$9*1000 -> 0 | M147: 0.000259124321 | N147: =$B$11*'Sheet1 select'!$B$29*0.001 -> 0.024 | O147: ='Sheet1 select'!$B$10*'Sheet1 select'!$B$31*$B$9*1000*0.000000001 -> 0.0408 | P147: ='Sheet1 select'!$B$35*$B$11*$B$9*1000*0.000000001 -> 0 | Q147: =IF('Sheet1 select'!$B$17=0,0,(0.00000006*0.7+0.00000003*(0.7+F147*1.1*'Sheet1 select'!$B$26))*F147*$B$9*1000) -> 0 | R147: 0.4350036896 | S147: 0.8799991043 | T147: =H147+K147+O147+N147+'Sheet1 select'!$B$40*I147+J147+P147 -> 0.3599890097
E148: 146 | F148: 0.9733333333 | G148: 0.07579022222 | H148: =F148*F148*('Sheet1 select'!$B$25)*$B$4 -> 0.01323275718 | I148: =F148*(1-$B$4)*'Sheet1 select'!$B$41 -> 0.23287 | J148: =F148*F148*('Sheet1 select'!$B$26)*(1-$B$4) -> 0 | K148: =0.0000005*$B$11*F148*$B$9*((('Sheet1 select'!$B$33+0.5*'Sheet1 select'!$B$32)/(('Sheet1 select'!$B$10-'Sheet1 select'!$B$23)/('Sheet1 select'!$B$27+'Sheet1 select'!$B$8)))+(('Sheet1 select'!$B$33+0.5*'Sheet1 select'!$B$32)/(('Sheet1 select'!$B$23)/('Sheet1 select'!$B$27+'Sheet1 select'!$B$9)))) -> 0.05121267412 | L148: =(F148*$B$29)*(('Sheet1 select'!$B$12+'Sheet1 select'!$B$13)*(0.000000001))*$B$9*1000 -> 0 | M148: 0.000259124321 | N148: =$B$11*'Sheet1 select'!$B$29*0.001 -> 0.024 | O148: ='Sheet1 select'!$B$10*'Sheet1 select'!$B$31*$B$9*1000*0.000000001 -> 0.0408 | P148: ='Sheet1 select'!$B$35*$B$11*$B$9*1000*0.000000001 -> 0 | Q148: =IF('Sheet1 select'!$B$17=0,0,(0.00000006*0.7+0.00000003*(0.7+F148*1.1*'Sheet1 select'!$B$26))*F148*$B$9*1000) -> 0 | R148: 0.4381647778 | S148: 0.8799602745 | T148: =H148+K148+O148+N148+'Sheet1 select'!$B$40*I148+J148+P148 -> 0.3621154313
E149: 147 | F149: 0.98 | G149: 0.076832 | H149: =F149*F149*('Sheet1 select'!$B$25)*$B$4 -> 0.01341464862 | I149: =F149*(1-$B$4)*'Sheet1 select'!$B$41 -> 0.234465 | J149: =F149*F149*('Sheet1 select'!$B$26)*(1-$B$4) -> 0 | K149: =0.0000005*$B$11*F149*$B$9*((('Sheet1 select'!$B$33+0.5*'Sheet1 select'!$B$32)/(('Sheet1 select'!$B$10-'Sheet1 select'!$B$23)/('Sheet1 select'!$B$27+'Sheet1 select'!$B$8)))+(('Sheet1 select'!$B$33+0.5*'Sheet1 select'!$B$32)/(('Sheet1 select'!$B$23)/('Sheet1 select'!$B$27+'Sheet1 select'!$B$9)))) -> 0.05156344586 | L149: =(F149*$B$29)*(('Sheet1 select'!$B$12+'Sheet1 select'!$B$13)*(0.000000001))*$B$9*1000 -> 0 | M149: 0.000259124321 | N149: =$B$11*'Sheet1 select'!$B$29*0.001 -> 0.024 | O149: ='Sheet1 select'!$B$10*'Sheet1 select'!$B$31*$B$9*1000*0.000000001 -> 0.0408 | P149: ='Sheet1 select'!$B$35*$B$11*$B$9*1000*0.000000001 -> 0 | Q149: =IF('Sheet1 select'!$B$17=0,0,(0.00000006*0.7+0.00000003*(0.7+F149*1.1*'Sheet1 select'!$B$26))*F149*$B$9*1000) -> 0 | R149: 0.4413342188 | S149: 0.8799199767 | T149: =H149+K149+O149+N149+'Sheet1 select'!$B$40*I149+J149+P149 -> 0.3642430945
E150: 148 | F150: 0.9866666667 | G150: 0.07788088889 | H150: =F150*F150*('Sheet1 select'!$B$25)*$B$4 -> 0.01359778164 | I150: =F150*(1-$B$4)*'Sheet1 select'!$B$41 -> 0.23606 | J150: =F150*F150*('Sheet1 select'!$B$26)*(1-$B$4) -> 0 | K150: =0.0000005*$B$11*F150*$B$9*((('Sheet1 select'!$B$33+0.5*'Sheet1 select'!$B$32)/(('Sheet1 select'!$B$10-'Sheet1 select'!$B$23)/('Sheet1 select'!$B$27+'Sheet1 select'!$B$8)))+(('Sheet1 select'!$B$33+0.5*'Sheet1 select'!$B$32)/(('Sheet1 select'!$B$23)/('Sheet1 select'!$B$27+'Sheet1 select'!$B$9)))) -> 0.0519142176 | L150: =(F150*$B$29)*(('Sheet1 select'!$B$12+'Sheet1 select'!$B$13)*(0.000000001))*$B$9*1000 -> 0 | M150: 0.000259124321 | N150: =$B$11*'Sheet1 select'!$B$29*0.001 -> 0.024 | O150: ='Sheet1 select'!$B$10*'Sheet1 select'!$B$31*$B$9*1000*0.000000001 -> 0.0408 | P150: ='Sheet1 select'!$B$35*$B$11*$B$9*1000*0.000000001 -> 0 | Q150: =IF('Sheet1 select'!$B$17=0,0,(0.00000006*0.7+0.00000003*(0.7+F150*1.1*'Sheet1 select'!$B$26))*F150*$B$9*1000) -> 0 | R150: 0.4445120124 | S150: 0.8798782409 | T150: =H150+K150+O150+N150+'Sheet1 select'!$B$40*I150+J150+P150 -> 0.3663719992
E151: 149 | F151: 0.9933333333 | G151: 0.07893688889 | H151: =F151*F151*('Sheet1 select'!$B$25)*$B$4 -> 0.01378215623 | I151: =F151*(1-$B$4)*'Sheet1 select'!$B$41 -> 0.237655 | J151: =F151*F151*('Sheet1 select'!$B$26)*(1-$B$4) -> 0 | K151: =0.0000005*$B$11*F151*$B$9*((('Sheet1 select'!$B$33+0.5*'Sheet1 select'!$B$32)/(('Sheet1 select'!$B$10-'Sheet1 select'!$B$23)/('Sheet1 select'!$B$27+'Sheet1 select'!$B$8)))+(('Sheet1 select'!$B$33+0.5*'Sheet1 select'!$B$32)/(('Sheet1 select'!$B$23)/('Sheet1 select'!$B$27+'Sheet1 select'!$B$9)))) -> 0.05226498934 | L151: =(F151*$B$29)*(('Sheet1 select'!$B$12+'Sheet1 select'!$B$13)*(0.000000001))*$B$9*1000 -> 0 | M151: 0.000259124321 | N151: =$B$11*'Sheet1 select'!$B$29*0.001 -> 0.024 | O151: ='Sheet1 select'!$B$10*'Sheet1 select'!$B$31*$B$9*1000*0.000000001 -> 0.0408 | P151: ='Sheet1 select'!$B$35*$B$11*$B$9*1000*0.000000001 -> 0 | Q151: =IF('Sheet1 select'!$B$17=0,0,(0.00000006*0.7+0.00000003*(0.7+F151*1.1*'Sheet1 select'!$B$26))*F151*$B$9*1000) -> 0 | R151: 0.4476981588 | S151: 0.8798350968 | T151: =H151+K151+O151+N151+'Sheet1 select'!$B$40*I151+J151+P151 -> 0.3685021456
E152: 150 | F152: 1 | G152: 0.08 | H152: =F152*F152*('Sheet1 select'!$B$25)*$B$4 -> 0.01396777241 | I152: =F152*(1-$B$4)*'Sheet1 select'!$B$41 -> 0.23925 | J152: =F152*F152*('Sheet1 select'!$B$26)*(1-$B$4) -> 0 | K152: =0.0000005*$B$11*F152*$B$9*((('Sheet1 select'!$B$33+0.5*'Sheet1 select'!$B$32)/(('Sheet1 select'!$B$10-'Sheet1 select'!$B$23)/('Sheet1 select'!$B$27+'Sheet1 select'!$B$8)))+(('Sheet1 select'!$B$33+0.5*'Sheet1 select'!$B$32)/(('Sheet1 select'!$B$23)/('Sheet1 select'!$B$27+'Sheet1 select'!$B$9)))) -> 0.05261576109 | L152: =(F152*$B$29)*(('Sheet1 select'!$B$12+'Sheet1 select'!$B$13)*(0.000000001))*$B$9*1000 -> 0 | M152: 0.000259124321 | N152: =$B$11*'Sheet1 select'!$B$29*0.001 -> 0.024 | O152: ='Sheet1 select'!$B$10*'Sheet1 select'!$B$31*$B$9*1000*0.000000001 -> 0.0408 | P152: ='Sheet1 select'!$B$35*$B$11*$B$9*1000*0.000000001 -> 0 | Q152: =IF('Sheet1 select'!$B$17=0,0,(0.00000006*0.7+0.00000003*(0.7+F152*1.1*'Sheet1 select'!$B$26))*F152*$B$9*1000) -> 0 | R152: 0.4508926578 | S152: 0.8797905728 | T152: =H152+K152+O152+N152+'Sheet1 select'!$B$40*I152+J152+P152 -> 0.3706335335
E153: 151 | F153: 1.006666667 | G153: 0.08107022222 | H153: =F153*F153*('Sheet1 select'!$B$25)*$B$4 -> 0.01415463016 | I153: =F153*(1-$B$4)*'Sheet1 select'!$B$41 -> 0.240845 | J153: =F153*F153*('Sheet1 select'!$B$26)*(1-$B$4) -> 0 | K153: =0.0000005*$B$11*F153*$B$9*((('Sheet1 select'!$B$33+0.5*'Sheet1 select'!$B$32)/(('Sheet1 select'!$B$10-'Sheet1 select'!$B$23)/('Sheet1 select'!$B$27+'Sheet1 select'!$B$8)))+(('Sheet1 select'!$B$33+0.5*'Sheet1 select'!$B$32)/(('Sheet1 select'!$B$23)/('Sheet1 select'!$B$27+'Sheet1 select'!$B$9)))) -> 0.05296653283 | L153: =(F153*$B$29)*(('Sheet1 select'!$B$12+'Sheet1 select'!$B$13)*(0.000000001))*$B$9*1000 -> 0 | M153: 0.000259124321 | N153: =$B$11*'Sheet1 select'!$B$29*0.001 -> 0.024 | O153: ='Sheet1 select'!$B$10*'Sheet1 select'!$B$31*$B$9*1000*0.000000001 -> 0.0408 | P153: ='Sheet1 select'!$B$35*$B$11*$B$9*1000*0.000000001 -> 0 | Q153: =IF('Sheet1 select'!$B$17=0,0,(0.00000006*0.7+0.00000003*(0.7+F153*1.1*'Sheet1 select'!$B$26))*F153*$B$9*1000) -> 0 | R153: 0.4540955095 | S153: 0.879744697 | T153: =H153+K153+O153+N153+'Sheet1 select'!$B$40*I153+J153+P153 -> 0.372766163
E154: 152 | F154: 1.013333333 | G154: 0.08214755556 | H154: =F154*F154*('Sheet1 select'!$B$25)*$B$4 -> 0.0143427295 | I154: =F154*(1-$B$4)*'Sheet1 select'!$B$41 -> 0.24244 | J154: =F154*F154*('Sheet1 select'!$B$26)*(1-$B$4) -> 0 | K154: =0.0000005*$B$11*F154*$B$9*((('Sheet1 select'!$B$33+0.5*'Sheet1 select'!$B$32)/(('Sheet1 select'!$B$10-'Sheet1 select'!$B$23)/('Sheet1 select'!$B$27+'Sheet1 select'!$B$8)))+(('Sheet1 select'!$B$33+0.5*'Sheet1 select'!$B$32)/(('Sheet1 select'!$B$23)/('Sheet1 select'!$B$27+'Sheet1 select'!$B$9)))) -> 0.05331730457 | L154: =(F154*$B$29)*(('Sheet1 select'!$B$12+'Sheet1 select'!$B$13)*(0.000000001))*$B$9*1000 -> 0 | M154: 0.000259124321 | N154: =$B$11*'Sheet1 select'!$B$29*0.001 -> 0.024 | O154: ='Sheet1 select'!$B$10*'Sheet1 select'!$B$31*$B$9*1000*0.000000001 -> 0.0408 | P154: ='Sheet1 select'!$B$35*$B$11*$B$9*1000*0.000000001 -> 0 | Q154: =IF('Sheet1 select'!$B$17=0,0,(0.00000006*0.7+0.00000003*(0.7+F154*1.1*'Sheet1 select'!$B$26))*F154*$B$9*1000) -> 0 | R154: 0.4573067139 | S154: 0.8796974966 | T154: =H154+K154+O154+N154+'Sheet1 select'!$B$40*I154+J154+P154 -> 0.3749000341
E155: 153 | F155: 1.02 | G155: 0.083232 | H155: =F155*F155*('Sheet1 select'!$B$25)*$B$4 -> 0.01453207041 | I155: =F155*(1-$B$4)*'Sheet1 select'!$B$41 -> 0.244035 | J155: =F155*F155*('Sheet1 select'!$B$26)*(1-$B$4) -> 0 | K155: =0.0000005*$B$11*F155*$B$9*((('Sheet1 select'!$B$33+0.5*'Sheet1 select'!$B$32)/(('Sheet1 select'!$B$10-'Sheet1 select'!$B$23)/('Sheet1 select'!$B$27+'Sheet1 select'!$B$8)))+(('Sheet1 select'!$B$33+0.5*'Sheet1 select'!$B$32)/(('Sheet1 select'!$B$23)/('Sheet1 select'!$B$27+'Sheet1 select'!$B$9)))) -> 0.05366807631 | L155: =(F155*$B$29)*(('Sheet1 select'!$B$12+'Sheet1 select'!$B$13)*(0.000000001))*$B$9*1000 -> 0 | M155: 0.000259124321 | N155: =$B$11*'Sheet1 select'!$B$29*0.001 -> 0.024 | O155: ='Sheet1 select'!$B$10*'Sheet1 select'!$B$31*$B$9*1000*0.000000001 -> 0.0408 | P155: ='Sheet1 select'!$B$35*$B$11*$B$9*1000*0.000000001 -> 0 | Q155: =IF('Sheet1 select'!$B$17=0,0,(0.00000006*0.7+0.00000003*(0.7+F155*1.1*'Sheet1 select'!$B$26))*F155*$B$9*1000) -> 0 | R155: 0.460526271 | S155: 0.879648998 | T155: =H155+K155+O155+N155+'Sheet1 select'!$B$40*I155+J155+P155 -> 0.3770351467
E156: 154 | F156: 1.026666667 | G156: 0.08432355556 | H156: =F156*F156*('Sheet1 select'!$B$25)*$B$4 -> 0.01472265291 | I156: =F156*(1-$B$4)*'Sheet1 select'!$B$41 -> 0.24563 | J156: =F156*F156*('Sheet1 select'!$B$26)*(1-$B$4) -> 0 | K156: =0.0000005*$B$11*F156*$B$9*((('Sheet1 select'!$B$33+0.5*'Sheet1 select'!$B$32)/(('Sheet1 select'!$B$10-'Sheet1 select'!$B$23)/('Sheet1 select'!$B$27+'Sheet1 select'!$B$8)))+(('Sheet1 select'!$B$33+0.5*'Sheet1 select'!$B$32)/(('Sheet1 select'!$B$23)/('Sheet1 select'!$B$27+'Sheet1 select'!$B$9)))) -> 0.05401884805 | L156: =(F156*$B$29)*(('Sheet1 select'!$B$12+'Sheet1 select'!$B$13)*(0.000000001))*$B$9*1000 -> 0 | M156: 0.000259124321 | N156: =$B$11*'Sheet1 select'!$B$29*0.001 -> 0.024 | O156: ='Sheet1 select'!$B$10*'Sheet1 select'!$B$31*$B$9*1000*0.000000001 -> 0.0408 | P156: ='Sheet1 select'!$B$35*$B$11*$B$9*1000*0.000000001 -> 0 | Q156: =IF('Sheet1 select'!$B$17=0,0,(0.00000006*0.7+0.00000003*(0.7+F156*1.1*'Sheet1 select'!$B$26))*F156*$B$9*1000) -> 0 | R156: 0.4637541808 | S156: 0.879599227 | T156: =H156+K156+O156+N156+'Sheet1 select'!$B$40*I156+J156+P156 -> 0.379171501
E157: 155 | F157: 1.033333333 | G157: 0.08542222222 | H157: =F157*F157*('Sheet1 select'!$B$25)*$B$4 -> 0.01491447698 | I157: =F157*(1-$B$4)*'Sheet1 select'!$B$41 -> 0.247225 | J157: =F157*F157*('Sheet1 select'!$B$26)*(1-$B$4) -> 0 | K157: =0.0000005*$B$11*F157*$B$9*((('Sheet1 select'!$B$33+0.5*'Sheet1 select'!$B$32)/(('Sheet1 select'!$B$10-'Sheet1 select'!$B$23)/('Sheet1 select'!$B$27+'Sheet1 select'!$B$8)))+(('Sheet1 select'!$B$33+0.5*'Sheet1 select'!$B$32)/(('Sheet1 select'!$B$23)/('Sheet1 select'!$B$27+'Sheet1 select'!$B$9)))) -> 0.05436961979 | L157: =(F157*$B$29)*(('Sheet1 select'!$B$12+'Sheet1 select'!$B$13)*(0.000000001))*$B$9*1000 -> 0 | M157: 0.000259124321 | N157: =$B$11*'Sheet1 select'!$B$29*0.001 -> 0.024 | O157: ='Sheet1 select'!$B$10*'Sheet1 select'!$B$31*$B$9*1000*0.000000001 -> 0.0408 | P157: ='Sheet1 select'!$B$35*$B$11*$B$9*1000*0.000000001 -> 0 | Q157: =IF('Sheet1 select'!$B$17=0,0,(0.00000006*0.7+0.00000003*(0.7+F157*1.1*'Sheet1 select'!$B$26))*F157*$B$9*1000) -> 0 | R157: 0.4669904433 | S157: 0.8795482088 | T157: =H157+K157+O157+N157+'Sheet1 select'!$B$40*I157+J157+P157 -> 0.3813090968
E158: 156 | F158: 1.04 | G158: 0.086528 | H158: =F158*F158*('Sheet1 select'!$B$25)*$B$4 -> 0.01510754264 | I158: =F158*(1-$B$4)*'Sheet1 select'!$B$41 -> 0.24882 | J158: =F158*F158*('Sheet1 select'!$B$26)*(1-$B$4) -> 0 | K158: =0.0000005*$B$11*F158*$B$9*((('Sheet1 select'!$B$33+0.5*'Sheet1 select'!$B$32)/(('Sheet1 select'!$B$10-'Sheet1 select'!$B$23)/('Sheet1 select'!$B$27+'Sheet1 select'!$B$8)))+(('Sheet1 select'!$B$33+0.5*'Sheet1 select'!$B$32)/(('Sheet1 select'!$B$23)/('Sheet1 select'!$B$27+'Sheet1 select'!$B$9)))) -> 0.05472039153 | L158: =(F158*$B$29)*(('Sheet1 select'!$B$12+'Sheet1 select'!$B$13)*(0.000000001))*$B$9*1000 -> 0 | M158: 0.000259124321 | N158: =$B$11*'Sheet1 select'!$B$29*0.001 -> 0.024 | O158: ='Sheet1 select'!$B$10*'Sheet1 select'!$B$31*$B$9*1000*0.000000001 -> 0.0408 | P158: ='Sheet1 select'!$B$35*$B$11*$B$9*1000*0.000000001 -> 0 | Q158: =IF('Sheet1 select'!$B$17=0,0,(0.00000006*0.7+0.00000003*(0.7+F158*1.1*'Sheet1 select'!$B$26))*F158*$B$9*1000) -> 0 | R158: 0.4702350585 | S158: 0.879495968 | T158: =H158+K158+O158+N158+'Sheet1 select'!$B$40*I158+J158+P158 -> 0.3834479342
E159: 157 | F159: 1.046666667 | G159: 0.08764088889 | H159: =F159*F159*('Sheet1 select'!$B$25)*$B$4 -> 0.01530184987 | I159: =F159*(1-$B$4)*'Sheet1 select'!$B$41 -> 0.250415 | J159: =F159*F159*('Sheet1 select'!$B$26)*(1-$B$4) -> 0 | K159: =0.0000005*$B$11*F159*$B$9*((('Sheet1 select'!$B$33+0.5*'Sheet1 select'!$B$32)/(('Sheet1 select'!$B$10-'Sheet1 select'!$B$23)/('Sheet1 select'!$B$27+'Sheet1 select'!$B$8)))+(('Sheet1 select'!$B$33+0.5*'Sheet1 select'!$B$32)/(('Sheet1 select'!$B$23)/('Sheet1 select'!$B$27+'Sheet1 select'!$B$9)))) -> 0.05507116327 | L159: =(F159*$B$29)*(('Sheet1 select'!$B$12+'Sheet1 select'!$B$13)*(0.000000001))*$B$9*1000 -> 0 | M159: 0.000259124321 | N159: =$B$11*'Sheet1 select'!$B$29*0.001 -> 0.024 | O159: ='Sheet1 select'!$B$10*'Sheet1 select'!$B$31*$B$9*1000*0.000000001 -> 0.0408 | P159: ='Sheet1 select'!$B$35*$B$11*$B$9*1000*0.000000001 -> 0 | Q159: =IF('Sheet1 select'!$B$17=0,0,(0.00000006*0.7+0.00000003*(0.7+F159*1.1*'Sheet1 select'!$B$26))*F159*$B$9*1000) -> 0 | R159: 0.4734880263 | S159: 0.8794425284 | T159: =H159+K159+O159+N159+'Sheet1 select'!$B$40*I159+J159+P159 -> 0.3855880131
E160: 158 | F160: 1.053333333 | G160: 0.08876088889 | H160: =F160*F160*('Sheet1 select'!$B$25)*$B$4 -> 0.01549739868 | I160: =F160*(1-$B$4)*'Sheet1 select'!$B$41 -> 0.25201 | J160: =F160*F160*('Sheet1 select'!$B$26)*(1-$B$4) -> 0 | K160: =0.0000005*$B$11*F160*$B$9*((('Sheet1 select'!$B$33+0.5*'Sheet1 select'!$B$32)/(('Sheet1 select'!$B$10-'Sheet1 select'!$B$23)/('Sheet1 select'!$B$27+'Sheet1 select'!$B$8)))+(('Sheet1 select'!$B$33+0.5*'Sheet1 select'!$B$32)/(('Sheet1 select'!$B$23)/('Sheet1 select'!$B$27+'Sheet1 select'!$B$9)))) -> 0.05542193501 | L160: =(F160*$B$29)*(('Sheet1 select'!$B$12+'Sheet1 select'!$B$13)*(0.000000001))*$B$9*1000 -> 0 | M160: 0.000259124321 | N160: =$B$11*'Sheet1 select'!$B$29*0.001 -> 0.024 | O160: ='Sheet1 select'!$B$10*'Sheet1 select'!$B$31*$B$9*1000*0.000000001 -> 0.0408 | P160: ='Sheet1 select'!$B$35*$B$11*$B$9*1000*0.000000001 -> 0 | Q160: =IF('Sheet1 select'!$B$17=0,0,(0.00000006*0.7+0.00000003*(0.7+F160*1.1*'Sheet1 select'!$B$26))*F160*$B$9*1000) -> 0 | R160: 0.4767493469 | S160: 0.8793879133 | T160: =H160+K160+O160+N160+'Sheet1 select'!$B$40*I160+J160+P160 -> 0.3877293337
E161: 159 | F161: 1.06 | G161: 0.089888 | H161: =F161*F161*('Sheet1 select'!$B$25)*$B$4 -> 0.01569418908 | I161: =F161*(1-$B$4)*'Sheet1 select'!$B$41 -> 0.253605 | J161: =F161*F161*('Sheet1 select'!$B$26)*(1-$B$4) -> 0 | K161: =0.0000005*$B$11*F161*$B$9*((('Sheet1 select'!$B$33+0.5*'Sheet1 select'!$B$32)/(('Sheet1 select'!$B$10-'Sheet1 select'!$B$23)/('Sheet1 select'!$B$27+'Sheet1 select'!$B$8)))+(('Sheet1 select'!$B$33+0.5*'Sheet1 select'!$B$32)/(('Sheet1 select'!$B$23)/('Sheet1 select'!$B$27+'Sheet1 select'!$B$9)))) -> 0.05577270675 | L161: =(F161*$B$29)*(('Sheet1 select'!$B$12+'Sheet1 select'!$B$13)*(0.000000001))*$B$9*1000 -> 0 | M161: 0.000259124321 | N161: =$B$11*'Sheet1 select'!$B$29*0.001 -> 0.024 | O161: ='Sheet1 select'!$B$10*'Sheet1 select'!$B$31*$B$9*1000*0.000000001 -> 0.0408 | P161: ='Sheet1 select'!$B$35*$B$11*$B$9*1000*0.000000001 -> 0 | Q161: =IF('Sheet1 select'!$B$17=0,0,(0.00000006*0.7+0.00000003*(0.7+F161*1.1*'Sheet1 select'!$B$26))*F161*$B$9*1000) -> 0 | R161: 0.4800190201 | S161: 0.8793321455 | T161: =H161+K161+O161+N161+'Sheet1 select'!$B$40*I161+J161+P161 -> 0.3898718958
E162: 160 | F162: 1.066666667 | G162: 0.09102222222 | H162: =F162*F162*('Sheet1 select'!$B$25)*$B$4 -> 0.01589222105 | I162: =F162*(1-$B$4)*'Sheet1 select'!$B$41 -> 0.2552 | J162: =F162*F162*('Sheet1 select'!$B$26)*(1-$B$4) -> 0 | K162: =0.0000005*$B$11*F162*$B$9*((('Sheet1 select'!$B$33+0.5*'Sheet1 select'!$B$32)/(('Sheet1 select'!$B$10-'Sheet1 select'!$B$23)/('Sheet1 select'!$B$27+'Sheet1 select'!$B$8)))+(('Sheet1 select'!$B$33+0.5*'Sheet1 select'!$B$32)/(('Sheet1 select'!$B$23)/('Sheet1 select'!$B$27+'Sheet1 select'!$B$9)))) -> 0.05612347849 | L162: =(F162*$B$29)*(('Sheet1 select'!$B$12+'Sheet1 select'!$B$13)*(0.000000001))*$B$9*1000 -> 0 | M162: 0.000259124321 | N162: =$B$11*'Sheet1 select'!$B$29*0.001 -> 0.024 | O162: ='Sheet1 select'!$B$10*'Sheet1 select'!$B$31*$B$9*1000*0.000000001 -> 0.0408 | P162: ='Sheet1 select'!$B$35*$B$11*$B$9*1000*0.000000001 -> 0 | Q162: =IF('Sheet1 select'!$B$17=0,0,(0.00000006*0.7+0.00000003*(0.7+F162*1.1*'Sheet1 select'!$B$26))*F162*$B$9*1000) -> 0 | R162: 0.4832970461 | S162: 0.8792752472 | T162: =H162+K162+O162+N162+'Sheet1 select'!$B$40*I162+J162+P162 -> 0.3920156995
E163: 161 | F163: 1.073333333 | G163: 0.09216355556 | H163: =F163*F163*('Sheet1 select'!$B$25)*$B$4 -> 0.0160914946 | I163: =F163*(1-$B$4)*'Sheet1 select'!$B$41 -> 0.256795 | J163: =F163*F163*('Sheet1 select'!$B$26)*(1-$B$4) -> 0 | K163: =0.0000005*$B$11*F163*$B$9*((('Sheet1 select'!$B$33+0.5*'Sheet1 select'!$B$32)/(('Sheet1 select'!$B$10-'Sheet1 select'!$B$23)/('Sheet1 select'!$B$27+'Sheet1 select'!$B$8)))+(('Sheet1 select'!$B$33+0.5*'Sheet1 select'!$B$32)/(('Sheet1 select'!$B$23)/('Sheet1 select'!$B$27+'Sheet1 select'!$B$9)))) -> 0.05647425023 | L163: =(F163*$B$29)*(('Sheet1 select'!$B$12+'Sheet1 select'!$B$13)*(0.000000001))*$B$9*1000 -> 0 | M163: 0.000259124321 | N163: =$B$11*'Sheet1 select'!$B$29*0.001 -> 0.024 | O163: ='Sheet1 select'!$B$10*'Sheet1 select'!$B$31*$B$9*1000*0.000000001 -> 0.0408 | P163: ='Sheet1 select'!$B$35*$B$11*$B$9*1000*0.000000001 -> 0 | Q163: =IF('Sheet1 select'!$B$17=0,0,(0.00000006*0.7+0.00000003*(0.7+F163*1.1*'Sheet1 select'!$B$26))*F163*$B$9*1000) -> 0 | R163: 0.4865834247 | S163: 0.8792172401 | T163: =H163+K163+O163+N163+'Sheet1 select'!$B$40*I163+J163+P163 -> 0.3941607448
E164: 162 | F164: 1.08 | G164: 0.093312 | H164: =F164*F164*('Sheet1 select'!$B$25)*$B$4 -> 0.01629200974 | I164: =F164*(1-$B$4)*'Sheet1 select'!$B$41 -> 0.25839 | J164: =F164*F164*('Sheet1 select'!$B$26)*(1-$B$4) -> 0 | K164: =0.0000005*$B$11*F164*$B$9*((('Sheet1 select'!$B$33+0.5*'Sheet1 select'!$B$32)/(('Sheet1 select'!$B$10-'Sheet1 select'!$B$23)/('Sheet1 select'!$B$27+'Sheet1 select'!$B$8)))+(('Sheet1 select'!$B$33+0.5*'Sheet1 select'!$B$32)/(('Sheet1 select'!$B$23)/('Sheet1 select'!$B$27+'Sheet1 select'!$B$9)))) -> 0.05682502197 | L164: =(F164*$B$29)*(('Sheet1 select'!$B$12+'Sheet1 select'!$B$13)*(0.000000001))*$B$9*1000 -> 0 | M164: 0.000259124321 | N164: =$B$11*'Sheet1 select'!$B$29*0.001 -> 0.024 | O164: ='Sheet1 select'!$B$10*'Sheet1 select'!$B$31*$B$9*1000*0.000000001 -> 0.0408 | P164: ='Sheet1 select'!$B$35*$B$11*$B$9*1000*0.000000001 -> 0 | Q164: =IF('Sheet1 select'!$B$17=0,0,(0.00000006*0.7+0.00000003*(0.7+F164*1.1*'Sheet1 select'!$B$26))*F164*$B$9*1000) -> 0 | R164: 0.489878156 | S164: 0.8791581451 | T164: =H164+K164+O164+N164+'Sheet1 select'!$B$40*I164+J164+P164 -> 0.3963070317
E165: 163 | F165: 1.086666667 | G165: 0.09446755556 | H165: =F165*F165*('Sheet1 select'!$B$25)*$B$4 -> 0.01649376645 | I165: =F165*(1-$B$4)*'Sheet1 select'!$B$41 -> 0.259985 | J165: =F165*F165*('Sheet1 select'!$B$26)*(1-$B$4) -> 0 | K165: =0.0000005*$B$11*F165*$B$9*((('Sheet1 select'!$B$33+0.5*'Sheet1 select'!$B$32)/(('Sheet1 select'!$B$10-'Sheet1 select'!$B$23)/('Sheet1 select'!$B$27+'Sheet1 select'!$B$8)))+(('Sheet1 select'!$B$33+0.5*'Sheet1 select'!$B$32)/(('Sheet1 select'!$B$23)/('Sheet1 select'!$B$27+'Sheet1 select'!$B$9)))) -> 0.05717579371 | L165: =(F165*$B$29)*(('Sheet1 select'!$B$12+'Sheet1 select'!$B$13)*(0.000000001))*$B$9*1000 -> 0 | M165: 0.000259124321 | N165: =$B$11*'Sheet1 select'!$B$29*0.001 -> 0.024 | O165: ='Sheet1 select'!$B$10*'Sheet1 select'!$B$31*$B$9*1000*0.000000001 -> 0.0408 | P165: ='Sheet1 select'!$B$35*$B$11*$B$9*1000*0.000000001 -> 0 | Q165: =IF('Sheet1 select'!$B$17=0,0,(0.00000006*0.7+0.00000003*(0.7+F165*1.1*'Sheet1 select'!$B$26))*F165*$B$9*1000) -> 0 | R165: 0.49318124 | S165: 0.8790979829 | T165: =H165+K165+O165+N165+'Sheet1 select'!$B$40*I165+J165+P165 -> 0.3984545602
E166: 164 | F166: 1.093333333 | G166: 0.09563022222 | H166: =F166*F166*('Sheet1 select'!$B$25)*$B$4 -> 0.01669676474 | I166: =F166*(1-$B$4)*'Sheet1 select'!$B$41 -> 0.26158 | J166: =F166*F166*('Sheet1 select'!$B$26)*(1-$B$4) -> 0 | K166: =0.0000005*$B$11*F166*$B$9*((('Sheet1 select'!$B$33+0.5*'Sheet1 select'!$B$32)/(('Sheet1 select'!$B$10-'Sheet1 select'!$B$23)/('Sheet1 select'!$B$27+'Sheet1 select'!$B$8)))+(('Sheet1 select'!$B$33+0.5*'Sheet1 select'!$B$32)/(('Sheet1 select'!$B$23)/('Sheet1 select'!$B$27+'Sheet1 select'!$B$9)))) -> 0.05752656545 | L166: =(F166*$B$29)*(('Sheet1 select'!$B$12+'Sheet1 select'!$B$13)*(0.000000001))*$B$9*1000 -> 0 | M166: 0.000259124321 | N166: =$B$11*'Sheet1 select'!$B$29*0.001 -> 0.024 | O166: ='Sheet1 select'!$B$10*'Sheet1 select'!$B$31*$B$9*1000*0.000000001 -> 0.0408 | P166: ='Sheet1 select'!$B$35*$B$11*$B$9*1000*0.000000001 -> 0 | Q166: =IF('Sheet1 select'!$B$17=0,0,(0.00000006*0.7+0.00000003*(0.7+F166*1.1*'Sheet1 select'!$B$26))*F166*$B$9*1000) -> 0 | R166: 0.4964926767 | S166: 0.8790367736 | T166: =H166+K166+O166+N166+'Sheet1 select'!$B$40*I166+J166+P166 -> 0.4006033302
E167: 165 | F167: 1.1 | G167: 0.0968 | H167: =F167*F167*('Sheet1 select'!$B$25)*$B$4 -> 0.01690100461 | I167: =F167*(1-$B$4)*'Sheet1 select'!$B$41 -> 0.263175 | J167: =F167*F167*('Sheet1 select'!$B$26)*(1-$B$4) -> 0 | K167: =0.0000005*$B$11*F167*$B$9*((('Sheet1 select'!$B$33+0.5*'Sheet1 select'!$B$32)/(('Sheet1 select'!$B$10-'Sheet1 select'!$B$23)/('Sheet1 select'!$B$27+'Sheet1 select'!$B$8)))+(('Sheet1 select'!$B$33+0.5*'Sheet1 select'!$B$32)/(('Sheet1 select'!$B$23)/('Sheet1 select'!$B$27+'Sheet1 select'!$B$9)))) -> 0.05787733719 | L167: =(F167*$B$29)*(('Sheet1 select'!$B$12+'Sheet1 select'!$B$13)*(0.000000001))*$B$9*1000 -> 0 | M167: 0.000259124321 | N167: =$B$11*'Sheet1 select'!$B$29*0.001 -> 0.024 | O167: ='Sheet1 select'!$B$10*'Sheet1 select'!$B$31*$B$9*1000*0.000000001 -> 0.0408 | P167: ='Sheet1 select'!$B$35*$B$11*$B$9*1000*0.000000001 -> 0 | Q167: =IF('Sheet1 select'!$B$17=0,0,(0.00000006*0.7+0.00000003*(0.7+F167*1.1*'Sheet1 select'!$B$26))*F167*$B$9*1000) -> 0 | R167: 0.4998124661 | S167: 0.8789745369 | T167: =H167+K167+O167+N167+'Sheet1 select'!$B$40*I167+J167+P167 -> 0.4027533418
E168: 166 | F168: 1.106666667 | G168: 0.09797688889 | H168: =F168*F168*('Sheet1 select'!$B$25)*$B$4 -> 0.01710648606 | I168: =F168*(1-$B$4)*'Sheet1 select'!$B$41 -> 0.26477 | J168: =F168*F168*('Sheet1 select'!$B$26)*(1-$B$4) -> 0 | K168: =0.0000005*$B$11*F168*$B$9*((('Sheet1 select'!$B$33+0.5*'Sheet1 select'!$B$32)/(('Sheet1 select'!$B$10-'Sheet1 select'!$B$23)/('Sheet1 select'!$B$27+'Sheet1 select'!$B$8)))+(('Sheet1 select'!$B$33+0.5*'Sheet1 select'!$B$32)/(('Sheet1 select'!$B$23)/('Sheet1 select'!$B$27+'Sheet1 select'!$B$9)))) -> 0.05822810893 | L168: =(F168*$B$29)*(('Sheet1 select'!$B$12+'Sheet1 select'!$B$13)*(0.000000001))*$B$9*1000 -> 0 | M168: 0.000259124321 | N168: =$B$11*'Sheet1 select'!$B$29*0.001 -> 0.024 | O168: ='Sheet1 select'!$B$10*'Sheet1 select'!$B$31*$B$9*1000*0.000000001 -> 0.0408 | P168: ='Sheet1 select'!$B$35*$B$11*$B$9*1000*0.000000001 -> 0 | Q168: =IF('Sheet1 select'!$B$17=0,0,(0.00000006*0.7+0.00000003*(0.7+F168*1.1*'Sheet1 select'!$B$26))*F168*$B$9*1000) -> 0 | R168: 0.5031406082 | S168: 0.8789112919 | T168: =H168+K168+O168+N168+'Sheet1 select'!$B$40*I168+J168+P168 -> 0.404904595
E169: 167 | F169: 1.113333333 | G169: 0.09916088889 | H169: =F169*F169*('Sheet1 select'!$B$25)*$B$4 -> 0.0173132091 | I169: =F169*(1-$B$4)*'Sheet1 select'!$B$41 -> 0.266365 | J169: =F169*F169*('Sheet1 select'!$B$26)*(1-$B$4) -> 0 | K169: =0.0000005*$B$11*F169*$B$9*((('Sheet1 select'!$B$33+0.5*'Sheet1 select'!$B$32)/(('Sheet1 select'!$B$10-'Sheet1 select'!$B$23)/('Sheet1 select'!$B$27+'Sheet1 select'!$B$8)))+(('Sheet1 select'!$B$33+0.5*'Sheet1 select'!$B$32)/(('Sheet1 select'!$B$23)/('Sheet1 select'!$B$27+'Sheet1 select'!$B$9)))) -> 0.05857888068 | L169: =(F169*$B$29)*(('Sheet1 select'!$B$12+'Sheet1 select'!$B$13)*(0.000000001))*$B$9*1000 -> 0 | M169: 0.000259124321 | N169: =$B$11*'Sheet1 select'!$B$29*0.001 -> 0.024 | O169: ='Sheet1 select'!$B$10*'Sheet1 select'!$B$31*$B$9*1000*0.000000001 -> 0.0408 | P169: ='Sheet1 select'!$B$35*$B$11*$B$9*1000*0.000000001 -> 0 | Q169: =IF('Sheet1 select'!$B$17=0,0,(0.00000006*0.7+0.00000003*(0.7+F169*1.1*'Sheet1 select'!$B$26))*F169*$B$9*1000) -> 0 | R169: 0.506477103 | S169: 0.8788470573 | T169: =H169+K169+O169+N169+'Sheet1 select'!$B$40*I169+J169+P169 -> 0.4070570898
E170: 168 | F170: 1.12 | G170: 0.100352 | H170: =F170*F170*('Sheet1 select'!$B$25)*$B$4 -> 0.01752117371 | I170: =F170*(1-$B$4)*'Sheet1 select'!$B$41 -> 0.26796 | J170: =F170*F170*('Sheet1 select'!$B$26)*(1-$B$4) -> 0 | K170: =0.0000005*$B$11*F170*$B$9*((('Sheet1 select'!$B$33+0.5*'Sheet1 select'!$B$32)/(('Sheet1 select'!$B$10-'Sheet1 select'!$B$23)/('Sheet1 select'!$B$27+'Sheet1 select'!$B$8)))+(('Sheet1 select'!$B$33+0.5*'Sheet1 select'!$B$32)/(('Sheet1 select'!$B$23)/('Sheet1 select'!$B$27+'Sheet1 select'!$B$9)))) -> 0.05892965242 | L170: =(F170*$B$29)*(('Sheet1 select'!$B$12+'Sheet1 select'!$B$13)*(0.000000001))*$B$9*1000 -> 0 | M170: 0.000259124321 | N170: =$B$11*'Sheet1 select'!$B$29*0.001 -> 0.024 | O170: ='Sheet1 select'!$B$10*'Sheet1 select'!$B$31*$B$9*1000*0.000000001 -> 0.0408 | P170: ='Sheet1 select'!$B$35*$B$11*$B$9*1000*0.000000001 -> 0 | Q170: =IF('Sheet1 select'!$B$17=0,0,(0.00000006*0.7+0.00000003*(0.7+F170*1.1*'Sheet1 select'!$B$26))*F170*$B$9*1000) -> 0 | R170: 0.5098219504 | S170: 0.8787818513 | T170: =H170+K170+O170+N170+'Sheet1 select'!$B$40*I170+J170+P170 -> 0.4092108261
E171: 169 | F171: 1.126666667 | G171: 0.1015502222 | H171: =F171*F171*('Sheet1 select'!$B$25)*$B$4 -> 0.0177303799 | I171: =F171*(1-$B$4)*'Sheet1 select'!$B$41 -> 0.269555 | J171: =F171*F171*('Sheet1 select'!$B$26)*(1-$B$4) -> 0 | K171: =0.0000005*$B$11*F171*$B$9*((('Sheet1 select'!$B$33+0.5*'Sheet1 select'!$B$32)/(('Sheet1 select'!$B$10-'Sheet1 select'!$B$23)/('Sheet1 select'!$B$27+'Sheet1 select'!$B$8)))+(('Sheet1 select'!$B$33+0.5*'Sheet1 select'!$B$32)/(('Sheet1 select'!$B$23)/('Sheet1 select'!$B$27+'Sheet1 select'!$B$9)))) -> 0.05928042416 | L171: =(F171*$B$29)*(('Sheet1 select'!$B$12+'Sheet1 select'!$B$13)*(0.000000001))*$B$9*1000 -> 0 | M171: 0.000259124321 | N171: =$B$11*'Sheet1 select'!$B$29*0.001 -> 0.024 | O171: ='Sheet1 select'!$B$10*'Sheet1 select'!$B$31*$B$9*1000*0.000000001 -> 0.0408 | P171: ='Sheet1 select'!$B$35*$B$11*$B$9*1000*0.000000001 -> 0 | Q171: =IF('Sheet1 select'!$B$17=0,0,(0.00000006*0.7+0.00000003*(0.7+F171*1.1*'Sheet1 select'!$B$26))*F171*$B$9*1000) -> 0 | R171: 0.5131751506 | S171: 0.8787156919 | T171: =H171+K171+O171+N171+'Sheet1 select'!$B$40*I171+J171+P171 -> 0.4113658041
E172: 170 | F172: 1.133333333 | G172: 0.1027555556 | H172: =F172*F172*('Sheet1 select'!$B$25)*$B$4 -> 0.01794082767 | I172: =F172*(1-$B$4)*'Sheet1 select'!$B$41 -> 0.27115 | J172: =F172*F172*('Sheet1 select'!$B$26)*(1-$B$4) -> 0 | K172: =0.0000005*$B$11*F172*$B$9*((('Sheet1 select'!$B$33+0.5*'Sheet1 select'!$B$32)/(('Sheet1 select'!$B$10-'Sheet1 select'!$B$23)/('Sheet1 select'!$B$27+'Sheet1 select'!$B$8)))+(('Sheet1 select'!$B$33+0.5*'Sheet1 select'!$B$32)/(('Sheet1 select'!$B$23)/('Sheet1 select'!$B$27+'Sheet1 select'!$B$9)))) -> 0.0596311959 | L172: =(F172*$B$29)*(('Sheet1 select'!$B$12+'Sheet1 select'!$B$13)*(0.000000001))*$B$9*1000 -> 0 | M172: 0.000259124321 | N172: =$B$11*'Sheet1 select'!$B$29*0.001 -> 0.024 | O172: ='Sheet1 select'!$B$10*'Sheet1 select'!$B$31*$B$9*1000*0.000000001 -> 0.0408 | P172: ='Sheet1 select'!$B$35*$B$11*$B$9*1000*0.000000001 -> 0 | Q172: =IF('Sheet1 select'!$B$17=0,0,(0.00000006*0.7+0.00000003*(0.7+F172*1.1*'Sheet1 select'!$B$26))*F172*$B$9*1000) -> 0 | R172: 0.5165367034 | S172: 0.8786485964 | T172: =H172+K172+O172+N172+'Sheet1 select'!$B$40*I172+J172+P172 -> 0.4135220236
E173: 171 | F173: 1.14 | G173: 0.103968 | H173: =F173*F173*('Sheet1 select'!$B$25)*$B$4 -> 0.01815251702 | I173: =F173*(1-$B$4)*'Sheet1 select'!$B$41 -> 0.272745 | J173: =F173*F173*('Sheet1 select'!$B$26)*(1-$B$4) -> 0 | K173: =0.0000005*$B$11*F173*$B$9*((('Sheet1 select'!$B$33+0.5*'Sheet1 select'!$B$32)/(('Sheet1 select'!$B$10-'Sheet1 select'!$B$23)/('Sheet1 select'!$B$27+'Sheet1 select'!$B$8)))+(('Sheet1 select'!$B$33+0.5*'Sheet1 select'!$B$32)/(('Sheet1 select'!$B$23)/('Sheet1 select'!$B$27+'Sheet1 select'!$B$9)))) -> 0.05998196764 | L173: =(F173*$B$29)*(('Sheet1 select'!$B$12+'Sheet1 select'!$B$13)*(0.000000001))*$B$9*1000 -> 0 | M173: 0.000259124321 | N173: =$B$11*'Sheet1 select'!$B$29*0.001 -> 0.024 | O173: ='Sheet1 select'!$B$10*'Sheet1 select'!$B$31*$B$9*1000*0.000000001 -> 0.0408 | P173: ='Sheet1 select'!$B$35*$B$11*$B$9*1000*0.000000001 -> 0 | Q173: =IF('Sheet1 select'!$B$17=0,0,(0.00000006*0.7+0.00000003*(0.7+F173*1.1*'Sheet1 select'!$B$26))*F173*$B$9*1000) -> 0 | R173: 0.519906609 | S173: 0.8785805819 | T173: =H173+K173+O173+N173+'Sheet1 select'!$B$40*I173+J173+P173 -> 0.4156794847
E174: 172 | F174: 1.146666667 | G174: 0.1051875556 | H174: =F174*F174*('Sheet1 select'!$B$25)*$B$4 -> 0.01836544795 | I174: =F174*(1-$B$4)*'Sheet1 select'!$B$41 -> 0.27434 | J174: =F174*F174*('Sheet1 select'!$B$26)*(1-$B$4) -> 0 | K174: =0.0000005*$B$11*F174*$B$9*((('Sheet1 select'!$B$33+0.5*'Sheet1 select'!$B$32)/(('Sheet1 select'!$B$10-'Sheet1 select'!$B$23)/('Sheet1 select'!$B$27+'Sheet1 select'!$B$8)))+(('Sheet1 select'!$B$33+0.5*'Sheet1 select'!$B$32)/(('Sheet1 select'!$B$23)/('Sheet1 select'!$B$27+'Sheet1 select'!$B$9)))) -> 0.06033273938 | L174: =(F174*$B$29)*(('Sheet1 select'!$B$12+'Sheet1 select'!$B$13)*(0.000000001))*$B$9*1000 -> 0 | M174: 0.000259124321 | N174: =$B$11*'Sheet1 select'!$B$29*0.001 -> 0.024 | O174: ='Sheet1 select'!$B$10*'Sheet1 select'!$B$31*$B$9*1000*0.000000001 -> 0.0408 | P174: ='Sheet1 select'!$B$35*$B$11*$B$9*1000*0.000000001 -> 0 | Q174: =IF('Sheet1 select'!$B$17=0,0,(0.00000006*0.7+0.00000003*(0.7+F174*1.1*'Sheet1 select'!$B$26))*F174*$B$9*1000) -> 0 | R174: 0.5232848672 | S174: 0.8785116649 | T174: =H174+K174+O174+N174+'Sheet1 select'!$B$40*I174+J174+P174 -> 0.4178381873
E175: 173 | F175: 1.153333333 | G175: 0.1064142222 | H175: =F175*F175*('Sheet1 select'!$B$25)*$B$4 -> 0.01857962046 | I175: =F175*(1-$B$4)*'Sheet1 select'!$B$41 -> 0.275935 | J175: =F175*F175*('Sheet1 select'!$B$26)*(1-$B$4) -> 0 | K175: =0.0000005*$B$11*F175*$B$9*((('Sheet1 select'!$B$33+0.5*'Sheet1 select'!$B$32)/(('Sheet1 select'!$B$10-'Sheet1 select'!$B$23)/('Sheet1 select'!$B$27+'Sheet1 select'!$B$8)))+(('Sheet1 select'!$B$33+0.5*'Sheet1 select'!$B$32)/(('Sheet1 select'!$B$23)/('Sheet1 select'!$B$27+'Sheet1 select'!$B$9)))) -> 0.06068351112 | L175: =(F175*$B$29)*(('Sheet1 select'!$B$12+'Sheet1 select'!$B$13)*(0.000000001))*$B$9*1000 -> 0 | M175: 0.000259124321 | N175: =$B$11*'Sheet1 select'!$B$29*0.001 -> 0.024 | O175: ='Sheet1 select'!$B$10*'Sheet1 select'!$B$31*$B$9*1000*0.000000001 -> 0.0408 | P175: ='Sheet1 select'!$B$35*$B$11*$B$9*1000*0.000000001 -> 0 | Q175: =IF('Sheet1 select'!$B$17=0,0,(0.00000006*0.7+0.00000003*(0.7+F175*1.1*'Sheet1 select'!$B$26))*F175*$B$9*1000) -> 0 | R175: 0.5266714781 | S175: 0.8784418618 | T175: =H175+K175+O175+N175+'Sheet1 select'!$B$40*I175+J175+P175 -> 0.4199981316
E176: 174 | F176: 1.16 | G176: 0.107648 | H176: =F176*F176*('Sheet1 select'!$B$25)*$B$4 -> 0.01879503455 | I176: =F176*(1-$B$4)*'Sheet1 select'!$B$41 -> 0.27753 | J176: =F176*F176*('Sheet1 select'!$B$26)*(1-$B$4) -> 0 | K176: =0.0000005*$B$11*F176*$B$9*((('Sheet1 select'!$B$33+0.5*'Sheet1 select'!$B$32)/(('Sheet1 select'!$B$10-'Sheet1 select'!$B$23)/('Sheet1 select'!$B$27+'Sheet1 select'!$B$8)))+(('Sheet1 select'!$B$33+0.5*'Sheet1 select'!$B$32)/(('Sheet1 select'!$B$23)/('Sheet1 select'!$B$27+'Sheet1 select'!$B$9)))) -> 0.06103428286 | L176: =(F176*$B$29)*(('Sheet1 select'!$B$12+'Sheet1 select'!$B$13)*(0.000000001))*$B$9*1000 -> 0 | M176: 0.000259124321 | N176: =$B$11*'Sheet1 select'!$B$29*0.001 -> 0.024 | O176: ='Sheet1 select'!$B$10*'Sheet1 select'!$B$31*$B$9*1000*0.000000001 -> 0.0408 | P176: ='Sheet1 select'!$B$35*$B$11*$B$9*1000*0.000000001 -> 0 | Q176: =IF('Sheet1 select'!$B$17=0,0,(0.00000006*0.7+0.00000003*(0.7+F176*1.1*'Sheet1 select'!$B$26))*F176*$B$9*1000) -> 0 | R176: 0.5300664417 | S176: 0.8783711885 | T176: =H176+K176+O176+N176+'Sheet1 select'!$B$40*I176+J176+P176 -> 0.4221593174
E177: 175 | F177: 1.166666667 | G177: 0.1088888889 | H177: =F177*F177*('Sheet1 select'!$B$25)*$B$4 -> 0.01901169022 | I177: =F177*(1-$B$4)*'Sheet1 select'!$B$41 -> 0.279125 | J177: =F177*F177*('Sheet1 select'!$B$26)*(1-$B$4) -> 0 | K177: =0.0000005*$B$11*F177*$B$9*((('Sheet1 select'!$B$33+0.5*'Sheet1 select'!$B$32)/(('Sheet1 select'!$B$10-'Sheet1 select'!$B$23)/('Sheet1 select'!$B$27+'Sheet1 select'!$B$8)))+(('Sheet1 select'!$B$33+0.5*'Sheet1 select'!$B$32)/(('Sheet1 select'!$B$23)/('Sheet1 select'!$B$27+'Sheet1 select'!$B$9)))) -> 0.0613850546 | L177: =(F177*$B$29)*(('Sheet1 select'!$B$12+'Sheet1 select'!$B$13)*(0.000000001))*$B$9*1000 -> 0 | M177: 0.000259124321 | N177: =$B$11*'Sheet1 select'!$B$29*0.001 -> 0.024 | O177: ='Sheet1 select'!$B$10*'Sheet1 select'!$B$31*$B$9*1000*0.000000001 -> 0.0408 | P177: ='Sheet1 select'!$B$35*$B$11*$B$9*1000*0.000000001 -> 0 | Q177: =IF('Sheet1 select'!$B$17=0,0,(0.00000006*0.7+0.00000003*(0.7+F177*1.1*'Sheet1 select'!$B$26))*F177*$B$9*1000) -> 0 | R177: 0.533469758 | S177: 0.8782996604 | T177: =H177+K177+O177+N177+'Sheet1 select'!$B$40*I177+J177+P177 -> 0.4243217448
E178: 176 | F178: 1.173333333 | G178: 0.1101368889 | H178: =F178*F178*('Sheet1 select'!$B$25)*$B$4 -> 0.01922958747 | I178: =F178*(1-$B$4)*'Sheet1 select'!$B$41 -> 0.28072 | J178: =F178*F178*('Sheet1 select'!$B$26)*(1-$B$4) -> 0 | K178: =0.0000005*$B$11*F178*$B$9*((('Sheet1 select'!$B$33+0.5*'Sheet1 select'!$B$32)/(('Sheet1 select'!$B$10-'Sheet1 select'!$B$23)/('Sheet1 select'!$B$27+'Sheet1 select'!$B$8)))+(('Sheet1 select'!$B$33+0.5*'Sheet1 select'!$B$32)/(('Sheet1 select'!$B$23)/('Sheet1 select'!$B$27+'Sheet1 select'!$B$9)))) -> 0.06173582634 | L178: =(F178*$B$29)*(('Sheet1 select'!$B$12+'Sheet1 select'!$B$13)*(0.000000001))*$B$9*1000 -> 0 | M178: 0.000259124321 | N178: =$B$11*'Sheet1 select'!$B$29*0.001 -> 0.024 | O178: ='Sheet1 select'!$B$10*'Sheet1 select'!$B$31*$B$9*1000*0.000000001 -> 0.0408 | P178: ='Sheet1 select'!$B$35*$B$11*$B$9*1000*0.000000001 -> 0 | Q178: =IF('Sheet1 select'!$B$17=0,0,(0.00000006*0.7+0.00000003*(0.7+F178*1.1*'Sheet1 select'!$B$26))*F178*$B$9*1000) -> 0 | R178: 0.536881427 | S178: 0.8782272928 | T178: =H178+K178+O178+N178+'Sheet1 select'!$B$40*I178+J178+P178 -> 0.4264854138
E179: 177 | F179: 1.18 | G179: 0.111392 | H179: =F179*F179*('Sheet1 select'!$B$25)*$B$4 -> 0.0194487263 | I179: =F179*(1-$B$4)*'Sheet1 select'!$B$41 -> 0.282315 | J179: =F179*F179*('Sheet1 select'!$B$26)*(1-$B$4) -> 0 | K179: =0.0000005*$B$11*F179*$B$9*((('Sheet1 select'!$B$33+0.5*'Sheet1 select'!$B$32)/(('Sheet1 select'!$B$10-'Sheet1 select'!$B$23)/('Sheet1 select'!$B$27+'Sheet1 select'!$B$8)))+(('Sheet1 select'!$B$33+0.5*'Sheet1 select'!$B$32)/(('Sheet1 select'!$B$23)/('Sheet1 select'!$B$27+'Sheet1 select'!$B$9)))) -> 0.06208659808 | L179: =(F179*$B$29)*(('Sheet1 select'!$B$12+'Sheet1 select'!$B$13)*(0.000000001))*$B$9*1000 -> 0 | M179: 0.000259124321 | N179: =$B$11*'Sheet1 select'!$B$29*0.001 -> 0.024 | O179: ='Sheet1 select'!$B$10*'Sheet1 select'!$B$31*$B$9*1000*0.000000001 -> 0.0408 | P179: ='Sheet1 select'!$B$35*$B$11*$B$9*1000*0.000000001 -> 0 | Q179: =IF('Sheet1 select'!$B$17=0,0,(0.00000006*0.7+0.00000003*(0.7+F179*1.1*'Sheet1 select'!$B$26))*F179*$B$9*1000) -> 0 | R179: 0.5403014487 | S179: 0.8781541005 | T179: =H179+K179+O179+N179+'Sheet1 select'!$B$40*I179+J179+P179 -> 0.4286503244
E180: 178 | F180: 1.186666667 | G180: 0.1126542222 | H180: =F180*F180*('Sheet1 select'!$B$25)*$B$4 -> 0.01966910671 | I180: =F180*(1-$B$4)*'Sheet1 select'!$B$41 -> 0.28391 | J180: =F180*F180*('Sheet1 select'!$B$26)*(1-$B$4) -> 0 | K180: =0.0000005*$B$11*F180*$B$9*((('Sheet1 select'!$B$33+0.5*'Sheet1 select'!$B$32)/(('Sheet1 select'!$B$10-'Sheet1 select'!$B$23)/('Sheet1 select'!$B$27+'Sheet1 select'!$B$8)))+(('Sheet1 select'!$B$33+0.5*'Sheet1 select'!$B$32)/(('Sheet1 select'!$B$23)/('Sheet1 select'!$B$27+'Sheet1 select'!$B$9)))) -> 0.06243736982 | L180: =(F180*$B$29)*(('Sheet1 select'!$B$12+'Sheet1 select'!$B$13)*(0.000000001))*$B$9*1000 -> 0 | M180: 0.000259124321 | N180: =$B$11*'Sheet1 select'!$B$29*0.001 -> 0.024 | O180: ='Sheet1 select'!$B$10*'Sheet1 select'!$B$31*$B$9*1000*0.000000001 -> 0.0408 | P180: ='Sheet1 select'!$B$35*$B$11*$B$9*1000*0.000000001 -> 0 | Q180: =IF('Sheet1 select'!$B$17=0,0,(0.00000006*0.7+0.00000003*(0.7+F180*1.1*'Sheet1 select'!$B$26))*F180*$B$9*1000) -> 0 | R180: 0.5437298231 | S180: 0.878080098 | T180: =H180+K180+O180+N180+'Sheet1 select'!$B$40*I180+J180+P180 -> 0.4308164765
E181: 179 | F181: 1.193333333 | G181: 0.1139235556 | H181: =F181*F181*('Sheet1 select'!$B$25)*$B$4 -> 0.0198907287 | I181: =F181*(1-$B$4)*'Sheet1 select'!$B$41 -> 0.285505 | J181: =F181*F181*('Sheet1 select'!$B$26)*(1-$B$4) -> 0 | K181: =0.0000005*$B$11*F181*$B$9*((('Sheet1 select'!$B$33+0.5*'Sheet1 select'!$B$32)/(('Sheet1 select'!$B$10-'Sheet1 select'!$B$23)/('Sheet1 select'!$B$27+'Sheet1 select'!$B$8)))+(('Sheet1 select'!$B$33+0.5*'Sheet1 select'!$B$32)/(('Sheet1 select'!$B$23)/('Sheet1 select'!$B$27+'Sheet1 select'!$B$9)))) -> 0.06278814156 | L181: =(F181*$B$29)*(('Sheet1 select'!$B$12+'Sheet1 select'!$B$13)*(0.000000001))*$B$9*1000 -> 0 | M181: 0.000259124321 | N181: =$B$11*'Sheet1 select'!$B$29*0.001 -> 0.024 | O181: ='Sheet1 select'!$B$10*'Sheet1 select'!$B$31*$B$9*1000*0.000000001 -> 0.0408 | P181: ='Sheet1 select'!$B$35*$B$11*$B$9*1000*0.000000001 -> 0 | Q181: =IF('Sheet1 select'!$B$17=0,0,(0.00000006*0.7+0.00000003*(0.7+F181*1.1*'Sheet1 select'!$B$26))*F181*$B$9*1000) -> 0 | R181: 0.5471665501 | S181: 0.8780052995 | T181: =H181+K181+O181+N181+'Sheet1 select'!$B$40*I181+J181+P181 -> 0.4329838703
E182: 180 | F182: 1.2 | G182: 0.1152 | H182: =F182*F182*('Sheet1 select'!$B$25)*$B$4 -> 0.02011359227 | I182: =F182*(1-$B$4)*'Sheet1 select'!$B$41 -> 0.2871 | J182: =F182*F182*('Sheet1 select'!$B$26)*(1-$B$4) -> 0 | K182: =0.0000005*$B$11*F182*$B$9*((('Sheet1 select'!$B$33+0.5*'Sheet1 select'!$B$32)/(('Sheet1 select'!$B$10-'Sheet1 select'!$B$23)/('Sheet1 select'!$B$27+'Sheet1 select'!$B$8)))+(('Sheet1 select'!$B$33+0.5*'Sheet1 select'!$B$32)/(('Sheet1 select'!$B$23)/('Sheet1 select'!$B$27+'Sheet1 select'!$B$9)))) -> 0.0631389133 | L182: =(F182*$B$29)*(('Sheet1 select'!$B$12+'Sheet1 select'!$B$13)*(0.000000001))*$B$9*1000 -> 0 | M182: 0.000259124321 | N182: =$B$11*'Sheet1 select'!$B$29*0.001 -> 0.024 | O182: ='Sheet1 select'!$B$10*'Sheet1 select'!$B$31*$B$9*1000*0.000000001 -> 0.0408 | P182: ='Sheet1 select'!$B$35*$B$11*$B$9*1000*0.000000001 -> 0 | Q182: =IF('Sheet1 select'!$B$17=0,0,(0.00000006*0.7+0.00000003*(0.7+F182*1.1*'Sheet1 select'!$B$26))*F182*$B$9*1000) -> 0 | R182: 0.5506116299 | S182: 0.8779297188 | T182: =H182+K182+O182+N182+'Sheet1 select'!$B$40*I182+J182+P182 -> 0.4351525056
E183: 181 | F183: 1.206666667 | G183: 0.1164835556 | H183: =F183*F183*('Sheet1 select'!$B$25)*$B$4 -> 0.02033769741 | I183: =F183*(1-$B$4)*'Sheet1 select'!$B$41 -> 0.288695 | J183: =F183*F183*('Sheet1 select'!$B$26)*(1-$B$4) -> 0 | K183: =0.0000005*$B$11*F183*$B$9*((('Sheet1 select'!$B$33+0.5*'Sheet1 select'!$B$32)/(('Sheet1 select'!$B$10-'Sheet1 select'!$B$23)/('Sheet1 select'!$B$27+'Sheet1 select'!$B$8)))+(('Sheet1 select'!$B$33+0.5*'Sheet1 select'!$B$32)/(('Sheet1 select'!$B$23)/('Sheet1 select'!$B$27+'Sheet1 select'!$B$9)))) -> 0.06348968504 | L183: =(F183*$B$29)*(('Sheet1 select'!$B$12+'Sheet1 select'!$B$13)*(0.000000001))*$B$9*1000 -> 0 | M183: 0.000259124321 | N183: =$B$11*'Sheet1 select'!$B$29*0.001 -> 0.024 | O183: ='Sheet1 select'!$B$10*'Sheet1 select'!$B$31*$B$9*1000*0.000000001 -> 0.0408 | P183: ='Sheet1 select'!$B$35*$B$11*$B$9*1000*0.000000001 -> 0 | Q183: =IF('Sheet1 select'!$B$17=0,0,(0.00000006*0.7+0.00000003*(0.7+F183*1.1*'Sheet1 select'!$B$26))*F183*$B$9*1000) -> 0 | R183: 0.5540650623 | S183: 0.8778533697 | T183: =H183+K183+O183+N183+'Sheet1 select'!$B$40*I183+J183+P183 -> 0.4373223825
E184: 182 | F184: 1.213333333 | G184: 0.1177742222 | H184: =F184*F184*('Sheet1 select'!$B$25)*$B$4 -> 0.02056304414 | I184: =F184*(1-$B$4)*'Sheet1 select'!$B$41 -> 0.29029 | J184: =F184*F184*('Sheet1 select'!$B$26)*(1-$B$4) -> 0 | K184: =0.0000005*$B$11*F184*$B$9*((('Sheet1 select'!$B$33+0.5*'Sheet1 select'!$B$32)/(('Sheet1 select'!$B$10-'Sheet1 select'!$B$23)/('Sheet1 select'!$B$27+'Sheet1 select'!$B$8)))+(('Sheet1 select'!$B$33+0.5*'Sheet1 select'!$B$32)/(('Sheet1 select'!$B$23)/('Sheet1 select'!$B$27+'Sheet1 select'!$B$9)))) -> 0.06384045678 | L184: =(F184*$B$29)*(('Sheet1 select'!$B$12+'Sheet1 select'!$B$13)*(0.000000001))*$B$9*1000 -> 0 | M184: 0.000259124321 | N184: =$B$11*'Sheet1 select'!$B$29*0.001 -> 0.024 | O184: ='Sheet1 select'!$B$10*'Sheet1 select'!$B$31*$B$9*1000*0.000000001 -> 0.0408 | P184: ='Sheet1 select'!$B$35*$B$11*$B$9*1000*0.000000001 -> 0 | Q184: =IF('Sheet1 select'!$B$17=0,0,(0.00000006*0.7+0.00000003*(0.7+F184*1.1*'Sheet1 select'!$B$26))*F184*$B$9*1000) -> 0 | R184: 0.5575268475 | S184: 0.8777762652 | T184: =H184+K184+O184+N184+'Sheet1 select'!$B$40*I184+J184+P184 -> 0.4394935009
E185: 183 | F185: 1.22 | G185: 0.119072 | H185: =F185*F185*('Sheet1 select'!$B$25)*$B$4 -> 0.02078963245 | I185: =F185*(1-$B$4)*'Sheet1 select'!$B$41 -> 0.291885 | J185: =F185*F185*('Sheet1 select'!$B$26)*(1-$B$4) -> 0 | K185: =0.0000005*$B$11*F185*$B$9*((('Sheet1 select'!$B$33+0.5*'Sheet1 select'!$B$32)/(('Sheet1 select'!$B$10-'Sheet1 select'!$B$23)/('Sheet1 select'!$B$27+'Sheet1 select'!$B$8)))+(('Sheet1 select'!$B$33+0.5*'Sheet1 select'!$B$32)/(('Sheet1 select'!$B$23)/('Sheet1 select'!$B$27+'Sheet1 select'!$B$9)))) -> 0.06419122852 | L185: =(F185*$B$29)*(('Sheet1 select'!$B$12+'Sheet1 select'!$B$13)*(0.000000001))*$B$9*1000 -> 0 | M185: 0.000259124321 | N185: =$B$11*'Sheet1 select'!$B$29*0.001 -> 0.024 | O185: ='Sheet1 select'!$B$10*'Sheet1 select'!$B$31*$B$9*1000*0.000000001 -> 0.0408 | P185: ='Sheet1 select'!$B$35*$B$11*$B$9*1000*0.000000001 -> 0 | Q185: =IF('Sheet1 select'!$B$17=0,0,(0.00000006*0.7+0.00000003*(0.7+F185*1.1*'Sheet1 select'!$B$26))*F185*$B$9*1000) -> 0 | R185: 0.5609969853 | S185: 0.8776984186 | T185: =H185+K185+O185+N185+'Sheet1 select'!$B$40*I185+J185+P185 -> 0.441665861
E186: 184 | F186: 1.226666667 | G186: 0.1203768889 | H186: =F186*F186*('Sheet1 select'!$B$25)*$B$4 -> 0.02101746234 | I186: =F186*(1-$B$4)*'Sheet1 select'!$B$41 -> 0.29348 | J186: =F186*F186*('Sheet1 select'!$B$26)*(1-$B$4) -> 0 | K186: =0.0000005*$B$11*F186*$B$9*((('Sheet1 select'!$B$33+0.5*'Sheet1 select'!$B$32)/(('Sheet1 select'!$B$10-'Sheet1 select'!$B$23)/('Sheet1 select'!$B$27+'Sheet1 select'!$B$8)))+(('Sheet1 select'!$B$33+0.5*'Sheet1 select'!$B$32)/(('Sheet1 select'!$B$23)/('Sheet1 select'!$B$27+'Sheet1 select'!$B$9)))) -> 0.06454200026 | L186: =(F186*$B$29)*(('Sheet1 select'!$B$12+'Sheet1 select'!$B$13)*(0.000000001))*$B$9*1000 -> 0 | M186: 0.000259124321 | N186: =$B$11*'Sheet1 select'!$B$29*0.001 -> 0.024 | O186: ='Sheet1 select'!$B$10*'Sheet1 select'!$B$31*$B$9*1000*0.000000001 -> 0.0408 | P186: ='Sheet1 select'!$B$35*$B$11*$B$9*1000*0.000000001 -> 0 | Q186: =IF('Sheet1 select'!$B$17=0,0,(0.00000006*0.7+0.00000003*(0.7+F186*1.1*'Sheet1 select'!$B$26))*F186*$B$9*1000) -> 0 | R186: 0.5644754758 | S186: 0.8776198424 | T186: =H186+K186+O186+N186+'Sheet1 select'!$B$40*I186+J186+P186 -> 0.4438394626
E187: 185 | F187: 1.233333333 | G187: 0.1216888889 | H187: =F187*F187*('Sheet1 select'!$B$25)*$B$4 -> 0.02124653381 | I187: =F187*(1-$B$4)*'Sheet1 select'!$B$41 -> 0.295075 | J187: =F187*F187*('Sheet1 select'!$B$26)*(1-$B$4) -> 0 | K187: =0.0000005*$B$11*F187*$B$9*((('Sheet1 select'!$B$33+0.5*'Sheet1 select'!$B$32)/(('Sheet1 select'!$B$10-'Sheet1 select'!$B$23)/('Sheet1 select'!$B$27+'Sheet1 select'!$B$8)))+(('Sheet1 select'!$B$33+0.5*'Sheet1 select'!$B$32)/(('Sheet1 select'!$B$23)/('Sheet1 select'!$B$27+'Sheet1 select'!$B$9)))) -> 0.06489277201 | L187: =(F187*$B$29)*(('Sheet1 select'!$B$12+'Sheet1 select'!$B$13)*(0.000000001))*$B$9*1000 -> 0 | M187: 0.000259124321 | N187: =$B$11*'Sheet1 select'!$B$29*0.001 -> 0.024 | O187: ='Sheet1 select'!$B$10*'Sheet1 select'!$B$31*$B$9*1000*0.000000001 -> 0.0408 | P187: ='Sheet1 select'!$B$35*$B$11*$B$9*1000*0.000000001 -> 0 | Q187: =IF('Sheet1 select'!$B$17=0,0,(0.00000006*0.7+0.00000003*(0.7+F187*1.1*'Sheet1 select'!$B$26))*F187*$B$9*1000) -> 0 | R187: 0.567962319 | S187: 0.8775405491 | T187: =H187+K187+O187+N187+'Sheet1 select'!$B$40*I187+J187+P187 -> 0.4460143058
E188: 186 | F188: 1.24 | G188: 0.123008 | H188: =F188*F188*('Sheet1 select'!$B$25)*$B$4 -> 0.02147684685 | I188: =F188*(1-$B$4)*'Sheet1 select'!$B$41 -> 0.29667 | J188: =F188*F188*('Sheet1 select'!$B$26)*(1-$B$4) -> 0 | K188: =0.0000005*$B$11*F188*$B$9*((('Sheet1 select'!$B$33+0.5*'Sheet1 select'!$B$32)/(('Sheet1 select'!$B$10-'Sheet1 select'!$B$23)/('Sheet1 select'!$B$27+'Sheet1 select'!$B$8)))+(('Sheet1 select'!$B$33+0.5*'Sheet1 select'!$B$32)/(('Sheet1 select'!$B$23)/('Sheet1 select'!$B$27+'Sheet1 select'!$B$9)))) -> 0.06524354375 | L188: =(F188*$B$29)*(('Sheet1 select'!$B$12+'Sheet1 select'!$B$13)*(0.000000001))*$B$9*1000 -> 0 | M188: 0.000259124321 | N188: =$B$11*'Sheet1 select'!$B$29*0.001 -> 0.024 | O188: ='Sheet1 select'!$B$10*'Sheet1 select'!$B$31*$B$9*1000*0.000000001 -> 0.0408 | P188: ='Sheet1 select'!$B$35*$B$11*$B$9*1000*0.000000001 -> 0 | Q188: =IF('Sheet1 select'!$B$17=0,0,(0.00000006*0.7+0.00000003*(0.7+F188*1.1*'Sheet1 select'!$B$26))*F188*$B$9*1000) -> 0 | R188: 0.5714575149 | S188: 0.8774605509 | T188: =H188+K188+O188+N188+'Sheet1 select'!$B$40*I188+J188+P188 -> 0.4481903906
E189: 187 | F189: 1.246666667 | G189: 0.1243342222 | H189: =F189*F189*('Sheet1 select'!$B$25)*$B$4 -> 0.02170840148 | I189: =F189*(1-$B$4)*'Sheet1 select'!$B$41 -> 0.298265 | J189: =F189*F189*('Sheet1 select'!$B$26)*(1-$B$4) -> 0 | K189: =0.0000005*$B$11*F189*$B$9*((('Sheet1 select'!$B$33+0.5*'Sheet1 select'!$B$32)/(('Sheet1 select'!$B$10-'Sheet1 select'!$B$23)/('Sheet1 select'!$B$27+'Sheet1 select'!$B$8)))+(('Sheet1 select'!$B$33+0.5*'Sheet1 select'!$B$32)/(('Sheet1 select'!$B$23)/('Sheet1 select'!$B$27+'Sheet1 select'!$B$9)))) -> 0.06559431549 | L189: =(F189*$B$29)*(('Sheet1 select'!$B$12+'Sheet1 select'!$B$13)*(0.000000001))*$B$9*1000 -> 0 | M189: 0.000259124321 | N189: =$B$11*'Sheet1 select'!$B$29*0.001 -> 0.024 | O189: ='Sheet1 select'!$B$10*'Sheet1 select'!$B$31*$B$9*1000*0.000000001 -> 0.0408 | P189: ='Sheet1 select'!$B$35*$B$11*$B$9*1000*0.000000001 -> 0 | Q189: =IF('Sheet1 select'!$B$17=0,0,(0.00000006*0.7+0.00000003*(0.7+F189*1.1*'Sheet1 select'!$B$26))*F189*$B$9*1000) -> 0 | R189: 0.5749610635 | S189: 0.8773798597 | T189: =H189+K189+O189+N189+'Sheet1 select'!$B$40*I189+J189+P189 -> 0.450367717
E190: 188 | F190: 1.253333333 | G190: 0.1256675556 | H190: =F190*F190*('Sheet1 select'!$B$25)*$B$4 -> 0.02194119769 | I190: =F190*(1-$B$4)*'Sheet1 select'!$B$41 -> 0.29986 | J190: =F190*F190*('Sheet1 select'!$B$26)*(1-$B$4) -> 0 | K190: =0.0000005*$B$11*F190*$B$9*((('Sheet1 select'!$B$33+0.5*'Sheet1 select'!$B$32)/(('Sheet1 select'!$B$10-'Sheet1 select'!$B$23)/('Sheet1 select'!$B$27+'Sheet1 select'!$B$8)))+(('Sheet1 select'!$B$33+0.5*'Sheet1 select'!$B$32)/(('Sheet1 select'!$B$23)/('Sheet1 select'!$B$27+'Sheet1 select'!$B$9)))) -> 0.06594508723 | L190: =(F190*$B$29)*(('Sheet1 select'!$B$12+'Sheet1 select'!$B$13)*(0.000000001))*$B$9*1000 -> 0 | M190: 0.000259124321 | N190: =$B$11*'Sheet1 select'!$B$29*0.001 -> 0.024 | O190: ='Sheet1 select'!$B$10*'Sheet1 select'!$B$31*$B$9*1000*0.000000001 -> 0.0408 | P190: ='Sheet1 select'!$B$35*$B$11*$B$9*1000*0.000000001 -> 0 | Q190: =IF('Sheet1 select'!$B$17=0,0,(0.00000006*0.7+0.00000003*(0.7+F190*1.1*'Sheet1 select'!$B$26))*F190*$B$9*1000) -> 0 | R190: 0.5784729648 | S190: 0.8772984872 | T190: =H190+K190+O190+N190+'Sheet1 select'!$B$40*I190+J190+P190 -> 0.4525462849
E191: 189 | F191: 1.26 | G191: 0.127008 | H191: =F191*F191*('Sheet1 select'!$B$25)*$B$4 -> 0.02217523547 | I191: =F191*(1-$B$4)*'Sheet1 select'!$B$41 -> 0.301455 | J191: =F191*F191*('Sheet1 select'!$B$26)*(1-$B$4) -> 0 | K191: =0.0000005*$B$11*F191*$B$9*((('Sheet1 select'!$B$33+0.5*'Sheet1 select'!$B$32)/(('Sheet1 select'!$B$10-'Sheet1 select'!$B$23)/('Sheet1 select'!$B$27+'Sheet1 select'!$B$8)))+(('Sheet1 select'!$B$33+0.5*'Sheet1 select'!$B$32)/(('Sheet1 select'!$B$23)/('Sheet1 select'!$B$27+'Sheet1 select'!$B$9)))) -> 0.06629585897 | L191: =(F191*$B$29)*(('Sheet1 select'!$B$12+'Sheet1 select'!$B$13)*(0.000000001))*$B$9*1000 -> 0 | M191: 0.000259124321 | N191: =$B$11*'Sheet1 select'!$B$29*0.001 -> 0.024 | O191: ='Sheet1 select'!$B$10*'Sheet1 select'!$B$31*$B$9*1000*0.000000001 -> 0.0408 | P191: ='Sheet1 select'!$B$35*$B$11*$B$9*1000*0.000000001 -> 0 | Q191: =IF('Sheet1 select'!$B$17=0,0,(0.00000006*0.7+0.00000003*(0.7+F191*1.1*'Sheet1 select'!$B$26))*F191*$B$9*1000) -> 0 | R191: 0.5819932188 | S191: 0.8772164449 | T191: =H191+K191+O191+N191+'Sheet1 select'!$B$40*I191+J191+P191 -> 0.4547260944
E192: 190 | F192: 1.266666667 | G192: 0.1283555556 | H192: =F192*F192*('Sheet1 select'!$B$25)*$B$4 -> 0.02241051484 | I192: =F192*(1-$B$4)*'Sheet1 select'!$B$41 -> 0.30305 | J192: =F192*F192*('Sheet1 select'!$B$26)*(1-$B$4) -> 0 | K192: =0.0000005*$B$11*F192*$B$9*((('Sheet1 select'!$B$33+0.5*'Sheet1 select'!$B$32)/(('Sheet1 select'!$B$10-'Sheet1 select'!$B$23)/('Sheet1 select'!$B$27+'Sheet1 select'!$B$8)))+(('Sheet1 select'!$B$33+0.5*'Sheet1 select'!$B$32)/(('Sheet1 select'!$B$23)/('Sheet1 select'!$B$27+'Sheet1 select'!$B$9)))) -> 0.06664663071 | L192: =(F192*$B$29)*(('Sheet1 select'!$B$12+'Sheet1 select'!$B$13)*(0.000000001))*$B$9*1000 -> 0 | M192: 0.000259124321 | N192: =$B$11*'Sheet1 select'!$B$29*0.001 -> 0.024 | O192: ='Sheet1 select'!$B$10*'Sheet1 select'!$B$31*$B$9*1000*0.000000001 -> 0.0408 | P192: ='Sheet1 select'!$B$35*$B$11*$B$9*1000*0.000000001 -> 0 | Q192: =IF('Sheet1 select'!$B$17=0,0,(0.00000006*0.7+0.00000003*(0.7+F192*1.1*'Sheet1 select'!$B$26))*F192*$B$9*1000) -> 0 | R192: 0.5855218254 | S192: 0.8771337438 | T192: =H192+K192+O192+N192+'Sheet1 select'!$B$40*I192+J192+P192 -> 0.4569071455
E193: 191 | F193: 1.273333333 | G193: 0.1297102222 | H193: =F193*F193*('Sheet1 select'!$B$25)*$B$4 -> 0.02264703579 | I193: =F193*(1-$B$4)*'Sheet1 select'!$B$41 -> 0.304645 | J193: =F193*F193*('Sheet1 select'!$B$26)*(1-$B$4) -> 0 | K193: =0.0000005*$B$11*F193*$B$9*((('Sheet1 select'!$B$33+0.5*'Sheet1 select'!$B$32)/(('Sheet1 select'!$B$10-'Sheet1 select'!$B$23)/('Sheet1 select'!$B$27+'Sheet1 select'!$B$8)))+(('Sheet1 select'!$B$33+0.5*'Sheet1 select'!$B$32)/(('Sheet1 select'!$B$23)/('Sheet1 select'!$B$27+'Sheet1 select'!$B$9)))) -> 0.06699740245 | L193: =(F193*$B$29)*(('Sheet1 select'!$B$12+'Sheet1 select'!$B$13)*(0.000000001))*$B$9*1000 -> 0 | M193: 0.000259124321 | N193: =$B$11*'Sheet1 select'!$B$29*0.001 -> 0.024 | O193: ='Sheet1 select'!$B$10*'Sheet1 select'!$B$31*$B$9*1000*0.000000001 -> 0.0408 | P193: ='Sheet1 select'!$B$35*$B$11*$B$9*1000*0.000000001 -> 0 | Q193: =IF('Sheet1 select'!$B$17=0,0,(0.00000006*0.7+0.00000003*(0.7+F193*1.1*'Sheet1 select'!$B$26))*F193*$B$9*1000) -> 0 | R193: 0.5890587848 | S193: 0.8770503951 | T193: =H193+K193+O193+N193+'Sheet1 select'!$B$40*I193+J193+P193 -> 0.4590894382
E194: 192 | F194: 1.28 | G194: 0.131072 | H194: =F194*F194*('Sheet1 select'!$B$25)*$B$4 -> 0.02288479831 | I194: =F194*(1-$B$4)*'Sheet1 select'!$B$41 -> 0.30624 | J194: =F194*F194*('Sheet1 select'!$B$26)*(1-$B$4) -> 0 | K194: =0.0000005*$B$11*F194*$B$9*((('Sheet1 select'!$B$33+0.5*'Sheet1 select'!$B$32)/(('Sheet1 select'!$B$10-'Sheet1 select'!$B$23)/('Sheet1 select'!$B$27+'Sheet1 select'!$B$8)))+(('Sheet1 select'!$B$33+0.5*'Sheet1 select'!$B$32)/(('Sheet1 select'!$B$23)/('Sheet1 select'!$B$27+'Sheet1 select'!$B$9)))) -> 0.06734817419 | L194: =(F194*$B$29)*(('Sheet1 select'!$B$12+'Sheet1 select'!$B$13)*(0.000000001))*$B$9*1000 -> 0 | M194: 0.000259124321 | N194: =$B$11*'Sheet1 select'!$B$29*0.001 -> 0.024 | O194: ='Sheet1 select'!$B$10*'Sheet1 select'!$B$31*$B$9*1000*0.000000001 -> 0.0408 | P194: ='Sheet1 select'!$B$35*$B$11*$B$9*1000*0.000000001 -> 0 | Q194: =IF('Sheet1 select'!$B$17=0,0,(0.00000006*0.7+0.00000003*(0.7+F194*1.1*'Sheet1 select'!$B$26))*F194*$B$9*1000) -> 0 | R194: 0.5926040968 | S194: 0.8769664093 | T194: =H194+K194+O194+N194+'Sheet1 select'!$B$40*I194+J194+P194 -> 0.4612729725
E195: 193 | F195: 1.286666667 | G195: 0.1324408889 | H195: =F195*F195*('Sheet1 select'!$B$25)*$B$4 -> 0.02312380242 | I195: =F195*(1-$B$4)*'Sheet1 select'!$B$41 -> 0.307835 | J195: =F195*F195*('Sheet1 select'!$B$26)*(1-$B$4) -> 0 | K195: =0.0000005*$B$11*F195*$B$9*((('Sheet1 select'!$B$33+0.5*'Sheet1 select'!$B$32)/(('Sheet1 select'!$B$10-'Sheet1 select'!$B$23)/('Sheet1 select'!$B$27+'Sheet1 select'!$B$8)))+(('Sheet1 select'!$B$33+0.5*'Sheet1 select'!$B$32)/(('Sheet1 select'!$B$23)/('Sheet1 select'!$B$27+'Sheet1 select'!$B$9)))) -> 0.06769894593 | L195: =(F195*$B$29)*(('Sheet1 select'!$B$12+'Sheet1 select'!$B$13)*(0.000000001))*$B$9*1000 -> 0 | M195: 0.000259124321 | N195: =$B$11*'Sheet1 select'!$B$29*0.001 -> 0.024 | O195: ='Sheet1 select'!$B$10*'Sheet1 select'!$B$31*$B$9*1000*0.000000001 -> 0.0408 | P195: ='Sheet1 select'!$B$35*$B$11*$B$9*1000*0.000000001 -> 0 | Q195: =IF('Sheet1 select'!$B$17=0,0,(0.00000006*0.7+0.00000003*(0.7+F195*1.1*'Sheet1 select'!$B$26))*F195*$B$9*1000) -> 0 | R195: =SUM(G195:P195)+Q195 -> 0.5961577616 | S195: 0.8768817971 | T195: =H195+K195+O195+N195+'Sheet1 select'!$B$40*I195+J195+P195 -> 0.4634577483
E196: 194 | F196: =$B$13*E196/300 -> 1.293333333 | G196: =F196*F196*$B$15*0.001*2 -> 0.1338168889 | H196: =F196*F196*('Sheet1 select'!$B$25)*$B$4 -> 0.0233640481 | I196: =F196*(1-$B$4)*'Sheet1 select'!$B$41 -> 0.30943 | J196: =F196*F196*('Sheet1 select'!$B$26)*(1-$B$4) -> 0 | K196: =0.0000005*$B$11*F196*$B$9*((('Sheet1 select'!$B$33+0.5*'Sheet1 select'!$B$32)/(('Sheet1 select'!$B$10-'Sheet1 select'!$B$23)/('Sheet1 select'!$B$27+'Sheet1 select'!$B$8)))+(('Sheet1 select'!$B$33+0.5*'Sheet1 select'!$B$32)/(('Sheet1 select'!$B$23)/('Sheet1 select'!$B$27+'Sheet1 select'!$B$9)))) -> 0.06804971767 | L196: =(F196*$B$29)*(('Sheet1 select'!$B$12+'Sheet1 select'!$B$13)*(0.000000001))*$B$9*1000 -> 0 | M196: =($B$3^2)*$B$17*0.001 -> 0.000259124321 | N196: =$B$11*'Sheet1 select'!$B$29*0.001 -> 0.024 | O196: ='Sheet1 select'!$B$10*'Sheet1 select'!$B$31*$B$9*1000*0.000000001 -> 0.0408 | P196: ='Sheet1 select'!$B$35*$B$11*$B$9*1000*0.000000001 -> 0 | Q196: =IF('Sheet1 select'!$B$17=0,0,(0.00000006*0.7+0.00000003*(0.7+F196*1.1*'Sheet1 select'!$B$26))*F196*$B$9*1000) -> 0 | R196: 0.599719779 | S196: =($B$12*F196)/($B$12*F196+R196) -> 0.8767965688 | T196: =H196+K196+O196+N196+'Sheet1 select'!$B$40*I196+J196+P196 -> 0.4656437658
E197: 195 | F197: 1.3 | G197: 0.1352 | H197: =F197*F197*('Sheet1 select'!$B$25)*$B$4 -> 0.02360553537 | I197: =F197*(1-$B$4)*'Sheet1 select'!$B$41 -> 0.311025 | J197: =F197*F197*('Sheet1 select'!$B$26)*(1-$B$4) -> 0 | K197: =0.0000005*$B$11*F197*$B$9*((('Sheet1 select'!$B$33+0.5*'Sheet1 select'!$B$32)/(('Sheet1 select'!$B$10-'Sheet1 select'!$B$23)/('Sheet1 select'!$B$27+'Sheet1 select'!$B$8)))+(('Sheet1 select'!$B$33+0.5*'Sheet1 select'!$B$32)/(('Sheet1 select'!$B$23)/('Sheet1 select'!$B$27+'Sheet1 select'!$B$9)))) -> 0.06840048941 | L197: =(F197*$B$29)*(('Sheet1 select'!$B$12+'Sheet1 select'!$B$13)*(0.000000001))*$B$9*1000 -> 0 | M197: 0.000259124321 | N197: =$B$11*'Sheet1 select'!$B$29*0.001 -> 0.024 | O197: ='Sheet1 select'!$B$10*'Sheet1 select'!$B$31*$B$9*1000*0.000000001 -> 0.0408 | P197: ='Sheet1 select'!$B$35*$B$11*$B$9*1000*0.000000001 -> 0 | Q197: =IF('Sheet1 select'!$B$17=0,0,(0.00000006*0.7+0.00000003*(0.7+F197*1.1*'Sheet1 select'!$B$26))*F197*$B$9*1000) -> 0 | R197: 0.6032901491 | S197: 0.8767107343 | T197: =H197+K197+O197+N197+'Sheet1 select'!$B$40*I197+J197+P197 -> 0.4678310248
E198: 196 | F198: 1.306666667 | G198: 0.1365902222 | H198: =F198*F198*('Sheet1 select'!$B$25)*$B$4 -> 0.02384826421 | I198: =F198*(1-$B$4)*'Sheet1 select'!$B$41 -> 0.31262 | J198: =F198*F198*('Sheet1 select'!$B$26)*(1-$B$4) -> 0 | K198: =0.0000005*$B$11*F198*$B$9*((('Sheet1 select'!$B$33+0.5*'Sheet1 select'!$B$32)/(('Sheet1 select'!$B$10-'Sheet1 select'!$B$23)/('Sheet1 select'!$B$27+'Sheet1 select'!$B$8)))+(('Sheet1 select'!$B$33+0.5*'Sheet1 select'!$B$32)/(('Sheet1 select'!$B$23)/('Sheet1 select'!$B$27+'Sheet1 select'!$B$9)))) -> 0.06875126115 | L198: =(F198*$B$29)*(('Sheet1 select'!$B$12+'Sheet1 select'!$B$13)*(0.000000001))*$B$9*1000 -> 0 | M198: 0.000259124321 | N198: =$B$11*'Sheet1 select'!$B$29*0.001 -> 0.024 | O198: ='Sheet1 select'!$B$10*'Sheet1 select'!$B$31*$B$9*1000*0.000000001 -> 0.0408 | P198: ='Sheet1 select'!$B$35*$B$11*$B$9*1000*0.000000001 -> 0 | Q198: =IF('Sheet1 select'!$B$17=0,0,(0.00000006*0.7+0.00000003*(0.7+F198*1.1*'Sheet1 select'!$B$26))*F198*$B$9*1000) -> 0 | R198: 0.6068688719 | S198: 0.8766243037 | T198: =H198+K198+O198+N198+'Sheet1 select'!$B$40*I198+J198+P198 -> 0.4700195254
E199: 197 | F199: 1.313333333 | G199: 0.1379875556 | H199: =F199*F199*('Sheet1 select'!$B$25)*$B$4 -> 0.02409223464 | I199: =F199*(1-$B$4)*'Sheet1 select'!$B$41 -> 0.314215 | J199: =F199*F199*('Sheet1 select'!$B$26)*(1-$B$4) -> 0 | K199: =0.0000005*$B$11*F199*$B$9*((('Sheet1 select'!$B$33+0.5*'Sheet1 select'!$B$32)/(('Sheet1 select'!$B$10-'Sheet1 select'!$B$23)/('Sheet1 select'!$B$27+'Sheet1 select'!$B$8)))+(('Sheet1 select'!$B$33+0.5*'Sheet1 select'!$B$32)/(('Sheet1 select'!$B$23)/('Sheet1 select'!$B$27+'Sheet1 select'!$B$9)))) -> 0.06910203289 | L199: =(F199*$B$29)*(('Sheet1 select'!$B$12+'Sheet1 select'!$B$13)*(0.000000001))*$B$9*1000 -> 0 | M199: 0.000259124321 | N199: =$B$11*'Sheet1 select'!$B$29*0.001 -> 0.024 | O199: ='Sheet1 select'!$B$10*'Sheet1 select'!$B$31*$B$9*1000*0.000000001 -> 0.0408 | P199: ='Sheet1 select'!$B$35*$B$11*$B$9*1000*0.000000001 -> 0 | Q199: =IF('Sheet1 select'!$B$17=0,0,(0.00000006*0.7+0.00000003*(0.7+F199*1.1*'Sheet1 select'!$B$26))*F199*$B$9*1000) -> 0 | R199: 0.6104559474 | S199: 0.8765372866 | T199: =H199+K199+O199+N199+'Sheet1 select'!$B$40*I199+J199+P199 -> 0.4722092675
E200: 198 | F200: 1.32 | G200: 0.139392 | H200: =F200*F200*('Sheet1 select'!$B$25)*$B$4 -> 0.02433744664 | I200: =F200*(1-$B$4)*'Sheet1 select'!$B$41 -> 0.31581 | J200: =F200*F200*('Sheet1 select'!$B$26)*(1-$B$4) -> 0 | K200: =0.0000005*$B$11*F200*$B$9*((('Sheet1 select'!$B$33+0.5*'Sheet1 select'!$B$32)/(('Sheet1 select'!$B$10-'Sheet1 select'!$B$23)/('Sheet1 select'!$B$27+'Sheet1 select'!$B$8)))+(('Sheet1 select'!$B$33+0.5*'Sheet1 select'!$B$32)/(('Sheet1 select'!$B$23)/('Sheet1 select'!$B$27+'Sheet1 select'!$B$9)))) -> 0.06945280463 | L200: =(F200*$B$29)*(('Sheet1 select'!$B$12+'Sheet1 select'!$B$13)*(0.000000001))*$B$9*1000 -> 0 | M200: 0.000259124321 | N200: =$B$11*'Sheet1 select'!$B$29*0.001 -> 0.024 | O200: ='Sheet1 select'!$B$10*'Sheet1 select'!$B$31*$B$9*1000*0.000000001 -> 0.0408 | P200: ='Sheet1 select'!$B$35*$B$11*$B$9*1000*0.000000001 -> 0 | Q200: =IF('Sheet1 select'!$B$17=0,0,(0.00000006*0.7+0.00000003*(0.7+F200*1.1*'Sheet1 select'!$B$26))*F200*$B$9*1000) -> 0 | R200: 0.6140513756 | S200: 0.8764496925 | T200: =H200+K200+O200+N200+'Sheet1 select'!$B$40*I200+J200+P200 -> 0.4744002513
E201: 199 | F201: 1.326666667 | G201: 0.1408035556 | H201: =F201*F201*('Sheet1 select'!$B$25)*$B$4 -> 0.02458390023 | I201: =F201*(1-$B$4)*'Sheet1 select'!$B$41 -> 0.317405 | J201: =F201*F201*('Sheet1 select'!$B$26)*(1-$B$4) -> 0 | K201: =0.0000005*$B$11*F201*$B$9*((('Sheet1 select'!$B$33+0.5*'Sheet1 select'!$B$32)/(('Sheet1 select'!$B$10-'Sheet1 select'!$B$23)/('Sheet1 select'!$B$27+'Sheet1 select'!$B$8)))+(('Sheet1 select'!$B$33+0.5*'Sheet1 select'!$B$32)/(('Sheet1 select'!$B$23)/('Sheet1 select'!$B$27+'Sheet1 select'!$B$9)))) -> 0.06980357637 | L201: =(F201*$B$29)*(('Sheet1 select'!$B$12+'Sheet1 select'!$B$13)*(0.000000001))*$B$9*1000 -> 0 | M201: 0.000259124321 | N201: =$B$11*'Sheet1 select'!$B$29*0.001 -> 0.024 | O201: ='Sheet1 select'!$B$10*'Sheet1 select'!$B$31*$B$9*1000*0.000000001 -> 0.0408 | P201: ='Sheet1 select'!$B$35*$B$11*$B$9*1000*0.000000001 -> 0 | Q201: =IF('Sheet1 select'!$B$17=0,0,(0.00000006*0.7+0.00000003*(0.7+F201*1.1*'Sheet1 select'!$B$26))*F201*$B$9*1000) -> 0 | R201: 0.6176551565 | S201: 0.8763615307 | T201: =H201+K201+O201+N201+'Sheet1 select'!$B$40*I201+J201+P201 -> 0.4765924766
... 101 more rows

Sheet Bode Plot Calculations (hidden)
A2: Divider and EA | D2: Modulator | G2: Power Stage | J2: Complex Pole pair | M2: Total System
A3: Afb | B3: ='Sheet1 select'!B18/'EZBuck design calculator'!N16 -> 0.2424242424 | C3: V/V | D3: Acs | E3: =('EZBuck design calculator'!N16/'EZBuck design calculator'!N17)/('Sheet1 select'!B25*'Sheet1 select'!B5) -> 17.84917305 | F3: V/V | G3: z1 | H3: =1000000000/(2*3.14159265*'EZBuck design calculator'!N33*'EZBuck design calculator'!N34) -> 1205719.267 | I3: Hz | J3: p3 | K3: ='Sheet1 select'!B3*1000/2 -> 250000 | L3: Hz | M3: Adc | N3: =E3*E4*B3*B6 -> 592.4279956 | O3: V/V | P3: Q
A4: z2 | B4: =1000000/(2*3.14159265*'EZBuck design calculator'!N51*'EZBuck design calculator'!N50) -> 7957.747164 | C4: Hz | D4: Am | E4: =1/(1+(1000*('EZBuck design calculator'!N16/'EZBuck design calculator'!N17)*(E7*(1-'Efficiency calculations'!B4)-0.5)/('Sheet1 select'!B3*'EZBuck design calculator'!N25))) -> 0.5704665502 | F4: V/V | G4: p1 | H4: =(1000000/(2*3.14159265*'EZBuck design calculator'!N33*('EZBuck design calculator'!N16/'EZBuck design calculator'!N17)))+(1000000000*(E7*(1-'Efficiency calculations'!B4)-0.5)/(2*3.14159265*'Sheet1 select'!B3*'EZBuck design calculator'!N25*'EZBuck design calculator'!N33)) -> 3842.849066 | I4: Hz | J4: pterm1 | K4: =K6*Pole3 -> 74206.06674 | M4: Crossover | N4: =MIN(R12:R612)/1000 -> 29.344 | O4: Khz | P4: =K6 -> 0.296824267
A5: p2 | B5: =1000/(2*3.14159265*'Sheet1 select'!B7*'EZBuck design calculator'!N50) -> 106.1032955 | C5: Hz | D5: Se | E5: ='Sheet1 select'!B4*'Sheet1 select'!B3*1000 -> 200000 | J5: pterm2 | K5: =Pole3^2 -> 62500000000 | M5: Phase Margin | N5: =P616 -> 59.92843462 | O5: Deg
A6: Aea | B6: ='Sheet1 select'!B6*'Sheet1 select'!B7 -> 240 | C6: V/V | D6: Sn | E6: =1000000*(1-'Efficiency calculations'!B4)*'EZBuck design calculator'!N15*'Sheet1 select'!B25*'Sheet1 select'!B5/'EZBuck design calculator'!N25 -> 171114.6679 | J6: Q | K6: =1/(3.14159265*(E7*(1-'Efficiency calculations'!B4)-0.5)) -> 0.296824267 | M6: radconv | N6: =180/3.14159265 -> 57.29577958
A7: p4 | B7: =IF('EZBuck design calculator'!N52=0,1/(2*3.14159265*'EZBuck design calculator'!N51*1000*10*0.000000000001),1/(2*3.14159265*'EZBuck design calculator'!N51*1000*('EZBuck design calculator'!N52+10)*0.000000000001)) -> 795774.7164 | D7: mc | E7: =1+E5/E6 -> 2.168806873
A9: Frequency(Hz) | B9: Power Stage | F9: Error Amplifier | L9: Sampling Double Pole | N9: System Response | U9: ERROR AMP Response | X9: PLANT Response
B10: p1 | D10: z1 | F10: p2 | H10: z2 | J10: p4 | L10: P3 | N10: Gain (dB) | P10: Phase Margin
B11: Gain(V/V) | C11: Phase(rad) | D11: Gain(V/V) | E11: Phase(rad) | F11: Gain(V/V) | G11: Phase(rad) | H11: Gain(V/V) | I11: Phase(rad) | J11: Gain(V/V) | K11: Phase(rad) | L11: Gain(V/V) | M11: Phase(rad) | N11: Gain (dB) | O11: Phase (Deg) | P11: Phase Margin | S11: Fsquare | U11: Gain(dB) | V11: Phase(Deg) | X11: Gain(dB) | Y11: Phase(Deg)
A12: 1 | B12: =SQRT(1+(A12/Pole1)^2) -> 1.000000034 | C12: =ATAN(A12/Pole1) -> 0.0002602235894 | D12: =SQRT(1+(A12/Zero1)^2) -> 1 | E12: =ATAN(A12/Zero1) -> 8.293804596e-07 | F12: =SQRT(1+(A12/Pole2)^2) -> 1.000044412 | G12: =ATAN(A12/Pole2) -> 0.009424498908 | H12: =SQRT(1+(A12/Zero2)^2) -> 1.000000008 | I12: =ATAN(A12/Zero2) -> 0.0001256637053 | J12: =SQRT(1+(A12/pole4)^2) -> 1 | K12: =ATAN(A12/pole4) -> 1.25663706e-06 | L12: =SQRT((1-(S12/pterm2))^2+(A12/pterm1)^2) -> 1 | M12: =IF((ATAN((A12/pterm1)/(1-A12^2/pterm2))>0),ATAN((A12/pterm1)/(1-A12^2/pterm2)),PI()+ATAN((A12/pterm1)/(1-A12^2/pterm2))) -> 1.347598712e-05 | N12: =20*LOG10(((D12*H12)/(B12*F12*L12*J12))*Adc) -> 55.45232549 | O12: =((E12+I12)-(C12+G12+M12+K12))*radconv -> -0.5484903227 | P12: =IF(O12>0,O12,O12+180) -> 179.4515097 | R12: =IF(N12<0,A12,1000000000) -> 1000000000 | S12: =A12^2 -> 1 | U12: =20*LOG10((H12/(F12*J12))*Aea) -> 47.60383915 | V12: =(I12-(G12+K12))*radconv -> -0.5328560121 | X12: =20*LOG10((D12/(B12*L12))*Acs*Am) -> 20.15696539 | Y12: =(E12-(C12+M12))*radconv -> -0.01563431061
A13: 1.0965 | B13: 1.000000041 | C13: 0.0002853351645 | D13: 1 | E13: 9.09415674e-07 | F13: 1.000053397 | G13: 0.01033390116 | H13: 1.000000009 | I13: 0.0001377902528 | J13: 1 | K13: 1.377902536e-06 | L13: 1 | M13: =IF((ATAN((A13/pterm1)/(1-A13^2/pterm2))>0),ATAN((A13/pterm1)/(1-A13^2/pterm2)),PI()+ATAN((A13/pterm1)/(1-A13^2/pterm2))) -> 1.477641988e-05 | N13: 55.4522474 | O13: -0.6014160924 | P13: 179.3985839 | R13: =IF(N13<0,A13,1000000000) -> 1000000000 | S13: =A13^2 -> 1.20231225 | U13: 47.60376113 | V13: -0.5842730709 | X13: 20.15696533 | Y13: -0.01714302151
A14: 1.2023 | B14: 1.000000049 | C14: 0.0003128668184 | D14: 1 | E14: 9.971641266e-07 | F14: 1.000064198 | G14: 0.01133092558 | H14: 1.000000011 | I14: 0.0001510854726 | J14: 1 | K14: 1.510854737e-06 | L14: 1 | M14: 1.620217932e-05 | N14: 55.45215353 | O14: -0.6594413515 | P14: 179.3405586 | R14: 1000000000 | S14: 1.44552529 | U14: 47.60366733 | V14: -0.6406442201 | X14: 20.15696526 | Y14: -0.01879713146
A15: 1.3183 | B15: 1.000000059 | C15: 0.0003430527522 | D15: 1 | E15: 1.09337226e-06 | F15: 1.000077183 | G15: 0.01242404549 | H15: 1.000000014 | I15: 0.0001656624621 | J15: 1 | K15: 1.656624636e-06 | L15: 1 | M15: 1.776539382e-05 | N15: 55.45204069 | O15: -0.7230592407 | P15: 179.2769408 | R15: 1000000000 | S15: 1.73791489 | U15: 47.60355457 | V15: -0.7024485293 | X15: 20.15696518 | Y15: -0.02061071135
A16: 1.4454 | B16: 1.000000071 | C16: 0.0003761271669 | D16: 1 | E16: 1.198786516e-06 | F16: 1.000092783 | G16: 0.01362173148 | H16: 1.000000016 | I16: 0.0001816343187 | J16: 1 | K16: 1.816343207e-06 | L16: 1 | M16: 1.947819179e-05 | N16: 55.45190513 | O16: -0.792762745 | P16: 179.2072373 | R16: 1000000000 | S16: 2.08918116 | U16: 47.60341911 | V16: -0.770164913 | X16: 20.15696507 | Y16: -0.02259783202
A17: 1.5849 | B17: 1.000000085 | C17: 0.0004124283528 | D17: 1 | E17: 1.31448509e-06 | F17: 1.000111556 | G17: 0.01493621976 | H17: 1.00000002 | I17: 0.000199164405 | J17: 1 | K17: 1.991644076e-06 | L17: 1 | M17: 2.135809199e-05 | N17: 55.45174199 | O17: -0.8692640063 | P17: 179.130736 | R17: 1000000000 | S17: 2.51190801 | U17: 47.6032561 | V17: -0.8444851883 | X17: 20.15696495 | Y17: -0.02477881807
A18: 1.7378 | B18: 1.000000102 | C18: 0.000452216533 | D18: 1 | E18: 1.441297363e-06 | F18: 1.000134117 | G18: 0.01637691485 | H18: 1.000000024 | I18: 0.0002183783848 | J18: 1 | K18: 2.183783883e-06 | L18: 1 | M18: 2.341857042e-05 | N18: 55.45154594 | O18: -0.953110369 | P18: 179.0468896 | R18: 1000000000 | S18: 3.01994884 | U18: 47.6030602 | V18: -0.9259410652 | X18: 20.1569648 | Y18: -0.02716930379
A19: 1.9055 | B19: 1.000000123 | C19: 0.0004958560202 | D19: 1 | E19: 1.580384466e-06 | F19: 1.000161248 | G19: 0.01795698404 | H19: 1.000000029 | I19: 0.0002394521872 | J19: 1 | K19: 2.394521918e-06 | L19: 1 | M19: 2.567849346e-05 | N19: 55.45131017 | O19: -1.045068173 | P19: 178.9549318 | R19: 1000000000 | S19: 3.63093025 | U19: 47.60282461 | V19: -1.015276996 | X19: 20.15696462 | Y19: -0.02979117717
A20: 2.0893 | B20: 1.000000148 | C20: 0.000543685104 | D20: 1 | E20: 1.732824594e-06 | F20: 1.000193853 | G20: 0.01968864412 | H20: 1.000000034 | I20: 0.0002625491749 | J20: 1 | K20: 2.625491809e-06 | L20: 1 | M20: 2.815537989e-05 | N20: 55.45102686 | O20: -1.145848447 | P20: 178.8541516 | R20: 1000000000 | S20: 4.36517449 | U20: 47.60254151 | V20: -1.113183684 | X20: 20.1569644 | Y20: -0.03266476279
A21: 2.2909 | B21: 1.000000178 | C21: 0.0005961461638 | D21: 1 | E21: 1.900027695e-06 | F21: 1.000233063 | G21: 0.0215878696 | H21: 1.000000041 | I21: 0.0002878829761 | J21: 1 | K21: 2.878829841e-06 | L21: 1 | M21: 3.08721389e-05 | N21: 55.45068615 | O21: -1.256380923 | P21: 178.7436191 | R21: 1000000000 | S21: 5.24822281 | U21: 47.60220107 | V21: -1.220564284 | X21: 20.15696414 | Y21: -0.03581663889
A22: 2.5119 | B22: 1.000000214 | C22: 0.0006536555559 | D22: 1 | E22: 2.083320776e-06 | F22: 1.000280192 | G22: 0.0236696784 | H22: 1.00000005 | I22: 0.0003156546526 | J22: 1 | K22: 3.156546631e-06 | L22: 1 | M22: 3.385033205e-05 | N22: 55.45027666 | O22: -1.377539674 | P22: 178.6224603 | R22: 1000000000 | S22: 6.30964161 | U22: 47.60179189 | V22: -1.338267854 | X22: 20.15696383 | Y22: -0.03927182033
A23: 2.7542 | B23: 1.000000257 | C23: 0.0007167077034 | D23: 1 | E23: 2.284279662e-06 | F23: 1.000336845 | G23: 0.02595189565 | H23: 1.00000006 | I23: 0.0003461029652 | J23: 1 | K23: 3.461029791e-06 | L23: 1.000000001 | M23: 3.711556373e-05 | N23: 55.44978444 | O23: -1.510362168 | P23: 178.4896378 | R23: 1000000000 | S23: 7.58561764 | U23: 47.60130005 | V23: -1.467302156 | X23: 20.15696345 | Y23: -0.04306001217
A24: 3.02 | B24: 1.000000309 | C24: 0.0007858750959 | D24: 1 | E24: 2.504728988e-06 | F24: 1.000404984 | G24: 0.02845514692 | H24: 1.000000072 | I24: 0.0003795043739 | J24: 1 | K24: 3.795043921e-06 | L24: 1.000000001 | M24: 4.06974811e-05 | N24: 55.44919246 | O24: -1.656048877 | P24: 178.3439511 | R24: 1000000000 | S24: 9.1204 | U24: 47.60070852 | V24: -1.608833267 | X24: 20.156963 | Y24: -0.04721560978
A25: 3.3113 | B25: 1.000000371 | C25: 0.0008616781778 | D25: 1 | E25: 2.746327516e-06 | F25: 1.000486859 | G25: 0.03119814132 | H25: 1.000000087 | I25: 0.0004161102057 | J25: 1 | K25: 4.161102297e-06 | L25: 1.000000001 | M25: 4.462303614e-05 | N25: 55.44848121 | O25: -1.815688765 | P25: 178.1843112 | R25: 1000000000 | S25: 10.96470769 | U25: 47.59999781 | V25: -1.763918883 | X25: 20.15696246 | Y25: -0.05176988161
A26: 3.6308 | B26: 1.000000446 | C26: 0.0009448195486 | D26: 1 | E26: 3.011314573e-06 | F26: 1.000585315 | G26: 0.03420613646 | H26: 1.000000104 | I26: 0.0004562597521 | J26: 1 | K26: 4.562597837e-06 | L26: 1.000000001 | M26: 4.892861402e-05 | N26: 55.44762599 | O26: -1.990751954 | P26: 178.009248 | R26: 1000000000 | S26: 13.18270864 | U26: 47.59914324 | V26: -1.933986914 | X26: 20.1569618 | Y26: -0.05676504007
A27: 3.9811 | B27: 1.000000537 | C27: 0.001035975785 | D27: 1 | E27: 3.301846548e-06 | F27: 1.000703665 | G27: 0.03750339071 | H27: 1.000000125 | I27: 0.0005002797382 | J27: 1 | K27: 5.0027978e-06 | L27: 1.000000001 | M27: 5.36492523e-05 | N27: 55.44659808 | O27: -2.182650463 | P27: 177.8173495 | R27: 1000000000 | S27: 15.84915721 | U27: 47.59811612 | V27: -2.120408729 | X27: 20.15696102 | Y27: -0.06224173406
A28: 4.3652 | B28: 1.000000645 | C28: 0.00113592755 | D28: 1 | E28: 3.620411582e-06 | F28: 1.000845935 | G28: 0.04111785268 | H28: 1.00000015 | I28: 0.0005485471544 | J28: 1 | K28: 5.485472094e-06 | L28: 1.000000001 | M28: 5.882537895e-05 | N28: 55.44536256 | O28: -2.393011148 | P28: 177.6069889 | R28: 1000000000 | S28: 19.05497104 | U28: 47.59688155 | V28: -2.324764281 | X28: 20.15696007 | Y28: -0.06824686614
A29: 4.7863 | B29: 1.000000776 | C29: 0.00124550755 | D29: 1 | E29: 3.969663694e-06 | F29: 1.001016931 | G29: 0.04507925409 | H29: 1.000000181 | I29: 0.0006014641235 | J29: 1 | K29: 6.01464196e-06 | L29: 1.000000002 | M29: 6.450011711e-05 | N29: 55.44387782 | O29: -2.623564729 | P29: 177.3764353 | R29: 1000000000 | S29: 22.90866769 | U29: 47.59539795 | V29: -2.548734264 | X29: 20.15695894 | Y29: -0.07483046557
A30: 5.2481 | B30: 1.000000933 | C30: 0.001365678601 | D30: 1 | E30: 4.35267159e-06 | F30: 1.001222506 | G30: 0.04942189975 | H30: 1.000000217 | I30: 0.0006594955998 | J30: 1 | K30: 6.594956954e-06 | L30: 1.000000002 | M30: 7.072332794e-05 | N30: 55.44209317 | O30: -2.876308201 | P30: 177.1236918 | R30: 1000000000 | S30: 27.54255361 | U30: 47.59361465 | V30: -2.794257823 | X30: 20.15695757 | Y30: -0.08205037861
A31: 5.7544 | B31: 1.000001121 | C31: 0.001497429537 | D31: 1 | E31: 4.772586917e-06 | F31: 1.00146958 | G31: 0.05418086274 | H31: 1.000000261 | I31: 0.0007231191038 | J31: 1 | K31: 7.231192298e-06 | L31: 1.000000002 | M31: 7.75462202e-05 | N31: 55.43994873 | O31: -3.153283428 | P31: 176.8467166 | R31: 1000000000 | S31: 33.11311936 | U31: 47.59147186 | V31: -3.063317413 | X31: 20.15695593 | Y31: -0.08996601476
A32: 6.3096 | B32: 1.000001348 | C32: 0.001641905321 | D32: 1 | E32: 5.233058948e-06 | F32: 1.001766577 | G32: 0.0593966306 | H32: 1.000000314 | I32: 0.0007928875532 | J32: 1 | K32: 7.928877194e-06 | L32: 1.000000003 | M32: 8.502808821e-05 | N32: 55.43737171 | O32: -3.456847599 | P32: 176.5431524 | R32: 1000000000 | S32: 39.81105216 | U32: 47.58889681 | V32: -3.358201435 | X32: 20.15695395 | Y32: -0.09864616379
A33: 6.9183 | B33: 1.000001621 | C33: 0.001800302954 | D33: 1 | E33: 5.737902834e-06 | F33: 1.00212349 | G33: 0.06511127239 | H33: 1.000000378 | I33: 0.0008693789982 | J33: 1 | K33: 8.693792172e-06 | L33: 1.000000004 | M33: 9.323092152e-05 | N33: 55.4342758 | O33: -3.789450223 | P33: 176.2105498 | R33: 1000000000 | S33: 47.86287489 | U33: 47.58580327 | V33: -3.681287481 | X33: 20.15695158 | Y33: -0.108162742
A34: 7.5858 | B34: 1.000001948 | C34: 0.001974001585 | D34: 1 | E34: 6.29151429e-06 | F34: 1.002552473 | G34: 0.07137303906 | H34: 1.000000454 | I34: 0.0009532594522 | J34: 1 | K34: 9.532597409e-06 | L34: 1.000000004 | M34: 0.0001022261429 | N34: 55.4305562 | O34: -4.153900957 | P34: 175.846099 | R34: 1000000000 | S34: 57.54436164 | U34: 47.58208653 | V34: -4.035302348 | X34: 20.15694873 | Y34: -0.118598609
A35: 8.3176 | B35: 1.000002342 | C35: 0.002164432396 | D35: 1 | E35: 6.898454911e-06 | F35: 1.00306791 | G35: 0.0782315445 | H35: 1.000000546 | I35: 0.00104522006 | J35: 1 | K35: 1.045220441e-05 | L35: 1.000000005 | M35: 0.0001120878702 | N35: 55.42608908 | O35: -4.55308925 | P35: 175.4469108 | R35: 1000000000 | S35: 69.18246976 | U35: 47.57762284 | V35: -4.423049499 | X35: 20.1569453 | Y35: -0.130039751
A36: 9.1201 | B36: 1.000002816 | C36: 0.002373260756 | D36: 1 | E36: 7.564032729e-06 | F36: 1.003687326 | G36: 0.08574416544 | H36: 1.000000657 | I36: 0.001146065063 | J36: 1 | K36: 1.146065565e-05 | L36: 1.000000006 | M36: 0.0001229023497 | N36: 55.42072385 | O36: -4.990356983 | P36: 175.009643 | R36: 1000000000 | S36: 83.17622401 | U36: 47.57226174 | V36: -4.847770759 | X36: 20.15694117 | Y36: -0.1425862239
A37: 10 | B37: 1.000003386 | C37: 0.002602230079 | D37: 1 | E37: 8.293804596e-06 | F37: 1.004431503 | G37: 0.09397020089 | H37: 1.00000079 | I37: 0.001256636399 | J37: 1 | K37: 1.25663706e-05 | L37: 1.000000007 | M37: 0.0001347598706 | N37: 55.41428234 | O37: -5.469158728 | P37: 174.5308413 | R37: 1000000000 | S37: 100 | U37: 47.56582518 | V37: -5.312815955 | X37: 20.15693621 | Y37: -0.1563427729
A38: 10.965 | B38: 1.000004071 | C38: 0.002853343979 | D38: 1 | E38: 9.094156739e-06 | F38: 1.005325674 | G38: 0.1029771397 | H38: 1.000000949 | I38: 0.001377901664 | J38: 1 | K38: 1.377902536e-05 | L38: 1.000000009 | M38: 0.000147764198 | N38: 55.40654879 | O38: -5.993426805 | P38: 174.0065732 | R38: 1000000000 | S38: 120.231225 | U38: 47.5580976 | V38: -5.821997029 | X38: 20.15693025 | Y38: -0.1714297758
A39: 12.023 | B39: 1.000004894 | C39: 0.003128658078 | D39: 1 | E39: 9.971641265e-06 | F39: 1.006399566 | G39: 0.1128328201 | H39: 1.000001141 | I39: 0.001510853588 | J39: 1 | K39: 1.510854737e-05 | L39: 1.000000011 | M39: 0.0001620217922 | N39: 55.39726996 | O39: -6.567115247 | P39: 173.4328848 | R39: 1000000000 | S39: 144.552529 | U39: 47.54882593 | V39: -6.379144511 | X39: 20.15692308 | Y39: -0.1879707355
A40: 13.183 | B40: 1.000005884 | C40: 0.003430514199 | D40: 1 | E40: 1.09337226e-05 | F40: 1.007689079 | G40: 0.1236133606 | H40: 1.000001372 | I40: 0.001656623121 | J40: 1 | K40: 1.656624636e-05 | L40: 1.000000013 | M40: 0.0001776539369 | N40: 55.38614113 | O40: -7.194661875 | P40: 172.8053381 | R40: 1000000000 | S40: 173.791489 | U40: 47.53770572 | V40: -6.988555525 | X40: 20.15691447 | Y40: -0.20610635
A41: 14.454 | B41: 1.000007074 | C41: 0.003761254109 | D41: 1 | E41: 1.198786516e-05 | F41: 1.009236074 | G41: 0.135392333 | H41: 1.00000165 | I41: 0.001816341209 | J41: 1 | K41: 1.816343206e-05 | L41: 1.000000016 | M41: 0.0001947819161 | N41: 55.37280891 | O41: -7.880358584 | P41: 172.1196414 | R41: 1000000000 | S41: 208.918116 | U41: 47.52438385 | V41: -7.65438127 | X41: 20.15690411 | Y41: -0.225977314
A42: 15.849 | B42: 1.000008505 | C42: 0.004124260377 | D42: 1 | E42: 1.31448509e-05 | F42: 1.011094647 | G42: 0.1482769874 | H42: 1.000001983 | I42: 0.001991641443 | J42: 1 | K42: 1.991644076e-05 | L42: 1.000000019 | M42: 0.0002135809175 | N42: 55.35681844 | O42: -8.63046092 | P42: 171.3695391 | R42: 1000000000 | S42: 251.190801 | U42: 47.50840584 | V42: -8.382674066 | X42: 20.15689165 | Y42: -0.2477868542
A43: 17.378 | B43: 1.000010225 | C43: 0.004522134813 | D43: 1 | E43: 1.441297363e-05 | F43: 1.013323803 | G43: 0.162342413 | H43: 1.000002384 | I43: 0.002183780411 | J43: 1 | K43: 2.183783883e-05 | L43: 1.000000023 | M43: 0.0002341857011 | N43: 55.33767828 | O43: -9.449356214 | P43: 170.5506438 | R43: 1000000000 | S43: 301.994884 | U43: 47.48928065 | V43: -9.177664925 | X43: 20.15687668 | Y43: -0.2716912892
A44: 19.055 | B44: 1.000012294 | C44: 0.004958519969 | D44: 1 | E44: 1.580384466e-05 | F44: 1.01599816 | G44: 0.1776949476 | H44: 1.000002867 | I44: 0.002394517341 | J44: 1 | K44: 2.394521917e-05 | L44: 1.000000027 | M44: 0.0002567849305 | N44: 55.31477092 | O44: -10.34325624 | P44: 169.6567438 | R44: 1000000000 | S44: 363.093025 | U44: 47.46639131 | V44: -10.04534677 | X44: 20.15685867 | Y44: -0.2979094664
A45: 20.893 | B45: 1.00001478 | C45: 0.005436798007 | D45: 1 | E45: 1.732824594e-05 | F45: 1.019202772 | G45: 0.1944244635 | H45: 1.000003447 | I45: 0.002625485777 | J45: 1 | K45: 2.625491809e-05 | L45: 1.000000033 | M45: 0.0002815537935 | N45: 55.28740082 | O45: -11.31742084 | P45: 168.6825792 | R45: 1000000000 | S45: 436.517449 | U45: 47.43904284 | V45: -10.99077625 | X45: 20.15683703 | Y45: -0.326644589
A46: 22.909 | B46: 1.000017769 | C46: 0.005961391724 | D46: 1 | E46: 1.900027695e-05 | F46: 1.023043545 | G46: 0.2126479293 | H46: 1.000004144 | I46: 0.002878821888 | J46: 1 | K46: 2.87882984e-05 | L46: 1.000000039 | M46: 0.0003087213818 | N46: 55.25471038 | O46: -12.37869637 | P46: 167.6213036 | R46: 1000000000 | S46: 524.822281 | U46: 47.40637844 | V46: -12.02053399 | X46: 20.15681101 | Y46: -0.3581623828
A47: 25.119 | B47: 1.000021363 | C47: 0.006536463397 | D47: 1 | E47: 2.083320776e-05 | F47: 1.027641134 | G47: 0.232461202 | H47: 1.000004982 | I47: 0.003156536147 | J47: 1 | K47: 3.15654663e-05 | L47: 1.000000047 | M47: 0.0003385033111 | N47: 55.21573918 | O47: -13.53271108 | P47: 166.4672889 | R47: 1000000000 | S47: 630.964161 | U47: 47.36743851 | V47: -13.13999816 | X47: 20.15677972 | Y47: -0.3927129222
A48: 27.542 | B48: 1.000025683 | C48: 0.007166955548 | D48: 1 | E48: 2.284279661e-05 | F48: 1.033141007 | G48: 0.2539720215 | H48: 1.000005989 | I48: 0.003461015971 | J48: 1.000000001 | K48: 3.461029789e-05 | L48: 1.000000057 | M48: 0.0003711556248 | N48: 55.16934792 | O48: -14.78579954 | P48: 165.2142005 | R48: 1000000000 | S48: 758.561764 | U48: 47.32108486 | V48: -14.35520638 | X48: 20.15674212 | Y48: -0.4305931603
A49: 30.2 | B49: 1.00003088 | C49: 0.007858590798 | D49: 1 | E49: 2.504728987e-05 | F49: 1.039717878 | G49: 0.2772953412 | H49: 1.000007201 | I49: 0.003795025702 | J49: 1.000000001 | K49: 3.795043919e-05 | L49: 1.000000068 | M49: 0.0004069747946 | N49: 55.11419497 | O49: -16.14473511 | P49: 163.8552649 | R49: 1000000000 | S49: 912.04 | U49: 47.26597714 | V49: -15.67258819 | X49: 20.15669689 | Y49: -0.4721469203
A50: 33.113 | B50: 1.000037124 | C50: 0.008616570657 | D50: 1 | E50: 2.746327515e-05 | F50: 1.047566511 | G50: 0.3025046243 | H50: 1.000008657 | I50: 0.004161078281 | J50: 1.000000001 | K50: 4.161102294e-05 | L50: 1.000000082 | M50: 0.0004462303399 | N50: 55.04883137 | O50: -17.6138969 | P50: 162.3861031 | R50: 1000000000 | S50: 1096.470769 | U50: 47.2006679 | V50: -17.09621019 | X50: 20.15664253 | Y50: -0.5176867185
A51: 36.308 | B51: 1.000044633 | C51: 0.00944791717 | D51: 1 | E51: 3.011314572e-05 | F51: 1.056928241 | G51: 0.3297045948 | H51: 1.000010409 | I51: 0.004562566178 | J51: 1.000000001 | K51: 4.562597834e-05 | L51: 1.000000099 | M51: 0.0004892861118 | N51: 54.97150329 | O51: -19.19951463 | P51: 160.8004854 | R51: 1000000000 | S51: 1318.270864 | U51: 47.12340518 | V51: -18.63188018 | X51: 20.15657716 | Y51: -0.5676344527
A52: 39.811 | B52: 1.000053661 | C52: 0.01035939096 | D52: 1.000000001 | E52: 3.301846547e-05 | F52: 1.068074164 | G52: 0.3589546225 | H52: 1.000012514 | I52: 0.005002756064 | J52: 1.000000001 | K52: 5.002797795e-05 | L52: 1.000000119 | M52: 0.0005364924855 | N52: 54.88032484 | O52: -20.90521083 | P52: 159.0947892 | R52: 1000000000 | S52: 1584.915721 | U52: 47.03230532 | V52: -20.28281451 | X52: 20.15649858 | Y52: -0.6223963173
A53: 43.652 | B53: 1.000064515 | C53: 0.01135879184 | D53: 1.000000001 | E53: 3.620411581e-05 | F53: 1.08132258 | G53: 0.39030407 | H53: 1.000015045 | I53: 0.005485417075 | J53: 1.000000002 | K53: 5.485472089e-05 | L53: 1.000000143 | M53: 0.00058825374 | N53: 54.77317511 | O53: -22.7340686 | P53: 157.2659314 | R53: 1000000000 | S53: 1905.497104 | U53: 46.92525006 | V53: -22.05162766 | X53: 20.15640411 | Y53: -0.6824409473
A54: 47.863 | B54: 1.000077562 | C54: 0.01245443795 | D54: 1.000000001 | E54: 3.969663692e-05 | F54: 1.097036708 | G54: 0.4237667707 | H54: 1.000018088 | I54: 0.006014569433 | J54: 1.000000002 | K54: 6.014641953e-05 | L54: 1.000000171 | M54: 0.0006450011059 | N54: 54.64777022 | O54: -24.6871523 | P54: 155.3128477 | R54: 1000000000 | S54: 2290.866769 | U54: 46.79995873 | V54: -23.93888418 | X54: 20.15629054 | Y54: -0.7482681231
A55: 52.481 | B55: 1.00009325 | C55: 0.01365594556 | D55: 1.000000001 | E55: 4.352671587e-05 | F55: 1.115639143 | G55: 0.4593357769 | H55: 1.000021746 | I55: 0.006594861345 | J55: 1.000000002 | K55: 6.594956945e-05 | L55: 1.000000206 | M55: 0.0007072331935 | N55: 54.50161376 | O55: -26.76437796 | P55: 153.235622 | R55: 1000000000 | S55: 2754.255361 | U55: 46.65393883 | V55: -25.94392234 | X55: 20.15615399 | Y55: -0.8204556271
A56: 57.544 | B56: 1.000112109 | C56: 0.01497318749 | D56: 1.000000001 | E56: 4.772586913e-05 | F56: 1.137599248 | G56: 0.4969427508 | H56: 1.000026145 | I56: 0.007231066262 | J56: 1.000000003 | K56: 7.231192285e-05 | L56: 1.000000248 | M56: 0.0007754620887 | N56: 54.33217675 | O56: -28.96215257 | P56: 151.0378474 | R56: 1000000000 | S56: 3311.311936 | U56: 46.48466597 | V56: -28.0625559 | X56: 20.15598984 | Y56: -0.8995966639
A57: 63.096 | B57: 1.000134784 | C57: 0.01641759276 | D57: 1.000000001 | E57: 5.233058943e-05 | F57: 1.163454942 | G57: 0.5364880549 | H57: 1.000031433 | I57: 0.007928711045 | J57: 1.000000003 | K57: 7.928877177e-05 | L57: 1.000000298 | M57: 0.0008502807329 | N57: 54.13681987 | O57: -31.27514052 | P57: 148.7248595 | R57: 1000000000 | S57: 3981.105216 | U57: 46.28950646 | V57: -30.28876257 | X57: 20.15579247 | Y57: -0.9863779513
A58: 69.183 | B58: 1.000162042 | C58: 0.01800110438 | D58: 1.000000002 | E58: 5.737902827e-05 | F58: 1.193795994 | G58: 0.5778040586 | H58: 1.00003779 | I58: 0.008693573151 | J58: 1.000000004 | K58: 8.69379215e-05 | L58: 1.000000358 | M58: 0.0009323090185 | N58: 53.91302686 | O58: -33.69412721 | P58: 146.3058728 | R58: 1000000000 | S58: 4786.287489 | U58: 46.06595069 | V58: -32.61261011 | X58: 20.15555523 | Y58: -1.081517105
A59: 75.858 | B59: 1.000194816 | C59: 0.01973747806 | D59: 1.000000002 | E59: 6.291514282e-05 | F59: 1.229286816 | G59: 0.6206857754 | H59: 1.000045434 | I59: 0.009532308682 | J59: 1.000000005 | K59: 9.532597381e-05 | L59: 1.00000043 | M59: 0.001022261169 | N59: 53.65834587 | O59: -36.20781676 | P59: 143.7921832 | R59: 1000000000 | S59: 5754.436164 | U59: 45.81155495 | V59: -35.02197609 | X59: 20.15526998 | Y59: -1.185840671
A60: 83.176 | B60: 1.000234212 | C60: 0.02164097874 | D60: 1.000000002 | E60: 6.8984549e-05 | F60: 1.270638912 | G60: 0.6648559773 | H60: 1.000054623 | I60: 0.01045182381 | J60: 1.000000005 | K60: 0.0001045220437 | L60: 1.000000517 | M60: 0.00112087836 | N60: 53.37070425 | O60: -38.80079063 | P60: 141.1992094 | R60: 1000000000 | S60: 6918.246976 | U60: 45.5242562 | V60: -37.50058481 | X60: 20.15492711 | Y60: -1.300205824
A61: 91.201 | B61: 1.00028158 | C61: 0.0237281979 | D61: 1.000000003 | E61: 7.564032715e-05 | F61: 1.318645055 | G61: 0.7100117946 | H61: 1.000065671 | I61: 0.01146015392 | J61: 1.000000007 | K61: 0.000114606556 | L61: 1.000000622 | M61: 0.001229023046 | N61: 53.04827278 | O61: -41.45623686 | P61: 138.5437631 | R61: 1000000000 | S61: 8317.622401 | U61: 45.20223696 | V61: -40.0306273 | X61: 20.15451488 | Y61: -1.425609559
A62: 100 | B62: 1.000338524 | C62: 0.02601648812 | D62: 1.000000003 | E62: 8.293804577e-05 | F62: 1.37414133 | G62: 0.7557940156 | H62: 1.000078954 | I62: 0.0125657092 | J62: 1.000000008 | K62: 0.0001256637053 | L62: 1.000000748 | M62: 0.001347598112 | N62: 52.68982276 | O62: -44.15413987 | P62: 135.8458601 | R62: 1000000000 | S62: 10000 | U62: 44.84428248 | V62: -42.59104522 | X62: 20.15401933 | Y62: -1.563094653
A63: 109.65 | B63: 1.000406998 | C63: 0.02852577737 | D63: 1.000000004 | E63: 9.094156714e-05 | F63: 1.438044214 | G63: 0.8018353865 | H63: 1.000094926 | I63: 0.01377815343 | J63: 1.000000009 | K63: 0.0001377902528 | L63: 1.000000899 | M63: 0.001477641197 | N63: 52.29454888 | O63: -46.87410701 | P63: 133.125893 | R63: 1000000000 | S63: 12023.1225 | U63: 44.44960445 | V63: -45.16024832 | X63: 20.15342349 | Y63: -1.713858689
A64: 120.23 | B64: 1.000489309 | C64: 0.03127648046 | D64: 1.000000005 | E64: 9.971641233e-05 | F64: 1.511293699 | G64: 0.8477327959 | H64: 1.000114128 | I64: 0.01510739793 | J64: 1.000000011 | K64: 0.0001510854726 | L64: 1.000001081 | M64: 0.001620216889 | N64: 51.86246678 | O64: -49.59370643 | P64: 130.4062936 | R64: 1000000000 | S64: 14455.2529 | U64: 44.01823854 | V64: -47.71457784 | X64: 20.1527073 | Y64: -1.879128591
A65: 131.83 | B65: 1.000588253 | C65: 0.03429182865 | D65: 1.000000006 | E65: 0.0001093372256 | F65: 1.594906868 | G65: 0.8931054243 | H65: 1.000137211 | I65: 0.01656473113 | J65: 1.000000014 | K65: 0.0001656624621 | L65: 1.0000013 | M65: 0.001776538008 | N65: 51.39407726 | O65: -52.29187473 | P65: 127.7081253 | R65: 1000000000 | S65: 17379.1489 | U65: 43.55070987 | V65: -50.23157411 | X65: 20.15184645 | Y65: -2.060300624
A66: 144.54 | B66: 1.000707108 | C66: 0.03759499639 | D66: 1.000000007 | E66: 0.0001198786511 | F66: 1.689895037 | G66: 0.9375649375 | H66: 1.000164942 | I66: 0.01816143503 | J66: 1.000000016 | K66: 0.0001816343187 | L66: 1.000001563 | M66: 0.001947817367 | N66: 50.89079605 | O66: -54.9471151 | P66: 125.0528849 | R66: 1000000000 | S66: 20891.8116 | U66: 43.04846263 | V66: -52.6883473 | X66: 20.15081248 | Y66: -2.2587678
A67: 158.49 | B67: 1.000850124 | C67: 0.04121947715 | D67: 1.000000009 | E67: 0.0001314485083 | F67: 1.797564588 | G67: 0.980859842 | H67: 1.000198313 | I67: 0.01991380801 | J67: 1.00000002 | K67: 0.000199164405 | L67: 1.000001879 | M67: 0.00213580681 | N67: 50.35334637 | O67: -57.54610678 | P67: 122.4538932 | R67: 1000000000 | S67: 25119.0801 | U67: 42.51225694 | V67: -55.06956343 | X67: 20.14956849 | Y67: -2.476543349
A68: 173.78 | B68: 1.001021977 | C68: 0.04519086809 | D68: 1.00000001 | E68: 0.0001441297353 | F68: 1.9189875 | G68: 1.022647532 | H68: 1.000238417 | I68: 0.0218343684 | J68: 1.000000024 | K68: 0.0002183783848 | L68: 1.000002259 | M68: 0.002341853893 | N68: 49.78444718 | O68: -60.07004892 | P68: 119.9299511 | R68: 1000000000 | S68: 30199.4884 | U68: 41.94485233 | V68: -57.35488258 | X68: 20.14807391 | Y68: -2.715166336
A69: 190.55 | B69: 1.001228611 | C69: 0.04954502668 | D69: 1.000000012 | E69: 0.0001580384453 | F69: 2.055535468 | G69: 1.062727129 | H69: 1.000286646 | I69: 0.02394064423 | J69: 1.000000029 | K69: 0.0002394521872 | L69: 1.000002716 | M69: 0.002567845194 | N69: 49.18601262 | O69: -62.50859376 | P69: 117.4914062 | R69: 1000000000 | S69: 36309.3025 | U69: 41.34821451 | V69: -59.53180107 | X69: 20.14627717 | Y69: -2.976792684
A70: 208.93 | B70: 1.001476877 | C70: 0.05431504063 | D70: 1.000000015 | E70: 0.0001732824577 | F70: 2.208490225 | G70: 1.100895325 | H70: 1.000344601 | I70: 0.0262488879 | J70: 1.000000034 | K70: 0.0002625491749 | L70: 1.000003265 | M70: 0.002815532517 | N70: 48.56094743 | O70: -64.85116071 | P70: 115.1488393 | R70: 1000000000 | S70: 43651.7449 | U70: 40.72530756 | V70: -61.58774834 | X70: 20.14411893 | Y70: -3.263412373
A71: 229.09 | B71: 1.001775376 | C71: 0.05954415211 | D71: 1.000000018 | E71: 0.0001900027672 | F71: 2.379455705 | G71: 1.137059888 | H71: 1.000414297 | I71: 0.02878034944 | J71: 1.000000041 | K71: 0.0002878829761 | L71: 1.000003926 | M71: 0.003087206675 | N71: 47.91131542 | O71: -67.09386079 | P71: 112.9061392 | R71: 1000000000 | S71: 52482.2281 | U71: 40.07826978 | V71: -63.51623462 | X71: 20.1415247 | Y71: -3.577626171
A72: 251.19 | B72: 1.002134051 | C72: 0.06527270795 | D72: 1.000000022 | E72: 0.0002083320746 | F72: 2.569947467 | G72: 1.171127802 | H72: 1.000498065 | I72: 0.03155498885 | J72: 1.00000005 | K72: 0.0003156546526 | L72: 1.00000472 | M72: 0.003385023694 | N72: 47.23999399 | O72: -69.23266009 | P72: 110.7673399 | R72: 1000000000 | S72: 63096.4161 | U72: 39.41006455 | V72: -65.31079838 | X72: 20.1384085 | Y72: -3.92186171
A73: 275.42 | B73: 1.002565061 | C73: 0.07154844232 | D73: 1.000000026 | E73: 0.0002284279622 | F73: 2.781732204 | G73: 1.203076919 | H73: 1.000598757 | I73: 0.03459648825 | J73: 1.00000006 | K73: 0.0003461029652 | L73: 1.000005674 | M73: 0.003711543836 | N73: 46.54930339 | O73: -71.26781906 | P73: 108.7321809 | R73: 1000000000 | S73: 75856.1764 | U73: 38.72311713 | V73: -66.96882745 | X73: 20.13466532 | Y73: -4.298991619
A74: 302 | B74: 1.003083246 | C74: 0.07842633715 | D74: 1.000000031 | E74: 0.0002504728936 | F74: 3.016840496 | G74: 1.232932323 | H74: 1.000719859 | I74: 0.03793223575 | J74: 1.000000072 | K74: 0.0003795043739 | L74: 1.000006822 | M74: 0.004069731582 | N74: 45.8411157 | O74: -73.20253114 | P74: 106.7974689 | R74: 1000000000 | S74: 91204 | U74: 38.01942759 | V74: -68.49020561 | X74: 20.13016717 | Y74: -4.712325531
A75: 331.13 | B75: 1.003705583 | C75: 0.08595552174 | D75: 1.000000038 | E75: 0.0002746327447 | F75: 3.277126704 | G75: 1.260705264 | H75: 1.000865364 | I75: 0.04158703171 | J75: 1.000000087 | K75: 0.0004161102057 | L75: 1.000008202 | M75: 0.004462281827 | N75: 45.11816156 | O75: -75.0389941 | P75: 104.9610059 | R75: 1000000000 | S75: 109647.0769 | U75: 37.30187263 | V75: -69.87417086 | X75: 20.12476798 | Y75: -5.164823246
A76: 363.08 | B76: =SQRT(1+(A76/Pole1)^2) -> 1.004453506 | C76: =ATAN(A76/Pole1) -> 0.09420233725 | D76: =SQRT(1+(A76/Zero1)^2) -> 1.000000045 | E76: =ATAN(A76/Zero1) -> 0.0003011314482 | F76: =SQRT(1+(A76/Pole2)^2) -> 3.565070925 | G76: =ATAN(A76/Pole2) -> 1.286482044 | H76: =SQRT(1+(A76/Zero2)^2) -> 1.001040324 | I76: =ATAN(A76/Zero2) -> 0.04559435754 | J76: =SQRT(1+(A76/pole4)^2) -> 1.000000104 | K76: =ATAN(A76/pole4) -> 0.0004562597521 | L76: =SQRT((1-(S76/pterm2))^2+(A76/pterm1)^2) -> 1.000009861 | M76: =IF((ATAN((A76/pterm1)/(1-A76^2/pterm2))>0),ATAN((A76/pterm1)/(1-A76^2/pterm2)),PI()+ATAN((A76/pterm1)/(1-A76^2/pterm2))) -> 0.004892832681 | N76: =20*LOG10(((D76*H76)/(B76*F76*L76*J76))*Adc) -> 44.38169648 | O76: =((E76+I76)-(C76+G76+M76+K76))*radconv -> -76.7842506 | P76: =IF(O76>0,O76,O76+180) -> 103.2157494 | R76: 1000000000 | S76: 131827.0864 | U76: =20*LOG10((H76/(F76*J76))*Aea) -> 36.57189188 | V76: =(I76-(G76+K76))*radconv -> -71.12376915 | X76: =20*LOG10((D76/(B76*L76))*Acs*Am) -> 20.11828365 | Y76: =(E76-(C76+M76))*radconv -> -5.660481453
A77: 398.11 | B77: 1.005351911 | C77: 0.1032293647 | D77: 1.000000055 | E77: 0.0003301846428 | F77: 3.88307121 | G77: 1.310333172 | H77: 1.001250617 | I77: 0.04998630391 | J77: 1.000000125 | K77: 0.0005002797382 | L77: 1.000011855 | M77: 0.005364887368 | N77: 43.63359455 | O77: -78.4442944 | P77: 101.5557056 | R77: =IF(N77<0,A77,1000000000) -> 1000000000 | S77: =A77^2 -> 158491.5721 | U77: 35.83157258 | V77: -72.24122025 | X77: 20.11050103 | Y77: -6.203074142
A78: 436.52 | B78: 1.006430984 | C78: 0.1131079769 | D78: 1.000000066 | E78: 0.0003620411424 | F78: 4.23389328 | G78: 1.332354082 | H78: 1.00150339 | I78: 0.05479980004 | J78: 1.00000015 | K78: 0.0005485471544 | L78: 1.000014253 | M78: 0.005882487981 | N78: 42.87515729 | O78: -80.02680601 | P78: 99.97319399 | R78: 1000000000 | S78: 190549.7104 | U78: 35.08247386 | V78: -73.229898 | X78: 20.10116249 | Y78: -6.796908017
A79: 478.63 | B79: 1.007726603 | C79: 0.1239127 | D79: 1.000000079 | E79: 0.0003969663485 | F79: 4.620492812 | G79: 1.352642957 | H79: 1.001807163 | I79: 0.06007404823 | J79: 1.000000181 | K79: 0.0006014641235 | L79: 1.000017136 | M79: 0.006449945915 | N79: 42.10762394 | O79: -81.53968957 | P79: 98.46031043 | R79: 1000000000 | S79: 229086.6769 | U79: 34.32613994 | V79: -74.09320464 | X79: 20.08996306 | Y79: -7.446484929
A80: 524.81 | B80: 1.009282321 | C80: 0.1357282874 | D80: 1.000000095 | E80: 0.0004352671315 | F80: 5.046292668 | G80: 1.371310603 | H80: 1.002172313 | I80: 0.06585420579 | J80: 1.000000217 | K80: 0.0006594955998 | L80: 1.000020602 | M80: 0.007072246057 | N80: 41.33167745 | O80: -82.99185719 | P80: 97.00814281 | R80: 1000000000 | S80: 275425.5361 | U80: 33.56362226 | V80: -74.83492827 | X80: 20.07653424 | Y80: -8.156928919
A81: 575.44 | B81: 1.011149339 | C81: 0.1486386576 | D81: 1.000000114 | E81: 0.0004772586554 | F81: 5.514816851 | G81: 1.388457944 | H81: 1.002611098 | I81: 0.07218627692 | J81: 1.000000261 | K81: 0.0007231191038 | L81: 1.000024769 | M81: 0.00775450768 | N81: 40.54821727 | O81: -84.39156642 | P81: 95.60843358 | R81: 1000000000 | S81: 331131.1936 | U81: 32.79625084 | V81: -75.458243 | X81: 20.0604455 | Y81: -8.93332342
A82: 630.96 | B82: 1.013389648 | C82: 0.162738646 | D82: 1.000000137 | E82: 0.000523305847 | F82: 6.030152579 | G82: 1.404193392 | H82: 1.00313843 | I82: 0.07912324072 | J82: 1.000000314 | K82: 0.0007928875532 | L82: 1.000029779 | M82: 0.008502658091 | N82: 39.75757334 | O82: -85.74777725 | P82: 94.25222275 | R82: 1000000000 | S82: 398110.5216 | U82: 32.02487345 | V82: -75.96635645 | X82: 20.04117895 | Y82: -9.781420797
A83: 691.83 | B83: 1.016076265 | C83: 0.1781224711 | D83: 1.000000165 | E83: 0.0005737902204 | F83: 6.596581506 | G83: 1.418615949 | H83: 1.003771987 | I83: 0.08671987822 | J83: 1.000000378 | K83: 0.0008693789982 | L83: 1.000035801 | M83: 0.009322893456 | N83: 38.96019529 | O83: -87.06878798 | P83: 92.93121202 | R83: 1000000000 | S83: 478628.7489 | U83: 31.25054432 | V83: -76.36183544 | X83: 20.01813002 | Y83: -10.70695253
A84: 758.58 | B84: 1.01929727 | C84: 0.1948947138 | D84: 1.000000198 | E84: 0.000629151346 | F84: 7.219044779 | G84: 1.431826969 | H84: 1.004533246 | I84: 0.09503879456 | J84: 1.000000454 | K84: 0.0009532594522 | L84: 1.000043043 | M84: 0.01022235235 | N84: 38.15600974 | O84: -88.36323284 | P84: 91.63676716 | R84: 1000000000 | S84: 575443.6164 | U84: 30.47391246 | V84: -76.64693835 | X84: 19.99057633 | Y84: -11.71629449
A85: 831.76 | B85: 1.023155815 | C85: 0.2131555465 | D85: 1.000000238 | E85: 0.0006898453816 | F85: 7.902678317 | G85: 1.443916796 | H85: 1.005447591 | I85: 0.1041438903 | J85: 1.000000546 | K85: 0.00104522006 | L85: 1.000051748 | M85: 0.01120844173 | N85: 37.34512645 | O85: -89.63880417 | P85: 90.36119583 | R85: 1000000000 | S85: 691824.6976 | U85: 29.69592276 | V85: -76.82321979 | X85: 19.95768275 | Y85: -12.81558438
A86: 912.01 | B86: 1.027776181 | C86: 0.2330155782 | D86: 1.000000286 | E86: 0.0007564031287 | F86: 8.653466255 | G86: 1.454976936 | H86: 1.006545907 | I86: 0.1141087013 | J86: 1.000000657 | K86: 0.001146065063 | L86: 1.000062215 | M86: 0.0122897798 | N86: 36.52706656 | O86: -90.90337851 | P86: 89.09662149 | R86: 1000000000 | S86: 831762.2401 | U86: 28.91708878 | V86: -76.89175549 | X86: 19.91845683 | Y86: -14.01162301
A87: 1000 | B87: 1.033303595 | C87: 0.2545774845 | D87: 1.000000344 | E87: 0.0008293802694 | F87: 9.47768112 | G87: 1.46508853 | H87: 1.007864756 | I87: 0.1250084362 | J87: 1.00000079 | K87: 0.001256636399 | L87: 1.000074798 | M87: 0.01347538704 | N87: 35.70150244 | O87: -92.1637119 | P87: 87.8362881 | R87: 1000000000 | S87: 1000000 | U87: 28.1382213 | V87: -76.85293365 | X87: 19.8717602 | Y87: -15.31077825
A88: 1096.5 | B88: 1.039911612 | C88: 0.2779491228 | D88: 1.000000414 | E88: 0.0009094154232 | F88: 10.38253901 | G88: 1.474331232 | H88: 1.00944844 | I88: 0.1369280192 | J88: 1.000000949 | K88: 0.001377901664 | L88: 1.00008993 | M88: 0.01477562878 | N88: 34.86760857 | O88: -93.42629484 | P88: 86.57370516 | R88: 1000000000 | S88: 1202312.25 | U88: 27.35982799 | V88: -76.70650767 | X88: 19.81625964 | Y88: -16.71978718
A89: 1202.3 | B89: 1.047800388 | C89: 0.3032190261 | D89: 1.000000497 | E89: 0.0009971637961 | F89: 11.37545008 | G89: 1.482774096 | H89: 1.01134901 | I89: 0.1499513662 | J89: 1.000001141 | K89: 0.001510853588 | L89: 1.000108121 | M89: 0.01620113644 | N89: 34.02484499 | O89: -94.69597685 | P89: 85.30402315 | R89: 1000000000 | S89: 1445525.29 | U89: 26.58286422 | V89: -76.45168291 | X89: 19.75045983 | Y89: -18.24429395
A90: 1318.3 | B90: 1.057206319 | C90: 0.3304723903 | D90: 1.000000598 | E90: 0.001093371824 | F90: 12.46486228 | G90: 1.490484504 | H90: 1.013629149 | I90: 0.1641714562 | J90: 1.000001372 | K90: 0.001656623121 | L90: 1.00012999 | M90: 0.01776401906 | N90: 33.17221286 | O90: -95.97688853 | P90: 84.02311147 | R90: 1000000000 | S90: 1737914.89 | U90: 25.80804505 | V90: -76.08705757 | X90: 19.67264687 | Y90: -19.88983096
A91: 1445.4 | B91: 1.06839677 | C91: 0.3597585205 | D91: 1.000000719 | E91: 0.001198785942 | F91: 13.65922852 | G91: 1.497520193 | H91: 1.016361661 | I91: 0.1796755164 | J91: 1.00000165 | K91: 0.001816341209 | L91: 1.000156261 | M91: 0.01947637988 | N91: 32.30913695 | O91: -97.27088067 | P91: 82.72911933 | R91: 1000000000 | S91: 2089181.16 | U91: 25.03665258 | V91: -75.61100678 | X91: 19.58096343 | Y91: -21.65987389
A92: 1584.9 | B92: 1.081710296 | C92: 0.3911743688 | D92: 1.000000864 | E92: 0.001314484333 | F92: 14.97076633 | G92: 1.503949706 | H92: 1.019640359 | I92: 0.1965919767 | J92: 1.000001983 | K92: 0.001991641443 | L92: 1.000187877 | M92: 0.02135570329 | N92: 31.43291045 | O92: -98.58111064 | P92: 81.41888936 | R92: 1000000000 | S92: 2511908.01 | U92: 24.26826731 | V92: -75.02019296 | X92: 19.4731222 | Y92: -23.56091767
A93: 1737.8 | B93: 1.097497071 | C93: 0.4246956927 | D93: 1.000001039 | E93: 0.001441296365 | F93: 16.40887877 | G93: 1.509815924 | H93: 1.023566862 | I93: 0.2150030306 | J93: 1.000002384 | K93: 0.002183780411 | L93: 1.000225871 | M93: 0.02341542169 | N93: 30.54341692 | O93: -99.90473097 | P93: 80.09526903 | R93: 1000000000 | S93: 3019948.84 | U93: 23.50495033 | V93: -74.31243553 | X93: 19.34694564 | Y93: -25.59229544
A94: 1905.5 | B94: 1.116186917 | C94: 0.4603269656 | D94: 1.000001249 | E94: 0.00158038315 | F94: 17.98673416 | G94: 1.515171116 | H94: 1.028269105 | I94: 0.2350269434 | J94: 1.000002867 | K94: 0.002394517341 | L94: 1.000271562 | M94: 0.02567434259 | N94: 29.63868984 | O94: -101.2393286 | P94: 78.76067138 | R94: 1000000000 | S94: 3630930.25 | U94: 22.74728936 | V94: -73.48405408 | X94: 19.19987954 | Y94: -27.75527454
A95: 2089.3 | B95: 1.138241429 | C95: 0.4979820391 | D95: 1.000001501 | E95: 0.00173282286 | F95: 19.71656429 | G95: 1.520055781 | H95: 1.033891712 | I95: 0.2567543404 | J95: 1.000003447 | K95: 0.002625485777 | L95: 1.000326469 | M95: 0.02814990864 | N95: 28.71804788 | O95: -102.5781268 | P95: 77.42187318 | R95: 1000000000 | S95: 4365174.49 | U95: 21.99707119 | V95: -72.53227015 | X95: 19.02945574 | Y95: -30.04585667
A96: 2290.9 | B96: 1.164212323 | C96: 0.5375810308 | D96: 1.000001805 | E96: 0.001900025408 | F96: 21.61436896 | G96: 1.524514287 | H96: 1.040613575 | I96: 0.2803035314 | J96: 1.000004144 | K96: 0.002878821888 | L96: 1.000392499 | M96: 0.03086492667 | N96: 27.7795773 | O96: -103.9136604 | P96: 76.08633963 | R96: 1000000000 | S96: 5248222.81 | U96: 21.25512737 | V96: -71.45296952 | X96: 18.83292899 | Y96: -32.46069084
A97: 2511.9 | B97: 1.194682262 | C97: 0.5789408056 | D97: 1.00000217 | E97: 0.002083317762 | F97: 23.69521045 | G97: 1.528581168 | H97: 1.048636194 | I97: 0.3057562807 | J97: 1.000004982 | K97: 0.003156536147 | L97: 1.000471862 | M97: 0.03384082563 | N97: 26.82282662 | O97: -105.2339973 | P97: 74.76600266 | R97: 1000000000 | S97: 6309641.61 | U97: 20.52346702 | V97: -70.24356138 | X97: 18.60783865 | Y97: -34.99043596
A98: 2754.2 | B98: 1.230313012 | C98: 0.6218514802 | D98: 1.000002609 | E98: 0.002284275689 | F98: 25.97697838 | G98: 1.532291188 | H98: 1.058200015 | I98: 0.3331988762 | J98: 1.000005989 | K98: 0.003461015971 | L98: 1.000567259 | M98: 0.03710303384 | N98: 25.84702661 | O98: -106.5256636 | P98: 73.47433635 | R98: 1000000000 | S98: 7585617.64 | U98: 19.80375542 | V98: -68.90123042 | X98: 18.35175025 | Y98: -37.62443323
A99: 3020 | B99: 1.271849016 | C99: 0.666068758 | D99: 1.000003137 | E99: 0.00250472375 | F99: 28.48039076 | G99: 1.53567723 | H99: 1.069590381 | I99: 0.3627138664 | J99: 1.000007201 | K99: 0.003795025702 | L99: 1.000681994 | M99: 0.04068096442 | N99: 24.85147418 | O99: -107.7735555 | P99: 72.22644447 | R99: 1000000000 | S99: 9120400 | U99: 19.09759319 | V99: -67.42328931 | X99: 18.06236006 | Y99: -40.35026622
A100: 3311.3 | B100: 1.320033958 | C100: 0.7112350216 | D100: 1.000003771 | E100: 0.002746320611 | F100: 31.22428451 | G100: 1.538764495 | H100: 1.083119441 | I100: 0.3943169022 | J100: 1.000008657 | K100: 0.004161078281 | L100: 1.000819852 | M100: 0.04460126774 | N100: 23.83752584 | O100: -108.9593061 | P100: 71.0406939 | R100: 1000000000 | S100: 10964707.69 | U100: 18.40782675 | V100: -65.81042924 | X100: 17.73817815 | Y100: -43.14887685
A101: 3630.8 | B101: 1.375748709 | C101: 0.7570328776 | D101: 1.000004534 | E101: 0.003011305471 | F101: 34.23409222 | G101: 1.541581524 | H101: 1.099169227 | I101: 0.4280473549 | J101: 1.000010409 | K101: 0.004562566178 | L101: 1.000985618 | M101: 0.04889992256 | N101: 22.80543631 | O101: -110.066237 | P101: 69.93376295 | R101: 1000000000 | S101: 13182708.64 | U101: 17.73624933 | V101: -64.06222407 | X101: 17.37766604 | Y101: -46.00401298
A102: 3981.1 | B102: 1.439877284 | C102: 0.8030665489 | D102: 1.000005451 | E102: 0.003301834549 | F102: 37.53430701 | G102: 1.544150881 | H102: 1.118159138 | I102: 0.4638714079 | J102: 1.000012514 | K102: 0.005002756064 | L102: 1.001184865 | M102: 0.05361143831 | N102: 21.75735931 | O102: -111.0769433 | P102: 68.92305668 | R102: 1000000000 | S102: 15849157.21 | U102: 17.08562045 | V102: -62.18209139 | X102: 16.98021792 | Y102: -48.89485194
A103: 4365.2 | B103: 1.513384455 | C103: 0.848951327 | D103: 1.000006554 | E103: 0.003620395764 | F103: 41.15319223 | G103: 1.546494483 | H103: 1.140571804 | I103: 0.5017271405 | J103: 1.000015045 | K103: 0.005485417075 | L103: 1.001424365 | M103: 0.05877554416 | N103: 20.69567131 | O103: -111.976536 | P103: 68.02346404 | R103: 1000000000 | S103: 19054971.04 | U103: 16.45847621 | V103: -60.17505063 | X103: 16.54567416 | Y103: -51.80148533
A104: 4786.3 | B104: 1.597276013 | C104: 0.8942986372 | D104: 1.000007879 | E104: 0.003969642842 | F104: 45.1208974 | G104: 1.548631832 | H104: 1.166944377 | I104: 0.5414954196 | J104: 1.000018088 | K104: 0.006014569433 | L104: 1.001712195 | M104: 0.06443444636 | N104: 19.62361272 | O104: -112.753191 | P104: 67.24680899 | R104: 1000000000 | S104: 22908667.69 | U104: 15.85751627 | V104: -58.04927535 | X104: 16.07457551 | Y104: -54.70391565
A105: 5248.1 | B105: 1.692654826 | C105: 0.9387612861 | D105: 1.000009473 | E105: 0.004352644102 | F105: 49.47228486 | G105: 1.550581612 | H105: 1.197887546 | I105: 0.5830216407 | J105: 1.000021746 | K105: 0.006594861345 | L105: 1.002058193 | M105: 0.07063679116 | N105: 18.54445954 | O105: -113.3998222 | P105: 66.60017781 | R105: 1000000000 | S105: 27542553.61 | U105: 15.28511757 | V105: -55.81496059 | X105: 15.56782103 | Y105: -57.5848616
A106: 5370.3 | B106: 1.718414072 | C106: 0.9496940585 | D106: 1.000009919 | E106: 0.004453992429 | F106: 50.62376277 | G106: 1.551041473 | H106: 1.206409944 | I106: 0.593647848 | J106: 1.000022771 | K106: 0.006748415558 | L106: 1.002155058 | M106: 0.07227738063 | N106: 18.27415469 | O106: -113.5407252 | P106: 66.45927484 | R106: 1000000000 | S106: 28840122.09 | U106: 15.14683677 | V106: -55.24126982 | X106: 15.43579698 | Y106: -58.29945534
A107: 5432.85 | B107: 1.731677033 | C107: 0.9551639843 | D107: 1.000010152 | E107: 0.004505869136 | F107: 51.21316893 | G107: 1.551268858 | H107: 1.210824415 | I107: 0.5990288505 | J107: 1.000023305 | K107: 0.006827014585 | L107: 1.002205499 | M107: 0.07311703187 | N107: 18.13811405 | O107: -113.6084879 | P107: 66.39151214 | R107: 1000000000 | S107: 29515859.12 | U107: 15.07801281 | V107: -54.9504927 | X107: 15.3685803 | Y107: -58.65799516
A108: 5495.4 | B108: 1.744991018 | C108: 0.9605506 | D108: 1.000010387 | E108: 0.004557745818 | F108: 51.80257768 | G108: 1.551491069 | H108: 1.215273691 | I108: 0.6043706057 | J108: 1.000023844 | K108: 0.006905613527 | L108: 1.002256521 | M108: 0.07395660724 | N108: 18.00360735 | O108: -113.6734251 | P108: 66.32657487 | R108: 1000000000 | S108: 30199421.16 | U108: 15.01047224 | V108: -54.66166781 | X108: 15.30161417 | Y108: -59.01175732
A109: 5559.4 | B109: 1.758665243 | C109: 0.9659775073 | D109: 1.00001063 | E109: 0.004610825052 | F109: 52.40565236 | G109: 1.551713257 | H109: 1.219861733 | I109: 0.6097956996 | J109: 1.000024403 | K109: 0.006986034419 | L109: 1.002309328 | M109: 0.07481556576 | N109: 17.8675423 | O109: -113.7370407 | P109: 66.26295925 | R109: 1000000000 | S109: 30906928.36 | U109: 14.9426624 | V109: -54.36817106 | X109: 15.23335896 | Y109: -59.36886968
A110: 5623.4 | B110: 1.772390463 | C110: 0.971320519 | D110: 1.000010876 | E110: 0.00466390426 | F110: 53.00872957 | G110: 1.55193039 | H110: 1.224485409 | I110: 0.6151799806 | J110: 1.000024968 | K110: 0.00706645522 | L110: 1.002362745 | M110: 0.07567444303 | N110: 17.73302702 | O110: -113.7978936 | P110: 66.20210641 | R110: 1000000000 | S110: 31622627.56 | U110: 14.87613234 | V110: -54.07672306 | X110: 15.16537374 | Y110: -59.72117053
A111: 5688.9 | B111: 1.786488943 | C111: 0.9767035928 | D111: 1.000011131 | E111: 0.004718227484 | F111: 53.62594394 | G111: 1.552147555 | H111: 1.229253928 | I111: 0.6206483533 | J111: 1.000025553 | K111: 0.00714876079 | L111: 1.002418043 | M111: 0.07655336514 | N111: 17.59693515 | O111: -113.8574108 | P111: 66.14258923 | R111: 1000000000 | S111: 32363583.21 | U111: 14.80933599 | V111: -53.78056679 | X111: 15.09607822 | Y111: -60.07684398
A112: 5754.4 | B112: 1.800638379 | C112: 0.9820022176 | D112: 1.000011389 | E112: 0.004772550681 | F112: 54.24316077 | G112: 1.552359778 | H112: 1.234058921 | I112: 0.6260743034 | J112: 1.000026145 | K112: 0.007231066262 | L112: 1.002473978 | M112: 0.0774322002 | N112: 17.46240924 | O112: -113.9142319 | P112: 66.08576814 | R112: 1000000000 | S112: 33113119.36 | U112: 14.7438159 | V112: -53.48655799 | X112: 15.02707239 | Y112: -60.42767387
A113: 5821.4 | B113: 1.815163326 | C113: 0.9873365654 | D113: 1.000011655 | E113: 0.004828117892 | F113: 54.87451481 | G113: 1.552571922 | H113: 1.239011246 | I113: 0.6315808043 | J113: 1.000026757 | K113: 0.007315256491 | L113: 1.002531854 | M113: 0.07833107017 | N113: 17.32639361 | O113: -113.9696646 | P113: 66.03033542 | R113: 1000000000 | S113: 33888697.96 | U113: 14.67808353 | V113: -53.18803741 | X113: 14.95678914 | Y113: -60.78162717
A114: 5888.4 | B114: 1.829739103 | C114: 0.9925860733 | D114: 1.000011925 | E114: 0.004883685072 | F114: 55.50587127 | G114: 1.55277924 | H114: 1.244000839 | I114: 0.6370432975 | J114: 1.000027377 | K114: 0.007399446617 | L114: 1.002590397 | M114: 0.07922984697 | N114: 17.19195805 | O114: -114.0224759 | P114: 65.97752406 | R114: 1000000000 | S114: 34673254.56 | U114: 14.61362203 | V114: -52.89176177 | X114: 14.88681507 | Y114: -61.13071417
A115: 5957 | B115: 1.844714365 | C115: 0.9978748412 | D115: 1.000012205 | E115: 0.004940579199 | F115: 56.15230731 | G115: 1.552986678 | H115: 1.249147735 | I115: 0.6425908539 | J115: 1.000028018 | K115: 0.007485647144 | L115: 1.002651028 | M115: 0.08014998948 | N115: 17.05591942 | O115: -114.0739332 | P115: 65.92606679 | R115: 1000000000 | S115: 35485849 | U115: 14.54890545 | V115: -52.59073446 | X115: 14.81549303 | Y115: -61.48319874
A116: 6025.6 | B116: 1.859740395 | C116: 1.00307829 | D116: 1.000012487 | E116: 0.004997473293 | F116: 56.79874571 | G116: 1.553189395 | H116: 1.254332759 | I116: 0.6480927147 | J116: 1.000028667 | K116: 0.00757184756 | L116: 1.002712358 | M116: 0.08107003209 | N116: 16.92147748 | O116: -114.1228439 | P116: 65.87715606 | R116: 1000000000 | S116: 36307855.36 | U116: 14.48545622 | V116: -52.29205477 | X116: 14.74450031 | Y116: -61.83078917
A117: 6095.8 | B117: 1.875168169 | C117: 1.008316625 | D117: 1.00001278 | E117: 0.005055694331 | F117: 57.46026375 | G117: 1.553392117 | H117: 1.259677695 | I117: 0.6536758356 | J117: 1.000029339 | K117: 0.007660058365 | L117: 1.002775842 | M117: 0.08201142883 | N117: 16.78552243 | O117: -114.1703606 | P117: 65.82963937 | R117: 1000000000 | S117: 37158777.64 | U117: 14.42180649 | V117: -51.98883476 | X117: 14.67219499 | Y117: -62.18152587
A118: 6166 | B118: 1.890646557 | C118: 1.013469328 | D118: 1.000013076 | E118: 0.005113915334 | F118: 58.1217841 | G118: 1.553590225 | H118: 1.265061565 | I118: 0.6592116063 | J118: 1.000030019 | K118: 0.007748269051 | L118: 1.002840057 | M118: 0.08295271858 | N118: 16.65117837 | O118: -114.2154134 | P118: 65.78458656 | R118: 1000000000 | S118: 38019556 | U118: 14.35941858 | V118: -51.6880633 | X118: 14.60023884 | Y118: -62.52735013
A119: 6237.8 | B119: 1.906528802 | C119: 1.018652783 | D119: 1.000013383 | E119: 0.005173463275 | F119: 58.79838415 | G119: 1.553788237 | H119: 1.270607902 | I119: 0.6648248432 | J119: 1.000030722 | K119: 0.007838490112 | L119: 1.002906492 | M119: 0.08391535029 | N119: 16.51540781 | O119: -114.2590462 | P119: 65.74095383 | R119: 1000000000 | S119: 38910148.84 | U119: 14.29688121 | V119: -51.38296305 | X119: 14.52700566 | Y119: -62.87608313
A120: 6309.6 | B120: 1.922461425 | C120: 1.023750456 | D120: 1.000013692 | E120: 0.00523301118 | F120: 59.47498644 | G120: 1.553981743 | H120: 1.276193926 | I120: 0.6703891149 | J120: 1.000031433 | K120: 0.007928711045 | L120: 1.002973693 | M120: 0.08487786752 | N120: 16.38126028 | O120: -114.3003048 | P120: 65.69969522 | R120: 1000000000 | S120: 39811052.16 | U120: 14.23559824 | V120: -51.08041016 | X120: 14.4541411 | Y120: -63.21989462
A121: 6383.05 | B121: 1.93881102 | C121: 1.028878447 | D121: 1.000014013 | E121: 0.005293927487 | F121: 60.16713965 | G121: 1.554175194 | H121: 1.281948842 | I121: 0.6760309008 | J121: 1.000032169 | K121: 0.008021005167 | L121: 1.003043228 | M121: 0.0858623841 | N121: 16.24567775 | O121: -114.3401568 | P121: 65.65984315 | R121: 1000000000 | S121: 40743327.3 | U121: 14.174172 | V121: -50.77353158 | X121: 14.37998481 | Y121: -63.56662526
A122: 6456.5 | B122: 1.955210745 | C122: 1.033920545 | D122: 1.000014337 | E122: 0.005354843755 | F122: 60.85929506 | G122: 1.554364244 | H122: 1.287744198 | I122: 0.6816220828 | J122: 1.000032914 | K122: 0.008113299152 | L122: 1.003113564 | M122: 0.08684677815 | N122: 16.11173024 | O122: -114.3777278 | P122: 65.62227216 | R122: 1000000000 | S122: 41686392.25 | U122: 14.11399264 | V122: -50.46930027 | X122: 14.30621666 | Y122: -63.90842756
A123: 6531.7 | B123: 1.972051836 | C123: 1.03899576 | D123: 1.000014673 | E123: 0.005417211356 | F123: 61.56794378 | G123: 1.554553394 | H123: 1.29371896 | I123: 0.6872943997 | J123: 1.000033685 | K123: 0.008207791966 | L123: 1.003186404 | M123: 0.08785449774 | N123: 15.97625292 | O123: -114.4139327 | P123: 65.58606732 | R123: 1000000000 | S123: 42663104.89 | U123: 14.05363812 | V123: -50.16055201 | X123: 14.23109386 | Y123: -64.25338066
A124: 6606.9 | B124: 1.988942861 | C124: 1.0439849 | D124: 1.000015013 | E124: 0.005479578915 | F124: 62.27659465 | G124: 1.55473824 | H124: 1.299734964 | I124: 0.6929143858 | J124: 1.000034465 | K124: 0.008302284633 | L124: 1.003260083 | M124: 0.08886208599 | N124: 15.84242461 | O124: -114.4479499 | P124: 65.55205008 | R124: 1000000000 | S124: 43651127.61 | U124: 13.99452438 | V124: -49.85455544 | X124: 14.15637929 | Y124: -64.59339448
A125: 6683.85 | B125: 2.006277338 | C125: 1.049003053 | D125: 1.000015365 | E125: 0.005543397803 | F125: 63.00173889 | G125: 1.554923082 | H125: 1.305933066 | I125: 0.6986113714 | J125: 1.000035272 | K125: 0.008398976112 | L125: 1.003336344 | M125: 0.08989298461 | N125: 15.70715596 | O125: -114.480596 | P125: 65.51940405 | R125: 1000000000 | S125: 44673850.82 | U125: 13.93528611 | V125: -49.54427293 | X125: 14.08034891 | Y125: -64.93632302
A126: 6760.8 | B126: 2.02366147 | C126: 1.053935111 | D126: 1.000015721 | E126: 0.005607216645 | F126: 63.72688523 | G126: 1.555103719 | H126: 1.312173153 | I126: 0.7042543542 | J126: 1.000036089 | K126: 0.008495667434 | L126: 1.003413482 | M126: 0.09092374257 | N126: 15.57354776 | O126: -114.5111542 | P126: 65.48884578 | R126: 1000000000 | S126: 45708416.64 | U126: 13.87728049 | V126: -49.23684352 | X126: 14.00474633 | Y126: -65.27431069
A127: 6839.55 | B127: 2.041502337 | C127: 1.058895449 | D127: 1.000016089 | E127: 0.005672528279 | F127: 64.46899616 | G127: 1.555284373 | H127: 1.318602052 | I127: 0.709973852 | J127: 1.000036935 | K127: 0.008594620376 | L127: 1.003493333 | M127: 0.09197846456 | N127: 15.43849973 | O127: -114.5403669 | P127: 65.45963309 | R127: 1000000000 | S127: 46779444.2 | U127: 13.81916082 | V127: -48.92516075 | X127: 13.92781798 | Y127: -65.61520616
A128: 6918.3 | B128: 2.059392563 | C128: 1.063769723 | D128: 1.000016462 | E128: 0.005737839864 | F128: 65.21110915 | G128: 1.555460915 | H128: 1.325073667 | I128: 0.7156376659 | J128: 1.00003779 | K128: 0.008693573151 | L128: 1.003574103 | M128: 0.09303303591 | N128: 15.30512322 | O128: -114.5675947 | P128: 65.43240527 | R128: 1000000000 | S128: 47862874.89 | U128: 13.76226533 | V128: -48.61643283 | X128: 13.85133695 | Y128: -65.9511619
A129: 6998.9 | B129: 2.077752851 | C129: 1.068671465 | D129: 1.000016847 | E129: 0.005804685703 | F129: 65.97065796 | G129: 1.555637492 | H129: 1.331740896 | I129: 0.7213773439 | J129: 1.000038676 | K129: 0.008794850353 | L129: 1.00365772 | M129: 0.09411222356 | N129: 15.17030996 | O129: -114.5935073 | P129: 65.40649271 | R129: 1000000000 | S129: 48984601.21 | U129: 13.70526733 | V129: -48.30349337 | X129: 13.77352169 | Y129: -66.29001393
A130: 7079.5 | B130: 2.096162185 | C130: 1.073487223 | D130: 1.000017238 | E130: 0.005871531489 | F130: 66.73020878 | G130: 1.555810049 | H130: 1.338451561 | I130: 0.727059653 | J130: 1.000039572 | K130: 0.008896127376 | L130: 1.0037423 | M130: 0.09519124984 | N130: 15.0371788 | O130: -114.6175408 | P130: 65.38245923 | R130: 1000000000 | S130: 50119320.25 | U130: 13.64948462 | V130: -47.99361058 | X130: 13.69617324 | Y130: -66.62393019
A131: 7161.95 | B131: 2.115043479 | C131: 1.07832666 | D131: 1.000017642 | E131: 0.005939911523 | F131: 67.50719546 | G131: 1.555982549 | H131: 1.345360518 | I131: 0.7328135433 | J131: 1.000040499 | K131: 0.008999728806 | L131: 1.003829816 | M131: 0.09629487399 | N131: 14.90269737 | O131: -114.640281 | P131: 65.35971898 | R131: 1000000000 | S131: 51293527.8 | U131: 13.59364532 | V131: -47.6797564 | X131: 13.6175311 | Y131: -66.96052462
A132: 7244.4 | B132: 2.133973431 | C132: 1.083080348 | D132: 1.00001805 | E132: 0.006008291502 | F132: 68.28418411 | G132: 1.556151124 | H132: 1.35231356 | I132: 0.7385084523 | J132: 1.000041437 | K132: 0.009103330043 | L132: 1.003918338 | M132: 0.09739832545 | N132: 14.76990599 | O132: -114.6612528 | P132: 65.33874723 | R132: 1000000000 | S132: 52481331.36 | U132: 13.53901049 | V132: -47.36905666 | X132: 13.53937456 | Y132: -67.2921961
A133: 7328.75 | B133: 2.153388624 | C133: 1.087856982 | D133: 1.000018473 | E133: 0.006078247188 | F133: 69.07907986 | G133: 1.556319658 | H133: 1.359471745 | I133: 0.7442741222 | J133: 1.000042407 | K133: 0.009209318492 | L133: 1.00400994 | M133: 0.09852702444 | N133: 14.63576787 | O133: -114.6809757 | P133: 65.31902425 | R133: 1000000000 | S133: 53710576.56 | U133: 13.48432933 | V133: -47.05443714 | X133: 13.4599176 | Y133: -67.62653861
A134: 7413.1 | B134: 2.17285207 | C134: 1.092548148 | D134: 1.0000189 | E134: 0.006148202816 | F134: 69.87397753 | G134: 1.556484359 | H134: 1.366674649 | I134: 0.7499792053 | J134: 1.000043389 | K134: 0.009315306735 | L134: 1.004102595 | M134: 0.0996555386 | N134: 14.50332723 | O134: -114.6990428 | P134: 65.3009572 | R134: 1000000000 | S134: 54954051.61 | U134: 13.43084143 | V134: -46.74306925 | X134: 13.38096486 | Y134: -67.95597355
A135: 7499.45 | B135: 2.192825651 | C135: 1.097264175 | D135: 1.000019343 | E135: 0.00621981708 | F135: 70.68772471 | G135: 1.556649127 | H135: 1.374093927 | I135: 0.7557574119 | J135: 1.000044406 | K135: 0.009423807819 | L135: 1.004198537 | M135: 0.1008106171 | N135: 14.36946839 | O135: -114.7159196 | P135: 65.28408044 | R135: 1000000000 | S135: 56241750.3 | U135: 13.37728749 | V135: -46.4276596 | X135: 13.30065996 | Y135: -68.28825996
A136: 7585.8 | B136: 2.212847121 | C136: 1.101894965 | D136: 1.000019791 | E136: 0.00629143128 | F136: 71.50147378 | G136: 1.556810145 | H136: 1.381558589 | I136: 0.7614733675 | J136: 1.000045434 | K136: 0.009532308682 | L136: 1.00429558 | M136: 0.1019654975 | N136: 14.23731577 | O136: -114.731253 | P136: 65.26874699 | R136: 1000000000 | S136: 57544361.64 | U136: 13.32491648 | V136: -46.11560176 | X136: 13.22087835 | Y136: -68.61565125
A137: 7674.15 | B137: 2.233380542 | C137: 1.106546975 | D137: 1.000020255 | E137: 0.006364704109 | F137: 72.33407241 | G137: 1.556971143 | H137: 1.389242353 | I137: 0.7672579433 | J137: 1.000046499 | K137: 0.00964332236 | L137: 1.004396012 | M137: 0.1031469194 | N137: 14.10383134 | O137: -114.7454392 | P137: 65.25456085 | R137: 1000000000 | S137: 58892578.22 | U137: 13.27252293 | V137: -45.79975509 | X137: 13.13978746 | Y137: -68.94568407
A138: 7762.5 | B138: 2.253961415 | C138: 1.111114128 | D138: 1.000020724 | E138: 0.00643797687 | F138: 73.16667287 | G138: 1.557128476 | H138: 1.396972092 | I138: 0.7729786942 | J138: 1.000047575 | K138: 0.009754335801 | L138: 1.004497597 | M138: 0.1043281294 | N138: 13.97205913 | O138: -114.7581981 | P138: 65.24180188 | R138: 1000000000 | S138: 60256406.25 | U138: 13.22130008 | V138: -45.48735535 | X138: 13.05923811 | Y138: -69.27084277
A139: 7852.9 | B139: 2.275067602 | C139: 1.115701626 | D139: 1.00002121 | E139: 0.00651294972 | F139: 74.01859413 | G139: 1.557285797 | H139: 1.404927979 | I139: 0.7787668329 | J139: 1.00004869 | K139: 0.009867924857 | L139: 1.004602732 | M139: 0.1055365253 | N139: 13.83896415 | O139: -114.7698688 | P139: 65.23013122 | R139: 1000000000 | S139: 61668038.41 | U139: 13.17006652 | V139: -45.17124141 | X139: 12.97737669 | Y139: -69.59862737
A140: 7943.3 | B140: =SQRT(1+(A140/Pole1)^2) -> 2.296220788 | C140: =ATAN(A140/Pole1) -> 1.120204695 | D140: =SQRT(1+(A140/Zero1)^2) -> 1.000021701 | E140: =ATAN(A140/Zero1) -> 0.006587922496 | F140: =SQRT(1+(A140/Pole2)^2) -> 74.87051718 | G140: =ATAN(A140/Pole2) -> 1.557439537 | H140: =SQRT(1+(A140/Zero2)^2) -> 1.412930404 | I140: =ATAN(A140/Zero2) -> 0.7844895968 | J140: =SQRT(1+(A140/pole4)^2) -> 1.000049817 | K140: =ATAN(A140/pole4) -> 0.009981513657 | L140: =SQRT((1-(S140/pterm2))^2+(A140/pterm1)^2) -> 1.004709074 | M140: =IF((ATAN((A140/pterm1)/(1-A140^2/pterm2))>0),ATAN((A140/pterm1)/(1-A140^2/pterm2)),PI()+ATAN((A140/pterm1)/(1-A140^2/pterm2))) -> 0.1067446943 | N140: =20*LOG10(((D140*H140)/(B140*F140*L140*J140))*Adc) -> 13.70758663 | O140: =((E140+I140)-(C140+G140+M140+K140))*radconv -> -114.7802296 | P140: =IF(O140>0,O140,O140+180) -> 65.21977039 | R140: 1000000000 | S140: 63096014.89 | U140: =20*LOG10((H140/(F140*J140))*Aea) -> 13.11999089 | V140: =(I140-(G140+K140))*radconv -> -44.85866802 | X140: =20*LOG10((D140/(B140*L140))*Acs*Am) -> 12.8960748 | Y140: =(E140-(C140+M140))*radconv -> -69.92156159
A141: 8035.8 | B141: 2.31791267 | C141: 1.124727201 | D141: 1.000022209 | E141: 0.00666463682 | F141: 75.74223228 | G141: 1.557593269 | H141: 1.421166078 | I141: 0.7902783951 | J141: 1.000050984 | K141: 0.01009774087 | L141: 1.004819135 | M141: 0.1079806916 | N141: 13.57489686 | O141: -114.789566 | P141: 65.21043404 | R141: =IF(N141<0,A141,1000000000) -> 1000000000 | S141: =A141^2 -> 64574081.64 | U141: 13.06991665 | V141: -44.54246183 | X141: 12.81345927 | Y141: -70.24710413
A142: 8128.3 | B142: 2.339651081 | C142: 1.129165757 | D142: 1.000022723 | E142: 0.006741351066 | F142: 76.61394912 | G142: 1.557743503 | H142: 1.429448826 | I142: 0.7960002985 | J142: 1.000052165 | K142: 0.01021396781 | L142: 1.004930458 | M142: 0.109216446 | N142: 13.44392893 | O142: -114.7977107 | P142: 65.20228928 | R142: 1000000000 | S142: 66069260.89 | U142: 13.02098702 | V142: -44.22988797 | X142: 12.73142098 | Y142: -70.56782274
A143: 8222.95 | B143: 2.361941587 | C143: 1.133622817 | D143: 1.000023256 | E143: 0.006819848317 | F143: 77.50592923 | G143: 1.55789373 | H143: 1.437971971 | I143: 0.8017867708 | J143: 1.000053387 | K143: 0.01033289595 | L143: 1.005045676 | M143: 0.110480669 | N143: 13.31166058 | O143: -114.8048996 | P143: 65.19510043 | R143: 1000000000 | S143: 67616906.7 | U143: 12.972071 | V143: -43.91376901 | X143: 12.64806864 | Y143: -70.89113056
A144: 8270.275 | B144: 2.373104187 | C144: 1.135819926 | D144: 1.000023524 | E144: 0.006859096911 | F144: 77.95191993 | G144: 1.557967555 | H144: 1.442251439 | I144: 0.804654312 | J144: 1.000054003 | K144: 0.01039235992 | L144: 1.00510378 | M144: 0.1111126832 | N144: 13.24617579 | O144: -114.8080865 | P144: 65.19191352 | R144: 1000000000 | S144: 68397448.58 | U144: 12.94803908 | V144: -43.75710786 | X144: 12.60661578 | Y144: -71.05097862
A145: 8317.6 | B145: 2.384278136 | C145: 1.137996452 | D145: 1.000023794 | E145: 0.006898345484 | F145: 78.39791106 | G145: 1.558040539 | H145: 1.446542696 | I145: 0.8075048632 | J145: 1.000054623 | K145: 0.01045182381 | L145: 1.005162214 | M145: 0.111744632 | N145: 13.1811176 | O145: -114.8110157 | P145: 65.18898435 | R145: 1000000000 | S145: 69182469.76 | U145: 12.92428571 | V145: -43.60137204 | X145: 12.56531095 | Y145: -71.20964361
A146: 8366.05 | B146: 2.3957293 | C146: 1.140203675 | D146: 1.000024072 | E146: 0.006938527044 | F146: 78.85450462 | G146: 1.558114403 | H146: 1.450948067 | I146: 0.8104056855 | J146: 1.000055261 | K146: 0.01051270118 | L146: 1.00522238 | M146: 0.1123915353 | N146: 13.11494992 | O146: -114.813758 | P146: 65.18624196 | R146: 1000000000 | S146: 69990792.6 | U146: 12.90025207 | V146: -43.44288729 | X146: 12.52317691 | Y146: -71.37087075
A147: 8414.5 | B147: 2.407192024 | C147: 1.142389887 | D147: 1.000024352 | E147: 0.006978708582 | F147: 79.3110986 | G147: 1.558187417 | H147: =SQRT(1+(A147/Zero2)^2) -> 1.455365574 | I147: =ATAN(A147/Zero2) -> 0.8132889221 | J147: 1.000055903 | K147: 0.01057357848 | L147: =SQRT((1-(S147/pterm2))^2+(A147/pterm1)^2) -> 1.005282891 | M147: 0.1130383693 | N147: 13.04921952 | O147: -114.8162515 | P147: =IF(O147>0,O147,O147+180) -> 65.1837485 | R147: 1000000000 | S147: 70803810.25 | U147: 12.87650192 | V147: -43.28536139 | X147: 12.48119666 | Y147: -71.53089011
A148: 8462.95 | B148: 2.418666144 | C148: 1.144555367 | D148: 1.000024633 | E148: 0.007018890097 | F148: 79.767693 | G148: 1.558259595 | H148: 1.459795106 | I148: 0.8161546849 | J148: 1.000056548 | K148: 0.0106344557 | L148: 1.005343748 | M148: 0.1136851337 | N148: 12.98392154 | O148: -114.8185064 | P148: 65.18149363 | R148: 1000000000 | S148: 71621522.7 | U148: 12.8530311 | V148: -43.12878877 | X148: 12.4393695 | Y148: -71.6897176
A149: 8511.4 | B149: 2.430151499 | C149: 1.146700388 | D149: 1.000024916 | E149: 0.007059071589 | F149: 80.22428781 | G149: 1.558330951 | H149: 1.464236554 | I149: 0.8190030856 | J149: 1.000057198 | K149: 0.01069533284 | L149: 1.005404952 | M149: 0.114331828 | N149: 12.91905118 | O149: -114.8205327 | P149: 65.17946729 | R149: 1000000000 | S149: 72443929.96 | U149: 12.82983552 | V149: -42.97316384 | X149: 12.39769472 | Y149: -71.84736886
A150: 8560.95 | B150: 2.441909071 | C150: 1.148873228 | D150: 1.000025207 | E150: 0.007100165331 | F150: 80.69124949 | G150: 1.558403092 | H150: 1.468791052 | I150: 0.8218983142 | J150: 1.000057866 | K150: 0.01075759204 | L150: 1.005467902 | M150: 0.1149931319 | N150: 12.85314537 | O150: -114.8223789 | P150: 65.1776211 | R150: 1000000000 | S150: 73289864.9 | U150: 12.80639379 | V150: -42.81498003 | X150: 12.35523064 | Y150: -72.00739888
A151: 8610.5 | B151: 2.453678061 | C151: 1.151025235 | D151: 1.000025499 | E151: 0.007141259049 | F151: 81.15821158 | G151: 1.558474403 | H151: 1.473357786 | I151: 0.8247756191 | J151: 1.000058537 | K151: 0.01081985116 | L151: 1.005531214 | M151: 0.1156543617 | N151: 12.78767687 | O151: -114.8240066 | P151: 65.17599345 | R151: 1000000000 | S151: 74140710.25 | U151: 12.78323148 | V151: -42.6577756 | X151: 12.31292444 | Y151: -72.16623095
A152: 8660.05 | B152: 2.465458305 | C152: 1.153156686 | D152: 1.000025794 | E152: 0.007182352743 | F152: 81.62517408 | G152: 1.558544898 | H152: 1.477936642 | I152: 0.8276351189 | J152: 1.000059213 | K152: 0.0108821102 | L152: 1.005594888 | M152: 0.116315517 | N152: 12.72264074 | O152: -114.8254256 | P152: 65.17457439 | R152: 1000000000 | S152: 74996466 | U152: 12.76034446 | V152: -42.50154457 | X152: 12.27077534 | Y152: -72.32388103
A153: 8709.6 | B153: 2.477249644 | C153: 1.155267856 | D153: 1.00002609 | E153: 0.007223446413 | F153: 82.09213698 | G153: 1.558614591 | H153: 1.482527509 | I153: 0.8304769321 | J153: 1.000059893 | K153: 0.01094436915 | L153: 1.005658923 | M153: 0.1169765974 | N153: 12.65803214 | O153: -114.8266458 | P153: 65.17335425 | R153: 1000000000 | S153: 75857132.16 | U153: 12.73772862 | V153: -42.34628096 | X153: 12.22878258 | Y153: -72.48036479
A154: 8760.325 | B154: 2.489331924 | C154: 1.157408362 | D154: 1.000026394 | E154: 0.007265514529 | F154: 82.57017357 | G154: 1.55868512 | H154: 1.487239565 | I154: 0.8333679371 | J154: 1.000060592 | K154: 0.01100810438 | L154: 1.005724851 | M154: 0.1176532763 | N154: 12.59232929 | O154: -114.8276986 | P154: 65.17230136 | R154: 1000000000 | S154: 76743294.11 | U154: 12.71485321 | V154: -42.18833136 | X154: 12.18595514 | Y154: -72.63936728
A155: 8811.05 | B155: 2.501425498 | C155: 1.159528181 | D155: 1.000026701 | E155: 0.007307582619 | F155: 83.04821057 | G155: 1.558754837 | H155: 1.491963972 | I155: 0.8362406568 | J155: 1.000061296 | K155: 0.01107183953 | L155: 1.005791157 | M155: 0.1183298759 | N155: 12.52706441 | O155: -114.8285628 | P155: 65.1714372 | R155: 1000000000 | S155: 77634602.1 | U155: 12.69225358 | V155: -42.0313829 | X155: 12.14328989 | Y155: -72.79717991
A156: 8861.775 | B156: 2.513530205 | C156: 1.161627591 | D156: 1.000027009 | E156: 0.007349650683 | F156: 83.52624797 | G156: 1.558823756 | H156: 1.496700614 | I156: 0.8390952172 | J156: 1.000062004 | K156: 0.01113557459 | L156: 1.005857843 | M156: 0.1190063957 | N156: 12.46223249 | O156: -114.8292478 | P156: 65.17075217 | R156: 1000000000 | S156: 78531056.15 | U156: 12.66992557 | V156: -41.87542916 | X156: 12.10078598 | Y156: -72.95381867
A157: 8912.5 | B157: 2.525645884 | C157: 1.163706869 | D157: 1.000027319 | E157: 0.007391718722 | F157: 84.00428577 | G157: 1.558891891 | H157: =SQRT(1+(A157/Zero2)^2) -> 1.501449375 | I157: =ATAN(A157/Zero2) -> 0.8419317438 | J157: 1.000062716 | K157: 0.01119930955 | L157: =SQRT((1-(S157/pterm2))^2+(A157/pterm1)^2) -> 1.005924907 | M157: 0.1196828352 | N157: 12.39782862 | O157: -114.829763 | P157: 65.17023695 | R157: 1000000000 | S157: 79432656.25 | U157: 12.64786511 | V157: -41.72046373 | X157: 12.05844257 | Y157: -73.10929931
A158: 8964.4 | B158: 2.538053405 | C158: 1.165813755 | D158: 1.000027638 | E158: 0.007434761202 | F158: 84.49339728 | G158: 1.558960806 | H158: 1.506320561 | I158: 0.8448154415 | J158: 1.000063448 | K158: 0.01126452079 | L158: 1.005993916 | M158: 0.1203748603 | N158: 12.33237087 | O158: -114.8301239 | P158: 65.16987612 | R158: 1000000000 | S158: 80360467.36 | U158: 12.62556638 | V158: -41.5629249 | X158: 12.01528355 | Y158: -73.26719898
A159: 9016.3 | B159: 2.550472082 | C159: 1.167900133 | D159: 1.000027959 | E159: 0.007477803655 | F159: 84.9825092 | G159: 1.559028928 | H159: 1.511204192 | I159: 0.8476805248 | J159: 1.000064185 | K159: 0.01132973193 | L159: 1.006063321 | M159: 0.1210668006 | N159: 12.26735103 | O159: -114.8303259 | P159: 65.16967412 | R159: 1000000000 | S159: 81293665.69 | U159: 12.60353934 | V159: -41.40640713 | X159: 11.97229074 | Y159: -73.42391875
A160: 9068.2 | B160: 2.562901754 | C160: 1.169966283 | D160: 1.000028282 | E160: 0.00752084608 | F160: 85.4716215 | G160: 1.55909627 | H160: 1.516100148 | I160: 0.850527127 | J160: 1.000064926 | K160: 0.01139494297 | L160: 1.006133122 | M160: 0.1217586554 | N160: 12.20276405 | O160: -114.8303782 | P160: 65.16962179 | R160: 1000000000 | S160: 82232251.24 | U160: 12.58177985 | V160: -41.25090358 | X160: 11.92946325 | Y160: -73.57947462
A161: 9120.1 | B161: 2.575342261 | C161: 1.17201248 | D161: 1.000028607 | E161: 0.007563888477 | F161: 85.96073419 | G161: 1.559162846 | H161: 1.52100831 | I161: 0.8533553804 | J161: 1.000065671 | K161: 0.01146015392 | L161: 1.006203319 | M161: 0.1224504244 | N161: 12.13860495 | O161: -114.8302898 | P161: 65.16971021 | R161: 1000000000 | S161: 83176224.01 | U161: 12.56028386 | V161: -41.09640742 | X161: 11.88680015 | Y161: -73.73388237
A162: 9173.2 | B162: 2.588081461 | C162: 1.17408562 | D162: 1.000028941 | E162: 0.007607926045 | F162: 86.46115623 | G162: 1.559230181 | H162: 1.526042465 | I162: 0.8562301747 | J162: 1.000066438 | K162: 0.01152687253 | L162: 1.006275549 | M162: 0.1231580987 | N162: 12.07340014 | O162: -114.8300627 | P162: 65.16993731 | R162: 1000000000 | S162: 84147598.24 | U162: 12.53855938 | V162: -40.93937458 | X162: 11.84331982 | Y162: -73.89068812
A163: 9226.3 | B163: 2.600831676 | C163: 1.176138442 | D163: 1.000029277 | E163: 0.007651963584 | F163: 86.96157866 | G163: 1.559296742 | H163: 1.53108915 | I163: 0.8590860411 | J163: 1.000067209 | K163: 0.01159359104 | L163: 1.006348194 | M163: 0.1238656821 | N163: 12.00863293 | O163: -114.8297064 | P163: 65.17029364 | R163: 1000000000 | S163: 85124611.69 | U163: 12.51710235 | V163: -40.78338182 | X163: 11.80000964 | Y163: -74.04632454
